Workbook

Sheet Report Tables
G1: without closure
A2: Central Region Projects | B2: Present Value of Estimated Benefits | C2: Present Value of Estimated Costs | D2: Net Present Value | E2: B/C Ratio | G2: Central Region Projects | H2: Present Value of Estimated Benefits | I2: Present Value of Estimated Costs | J2: Net Present Value | K2: B/C Ratio
A4: 603 Snow River West | B4: =B162 -> 5050.17641 | C4: ='603 Snow River West'!B15/1000000 -> 2.947572946 | D4: =B4-C4 -> 5047.228837 | E4: =B4/C4 -> 1713.333818 | G4: 603 Snow River West | H4: ='603 Snow River West'!C14/1000000 -> 7.459778971 | I4: =C4 -> 2.947572946 | J4: =H4-I4 -> 4.512206025 | K4: =H4/I4 -> 2.530820817
A5: 605 Snow River Center | B5: =C162 -> 5050.531812 | C5: ='605 Snow River Center'!B15/1000000 -> 7.440030872 | D5: =B5-C5 -> 5043.091781 | E5: =B5/C5 -> 678.8321042 | G5: 605 Snow River Center | H5: ='605 Snow River Center'!C14/1000000 -> 7.815180497 | I5: =C5 -> 7.440030872 | J5: =H5-I5 -> 0.3751496255 | K5: =H5/I5 -> 1.050423128
A6: 607 Victor Creek | B6: =D162 -> 5054.467756 | C6: ='607 Victor Creek'!B15/1000000 -> 9.762686723 | D6: 5044.705069 | E6: 517.7332736 | G6: 607 Victor Creek | H6: ='607 Victor Creek'!C14/1000000 -> 6.645408858 | I6: 9.762686723 | J6: -3.117277865 | K6: 0.6806946742
A7: Total (as separate) | B7: =SUM(B4:B6) -> 15155.17598 | C7: ='All Bridges'!B15/1000000 -> 20.15029054 | D7: 15135.02569 | E7: 752.10707 | G7: Total (as separate) | H7: =SUM(H4:H6) -> 21.92036833 | I7: =C7 -> 20.15029054 | J7: 1.770077786 | K7: 1.087843785
A8: Total (as bundled) | B8: =B7 -> 15155.17598 | C8: ='All Bridges'!E35/1000000 -> 16.76273196 | D8: 15138.41325 | E8: 904.0994043 | G8: Total (as bundled) | H8: =H7 -> 21.92036833 | I8: =C8 -> 16.76273196 | J8: 5.157636367 | K8: 1.307684713
A11: Cost Classification | B11: Snow River West | C11: Snow River Center | D11: Victor Creek | E11: All Bridges (Separate) | F11: All Bridges (Bundled)
A12: Administrative and legal expenses | B12: 50000 | C12: ='Budget 605'!C5 -> 100000 | D12: ='Budget 607'!C5 -> 200000 | E12: =SUM(B12:D12) -> 350000 | F12: ='Budget Combined'!C4 -> 100000
A13: Land, structures, rights-of-way, appraisals, etc. | B13: 25000 | C13: ='Budget 605'!C6 -> 25000 | D13: ='Budget 607'!C6 -> 500000 | E13: =SUM(B13:D13) -> 550000 | F13: ='Budget Combined'!C5 -> 500000
A14: Relocation expenses and payments | B14: 0 | C14: ='Budget 605'!C7 -> 0 | D14: ='Budget 607'!C7 -> 100000 | E14: 100000 | F14: ='Budget Combined'!C6 -> 100000
A15: Architectural and engineering fees | B15: 400000 | C15: ='Budget 605'!C8 -> 600000 | D15: ='Budget 607'!C8 -> 900000 | E15: 1900000 | F15: ='Budget Combined'!C7 -> 1150000
A16: Other architectural and engineering fees | B16: 150000 | C16: ='Budget 605'!C9 -> 350000 | D16: ='Budget 607'!C9 -> 600000 | E16: 1100000 | F16: ='Budget Combined'!C8 -> 600000
A17: Project inspection fees | B17: 365065.46 | C17: ='Budget 605'!C10 -> 1051160.52 | D17: ='Budget 607'!C10 -> 1230640.91 | E17: 2646866.89 | F17: ='Budget Combined'!C9 -> 1800849.608
A18: Site work | B18: 158655 | C18: ='Budget 605'!C11 -> 89640 | D18: ='Budget 607'!C11 -> 178150 | E18: 426445 | F18: ='Budget Combined'!C10 -> 396765
A19: Demolition and removal | B19: 3440 | C19: ='Budget 605'!C12 -> 3505 | D19: ='Budget 607'!C12 -> 200270 | E19: 207215 | F19: ='Budget Combined'!C11 -> 204100
A20: Construction | B20: 1334982.3 | C20: ='Budget 605'!C13 -> 4627095.1 | D20: ='Budget 607'!C13 -> 5143784.55 | E20: 11105861.95 | F20: ='Budget Combined'!C12 -> 10695986.55
A21: Equipment | B21: 158000 | C21: ='Budget 605'!C14 -> 308000 | D21: ='Budget 607'!C14 -> 378000 | E21: 844000 | F21: ='Budget Combined'!C13 -> 413000
A22: Miscellaneous | B22: 170250 | C22: ='Budget 605'!C15 -> 227562.5 | D22: ='Budget 607'!C15 -> 253000 | E22: 650812.5 | F22: ='Budget Combined'!C14 -> 295812.5
A23: SUBTOTAL | B23: 2815392.76 | C23: ='Budget 605'!C16 -> 7381963.12 | D23: ='Budget 607'!C16 -> 9683845.46 | E23: 19881201.34 | F23: ='Budget Combined'!C15 -> 16256513.66
A24: Contingencies | B24: 240000 | C24: ='Budget 605'!C17 -> 240000 | D24: ='Budget 607'!C17 -> 720000 | E24: 1200000 | F24: ='Budget Combined'!C16 -> 1200000
A25: Total Costs | B25: 3055392.76 | C25: ='Budget 605'!C18 -> 7621963.12 | D25: ='Budget 607'!C18 -> 10403845.46 | E25: =E23+E24 -> 21081201.34 | F25: ='Budget Combined'!C19 -> 17456513.66
A28: B/C Model Assumptions | B28: Parameter Value
A29: Discount Rate (Real), percent | B29: 0.07
A30: Design Life of New Bridge, # of years | B30: 75
A31: Design Life of Rehabilitated Bridge, # of years | B31: 50
A32: Occupancy rate for personal vehicles, # of persons | B32: 1.7
A33: Occupancy rate for buses, # of persons | B33: 10.7
A34: Occupancy rate for commercial vehicles, # of persons | B34: 1
A35: Replacement Year for Polyester Concrete Overlay | B35: 30
A36: Operating Period for this Analysis, # of years | B36: 30
A38: Bridge 603 and 605
A39: Estimated Avoided Costs of Load Limits: | B39: Net Present Value | C39: ='603 & 605 Baseline'!H33 -> 2019 | D39: ='603 & 605 Baseline'!I33 -> 2020 | E39: ='603 & 605 Baseline'!J33 -> 2021 | F39: ='603 & 605 Baseline'!K33 -> 2022
A40: ='603 & 605 Baseline'!E34 -> Reduced Truck Operating Cost | B40: ='603 & 605 Baseline'!G34 -> -374610.5144 | C40: =-'603 & 605 Baseline'!H34 -> 0 | D40: =-'603 & 605 Baseline'!I34 -> -151067.6651 | E40: =-'603 & 605 Baseline'!J34 -> -152817.0238 | F40: =-'603 & 605 Baseline'!K34 -> -154566.3824
A41: ='603 & 605 Baseline'!E35 -> Increased Truck Operating Cost | B41: ='603 & 605 Baseline'!G35 -> 498231.9842 | C41: ='603 & 605 Baseline'!H35 -> 0 | D41: ='603 & 605 Baseline'!I35 -> 200919.9946 | E41: ='603 & 605 Baseline'!J35 -> 203246.6416 | F41: ='603 & 605 Baseline'!K35 -> 205573.2886
A42: ='603 & 605 Baseline'!E36 -> Reduced Driver Travel Time | B42: ='603 & 605 Baseline'!G36 -> -376023.7336 | C42: =-'603 & 605 Baseline'!H36 -> 0 | D42: =-'603 & 605 Baseline'!I36 -> -151637.5683 | E42: =-'603 & 605 Baseline'!J36 -> -153393.5264 | F42: =-'603 & 605 Baseline'!K36 -> -155149.4845
A43: ='603 & 605 Baseline'!E37 -> Increased Driver Travel Time | B43: ='603 & 605 Baseline'!G37 -> 500111.5657 | C43: ='603 & 605 Baseline'!H37 -> 0 | D43: ='603 & 605 Baseline'!I37 -> 201677.9658 | E43: ='603 & 605 Baseline'!J37 -> 204013.3901 | F43: ='603 & 605 Baseline'!K37 -> 206348.8144
A44: ='603 & 605 Baseline'!E38 -> Marine Transport Cost | B44: ='603 & 605 Baseline'!G38 -> 4476053.066 | C44: ='603 & 605 Baseline'!H38 -> 0 | D44: ='603 & 605 Baseline'!I38 -> 1825000 | E44: ='603 & 605 Baseline'!J38 -> 1825000 | F44: ='603 & 605 Baseline'!K38 -> 1825000
A45: ='603 & 605 Baseline'!E39 -> Net Effect of Load Limits | B45: ='603 & 605 Baseline'!G39 -> 4723762.368 | C45: =SUM(C40:C44) -> 0 | D45: =SUM(D40:D44) -> 1924892.727 | E45: =SUM(E40:E44) -> 1926049.482 | F45: 1927206.236
A47: Bridge 607
A48: Estimated Avoided Costs of Load Limits: | B48: Net Present Value | C48: 2019 to 2024 | D48: ='607 Baseline'!N33 -> 2025 | E48: ='607 Baseline'!O33 -> 2026 | F48: ='607 Baseline'!P33 -> 2027
A49: Reduced Truck Operating Cost | B49: ='607 Baseline'!G34 -> -280417.8941 | C49: =-SUM('607 Baseline'!H34:M34) -> 0 | D49: =-'607 Baseline'!N34 -> -159814.4583 | E49: =-'607 Baseline'!O34 -> -159814.4583 | F49: =-'607 Baseline'!P34 -> -161563.817
A50: Increased Truck Operating Cost | B50: ='607 Baseline'!G35 -> 372955.7991 | C50: =SUM('607 Baseline'!H35:M35) -> 0 | D50: ='607 Baseline'!N35 -> 212553.2296 | E50: ='607 Baseline'!O35 -> 212553.2296 | F50: ='607 Baseline'!P35 -> 214879.8766
A51: Reduced Driver Travel Time | B51: ='607 Baseline'!G36 -> -283452.8798 | C51: =-SUM('607 Baseline'!H36:M36) -> 0 | D51: =-'607 Baseline'!N36 -> -160417.3588 | E51: =-'607 Baseline'!O36 -> -162173.3169 | F51: =-'607 Baseline'!P36 -> -163929.275
A52: Increased Driver Travel Time | B52: ='607 Baseline'!G37 -> 376992.3301 | C52: =SUM('607 Baseline'!H37:M37) -> 0 | D52: ='607 Baseline'!N37 -> 213355.0872 | E52: ='607 Baseline'!O37 -> 215690.5115 | F52: ='607 Baseline'!P37 -> 218025.9358
A53: Marine Transport Cost | B53: ='607 Baseline'!G38 -> 3191363.975 | C53: =SUM('607 Baseline'!H38:M38) -> 0 | D53: ='607 Baseline'!N38 -> 1825000 | E53: ='607 Baseline'!O38 -> 1825000 | F53: ='607 Baseline'!P38 -> 1825000
A54: Net Effect of Load Limits | B54: =SUM(B49:B53) -> 3377441.33 | C54: =SUM(C49:C53) -> 0 | D54: 1930676.5 | E54: 1931255.966 | F54: 1932412.72
A56: 603 and 605
A57: Estimated Effect of Single Operations | B57: Net Present Value | C57: 2019 | D57: 2020 | E57: 2021 | F57: 2022
A58: Truck Drivers | B58: =NPV('603 Snow River West'!$C$4,'Report Tables'!C58:F58) -> 301620.3696 | C58: 0 | D58: 0 | E58: 0 | F58: ='603 & 605 Baseline'!K49*365 -> 395362.7771
A59: Bus Drivers | B59: =NPV('603 Snow River West'!$C$4,'Report Tables'!C59:F59) -> 30232.96097 | C59: 0 | D59: 0 | E59: 0 | F59: ='603 & 605 Baseline'!K50*365 -> 39629.24461
A60: Bus (Passengers) | B60: =NPV('603 Snow River West'!$C$4,'Report Tables'!C60:F60) -> 206765.1372 | C60: 0 | D60: 0 | E60: 0 | F60: ='603 & 605 Baseline'!K51*365 -> 271026.9168
A61: Other Business Travel Time | B61: =NPV('603 Snow River West'!$C$4,'Report Tables'!C61:F61) -> 169103.9527 | C61: 0 | D61: 0 | E61: 0 | F61: ='603 & 605 Baseline'!K52*365 -> 221660.7864
A62: Personal Travel Time | B62: =NPV('603 Snow River West'!$C$4,'Report Tables'!C62:F62) -> 1791347.833 | C62: 0 | D62: 0 | E62: 0 | F62: ='603 & 605 Baseline'!K53*365 -> 2348091.592
A63: Total | B63: =SUM(B58:B62) -> 2499070.254 | C63: 0 | D63: 0 | E63: 0 | F63: =SUM(F58:F62) -> 3275771.317
A65: 607
A66: Estimated Effect of Single Operations | B66: Net Present Value | C66: 2019 | D66: 2020 | E66: 2021 | F66: 2022 | G66: 2023 | H66: 2024 | I66: 2025 | J66: 2026 | K66: 2027 | L66: 2028
A67: Truck Drivers | B67: =NPV('607 Victor Creek'!$C$4,'Report Tables'!C67:L67) -> 597698.0316 | C67: 0 | D67: 0 | E67: 0 | F67: 0 | G67: 0 | H67: 0 | I67: ='607 Baseline'!N49*365 -> 260592.0811 | J67: ='607 Baseline'!O49*365 -> 263575.1847 | K67: ='607 Baseline'!P49*365 -> 266558.2883 | L67: ='607 Baseline'!Q49*365 -> 269541.3918
A68: Bus Drivers | B68: =NPV('607 Victor Creek'!$C$4,'Report Tables'!C68:L68) -> 59910.34783 | C68: 0 | D68: 0 | E68: 0 | F68: 0 | G68: 0 | H68: 0 | I68: ='607 Baseline'!N50*365 -> 26120.48459 | J68: ='607 Baseline'!O50*365 -> 26419.4964 | K68: ='607 Baseline'!P50*365 -> 26718.50822 | L68: ='607 Baseline'!Q50*365 -> 27017.52003
A69: Bus (Passengers) | B69: =NPV('607 Victor Creek'!$C$4,'Report Tables'!C69:L69) -> 409730.6679 | C69: 0 | D69: 0 | E69: 0 | F69: 0 | G69: 0 | H69: 0 | I69: ='607 Baseline'!N51*365 -> 178639.6505 | J69: ='607 Baseline'!O51*365 -> 180684.6112 | K69: ='607 Baseline'!P51*365 -> 182729.572 | L69: ='607 Baseline'!Q51*365 -> 184774.5327
A70: Other Business Travel Time | B70: =NPV('607 Victor Creek'!$C$4,'Report Tables'!C70:L70) -> 335100.3772 | C70: 0 | D70: 0 | E70: 0 | F70: 0 | G70: 0 | H70: 0 | I70: ='607 Baseline'!N52*365 -> 146101.3757 | J70: ='607 Baseline'!O52*365 -> 147773.8576 | K70: ='607 Baseline'!P52*365 -> 149446.3395 | L70: ='607 Baseline'!Q52*365 -> 151118.8214
A71: Personal Travel Time | B71: =NPV('607 Victor Creek'!$C$4,'Report Tables'!C71:L71) -> 3549777.076 | C71: 0 | D71: 0 | E71: 0 | F71: 0 | G71: 0 | H71: 0 | I71: ='607 Baseline'!N53*365 -> 1547677.501 | J71: ='607 Baseline'!O53*365 -> 1565394.395 | K71: ='607 Baseline'!P53*365 -> 1583111.289 | L71: ='607 Baseline'!Q53*365 -> 1600828.183
A72: Total | B72: =SUM(B67:B71) -> 4952216.5 | C72: 0 | D72: 0 | E72: 0 | F72: 0 | G72: 0 | H72: 0 | I72: =SUM(I67:I71) -> 2159131.093 | J72: =SUM(J67:J71) -> 2183847.545 | K72: 2208563.997 | L72: 2233280.449
A74: 603 and 605 | B74: 1000000
A75: Estimated Effect of Bridge Closure | B75: Net Present Value
A76: ARRC Cost to Transport Trucks/Trailers to/from Seward | B76: ='603 & 605 Baseline'!G60/$B$74 -> 361.855413
A77: ARRC Cost to Transport Automobiles to/from Seward | B77: ='603 & 605 Baseline'!G61/$B$74 -> 1149.732538
A78: ARRC Cost to Transport Passengers from mid-May to Mid-September | B78: ='603 & 605 Baseline'!G62/$B$74 -> 434.5367304
A79: ARRC Travel Time Cost for Passengers | B79: ='603 & 605 Baseline'!G63/$B$74 -> 224.408386
A80: AMHS Cost to Transport Passengers from Mid-September to Mid-May | B80: ='603 & 605 Baseline'!G64/$B$74 -> 633.5131685
A81: Bus Service to Anchorage from mid-September to mid-May | B81: ='603 & 605 Baseline'!G65/$B$74 -> 253.4455312
A82: AMHS and Bus Travel Time Cost for Passengers | B82: ='603 & 605 Baseline'!G66/$B$74 -> 1954.146615
A83: Air Travel Cost Seward/Anchorage | B83: ='603 & 605 Baseline'!G67/$B$74 -> 47.22918487
A84: Air Travel Time Cost (Benefit) for Passengers | B84: ='603 & 605 Baseline'!G68/$B$74 -> -0.03897401998
A85: Total NPV of Bridge Closure | B85: =SUM(B76:B84) -> 5058.828593
A87: 607
A88: Estimated Effect of Bridge Closure | B88: Net Present Value
A89: ARRC Cost to Transport Trucks/Trailers to/from Seward | B89: ='607 Baseline'!G60/$B$74 -> 238.0784337
A90: ARRC Cost to Transport Automobiles to/from Seward | B90: ='607 Baseline'!G61/$B$74 -> 781.7021944
A91: ARRC Cost to Transport Passengers from mid-May to Mid-September | B91: ='607 Baseline'!G62/$B$74 -> 296.860158
A92: ARRC Travel Time Cost for Passengers | B92: ='607 Baseline'!G63/$B$74 -> 153.3078892
A93: AMHS Cost to Transport Passengers from Mid-September to Mid-May | B93: ='607 Baseline'!G64/$B$74 -> 432.7938379
A94: Bus Service to Anchorage from mid-September to mid-May | B94: ='607 Baseline'!G65/$B$74 -> 173.145042
A95: AMHS and Bus Travel Time Cost for Passengers | B95: ='607 Baseline'!G66/$B$74 -> 1335.003999
A96: Air Travel Cost Seward/Anchorage | B96: ='607 Baseline'!G67/$B$74 -> 32.26214765
A97: Air Travel Time Cost (Benefit) for Passengers | B97: ='607 Baseline'!G68/$B$74 -> -0.02662306349
A98: Total NPV of Bridge Closure | B98: =SUM(B89:B97) -> 3443.127079
A100: Baseline Maintenance and Operating Costs
A101: Bridge/Cost Category | B101: NPV | C101: 2019 | D101: 2020 | E101: 2021 | F101: 2022 | G101: 2023 | H101: 2024 | I101: 2025 | J101: 2026 | K101: 2027
A102: Snow River West
A103: Pavement | B103: ='M&O'!D10 -> 68.12822081 | C103: ='M&O'!E10 -> 0 | D103: ='M&O'!F10 -> 78 | E103: ='M&O'!G10 -> 0 | F103: ='M&O'!H10 -> 0
A104: Bridge | B104: ='M&O'!D11 -> 11806.36803 | C104: ='M&O'!E11 -> 0 | D104: ='M&O'!F11 -> 4813.754739 | E104: ='M&O'!G11 -> 4813.754739 | F104: ='M&O'!H11 -> 4813.754739
A105: Total | B105: ='M&O'!D12 -> 11874.49625 | C105: ='M&O'!E12 -> 0 | D105: ='M&O'!F12 -> 4891.754739 | E105: ='M&O'!G12 -> 4813.754739 | F105: ='M&O'!H12 -> 4813.754739
A106: Snow River Center
A107: Pavement | B107: ='M&O'!D14 -> 223.3091682 | C107: ='M&O'!E14 -> 0 | D107: ='M&O'!F14 -> 255.6666667 | E107: ='M&O'!G14 -> 0 | F107: ='M&O'!H14 -> 0
A108: Bridge | B108: ='M&O'!D15 -> 30661.76874 | C108: ='M&O'!E15 -> 0 | D108: ='M&O'!F15 -> 12501.57832 | E108: ='M&O'!G15 -> 12501.57832 | F108: ='M&O'!H15 -> 12501.57832
A109: Total | B109: ='M&O'!D16 -> 30885.07791 | C109: ='M&O'!E16 -> 0 | D109: ='M&O'!F16 -> 12757.24498 | E109: ='M&O'!G16 -> 12501.57832 | F109: ='M&O'!H16 -> 12501.57832
A110: Victor Creek
A111: Pavement | B111: ='M&O'!D19 -> 425.839815 | C111: ='M&O'!E19 -> 0 | D111: ='M&O'!F19 -> 0 | E111: ='M&O'!G19 -> 0 | F111: ='M&O'!H19 -> 281.6666667 | G111: ='M&O'!I19 -> 0 | H111: ='M&O'!J19 -> 86.66666667 | I111: ='M&O'!K19 -> 0 | J111: ='M&O'!L19 -> 0 | K111: ='M&O'!M19 -> 281.6666667
A112: Bridge | B112: ='M&O'!D20 -> 2084.601239 | C112: ='M&O'!E20 -> 0 | D112: ='M&O'!F20 -> 373.5407505 | E112: ='M&O'!G20 -> 373.5407505 | F112: ='M&O'!H20 -> 373.5407505 | G112: ='M&O'!I20 -> 373.5407505 | H112: ='M&O'!J20 -> 373.5407505 | I112: ='M&O'!K20 -> 373.5407505 | J112: ='M&O'!L20 -> 373.5407505 | K112: ='M&O'!M20 -> 373.5407505
A113: Total | B113: ='M&O'!D21 -> 2510.441053 | C113: ='M&O'!E21 -> 0 | D113: ='M&O'!F21 -> 373.5407505 | E113: ='M&O'!G21 -> 373.5407505 | F113: ='M&O'!H21 -> 655.2074171 | G113: ='M&O'!I21 -> 373.5407505 | H113: ='M&O'!J21 -> 460.2074171 | I113: ='M&O'!K21 -> 373.5407505 | J113: ='M&O'!L21 -> 373.5407505 | K113: ='M&O'!M21 -> 655.2074171
A115: Residual Values | B115: NPV
A116: Snow River West | B116: ='603 Snow River West'!E23 -> 225071.8535
A117: Snow River Center | B117: ='605 Snow River Center'!E23 -> 561462.7975
A118: Victor Creek | B118: ='607 Victor Creek'!E23 -> 766386.8329
A120: With Project
A121: Bridge/Cost Category | B121: NPV
A122: Snow River West
A123: Pavement | B123: ='M&O'!D25 -> 85503.05059
A124: Bridge | B124: ='M&O'!D26 -> 6562.643201
A125: Total | B125: ='M&O'!D27 -> 92065.69379
A126: Snow River Center
A127: Pavement | B127: ='M&O'!D29 -> 294045.7708
A128: Bridge | B128: ='M&O'!D30 -> 22655.08211
A129: Total | B129: ='M&O'!D31 -> 316700.853
A130: Victor Creek
A131: Pavement | B131: ='M&O'!D34 -> 30026.51798
A132: Bridge | B132: ='M&O'!D35 -> 9440.149087
A133: Total | B133: ='M&O'!D36 -> 39466.66707
A136: Summary
A137: Category | B137: Net Present Value
A138: Project Benefits | B138: Snow River West | C138: Snow River Center | D138: Victor Creek | E138: All Bridges (Separate) | F138: All Bridges (Bundled)
A139: Avoidance of Load Limit Costs | B139: ='603 Snow River West'!E19 -> 4723762.368 | C139: ='605 Snow River Center'!E19 -> 4723762.368 | D139: ='607 Victor Creek'!E19 -> 3377441.33 | E139: =SUM(B139:D139) -> 12824966.07 | F139: =E139 -> 12824966.07
A140: Avoidance of Single Lane Operation | B140: ='603 Snow River West'!E20 -> 2499070.254 | C140: ='605 Snow River Center'!E20 -> 2499070.254 | D140: ='607 Victor Creek'!E20 -> 2499070.254 | E140: =SUM(B140:D140) -> 7497210.761 | F140: 7497210.761
A141: Avoidance of Bridge Closure | B141: ='603 Snow River West'!E21 -> 5058828593 | C141: ='605 Snow River Center'!E21 -> 5058828593 | D141: ='607 Victor Creek'!E21 -> 5058828593 | E141: 1.517648578e+10 | F141: 1.517648578e+10
A142: Avoidance of M&O Costs until Bridge Closure | B142: ='603 Snow River West'!E22 -> 11874.49625 | C142: ='605 Snow River Center'!E22 -> 30885.07791 | D142: ='607 Victor Creek'!E22 -> 2510.441053 | E142: 45270.01522 | F142: 45270.01522
A143: Residual Value of Bridge after 2049 | B143: ='603 Snow River West'!E23 -> 225071.8535 | C143: ='605 Snow River Center'!E23 -> 561462.7975 | D143: ='607 Victor Creek'!E23 -> 766386.8329 | E143: 1552921.484 | F143: 1552921.484
A144: Net Disbenefits of Emissions | B144: ='603 Snow River West'!E25 -> -16111961.32 | C144: ='605 Snow River Center'!E25 -> -16111961.32 | D144: ='607 Victor Creek'!E25 -> -11006245.57 | E144: =SUM(B144:D144) -> -43230168.21 | F144: -43230168.21
A145: Total Project Benefits | B145: =SUM(B139:B144) -> 5050176410 | C145: =SUM(C139:C144) -> 5050531812 | D145: 5054467756 | E145: 1.515517598e+10 | F145: 1.515517598e+10
A146: Project Costs
A147: Capital Expenditures | B147: ='603 Snow River West'!E32 -> 2855507.252 | C147: ='605 Snow River Center'!E32 -> 7123330.019 | D147: ='607 Victor Creek'!E32 -> 9723220.056 | E147: =SUM(B147:D147) -> 19702057.33 | F147: ='All Bridges'!E33 -> 16314498.75
A148: M&O Expenditures | B148: ='603 Snow River West'!E33 -> 92065.69379 | C148: ='605 Snow River Center'!E33 -> 316700.853 | D148: ='607 Victor Creek'!E33 -> 39466.66707 | E148: =SUM(B148:D148) -> 448233.2138 | F148: ='All Bridges'!E34 -> 448233.2138
A149: Total Project Costs | B149: ='603 Snow River West'!E34 -> 2947572.946 | C149: ='605 Snow River Center'!E34 -> 7440030.872 | D149: ='607 Victor Creek'!E34 -> 9762686.723 | E149: 20150290.54 | F149: ='All Bridges'!E35 -> 16762731.96
A150: Net Benefits | B150: =B145-B149 -> 5047228837 | C150: =C145-C149 -> 5043091781 | D150: 5044705069 | E150: =E145-E149 -> 1.513502569e+10 | F150: =F145-F149 -> 1.513841325e+10
A151: B/C Ratio | B151: =B145/B149 -> 1713.333818 | C151: =C145/C149 -> 678.8321042 | D151: 517.7332736 | E151: =E145/E149 -> 752.10707 | F151: 904.0994043
A153: in millions
A154: Category | B154: Net Present Value
A155: Project Benefits | B155: Snow River West | C155: Snow River Center | D155: Victor Creek | E155: All Bridges (Separate) | F155: All Bridges (Bundled)
A156: Avoidance of Load Limit Costs | B156: =B139/1000000 -> 4.723762368 | C156: =C139/1000000 -> 4.723762368 | D156: 3.37744133 | E156: 12.82496607 | F156: 12.82496607
A157: Avoidance of Single Lane Operation | B157: 2.499070254 | C157: =C140/1000000 -> 2.499070254 | D157: 2.499070254 | E157: 7.497210761 | F157: 7.497210761
A158: Avoidance of Bridge Closure | B158: 5058.828593 | C158: 5058.828593 | D158: 5058.828593 | E158: 15176.48578 | F158: 15176.48578
A159: Avoidance of M&O Costs until Bridge Closure | B159: 0.01187449625 | C159: 0.03088507791 | D159: 0.002510441053 | E159: 0.04527001522 | F159: 0.04527001522
A160: Residual Value of Bridge after 2049 | B160: 0.2250718535 | C160: 0.5614627975 | D160: 0.7663868329 | E160: 1.552921484 | F160: 1.552921484
A161: Net Disbenefits of Emissions | B161: -16.11196132 | C161: -16.11196132 | D161: -11.00624557 | E161: -43.23016821 | F161: -43.23016821
A162: Total Project Benefits | B162: =B145/1000000 -> 5050.17641 | C162: 5050.531812 | D162: 5054.467756 | E162: 15155.17598 | F162: 15155.17598
A163: Project Costs
A164: Capital Expenditures | B164: =B147/1000000 -> 2.855507252 | C164: =C147/1000000 -> 7.123330019 | D164: 9.723220056 | E164: 19.70205733 | F164: 16.31449875
A165: M&O Expenditures | B165: =B148/1000000 -> 0.09206569379 | C165: =C148/1000000 -> 0.316700853 | D165: 0.03946666707 | E165: 0.4482332138 | F165: 0.4482332138
A166: Total Project Costs | B166: =B149/1000000 -> 2.947572946 | C166: 7.440030872 | D166: 9.762686723 | E166: 20.15029054 | F166: 16.76273196
A167: Net Benefits | B167: =B162-B166 -> 5047.228837 | C167: =C162-C166 -> 5043.091781 | D167: =D162-D166 -> 5044.705069 | E167: =E162-E166 -> 15135.02569 | F167: =F162-F166 -> 15138.41325
A168: B/C Ratio | B168: =B162/B166 -> 1713.333818 | C168: =C162/C166 -> 678.8321042 | D168: 517.7332736 | E168: 752.10707 | F168: 904.0994043

Sheet All Bridges
A1: CENTRAL REGION
A2: SNOW RIVER WEST (603)
A3: PARAMETERS
A4: Discount Rate (Real) | C4: 0.07 | G4: U.S. Department of Transportation, 2016. The Value of Travel Time Savings Departmental Guidance for Conducting Economic Evaluations Revision 2 (2016 Update)
A5: Design Life of New Bridge: | E5: 75 | F5: years | G5: AASHTO bridge code per Daugherty, Leslie K., ADOT&PF. Personal Communication with Northern Economics, Inc. October 16, 2018.
A6: Design Life of Rehabilitated Bridge: | E6: 50 | F6: years | G6: ADOT&PF (Daugherty, Leslie K., ADOT&PF. Personal Communication with Northern Economics, Inc. October 16,2018).
A7: Occupancy rate for personal vehicles: | E7: 1.7 | F7: persons
A8: Occupancy rate for buses: | E8: 10.7 | F8: persons
A9: Occupancy rate for commercial vehicles: | E9: 1 | F9: persons
A10: Replacement Year for Polyester Concrete Overlay (25 or 30) | E10: 30 | F10: years
A11: Operating Period for this Analysis | E11: 30 | F11: years
Q12: Notes:
A13: BENEFIT/COST CALCULATION | C13: BCA without Bridge Closure | D13: BCA with Emissions Cost | Q13: All benefits and costs are presented in real 2018$ (through first half of 2018)
A14: Benefits | B14: =E24 -> 1.519840615e+10 | C14: =E19+E20+E22+E23 -> 21920368.33 | D14: =E24+E25 -> 1.515517598e+10 | Q14: The analysis uses 2018 as the base year; all benefits and costs are discounted to 2018 dollars
A15: Costs | B15: =E30 -> 20150290.54 | C15: =B15 -> 20150290.54 | D15: =E30 -> 20150290.54 | Q15: The Alaska CPI deflator tab contains multipliers to adjust to 2018 real dollars.
A16: B/C Ratio | B16: =B14/B15 -> 754.2524568 | C16: =C14/C15 -> 1.087843785 | D16: =D14/D15 -> 752.10707
A18: Project Benefits | E18: NPV
A19: Avoidance of Load Limit Costs | E19: ='603 Snow River West'!E19+'605 Snow River Center'!E19+'607 Victor Creek'!E19 -> 12824966.07
A20: Avoidance of Single Lane Operation | E20: ='603 Snow River West'!E20+'605 Snow River Center'!E20+'607 Victor Creek'!E20 -> 7497210.761
A21: Avoidance of Bridge Closure | E21: ='603 Snow River West'!E21+'605 Snow River Center'!E21+'607 Victor Creek'!E21 -> 1.517648578e+10
A22: Avoidance of M&O Costs until Bridge Closure | E22: ='603 Snow River West'!E22+'605 Snow River Center'!E22+'607 Victor Creek'!E22 -> 45270.01522
A23: Residual Value of Bridge after 2049 | E23: ='603 Snow River West'!E23+'605 Snow River Center'!E23+'607 Victor Creek'!E23 -> 1552921.484
A24: Total Project Benefits | E24: ='603 Snow River West'!E24+'605 Snow River Center'!E24+'607 Victor Creek'!E24 -> 1.519840615e+10
A25: Emissions Costs | E25: ='603 Snow River West'!E25+'605 Snow River Center'!E25+'607 Victor Creek'!E25 -> -43230168.21
A27: With Project Costs
A28: Capital Expenditures | E28: ='603 Snow River West'!E32+'605 Snow River Center'!E32+'607 Victor Creek'!E32 -> 19702057.33
A29: M&O Expenditures | E29: ='603 Snow River West'!E33+'605 Snow River Center'!E33+'607 Victor Creek'!E33 -> 448233.2138
A30: Total NPV of Project Costs | E30: =SUM(E28:E29) -> 20150290.54
A32: With Project Costs | B32: (bundled)
A33: Capital Expenditures | E33: =NPV(C4,F33) -> 16314498.75 | F33: ='Budget Combined'!C19 -> 17456513.66
A34: M&O Expenditures | E34: =E29 -> 448233.2138
A35: Total NPV of Project Costs | E35: =SUM(E33:E34) -> 16762731.96

Sheet 603 Snow River West
A1: CENTRAL REGION
A2: SNOW RIVER WEST (603)
A3: PARAMETERS
A4: Discount Rate (Real) | C4: 0.07 | G4: U.S. Department of Transportation, 2016. The Value of Travel Time Savings Departmental Guidance for Conducting Economic Evaluations Revision 2 (2016 Update)
A5: Design Life of New Bridge: | E5: 75 | F5: years | G5: AASHTO bridge code per Daugherty, Leslie K., ADOT&PF. Personal Communication with Northern Economics, Inc. October 16, 2018.
A6: Design Life of Rehabilitated Bridge: | E6: 50 | F6: years | G6: ADOT&PF (Daugherty, Leslie K., ADOT&PF. Personal Communication with Northern Economics, Inc. October 16,2018).
A7: Occupancy rate for personal vehicles: | E7: 1.7 | F7: persons
A8: Occupancy rate for buses: | E8: 10.7 | F8: persons
A9: Occupancy rate for commercial vehicles: | E9: 1 | F9: persons
A10: Replacement Year for Polyester Concrete Overlay (25 or 30) | E10: 30 | F10: years
A11: Operating Period for this Analysis | E11: 30 | F11: years
Q12: Notes:
A13: BENEFIT/COST CALCULATION | C13: BCA without Bridge Closure | D13: BCA with Emissions Cost | Q13: All benefits and costs are presented in real 2018$ (through first half of 2018)
A14: Benefits | B14: =E24 -> 5066288372 | C14: =E19+E20+E22+E23 -> 7459778.971 | D14: =E24+E25 -> 5050176410 | Q14: The analysis uses 2018 as the base year; all benefits and costs are discounted to 2018 dollars
A15: Costs | B15: =E34 -> 2947572.946 | C15: =B15 -> 2947572.946 | D15: =E34 -> 2947572.946 | Q15: The Alaska CPI deflator tab contains multipliers to adjust to 2018 real dollars.
A16: B/C Ratio | B16: =B14/B15 -> 1718.799997 | C16: =C14/C15 -> 2.530820817 | D16: =D14/D15 -> 1713.333818 | H16: ``
A18: Project Benefits | E18: NPV
A19: Avoidance of Load Limit Costs | E19: ='603 & 605 Baseline'!G39 -> 4723762.368
A20: Avoidance of Single Lane Operation | E20: ='603 & 605 Baseline'!G56 -> 2499070.254
A21: Avoidance of Bridge Closure | E21: ='603 & 605 Baseline'!G69 -> 5058828593
A22: Avoidance of M&O Costs until Bridge Closure | E22: ='M&O'!D12 -> 11874.49625
A23: Residual Value of Bridge after 2049 | E23: =NPV(C4,F23:AJ23) -> 225071.8535 | F23: 0 | G23: 0 | H23: 0 | I23: 0 | J23: 0 | K23: 0 | L23: 0 | M23: 0 | N23: 0 | O23: 0 | P23: 0 | Q23: 0 | R23: 0 | S23: 0 | T23: 0 | U23: 0 | V23: 0 | W23: 0 | X23: 0 | Y23: 0 | Z23: 0 | AA23: 0 | AB23: 0 | AC23: 0 | AD23: 0 | AE23: 0 | AF23: 0 | AG23: 0 | AH23: 0 | AI23: 0 | AJ23: =(E5-E11)/E5*F32 -> 1833235.656
A24: Total Project Benefits | E24: =SUM(E19:E23) -> 5066288372
A25: Net Emissions Cost | E25: =Emissions!B65 -> -16111961.32
E27: NPV
C28: Year | E28: 2018 | F28: =E28+1 -> 2019 | G28: =F28+1 -> 2020 | H28: 2021 | I28: 2022 | J28: 2023 | K28: 2024 | L28: 2025 | M28: 2026 | N28: 2027 | O28: 2028 | P28: 2029 | Q28: 2030 | R28: 2031 | S28: 2032 | T28: 2033 | U28: 2034 | V28: 2035 | W28: 2036 | X28: 2037 | Y28: 2038 | Z28: 2039 | AA28: 2040 | AB28: 2041 | AC28: 2042 | AD28: 2043 | AE28: 2044 | AF28: 2045 | AG28: 2046 | AH28: 2047 | AI28: 2048 | AJ28: 2049
C29: Index Year | E29: 0 | F29: =E29+1 -> 1 | G29: 2 | H29: 3 | I29: 4 | J29: 5 | K29: 6 | L29: 7 | M29: 8 | N29: 9 | O29: 10 | P29: 11 | Q29: 12 | R29: 13 | S29: 14 | T29: 15 | U29: 16 | V29: 17 | W29: 18 | X29: 19 | Y29: 20 | Z29: 21 | AA29: 22 | AB29: 23 | AC29: 24 | AD29: 25 | AE29: 26 | AF29: 27 | AG29: 28 | AH29: 29 | AI29: 30 | AJ29: 31
C30: Operation Year | F30: 0 | G30: 1 | H30: =G30+1 -> 2 | I30: 3 | J30: 4 | K30: 5 | L30: 6 | M30: 7 | N30: 8 | O30: 9 | P30: 10 | Q30: 11 | R30: 12 | S30: 13 | T30: 14 | U30: 15 | V30: 16 | W30: 17 | X30: 18 | Y30: 19 | Z30: 20 | AA30: 21 | AB30: 22 | AC30: 23 | AD30: 24 | AE30: 25 | AF30: 26 | AG30: 27 | AH30: 28 | AI30: 29 | AJ30: 30
A31: With Project Costs
A32: Capital Expenditures | E32: =NPV(C4,F32) -> 2855507.252 | F32: ='Budget 603'!C20 -> 3055392.76
A33: M&O Expenditures | E33: =NPV(C4,F33:AJ33) -> 92065.69379 | F33: 0 | G33: ='M&O'!F27 -> 565.88 | H33: ='M&O'!G27 -> 565.88 | I33: ='M&O'!H27 -> 565.88 | J33: ='M&O'!I27 -> 565.88 | K33: ='M&O'!J27 -> 565.88 | L33: ='M&O'!K27 -> 565.88 | M33: ='M&O'!L27 -> 565.88 | N33: ='M&O'!M27 -> 565.88 | O33: ='M&O'!N27 -> 565.88 | P33: ='M&O'!O27 -> 565.88 | Q33: ='M&O'!P27 -> 565.88 | R33: ='M&O'!Q27 -> 565.88 | S33: ='M&O'!R27 -> 565.88 | T33: ='M&O'!S27 -> 565.88 | U33: ='M&O'!T27 -> 565.88 | V33: ='M&O'!U27 -> 565.88 | W33: ='M&O'!V27 -> 565.88 | X33: ='M&O'!W27 -> 565.88 | Y33: ='M&O'!X27 -> 565.88 | Z33: ='M&O'!Y27 -> 565.88 | AA33: ='M&O'!Z27 -> 565.88 | AB33: ='M&O'!AA27 -> 565.88 | AC33: ='M&O'!AB27 -> 565.88 | AD33: ='M&O'!AC27 -> 565.88 | AE33: ='M&O'!AD27 -> 565.88 | AF33: ='M&O'!AE27 -> 565.88 | AG33: ='M&O'!AF27 -> 565.88 | AH33: ='M&O'!AG27 -> 565.88 | AI33: ='M&O'!AH27 -> 565.88 | AJ33: ='M&O'!AI27 -> 696997.88
A34: Total NPV of Project Costs | E34: =SUM(E32:E33) -> 2947572.946

Sheet 605 Snow River Center
A1: CENTRAL REGION
A2: SNOW RIVER CENTER (605)
A3: PARAMETERS
A4: Discount Rate (Real) | C4: 0.07 | G4: U.S. Department of Transportation, 2016. The Value of Travel Time Savings Departmental Guidance for Conducting Economic Evaluations Revision 2 (2016 Update)
A5: Design Life of New Bridge: | E5: 75 | F5: years | G5: AASHTO bridge code per Daugherty, Leslie K., ADOT&PF. Personal Communication with Northern Economics, Inc. October 16, 2018.
A6: Design Life of Rehabilitated Bridge: | E6: 50 | F6: years | G6: ADOT&PF (Daugherty, Leslie K., ADOT&PF. Personal Communication with Northern Economics, Inc. October 16,2018).
A7: Occupancy rate for personal vehicles: | E7: 1.7 | F7: persons
A8: Occupancy rate for buses: | E8: 10.7 | F8: persons
A9: Occupancy rate for commercial vehicles: | E9: 1 | F9: persons
A10: Replacement Year for Polyester Concrete Overlay (25 or 30) | E10: 30 | F10: years
A11: Operating Period for this Analysis | E11: 30 | F11: years
Q12: Notes:
A13: BENEFIT/COST CALCULATION | C13: BCA without Bridge Closure | D13: Including Emissions Cost | Q13: All benefits and costs are presented in real 2018$ (through first half of 2018)
A14: Benefits | B14: =E24 -> 5066643773 | C14: =E19+E20+E22+E23 -> 7815180.497 | D14: =E24+E25 -> 5050531812 | Q14: The analysis uses 2018 as the base year; all benefits and costs are discounted to 2018 dollars
A15: Costs | B15: =E34 -> 7440030.872 | C15: =B15 -> 7440030.872 | D15: =E34 -> 7440030.872 | Q15: The Alaska CPI deflator tab contains multipliers to adjust to 2018 real dollars.
A16: B/C Ratio | B16: =B14/B15 -> 680.9976814 | C16: =C14/C15 -> 1.050423128 | D16: =D14/D15 -> 678.8321042
A18: Project Benefits | E18: NPV
A19: Avoidance of Load Limit Costs | E19: ='603 & 605 Baseline'!G39 -> 4723762.368
A20: Avoidance of Single Lane Operation | E20: ='603 & 605 Baseline'!G56 -> 2499070.254
A21: Avoidance of Bridge Closure | E21: ='603 & 605 Baseline'!G69 -> 5058828593
A22: Avoidance of M&O Costs until Bridge Closure | E22: ='M&O'!D16 -> 30885.07791
A23: Residual Value of Bridge after 2049 | E23: =NPV(C4,F23:AJ23) -> 561462.7975 | F23: 0 | G23: 0 | H23: 0 | I23: 0 | J23: 0 | K23: 0 | L23: 0 | M23: 0 | N23: 0 | O23: 0 | P23: 0 | Q23: 0 | R23: 0 | S23: 0 | T23: 0 | U23: 0 | V23: 0 | W23: 0 | X23: 0 | Y23: 0 | Z23: 0 | AA23: 0 | AB23: 0 | AC23: 0 | AD23: 0 | AE23: 0 | AF23: 0 | AG23: 0 | AH23: 0 | AI23: 0 | AJ23: =(E5-E11)/E5*F32 -> 4573177.872
A24: Total Project Benefits | E24: =SUM(E19:E23) -> 5066643773
A25: Net Emissions Costs | E25: =Emissions!B65 -> -16111961.32
E27: NPV
C28: Year | E28: 2018 | F28: =E28+1 -> 2019 | G28: =F28+1 -> 2020 | H28: 2021 | I28: 2022 | J28: 2023 | K28: 2024 | L28: 2025 | M28: 2026 | N28: 2027 | O28: 2028 | P28: 2029 | Q28: 2030 | R28: 2031 | S28: 2032 | T28: 2033 | U28: 2034 | V28: 2035 | W28: =V28+1 -> 2036 | X28: 2037 | Y28: 2038 | Z28: 2039 | AA28: 2040 | AB28: 2041 | AC28: 2042 | AD28: 2043 | AE28: 2044 | AF28: 2045 | AG28: 2046 | AH28: 2047 | AI28: 2048 | AJ28: 2049
C29: Index Year | E29: 0 | F29: =E29+1 -> 1 | G29: 2 | H29: 3 | I29: 4 | J29: 5 | K29: 6 | L29: 7 | M29: 8 | N29: 9 | O29: 10 | P29: 11 | Q29: 12 | R29: 13 | S29: 14 | T29: 15 | U29: 16 | V29: 17 | W29: 18 | X29: 19 | Y29: 20 | Z29: 21 | AA29: 22 | AB29: 23 | AC29: 24 | AD29: 25 | AE29: 26 | AF29: 27 | AG29: 28 | AH29: 29 | AI29: 30 | AJ29: 31
C30: Operation Year | F30: 0 | G30: 1 | H30: =G30+1 -> 2 | I30: 3 | J30: 4 | K30: 5 | L30: 6 | M30: 7 | N30: 8 | O30: 9 | P30: 10 | Q30: 11 | R30: 12 | S30: 13 | T30: 14 | U30: 15 | V30: 16 | W30: 17 | X30: 18 | Y30: 19 | Z30: 20 | AA30: 21 | AB30: 22 | AC30: 23 | AD30: 24 | AE30: 25 | AF30: 26 | AG30: 27 | AH30: 28 | AI30: 29 | AJ30: 30
A31: With Project Costs
A32: Capital Expenditures | E32: =NPV(C4,F32) -> 7123330.019 | F32: ='Budget 605'!C20 -> 7621963.12
A33: M&O Expenditures | E33: =NPV(C4,F33:AJ33) -> 316700.853 | F33: 0 | G33: ='M&O'!F31 -> 1953.49 | H33: ='M&O'!G31 -> 1953.49 | I33: ='M&O'!H31 -> 1953.49 | J33: ='M&O'!I31 -> 1953.49 | K33: ='M&O'!J31 -> 1953.49 | L33: ='M&O'!K31 -> 1953.49 | M33: ='M&O'!L31 -> 1953.49 | N33: ='M&O'!M31 -> 1953.49 | O33: ='M&O'!N31 -> 1953.49 | P33: ='M&O'!O31 -> 1953.49 | Q33: ='M&O'!P31 -> 1953.49 | R33: ='M&O'!Q31 -> 1953.49 | S33: ='M&O'!R31 -> 1953.49 | T33: ='M&O'!S31 -> 1953.49 | U33: ='M&O'!T31 -> 1953.49 | V33: ='M&O'!U31 -> 1953.49 | W33: ='M&O'!V31 -> 1953.49 | X33: ='M&O'!W31 -> 1953.49 | Y33: ='M&O'!X31 -> 1953.49 | Z33: ='M&O'!Y31 -> 1953.49 | AA33: ='M&O'!Z31 -> 1953.49 | AB33: ='M&O'!AA31 -> 1953.49 | AC33: ='M&O'!AB31 -> 1953.49 | AD33: ='M&O'!AC31 -> 1953.49 | AE33: ='M&O'!AD31 -> 1953.49 | AF33: ='M&O'!AE31 -> 1953.49 | AG33: ='M&O'!AF31 -> 1953.49 | AH33: ='M&O'!AG31 -> 1953.49 | AI33: ='M&O'!AH31 -> 1953.49 | AJ33: ='M&O'!AI31 -> 2396989.49
A34: Total NPV of Project Costs | E34: =SUM(E32:E33) -> 7440030.872

Sheet 607 Victor Creek
A1: CENTRAL REGION
A2: VICTOR CREEK (607)
A3: PARAMETERS
A4: Discount Rate (Real) | C4: 0.07 | G4: U.S. Department of Transportation, 2016. The Value of Travel Time Savings Departmental Guidance for Conducting Economic Evaluations Revision 2 (2016 Update)
A5: Design Life of New Bridge: | E5: 75 | F5: years | G5: AASHTO bridge code per Daugherty, Leslie K., ADOT&PF. Personal Communication with Northern Economics, Inc. October 16, 2018.
A6: Design Life of Rehabilitated Bridge: | E6: 50 | F6: years | G6: ADOT&PF (Daugherty, Leslie K., ADOT&PF. Personal Communication with Northern Economics, Inc. October 16,2018).
A7: Occupancy rate for personal vehicles: | E7: 1.7 | F7: persons
A8: Occupancy rate for buses: | E8: 10.7 | F8: persons
A9: Occupancy rate for commercial vehicles: | E9: 1 | F9: persons
A10: Replacement Year for Polyester Concrete Overlay (25 or 30) | E10: 30 | F10: years
A11: Operating Period for this Analysis | E11: 30 | F11: years
Q12: Notes:
A13: BENEFIT/COST CALCULATION | C13: BCA without Bridge Closure | D13: Including Emissions Cost | Q13: All benefits and costs are presented in real 2018$ (through first half of 2018)
A14: Benefits | B14: =E24 -> 5065474001 | C14: =E19+E20+E22+E23 -> 6645408.858 | D14: =E24+E25 -> 5054467756 | Q14: The analysis uses 2018 as the base year; all benefits and costs are discounted to 2018 dollars
A15: Costs | B15: =E34 -> 9762686.723 | C15: =B15 -> 9762686.723 | D15: =E34 -> 9762686.723 | Q15: The Alaska CPI deflator tab contains multipliers to adjust to 2018 real dollars.
A16: B/C Ratio | B16: =B14/B15 -> 518.8606523 | C16: =C14/C15 -> 0.6806946742 | D16: =D14/D15 -> 517.7332736
A18: Project Benefits | E18: NPV
A19: Avoidance of Load Limit Costs | E19: ='607 Baseline'!G39 -> 3377441.33
A20: Avoidance of Single Lane Operation | E20: ='603 & 605 Baseline'!G56 -> 2499070.254
A21: Avoidance of Bridge Closure | E21: ='603 & 605 Baseline'!G69 -> 5058828593
A22: Avoidance of M&O Costs until Bridge Closure | E22: ='M&O'!D21 -> 2510.441053
A23: Residual Value of Bridge after 2049 | E23: =NPV(C4,F23:AJ23) -> 766386.8329 | F23: 0 | G23: 0 | H23: 0 | I23: 0 | J23: 0 | K23: 0 | L23: 0 | M23: 0 | N23: 0 | O23: 0 | P23: 0 | Q23: 0 | R23: 0 | S23: 0 | T23: 0 | U23: 0 | V23: 0 | W23: 0 | X23: 0 | Y23: 0 | Z23: 0 | AA23: 0 | AB23: 0 | AC23: 0 | AD23: 0 | AE23: 0 | AF23: 0 | AG23: 0 | AH23: 0 | AI23: 0 | AJ23: =(E5-E11)/E5*F32 -> 6242307.276
A24: Total Project Benefits | E24: =SUM(E19:E23) -> 5065474001
A25: Emissions Costs | E25: =Emissions!$B$69 -> -11006245.57
E27: NPV
C28: Year | E28: 2018 | F28: =E28+1 -> 2019 | G28: =F28+1 -> 2020 | H28: 2021 | I28: 2022 | J28: 2023 | K28: 2024 | L28: 2025 | M28: 2026 | N28: 2027 | O28: 2028 | P28: 2029 | Q28: 2030 | R28: 2031 | S28: 2032 | T28: 2033 | U28: 2034 | V28: 2035 | W28: =V28+1 -> 2036 | X28: 2037 | Y28: 2038 | Z28: 2039 | AA28: 2040 | AB28: 2041 | AC28: 2042 | AD28: 2043 | AE28: 2044 | AF28: 2045 | AG28: 2046 | AH28: 2047 | AI28: 2048 | AJ28: 2049
C29: Index Year | E29: 0 | F29: =E29+1 -> 1 | G29: 2 | H29: 3 | I29: 4 | J29: 5 | K29: 6 | L29: 7 | M29: 8 | N29: 9 | O29: 10 | P29: 11 | Q29: 12 | R29: 13 | S29: 14 | T29: 15 | U29: 16 | V29: 17 | W29: 18 | X29: 19 | Y29: 20 | Z29: 21 | AA29: 22 | AB29: 23 | AC29: 24 | AD29: 25 | AE29: 26 | AF29: 27 | AG29: 28 | AH29: 29 | AI29: 30 | AJ29: 31
C30: Operation Year | F30: 0 | G30: 1 | H30: =G30+1 -> 2 | I30: =H30+1 -> 3 | J30: =I30+1 -> 4 | K30: =J30+1 -> 5 | L30: =K30+1 -> 6 | M30: =L30+1 -> 7 | N30: =M30+1 -> 8 | O30: 9 | P30: 10 | Q30: 11 | R30: 12 | S30: 13 | T30: 14 | U30: 15 | V30: 16 | W30: 17 | X30: 18 | Y30: 19 | Z30: 20 | AA30: 21 | AB30: 22 | AC30: 23 | AD30: 24 | AE30: 25 | AF30: 26 | AG30: 27 | AH30: 28 | AI30: 29 | AJ30: 30
A31: With Project Costs
A32: Capital Expenditures | E32: =NPV(C4,F32) -> 9723220.056 | F32: ='Budget 607'!C20 -> 10403845.46
A33: M&O Expenditures | E33: =NPV(C4,F33:AJ33) -> 39466.66707 | F33: 0 | G33: ='M&O'!F36 -> 814 | H33: ='M&O'!G36 -> 814 | I33: ='M&O'!H36 -> 1095.666667 | J33: ='M&O'!I36 -> 814 | K33: ='M&O'!J36 -> 900.6666667 | L33: ='M&O'!K36 -> 814 | M33: ='M&O'!L36 -> 814 | N33: ='M&O'!M36 -> 1095.666667 | O33: ='M&O'!N36 -> 814 | P33: ='M&O'!O36 -> 27897.33333 | Q33: ='M&O'!P36 -> 814 | R33: ='M&O'!Q36 -> 814 | S33: ='M&O'!R36 -> 1095.666667 | T33: ='M&O'!S36 -> 814 | U33: ='M&O'!T36 -> 900.6666667 | V33: ='M&O'!U36 -> 814 | W33: ='M&O'!V36 -> 814 | X33: ='M&O'!W36 -> 1095.666667 | Y33: ='M&O'!X36 -> 814 | Z33: ='M&O'!Y36 -> 54980.66667 | AA33: ='M&O'!Z36 -> 814 | AB33: ='M&O'!AA36 -> 814 | AC33: ='M&O'!AB36 -> 1095.666667 | AD33: ='M&O'!AC36 -> 814 | AE33: ='M&O'!AD36 -> 900.6666667 | AF33: ='M&O'!AE36 -> 814 | AG33: ='M&O'!AF36 -> 814 | AH33: ='M&O'!AG36 -> 1095.666667 | AI33: ='M&O'!AH36 -> 814 | AJ33: ='M&O'!AI36 -> 27897.33333
A34: Total NPV of Project Costs | E34: =SUM(E32:E33) -> 9762686.723

Sheet Traffic
A1: Traffic Counter Location: Seward Highway Junction with Primrose Road
A2: Milepost 16.97
G4: Projected AADT based on past 10 years of AADT data
A5: Year | B5: AADT | C5: % Commercial Vehicles | F5: Year | G5: 2018 | H5: =G5+1 -> 2019 | I5: =H5+1 -> 2020 | J5: 2021 | K5: 2022 | L5: 2023 | M5: 2024 | N5: 2025 | O5: 2026 | P5: 2027 | Q5: 2028 | R5: 2029 | S5: 2030 | T5: 2031 | U5: 2032 | V5: 2033 | W5: 2034 | X5: 2035 | Y5: 2036 | Z5: 2037 | AA5: 2038 | AB5: 2039 | AC5: 2040 | AD5: 2041 | AE5: 2042 | AF5: 2043 | AG5: 2044 | AH5: 2045 | AI5: 2046 | AJ5: 2047 | AK5: 2048 | AL5: 2049 | AM5: 2050 | AN5: 2051 | AO5: 2052 | AP5: 2053
A6: 2008 | B6: 1780 | F6: AADT | G6: =$F$9+$E$9*G5 -> 2064.933333 | H6: =$F$9+$E$9*H5 -> 2089.412121 | I6: 2113.890909 | J6: 2138.369697 | K6: 2162.848485 | L6: 2187.327273 | M6: 2211.806061 | N6: 2236.284848 | O6: 2260.763636 | P6: 2285.242424 | Q6: 2309.721212 | R6: 2334.2 | S6: 2358.678788 | T6: 2383.157576 | U6: 2407.636364 | V6: 2432.115152 | W6: 2456.593939 | X6: 2481.072727 | Y6: 2505.551515 | Z6: 2530.030303 | AA6: 2554.509091 | AB6: 2578.987879 | AC6: 2603.466667 | AD6: 2627.945455 | AE6: 2652.424242 | AF6: 2676.90303 | AG6: 2701.381818 | AH6: 2725.860606 | AI6: 2750.339394 | AJ6: 2774.818182 | AK6: 2799.29697 | AL6: 2823.775758 | AM6: 2848.254545 | AN6: 2872.733333 | AO6: 2897.212121 | AP6: 2921.690909
A7: 2009 | B7: 1800
A8: 2010 | B8: 1982
A9: 2011 | B9: 1950 | E9: =LINEST(B6:B15,A6:A15,TRUE,) -> 24.47878788 | F9: -47333.26061 | G9: LinEst Formula
A10: 2012 | B10: 1930 | C10: 0.14625
A11: 2013 | B11: 1881
A12: 2014 | B12: 1892
A13: 2015 | B13: 1942
A14: 2016 | B14: 2116
A15: 2017 | B15: 2030
A17: Sources: | B17: Annual Traffic Volume Report Central Region 2008-2009-2010 | H17: Available at: http://www.dot.alaska.gov/stwdplng/transdata/pub/Regional_Traffic_Reports/trafficdata_reports_cen/CR_2011_Traffic_Volume_Report.pdf | V17: Accessed on October 15, 2018.
B18: Annual Traffic Volume Report Central Region 2011-2012-2013 | H18: Available at: http://www.dot.alaska.gov/stwdplng/transdata/pub/Regional_Traffic_Reports/trafficdata_reports_cen/CR_2013_Traffic_Volume_Report.pdf | V18: Accessed on October 15, 2018.
A21: Commercial vehicles as percent of AADT: | E21: =C10 -> 0.14625 | F21: Commercial vehicle estimates from milepost 11.932 on Seward Highway in 2013 (Page V-8 in ATVR)
A22: Trucks (Classes 5-13) as percent of AADT: | E22: =E21-E23 -> 0.13035
A23: Buses (Class 4) as percent of AADT: | E23: =AVERAGE(1.73,1.45)/100 -> 0.0159
A24: Other Business Travel as percent of AADT: | E24: =0.214-E21 -> 0.06775
F25: Vehicle Split
F26: Year | G26: =G5 -> 2018 | H26: =H5 -> 2019 | I26: 2020 | J26: 2021 | K26: 2022 | L26: 2023 | M26: 2024 | N26: 2025 | O26: 2026 | P26: 2027 | Q26: 2028 | R26: 2029 | S26: 2030 | T26: 2031 | U26: 2032 | V26: 2033 | W26: 2034 | X26: 2035 | Y26: 2036 | Z26: 2037 | AA26: 2038 | AB26: 2039 | AC26: 2040 | AD26: 2041 | AE26: 2042 | AF26: 2043 | AG26: 2044 | AH26: 2045 | AI26: 2046 | AJ26: 2047 | AK26: 2048 | AL26: 2049 | AM26: 2050 | AN26: 2051 | AO26: 2052 | AP26: 2053
F27: Trucks AADT | G27: =$E$22*G6 -> 269.16406 | H27: =$E$22*H6 -> 272.35487 | I27: 275.54568 | J27: 278.73649 | K27: 281.9273 | L27: 285.11811 | M27: 288.30892 | N27: 291.49973 | O27: 294.69054 | P27: 297.88135 | Q27: 301.07216 | R27: 304.26297 | S27: 307.45378 | T27: 310.64459 | U27: 313.8354 | V27: 317.02621 | W27: 320.21702 | X27: 323.40783 | Y27: 326.59864 | Z27: 329.78945 | AA27: 332.98026 | AB27: 336.17107 | AC27: 339.36188 | AD27: 342.55269 | AE27: 345.7435 | AF27: 348.93431 | AG27: 352.12512 | AH27: 355.31593 | AI27: 358.50674 | AJ27: 361.69755 | AK27: 364.88836 | AL27: 368.07917 | AM27: 371.26998 | AN27: 374.46079 | AO27: 377.6516 | AP27: 380.84241
F28: Buses AADT | G28: =G6*$E$23 -> 32.83244 | H28: =H6*$E$23 -> 33.22165273 | I28: 33.61086545 | J28: 34.00007818 | K28: 34.38929091 | L28: 34.77850364 | M28: 35.16771636 | N28: 35.55692909 | O28: 35.94614182 | P28: 36.33535455 | Q28: 36.72456727 | R28: 37.11378 | S28: 37.50299273 | T28: 37.89220545 | U28: 38.28141818 | V28: 38.67063091 | W28: 39.05984364 | X28: 39.44905636 | Y28: 39.83826909 | Z28: 40.22748182 | AA28: 40.61669455 | AB28: 41.00590727 | AC28: 41.39512 | AD28: 41.78433273 | AE28: 42.17354545 | AF28: 42.56275818 | AG28: 42.95197091 | AH28: 43.34118364 | AI28: 43.73039636 | AJ28: 44.11960909 | AK28: 44.50882182 | AL28: 44.89803455 | AM28: 45.28724727 | AN28: 45.67646 | AO28: 46.06567273 | AP28: 46.45488545
F29: Other Business AADT | G29: =$E$24*G6 -> 139.8992333 | H29: =$E$24*H6 -> 141.5576712 | I29: 143.2161091 | J29: 144.874547 | K29: 146.5329848 | L29: 148.1914227 | M29: 149.8498606 | N29: 151.5082985 | O29: 153.1667364 | P29: 154.8251742 | Q29: 156.4836121 | R29: 158.14205 | S29: 159.8004879 | T29: 161.4589258 | U29: 163.1173636 | V29: 164.7758015 | W29: 166.4342394 | X29: 168.0926773 | Y29: 169.7511152 | Z29: 171.409553 | AA29: 173.0679909 | AB29: 174.7264288 | AC29: 176.3848667 | AD29: 178.0433045 | AE29: 179.7017424 | AF29: 181.3601803 | AG29: 183.0186182 | AH29: 184.6770561 | AI29: 186.3354939 | AJ29: 187.9939318 | AK29: 189.6523697 | AL29: 191.3108076 | AM29: 192.9692455 | AN29: 194.6276833 | AO29: 196.2861212 | AP29: 197.9445591
F30: Personal AADT | G30: =G6-SUM(G27:G29) -> 1623.0376 | H30: =H6-SUM(H27:H29) -> 1642.277927 | I30: 1661.518255 | J30: 1680.758582 | K30: 1699.998909 | L30: 1719.239236 | M30: 1738.479564 | N30: 1757.719891 | O30: 1776.960218 | P30: 1796.200545 | Q30: 1815.440873 | R30: 1834.6812 | S30: 1853.921527 | T30: 1873.161855 | U30: 1892.402182 | V30: 1911.642509 | W30: 1930.882836 | X30: 1950.123164 | Y30: 1969.363491 | Z30: 1988.603818 | AA30: 2007.844145 | AB30: 2027.084473 | AC30: 2046.3248 | AD30: 2065.565127 | AE30: 2084.805455 | AF30: 2104.045782 | AG30: 2123.286109 | AH30: 2142.526436 | AI30: 2161.766764 | AJ30: 2181.007091 | AK30: 2200.247418 | AL30: 2219.487745 | AM30: 2238.728073 | AN30: 2257.9684 | AO30: 2277.208727 | AP30: 2296.449055
A32: Distances via highway
A33: Distance from Anchorage to Seward | E33: 127 | F33: miles; 2 hours 19 minutes
A34: https://www.google.com/maps/dir/Anchorage,+AK/Seward,+AK/@60.9958482,-149.5722413,10z/data=!3m1!4b1!4m14!4m13!1m5!1m1!1s0x56c8917604b33f41:0x257dba5aa78468e3!2m2!1d-149.9002778!2d61.2180556!1m5!1m1!1s0x56c79b6ef22affc5:0x5be160c236d211bf!2m2!1d-149.4422222!2d60.1041667!3e0?hl=en
A35: Distance from Anchorage to Whittier | E35: 60.4 | F35: miles; 1 hours 20 minutes
A36: https://www.google.com/maps/dir/Anchorage,+AK/Whittier,+AK/@60.9958482,-149.5722413,10z/data=!3m1!4b1!4m14!4m13!1m5!1m1!1s0x56c8917604b33f41:0x257dba5aa78468e3!2m2!1d-149.9002778!2d61.2180556!1m5!1m1!1s0x56b81ad99e929553:0xf6d71b0f8e5d2ee2!2m2!1d-148.6838888!2d60.7730556!3e0?hl=en
A37: Distance from Anchorage to Homer | E37: 222 | F37: miles: 4 hours and 7 minutes
A38: https://www.google.com/maps/dir/Ted+Stevens+Anchorage+International+Airport+(ANC),+5000+W+International+Airport+Rd,+Anchorage,+AK+99502/Homer,+AK/@60.4048168,-151.5316191,8z/data=!3m1!4b1!4m14!4m13!1m5!1m1!1s0x56c8a2b56b971a11:0x96b75a34a7bd6faf!2m2!1d-149.9900792!2d61.1758863!1m5!1m1!1s0x56c12deea7865acf:0x1f2e94ed71e773bb!2m2!1d-151.5483333!2d59.6425!3e0?hl=en

Sheet 603 & 605 Baseline
A3: Data and Assumptions:
B4: 603 and 605 bridge decks have exceeded their expected service life (See CR NBI tab)
B5: 603 and 605 bridge decks have current NBI rating of 4
B6: 603 and 605 bridge decks would have an expected 2.6 years at NBI rating 3 before closure at NBI rating 2
B7: Assume 603 and 605 bridge decks drop to rating 3 at the next inspection cycle (2019)
B8: Load limits are imposed the year following the inspection resulting in a rating 3 (2020)
B9: In the third year of the NBI rating 3 (2022) single lane operations are put in place
B10: Bridges are closed at end of 2022.
B12: Load limits divert 2% of truck traffic to barges or landing craft that transport the heavy trucks between Whittier and Seward
B13: Load limits result in an increase of 2% in truck traffic as some loads are split between trucks
B14: Net effect is total number of trucks remains the same over time
B15: Single lane operations result in average delay of : | G15: 6 | H15: minutes
B17: Bridge closure results in people traveling between Seward and Anchorage via the Alaska Railroad in the summer months; no winter service for passengers due to avalanche threat; passenger fare is currently $175 roundtrip; or | R17: =175/2 -> 87.5 | S17: average cost per each direction
B18: In winter months people will use the Alaska Marine Highway System ferries and travel between Homer and Seward on the ferry
B19: Ferry passengers can use existing bus service from Homer to and from Anchorage
B20: All trucks and vehicles are assumed to travel via the Alaska Railroad via special vehicle trains
F24: Vehicle Split
F25: Year | G25: 2018 | H25: =G25+1 -> 2019 | I25: =H25+1 -> 2020 | J25: 2021 | K25: 2022 | L25: 2023 | M25: 2024 | N25: 2025 | O25: 2026 | P25: 2027 | Q25: 2028 | R25: 2029 | S25: 2030 | T25: 2031 | U25: 2032 | V25: 2033 | W25: 2034 | X25: 2035 | Y25: 2036 | Z25: 2037 | AA25: 2038 | AB25: 2039 | AC25: 2040 | AD25: 2041 | AE25: 2042 | AF25: 2043 | AG25: 2044 | AH25: 2045 | AI25: 2046 | AJ25: 2047 | AK25: 2048 | AL25: 2049 | AM25: 2050 | AN25: 2051 | AO25: 2052 | AP25: 2053
F26: Trucks AADT | G26: =Traffic!G27 -> 269.16406 | H26: =Traffic!H27 -> 272.35487 | I26: =Traffic!I27 -> 275.54568 | J26: =Traffic!J27 -> 278.73649 | K26: =Traffic!K27 -> 281.9273 | L26: =Traffic!L27 -> 285.11811 | M26: =Traffic!M27 -> 288.30892 | N26: =Traffic!N27 -> 291.49973 | O26: =Traffic!O27 -> 294.69054 | P26: =Traffic!P27 -> 297.88135 | Q26: =Traffic!Q27 -> 301.07216 | R26: =Traffic!R27 -> 304.26297 | S26: =Traffic!S27 -> 307.45378 | T26: =Traffic!T27 -> 310.64459 | U26: =Traffic!U27 -> 313.8354 | V26: =Traffic!V27 -> 317.02621 | W26: =Traffic!W27 -> 320.21702 | X26: =Traffic!X27 -> 323.40783 | Y26: =Traffic!Y27 -> 326.59864 | Z26: =Traffic!Z27 -> 329.78945 | AA26: =Traffic!AA27 -> 332.98026 | AB26: =Traffic!AB27 -> 336.17107 | AC26: =Traffic!AC27 -> 339.36188 | AD26: =Traffic!AD27 -> 342.55269 | AE26: =Traffic!AE27 -> 345.7435 | AF26: =Traffic!AF27 -> 348.93431 | AG26: =Traffic!AG27 -> 352.12512 | AH26: =Traffic!AH27 -> 355.31593 | AI26: =Traffic!AI27 -> 358.50674 | AJ26: =Traffic!AJ27 -> 361.69755 | AK26: =Traffic!AK27 -> 364.88836 | AL26: =Traffic!AL27 -> 368.07917 | AM26: =Traffic!AM27 -> 371.26998 | AN26: =Traffic!AN27 -> 374.46079 | AO26: =Traffic!AO27 -> 377.6516 | AP26: =Traffic!AP27 -> 380.84241
F27: Buses AADT | G27: =Traffic!G28 -> 32.83244 | H27: =Traffic!H28 -> 33.22165273 | I27: =Traffic!I28 -> 33.61086545 | J27: =Traffic!J28 -> 34.00007818 | K27: =Traffic!K28 -> 34.38929091 | L27: =Traffic!L28 -> 34.77850364 | M27: =Traffic!M28 -> 35.16771636 | N27: =Traffic!N28 -> 35.55692909 | O27: =Traffic!O28 -> 35.94614182 | P27: =Traffic!P28 -> 36.33535455 | Q27: =Traffic!Q28 -> 36.72456727 | R27: =Traffic!R28 -> 37.11378 | S27: =Traffic!S28 -> 37.50299273 | T27: =Traffic!T28 -> 37.89220545 | U27: =Traffic!U28 -> 38.28141818 | V27: =Traffic!V28 -> 38.67063091 | W27: =Traffic!W28 -> 39.05984364 | X27: =Traffic!X28 -> 39.44905636 | Y27: =Traffic!Y28 -> 39.83826909 | Z27: =Traffic!Z28 -> 40.22748182 | AA27: =Traffic!AA28 -> 40.61669455 | AB27: =Traffic!AB28 -> 41.00590727 | AC27: =Traffic!AC28 -> 41.39512 | AD27: =Traffic!AD28 -> 41.78433273 | AE27: =Traffic!AE28 -> 42.17354545 | AF27: =Traffic!AF28 -> 42.56275818 | AG27: =Traffic!AG28 -> 42.95197091 | AH27: =Traffic!AH28 -> 43.34118364 | AI27: =Traffic!AI28 -> 43.73039636 | AJ27: =Traffic!AJ28 -> 44.11960909 | AK27: =Traffic!AK28 -> 44.50882182 | AL27: =Traffic!AL28 -> 44.89803455 | AM27: =Traffic!AM28 -> 45.28724727 | AN27: =Traffic!AN28 -> 45.67646 | AO27: =Traffic!AO28 -> 46.06567273 | AP27: =Traffic!AP28 -> 46.45488545
F28: Other Business AADT | G28: =Traffic!G29 -> 139.8992333 | H28: =Traffic!H29 -> 141.5576712 | I28: =Traffic!I29 -> 143.2161091 | J28: =Traffic!J29 -> 144.874547 | K28: =Traffic!K29 -> 146.5329848 | L28: =Traffic!L29 -> 148.1914227 | M28: =Traffic!M29 -> 149.8498606 | N28: =Traffic!N29 -> 151.5082985 | O28: =Traffic!O29 -> 153.1667364 | P28: =Traffic!P29 -> 154.8251742 | Q28: =Traffic!Q29 -> 156.4836121 | R28: =Traffic!R29 -> 158.14205 | S28: =Traffic!S29 -> 159.8004879 | T28: =Traffic!T29 -> 161.4589258 | U28: =Traffic!U29 -> 163.1173636 | V28: =Traffic!V29 -> 164.7758015 | W28: =Traffic!W29 -> 166.4342394 | X28: =Traffic!X29 -> 168.0926773 | Y28: =Traffic!Y29 -> 169.7511152 | Z28: =Traffic!Z29 -> 171.409553 | AA28: =Traffic!AA29 -> 173.0679909 | AB28: =Traffic!AB29 -> 174.7264288 | AC28: =Traffic!AC29 -> 176.3848667 | AD28: =Traffic!AD29 -> 178.0433045 | AE28: =Traffic!AE29 -> 179.7017424 | AF28: =Traffic!AF29 -> 181.3601803 | AG28: =Traffic!AG29 -> 183.0186182 | AH28: =Traffic!AH29 -> 184.6770561 | AI28: =Traffic!AI29 -> 186.3354939 | AJ28: =Traffic!AJ29 -> 187.9939318 | AK28: =Traffic!AK29 -> 189.6523697 | AL28: =Traffic!AL29 -> 191.3108076 | AM28: =Traffic!AM29 -> 192.9692455 | AN28: =Traffic!AN29 -> 194.6276833 | AO28: =Traffic!AO29 -> 196.2861212 | AP28: =Traffic!AP29 -> 197.9445591
F29: Personal AADT | G29: =Traffic!G30 -> 1623.0376 | H29: =Traffic!H30 -> 1642.277927 | I29: =Traffic!I30 -> 1661.518255 | J29: =Traffic!J30 -> 1680.758582 | K29: =Traffic!K30 -> 1699.998909 | L29: =Traffic!L30 -> 1719.239236 | M29: =Traffic!M30 -> 1738.479564 | N29: =Traffic!N30 -> 1757.719891 | O29: =Traffic!O30 -> 1776.960218 | P29: =Traffic!P30 -> 1796.200545 | Q29: =Traffic!Q30 -> 1815.440873 | R29: =Traffic!R30 -> 1834.6812 | S29: =Traffic!S30 -> 1853.921527 | T29: =Traffic!T30 -> 1873.161855 | U29: =Traffic!U30 -> 1892.402182 | V29: =Traffic!V30 -> 1911.642509 | W29: =Traffic!W30 -> 1930.882836 | X29: =Traffic!X30 -> 1950.123164 | Y29: =Traffic!Y30 -> 1969.363491 | Z29: =Traffic!Z30 -> 1988.603818 | AA29: =Traffic!AA30 -> 2007.844145 | AB29: =Traffic!AB30 -> 2027.084473 | AC29: =Traffic!AC30 -> 2046.3248 | AD29: =Traffic!AD30 -> 2065.565127 | AE29: =Traffic!AE30 -> 2084.805455 | AF29: =Traffic!AF30 -> 2104.045782 | AG29: =Traffic!AG30 -> 2123.286109 | AH29: =Traffic!AH30 -> 2142.526436 | AI29: =Traffic!AI30 -> 2161.766764 | AJ29: =Traffic!AJ30 -> 2181.007091 | AK29: =Traffic!AK30 -> 2200.247418 | AL29: =Traffic!AL30 -> 2219.487745 | AM29: =Traffic!AM30 -> 2238.728073 | AN29: =Traffic!AN30 -> 2257.9684 | AO29: =Traffic!AO30 -> 2277.208727 | AP29: =Traffic!AP30 -> 2296.449055
G32: NPV
D33: Effect of Load Limits | G33: 2018 | H33: 2019 | I33: 2020 | J33: 2021 | K33: 2022
E34: Reduced Truck Operating Cost | G34: =-NPV('603 Snow River West'!$C$4,'603 & 605 Baseline'!H34:M34) -> -374610.5144 | H34: 0 | I34: =0.02*I26*2*1*'Vehicle Opg Cost'!$C$7*365 -> 151067.6651 | J34: =0.02*J26*2*1*'Vehicle Opg Cost'!$C$7*365 -> 152817.0238 | K34: =0.02*K26*2*1*'Vehicle Opg Cost'!$C$7*365 -> 154566.3824
E35: Increased Truck Operating Cost | G35: =NPV('603 Snow River West'!$C$4,'603 & 605 Baseline'!H35:M35) -> 498231.9842 | H35: 0 | I35: =0.02*I26*1.33*2*'Vehicle Opg Cost'!$C$7*365 -> 200919.9946 | J35: =0.02*J26*1.33*2*'Vehicle Opg Cost'!$C$7*365 -> 203246.6416 | K35: =0.02*K26*1.33*2*'Vehicle Opg Cost'!$C$7*365 -> 205573.2886
E36: Reduced Driver Travel Time | G36: =-NPV('603 Snow River West'!$C$4,'603 & 605 Baseline'!H36:M36) -> -376023.7336 | H36: 0 | I36: =0.02*I26*2*1*'Wage & Income'!$D$21*365 -> 151637.5683 | J36: =0.02*J26*2*1*'Wage & Income'!$D$21*365 -> 153393.5264 | K36: =0.02*K26*2*1*'Wage & Income'!$D$21*365 -> 155149.4845
E37: Increased Driver Travel Time | G37: =NPV('603 Snow River West'!$C$4,'603 & 605 Baseline'!H37:M37) -> 500111.5657 | H37: 0 | I37: =0.02*I26*1.33*2*'Wage & Income'!$D$21*365 -> 201677.9658 | J37: =0.02*J26*1.33*2*'Wage & Income'!$D$21*365 -> 204013.3901 | K37: =0.02*K26*1.33*2*'Wage & Income'!$D$21*365 -> 206348.8144
E38: Marine Transport Cost | G38: =NPV('603 Snow River West'!$C$4,'603 & 605 Baseline'!H38:M38) -> 4476053.066 | H38: 0 | I38: =5000*365 -> 1825000 | J38: =5000*365 -> 1825000 | K38: =5000*365 -> 1825000
E39: Net Effect of Load Limits | G39: =SUM(G34:G38) -> 4723762.368
D41: Effect of Single Lane Operations | G41: 2018 | H41: 2019 | I41: 2020 | J41: 2021 | K41: 2022
E42: Delay time (in Hours per day)
F43: Trucks | K43: =K26*$G$15/60 -> 28.19273
F44: Buses | K44: =$G$15*K27/60 -> 3.438929091
F45: Other Business | K45: =$G$15*K28/60 -> 14.65329848
F46: Personal | K46: =$G$15*K29/60 -> 169.9998909
E48: Cost of Daily Delay
F49: Truck Drivers | K49: =K43*'Wage & Income'!$F$21 -> 1083.185691
F50: Bus Drivers | K50: =K44*'603 Snow River West'!$E$9*'Wage & Income'!$F$25 -> 108.5732729
F51: Bus (Passengers) | K51: =K44*('603 Snow River West'!$E$8-'603 Snow River West'!$E$9)*'Wage & Income'!$F$10 -> 742.5394981
F52: Other Business Travel Time | K52: =K45*'Wage & Income'!$F$14 -> 607.2898258
F53: Personal Travel Time | K53: =K46*'603 Snow River West'!$E$7*'Wage & Income'!$F$10 -> 6433.12765
F54: Total | K54: =SUM(K49:K53) -> 8974.715937
G55: NPV
E56: Annual Delay Cost | G56: =NPV('603 Snow River West'!$C$4,'603 & 605 Baseline'!H56:K56) -> 2499070.254 | H56: =H54*365 -> 0 | I56: 0 | J56: 0 | K56: 3275771.317
A58: Effect of Bridge Closure
G59: =G25 -> 2018 | H59: =H25 -> 2019 | I59: 2020 | J59: 2021 | K59: 2022 | L59: 2023 | M59: 2024 | N59: 2025 | O59: 2026 | P59: 2027 | Q59: 2028 | R59: 2029 | S59: 2030 | T59: 2031 | U59: 2032 | V59: 2033 | W59: 2034 | X59: 2035 | Y59: 2036 | Z59: 2037 | AA59: 2038 | AB59: 2039 | AC59: 2040 | AD59: 2041 | AE59: 2042 | AF59: 2043 | AG59: 2044 | AH59: 2045 | AI59: 2046 | AJ59: 2047 | AK59: 2048 | AL59: 2049
A60: ARRC Cost to Transport Trucks/Trailers to/from Seward | G60: =NPV('603 Snow River West'!$C$4,'603 & 605 Baseline'!H60:AL60) -> 361855413 | H60: 0 | I60: 0 | J60: 0 | K60: 0 | L60: ='ARRC cost'!$E$25 -> 39570380 | M60: ='ARRC cost'!$E$25 -> 39570380 | N60: ='ARRC cost'!$E$25 -> 39570380 | O60: ='ARRC cost'!$E$25 -> 39570380 | P60: ='ARRC cost'!$E$25 -> 39570380 | Q60: ='ARRC cost'!$E$25 -> 39570380 | R60: ='ARRC cost'!$E$25 -> 39570380 | S60: ='ARRC cost'!$E$25 -> 39570380 | T60: ='ARRC cost'!$E$25 -> 39570380 | U60: ='ARRC cost'!$E$25 -> 39570380 | V60: ='ARRC cost'!$E$25 -> 39570380 | W60: ='ARRC cost'!$E$25 -> 39570380 | X60: ='ARRC cost'!$E$25 -> 39570380 | Y60: ='ARRC cost'!$E$25 -> 39570380 | Z60: ='ARRC cost'!$E$25 -> 39570380 | AA60: ='ARRC cost'!$E$25 -> 39570380 | AB60: ='ARRC cost'!$E$25 -> 39570380 | AC60: ='ARRC cost'!$E$25 -> 39570380 | AD60: ='ARRC cost'!$E$25 -> 39570380 | AE60: ='ARRC cost'!$E$25 -> 39570380 | AF60: ='ARRC cost'!$E$25 -> 39570380 | AG60: ='ARRC cost'!$E$25 -> 39570380 | AH60: ='ARRC cost'!$E$25 -> 39570380 | AI60: ='ARRC cost'!$E$25 -> 39570380 | AJ60: ='ARRC cost'!$E$25 -> 39570380 | AK60: ='ARRC cost'!$E$25 -> 39570380 | AL60: ='ARRC cost'!$E$25 -> 39570380
A61: ARRC Cost to Transport Automobiles to/from Seward | G61: =NPV('603 Snow River West'!$C$4,'603 & 605 Baseline'!H61:AL61) -> 1149732538 | H61: 0 | I61: 0 | J61: 0 | K61: 0 | L61: ='ARRC cost'!G45 -> 111982730 | M61: ='ARRC cost'!H45 -> 113169710 | N61: ='ARRC cost'!I45 -> 121678590 | O61: ='ARRC cost'!J45 -> 121678590 | P61: ='ARRC cost'!K45 -> 121678590 | Q61: ='ARRC cost'!L45 -> 121678590 | R61: ='ARRC cost'!M45 -> 121678590 | S61: ='ARRC cost'!N45 -> 122272080 | T61: ='ARRC cost'!O45 -> 123459060 | U61: ='ARRC cost'!P45 -> 124646040 | V61: ='ARRC cost'!Q45 -> 125833020 | W61: ='ARRC cost'!R45 -> 127020000 | X61: ='ARRC cost'!S45 -> 128206980 | Y61: ='ARRC cost'!T45 -> 128800470 | Z61: ='ARRC cost'!U45 -> 129987450 | AA61: ='ARRC cost'!V45 -> 131174430 | AB61: ='ARRC cost'!W45 -> 132361410 | AC61: ='ARRC cost'!X45 -> 133548390 | AD61: ='ARRC cost'!Y45 -> 134735370 | AE61: ='ARRC cost'!Z45 -> 135922350 | AF61: ='ARRC cost'!AA45 -> 144431230 | AG61: ='ARRC cost'!AB45 -> 144431230 | AH61: ='ARRC cost'!AC45 -> 144431230 | AI61: ='ARRC cost'!AD45 -> 144431230 | AJ61: ='ARRC cost'!AE45 -> 144431230 | AK61: ='ARRC cost'!AF45 -> 145024720 | AL61: ='ARRC cost'!AG45 -> 145618210
A62: ARRC Cost to Transport Passengers from mid-May to Mid-September | G62: =NPV('603 Snow River West'!$C$4,'603 & 605 Baseline'!H62:AL62) -> 434536730.4 | H62: 0 | I62: 0 | J62: 0 | K62: 0 | L62: ='ARRC cost'!G52 -> 43115625 | M62: ='ARRC cost'!H52 -> 43601250 | N62: ='ARRC cost'!I52 -> 44073750 | O62: ='ARRC cost'!J52 -> 44559375 | P62: ='ARRC cost'!K52 -> 45045000 | Q62: ='ARRC cost'!L52 -> 45530625 | R62: ='ARRC cost'!M52 -> 46016250 | S62: ='ARRC cost'!N52 -> 46501875 | T62: ='ARRC cost'!O52 -> 46987500 | U62: ='ARRC cost'!P52 -> 47460000 | V62: ='ARRC cost'!Q52 -> 47945625 | W62: ='ARRC cost'!R52 -> 48431250 | X62: ='ARRC cost'!S52 -> 48916875 | Y62: ='ARRC cost'!T52 -> 49402500 | Z62: ='ARRC cost'!U52 -> 49888125 | AA62: ='ARRC cost'!V52 -> 50373750 | AB62: ='ARRC cost'!W52 -> 50859375 | AC62: ='ARRC cost'!X52 -> 51331875 | AD62: ='ARRC cost'!Y52 -> 51817500 | AE62: ='ARRC cost'!Z52 -> 52303125 | AF62: ='ARRC cost'!AA52 -> 52788750 | AG62: ='ARRC cost'!AB52 -> 53274375 | AH62: ='ARRC cost'!AC52 -> 53760000 | AI62: ='ARRC cost'!AD52 -> 54245625 | AJ62: ='ARRC cost'!AE52 -> 54731250 | AK62: ='ARRC cost'!AF52 -> 55203750 | AL62: ='ARRC cost'!AG52 -> 55689375
A63: ARRC Travel Time Cost for Passengers | G63: =NPV('603 Snow River West'!$C$4,'603 & 605 Baseline'!H63:AL63) -> 224408386 | H63: 0 | I63: 0 | J63: 0 | K63: 0 | L63: ='ARRC cost'!G64 -> 22266259.99 | M63: ='ARRC cost'!H64 -> 22517051.96 | N63: ='ARRC cost'!I64 -> 22761065.77 | O63: ='ARRC cost'!J64 -> 23011857.74 | P63: ='ARRC cost'!K64 -> 23262649.71 | Q63: ='ARRC cost'!L64 -> 23513441.68 | R63: ='ARRC cost'!M64 -> 23764233.65 | S63: ='ARRC cost'!N64 -> 24015025.62 | T63: ='ARRC cost'!O64 -> 24265817.59 | U63: ='ARRC cost'!P64 -> 24509831.39 | V63: ='ARRC cost'!Q64 -> 24760623.36 | W63: ='ARRC cost'!R64 -> 25011415.33 | X63: ='ARRC cost'!S64 -> 25262207.3 | Y63: ='ARRC cost'!T64 -> 25512999.27 | Z63: ='ARRC cost'!U64 -> 25763791.24 | AA63: ='ARRC cost'!V64 -> 26014583.21 | AB63: ='ARRC cost'!W64 -> 26265375.18 | AC63: ='ARRC cost'!X64 -> 26509388.99 | AD63: ='ARRC cost'!Y64 -> 26760180.96 | AE63: ='ARRC cost'!Z64 -> 27010972.93 | AF63: ='ARRC cost'!AA64 -> 27261764.9 | AG63: ='ARRC cost'!AB64 -> 27512556.87 | AH63: ='ARRC cost'!AC64 -> 27763348.84 | AI63: ='ARRC cost'!AD64 -> 28014140.81 | AJ63: ='ARRC cost'!AE64 -> 28264932.77 | AK63: ='ARRC cost'!AF64 -> 28508946.58 | AL63: ='ARRC cost'!AG64 -> 28759738.55
A64: AMHS Cost to Transport Passengers from Mid-September to Mid-May | G64: =NPV('603 Snow River West'!$C$4,'603 & 605 Baseline'!H64:AL64) -> 633513168.5 | H64: 0 | I64: 0 | J64: 0 | K64: 0 | L64: ='AMHS Cost'!K24 -> 62858475 | M64: ='AMHS Cost'!L24 -> 63566470 | N64: ='AMHS Cost'!M24 -> 64255330 | O64: ='AMHS Cost'!N24 -> 64963325 | P64: ='AMHS Cost'!O24 -> 65671320 | Q64: ='AMHS Cost'!P24 -> 66379315 | R64: ='AMHS Cost'!Q24 -> 67087310 | S64: ='AMHS Cost'!R24 -> 67795305 | T64: ='AMHS Cost'!S24 -> 68503300 | U64: ='AMHS Cost'!T24 -> 69192160 | V64: ='AMHS Cost'!U24 -> 69900155 | W64: ='AMHS Cost'!V24 -> 70608150 | X64: ='AMHS Cost'!W24 -> 71316145 | Y64: ='AMHS Cost'!X24 -> 72024140 | Z64: ='AMHS Cost'!Y24 -> 72732135 | AA64: ='AMHS Cost'!Z24 -> 73440130 | AB64: ='AMHS Cost'!AA24 -> 74148125 | AC64: ='AMHS Cost'!AB24 -> 74836985 | AD64: ='AMHS Cost'!AC24 -> 75544980 | AE64: ='AMHS Cost'!AD24 -> 76252975 | AF64: ='AMHS Cost'!AE24 -> 76960970 | AG64: ='AMHS Cost'!AF24 -> 77668965 | AH64: ='AMHS Cost'!AG24 -> 78376960 | AI64: ='AMHS Cost'!AH24 -> 79084955 | AJ64: ='AMHS Cost'!AI24 -> 79792950 | AK64: ='AMHS Cost'!AJ24 -> 80481810 | AL64: ='AMHS Cost'!AK24 -> 81189805
A65: Bus Service to Anchorage from mid-September to mid-May | G65: =NPV('603 Snow River West'!$C$4,'603 & 605 Baseline'!H65:AL65) -> 253445531.2 | H65: 0 | I65: 0 | J65: 0 | K65: 0 | L65: ='AMHS Cost'!K27 -> 25147385.06 | M65: ='AMHS Cost'!L27 -> 25430628.05 | N65: ='AMHS Cost'!M27 -> 25706215.83 | O65: ='AMHS Cost'!N27 -> 25989458.83 | P65: ='AMHS Cost'!O27 -> 26272701.83 | Q65: ='AMHS Cost'!P27 -> 26555944.83 | R65: ='AMHS Cost'!Q27 -> 26839187.82 | S65: ='AMHS Cost'!R27 -> 27122430.82 | T65: ='AMHS Cost'!S27 -> 27405673.82 | U65: ='AMHS Cost'!T27 -> 27681261.6 | V65: ='AMHS Cost'!U27 -> 27964504.6 | W65: ='AMHS Cost'!V27 -> 28247747.6 | X65: ='AMHS Cost'!W27 -> 28530990.59 | Y65: ='AMHS Cost'!X27 -> 28814233.59 | Z65: ='AMHS Cost'!Y27 -> 29097476.59 | AA65: ='AMHS Cost'!Z27 -> 29380719.59 | AB65: ='AMHS Cost'!AA27 -> 29663962.58 | AC65: ='AMHS Cost'!AB27 -> 29939550.37 | AD65: ='AMHS Cost'!AC27 -> 30222793.36 | AE65: ='AMHS Cost'!AD27 -> 30506036.36 | AF65: ='AMHS Cost'!AE27 -> 30789279.36 | AG65: ='AMHS Cost'!AF27 -> 31072522.36 | AH65: ='AMHS Cost'!AG27 -> 31355765.35 | AI65: ='AMHS Cost'!AH27 -> 31639008.35 | AJ65: ='AMHS Cost'!AI27 -> 31922251.35 | AK65: ='AMHS Cost'!AJ27 -> 32197839.13 | AL65: ='AMHS Cost'!AK27 -> 32481082.13
A66: AMHS and Bus Travel Time Cost for Passengers | G66: =NPV('603 Snow River West'!$C$4,'603 & 605 Baseline'!H66:AL66) -> 1954146615 | H66: 0 | I66: 0 | J66: 0 | K66: 0 | L66: ='AMHS Cost'!K37 -> 193894432.2 | M66: ='AMHS Cost'!L37 -> 196078326.9 | N66: ='AMHS Cost'!M37 -> 198203197.4 | O66: ='AMHS Cost'!N37 -> 200387092.1 | P66: ='AMHS Cost'!O37 -> 202570986.7 | Q66: ='AMHS Cost'!P37 -> 204754881.4 | R66: ='AMHS Cost'!Q37 -> 206938776.1 | S66: ='AMHS Cost'!R37 -> 209122670.7 | T66: ='AMHS Cost'!S37 -> 211306565.4 | U66: ='AMHS Cost'!T37 -> 213431435.9 | V66: ='AMHS Cost'!U37 -> 215615330.6 | W66: ='AMHS Cost'!V37 -> 217799225.3 | X66: ='AMHS Cost'!W37 -> 219983119.9 | Y66: ='AMHS Cost'!X37 -> 222167014.6 | Z66: ='AMHS Cost'!Y37 -> 224350909.3 | AA66: ='AMHS Cost'!Z37 -> 226534803.9 | AB66: ='AMHS Cost'!AA37 -> 228718698.6 | AC66: ='AMHS Cost'!AB37 -> 230843569.1 | AD66: ='AMHS Cost'!AC37 -> 233027463.8 | AE66: ='AMHS Cost'!AD37 -> 235211358.4 | AF66: ='AMHS Cost'!AE37 -> 237395253.1 | AG66: ='AMHS Cost'!AF37 -> 239579147.8 | AH66: ='AMHS Cost'!AG37 -> 241763042.4 | AI66: ='AMHS Cost'!AH37 -> 243946937.1 | AJ66: ='AMHS Cost'!AI37 -> 246130831.8 | AK66: ='AMHS Cost'!AJ37 -> 248255702.3 | AL66: ='AMHS Cost'!AK37 -> 250439596.9
A67: Air Travel Cost Seward/Anchorage | G67: =NPV('603 Snow River West'!$C$4,'603 & 605 Baseline'!H67:AL67) -> 47229184.87 | H67: 0 | I67: 0 | J67: 0 | K67: 0 | L67: ='Air Travel'!J21 -> 4687003.839 | M67: ='Air Travel'!K21 -> 4739456.974 | N67: ='Air Travel'!L21 -> 4791910.109 | O67: ='Air Travel'!M21 -> 4844363.244 | P67: ='Air Travel'!N21 -> 4896816.379 | Q67: ='Air Travel'!O21 -> 4949269.514 | R67: ='Air Travel'!P21 -> 5001722.649 | S67: ='Air Travel'!Q21 -> 5054175.784 | T67: ='Air Travel'!R21 -> 5106628.919 | U67: ='Air Travel'!S21 -> 5159082.054 | V67: ='Air Travel'!T21 -> 5211535.189 | W67: ='Air Travel'!U21 -> 5263988.324 | X67: ='Air Travel'!V21 -> 5316441.459 | Y67: ='Air Travel'!W21 -> 5368894.594 | Z67: ='Air Travel'!X21 -> 5421347.729 | AA67: ='Air Travel'!Y21 -> 5473800.864 | AB67: ='Air Travel'!Z21 -> 5526253.999 | AC67: ='Air Travel'!AA21 -> 5578707.134 | AD67: ='Air Travel'!AB21 -> 5631160.269 | AE67: ='Air Travel'!AC21 -> 5683613.404 | AF67: ='Air Travel'!AD21 -> 5736066.539 | AG67: ='Air Travel'!AE21 -> 5788519.674 | AH67: ='Air Travel'!AF21 -> 5840972.809 | AI67: ='Air Travel'!AG21 -> 5893425.944 | AJ67: ='Air Travel'!AH21 -> 5945879.079 | AK67: ='Air Travel'!AI21 -> 5998332.214 | AL67: ='Air Travel'!AJ21 -> 6050785.349
A68: Air Travel Travel Time Cost (Benefit) for Passengers | G68: =NPV('603 Snow River West'!$C$4,'603 & 605 Baseline'!H68:AL68) -> -38974.01998 | H68: 0 | I68: 0 | J68: 0 | K68: 0 | L68: ='Air Travel'!J28 -> -3867.764853 | M68: ='Air Travel'!K28 -> -3911.049732 | N68: ='Air Travel'!L28 -> -3954.33461 | O68: ='Air Travel'!M28 -> -3997.619489 | P68: ='Air Travel'!N28 -> -4040.904367 | Q68: ='Air Travel'!O28 -> -4084.189246 | R68: ='Air Travel'!P28 -> -4127.474124 | S68: ='Air Travel'!Q28 -> -4170.759003 | T68: ='Air Travel'!R28 -> -4214.043882 | U68: ='Air Travel'!S28 -> -4257.32876 | V68: ='Air Travel'!T28 -> -4300.613639 | W68: ='Air Travel'!U28 -> -4343.898517 | X68: ='Air Travel'!V28 -> -4387.183396 | Y68: ='Air Travel'!W28 -> -4430.468274 | Z68: ='Air Travel'!X28 -> -4473.753153 | AA68: ='Air Travel'!Y28 -> -4517.038032 | AB68: ='Air Travel'!Z28 -> -4560.32291 | AC68: ='Air Travel'!AA28 -> -4603.607789 | AD68: ='Air Travel'!AB28 -> -4646.892667 | AE68: ='Air Travel'!AC28 -> -4690.177546 | AF68: ='Air Travel'!AD28 -> -4733.462424 | AG68: ='Air Travel'!AE28 -> -4776.747303 | AH68: ='Air Travel'!AF28 -> -4820.032182 | AI68: ='Air Travel'!AG28 -> -4863.31706 | AJ68: ='Air Travel'!AH28 -> -4906.601939 | AK68: ='Air Travel'!AI28 -> -4949.886817 | AL68: ='Air Travel'!AJ28 -> -4993.171696
A69: Total NPV of Bridge Closure | G69: =SUM(G60:G68) -> 5058828593

Sheet 607 Baseline
A3: Data and Assumptions:
B4: 607 bridge deck has exceeded its expected service life (See CR NBI tab)
B5: 607 bridge deck has current NBI rating of 5
B6: Assume 607 bridge deck rating drops to 4 during next inspection cycle (2019)
B7: The NBI deterioration model suggests that 607 bridge deck would have 5 years of service at rating 4 (end of 2024) and 2.6 years (say 3) at rating 3 before closure at rating 2 (end of 2027)
B8: At NBI rating 3 load limits are imposed (2025)
B9: In the third year of the NBI rating 3 (2027) single lane operations are put in place
B10: Bridges are closed at end of 2027.
B12: Load limits divert 2% of truck traffic to barges or landing craft that transport the heavy trucks between Whittier and Seward
B13: Load limits result in an increase of 2% in truck traffic as some loads are split between trucks
B14: Net effect is total number of trucks remains the same over time
B15: Single lane operations result in average delay of : | G15: 4 | H15: minutes
B17: Bridge closure results in people traveling between Seward and Anchorage via the Alaska Railroad in the summer months; no winter service for passengers due to avalanche threat; passenger fare is currently $175 roundtrip; or | R17: =175/2 -> 87.5 | S17: average cost per each direction
B18: In winter months people will use the Alaska Marine Highway System ferries and travel between Homer and Seward on the ferry;
B19: About 34 20-foot vehicles can be accommodated on the ferries and 160 passengers; passengers not traveling in vehicles can use existing bus service from Homer to and from Anchorage
F24: Vehicle Split
F25: Year | G25: 2018 | H25: =G25+1 -> 2019 | I25: =H25+1 -> 2020 | J25: 2021 | K25: 2022 | L25: 2023 | M25: 2024 | N25: 2025 | O25: 2026 | P25: 2027 | Q25: 2028 | R25: 2029 | S25: 2030 | T25: 2031 | U25: 2032 | V25: 2033 | W25: 2034 | X25: 2035 | Y25: 2036 | Z25: 2037 | AA25: 2038 | AB25: 2039 | AC25: 2040 | AD25: 2041 | AE25: 2042 | AF25: 2043 | AG25: 2044 | AH25: 2045 | AI25: 2046 | AJ25: 2047 | AK25: 2048 | AL25: 2049 | AM25: 2050 | AN25: 2051 | AO25: 2052 | AP25: 2053
F26: Trucks AADT | G26: =Traffic!G27 -> 269.16406 | H26: =Traffic!H27 -> 272.35487 | I26: =Traffic!I27 -> 275.54568 | J26: =Traffic!J27 -> 278.73649 | K26: =Traffic!K27 -> 281.9273 | L26: =Traffic!L27 -> 285.11811 | M26: =Traffic!M27 -> 288.30892 | N26: =Traffic!N27 -> 291.49973 | O26: =Traffic!O27 -> 294.69054 | P26: =Traffic!P27 -> 297.88135 | Q26: =Traffic!Q27 -> 301.07216 | R26: =Traffic!R27 -> 304.26297 | S26: =Traffic!S27 -> 307.45378 | T26: =Traffic!T27 -> 310.64459 | U26: =Traffic!U27 -> 313.8354 | V26: =Traffic!V27 -> 317.02621 | W26: =Traffic!W27 -> 320.21702 | X26: =Traffic!X27 -> 323.40783 | Y26: =Traffic!Y27 -> 326.59864 | Z26: =Traffic!Z27 -> 329.78945 | AA26: =Traffic!AA27 -> 332.98026 | AB26: =Traffic!AB27 -> 336.17107 | AC26: =Traffic!AC27 -> 339.36188 | AD26: =Traffic!AD27 -> 342.55269 | AE26: =Traffic!AE27 -> 345.7435 | AF26: =Traffic!AF27 -> 348.93431 | AG26: =Traffic!AG27 -> 352.12512 | AH26: =Traffic!AH27 -> 355.31593 | AI26: =Traffic!AI27 -> 358.50674 | AJ26: =Traffic!AJ27 -> 361.69755 | AK26: =Traffic!AK27 -> 364.88836 | AL26: =Traffic!AL27 -> 368.07917 | AM26: =Traffic!AM27 -> 371.26998 | AN26: =Traffic!AN27 -> 374.46079 | AO26: =Traffic!AO27 -> 377.6516 | AP26: =Traffic!AP27 -> 380.84241
F27: Buses AADT | G27: =Traffic!G28 -> 32.83244 | H27: =Traffic!H28 -> 33.22165273 | I27: =Traffic!I28 -> 33.61086545 | J27: =Traffic!J28 -> 34.00007818 | K27: =Traffic!K28 -> 34.38929091 | L27: =Traffic!L28 -> 34.77850364 | M27: =Traffic!M28 -> 35.16771636 | N27: =Traffic!N28 -> 35.55692909 | O27: =Traffic!O28 -> 35.94614182 | P27: =Traffic!P28 -> 36.33535455 | Q27: =Traffic!Q28 -> 36.72456727 | R27: =Traffic!R28 -> 37.11378 | S27: =Traffic!S28 -> 37.50299273 | T27: =Traffic!T28 -> 37.89220545 | U27: =Traffic!U28 -> 38.28141818 | V27: =Traffic!V28 -> 38.67063091 | W27: =Traffic!W28 -> 39.05984364 | X27: =Traffic!X28 -> 39.44905636 | Y27: =Traffic!Y28 -> 39.83826909 | Z27: =Traffic!Z28 -> 40.22748182 | AA27: =Traffic!AA28 -> 40.61669455 | AB27: =Traffic!AB28 -> 41.00590727 | AC27: =Traffic!AC28 -> 41.39512 | AD27: =Traffic!AD28 -> 41.78433273 | AE27: =Traffic!AE28 -> 42.17354545 | AF27: =Traffic!AF28 -> 42.56275818 | AG27: =Traffic!AG28 -> 42.95197091 | AH27: =Traffic!AH28 -> 43.34118364 | AI27: =Traffic!AI28 -> 43.73039636 | AJ27: =Traffic!AJ28 -> 44.11960909 | AK27: =Traffic!AK28 -> 44.50882182 | AL27: =Traffic!AL28 -> 44.89803455 | AM27: =Traffic!AM28 -> 45.28724727 | AN27: =Traffic!AN28 -> 45.67646 | AO27: =Traffic!AO28 -> 46.06567273 | AP27: =Traffic!AP28 -> 46.45488545
F28: Other Business AADT | G28: =Traffic!G29 -> 139.8992333 | H28: =Traffic!H29 -> 141.5576712 | I28: =Traffic!I29 -> 143.2161091 | J28: =Traffic!J29 -> 144.874547 | K28: =Traffic!K29 -> 146.5329848 | L28: =Traffic!L29 -> 148.1914227 | M28: =Traffic!M29 -> 149.8498606 | N28: =Traffic!N29 -> 151.5082985 | O28: =Traffic!O29 -> 153.1667364 | P28: =Traffic!P29 -> 154.8251742 | Q28: =Traffic!Q29 -> 156.4836121 | R28: =Traffic!R29 -> 158.14205 | S28: =Traffic!S29 -> 159.8004879 | T28: =Traffic!T29 -> 161.4589258 | U28: =Traffic!U29 -> 163.1173636 | V28: =Traffic!V29 -> 164.7758015 | W28: =Traffic!W29 -> 166.4342394 | X28: =Traffic!X29 -> 168.0926773 | Y28: =Traffic!Y29 -> 169.7511152 | Z28: =Traffic!Z29 -> 171.409553 | AA28: =Traffic!AA29 -> 173.0679909 | AB28: =Traffic!AB29 -> 174.7264288 | AC28: =Traffic!AC29 -> 176.3848667 | AD28: =Traffic!AD29 -> 178.0433045 | AE28: =Traffic!AE29 -> 179.7017424 | AF28: =Traffic!AF29 -> 181.3601803 | AG28: =Traffic!AG29 -> 183.0186182 | AH28: =Traffic!AH29 -> 184.6770561 | AI28: =Traffic!AI29 -> 186.3354939 | AJ28: =Traffic!AJ29 -> 187.9939318 | AK28: =Traffic!AK29 -> 189.6523697 | AL28: =Traffic!AL29 -> 191.3108076 | AM28: =Traffic!AM29 -> 192.9692455 | AN28: =Traffic!AN29 -> 194.6276833 | AO28: =Traffic!AO29 -> 196.2861212 | AP28: =Traffic!AP29 -> 197.9445591
F29: Personal AADT | G29: =Traffic!G30 -> 1623.0376 | H29: =Traffic!H30 -> 1642.277927 | I29: =Traffic!I30 -> 1661.518255 | J29: =Traffic!J30 -> 1680.758582 | K29: =Traffic!K30 -> 1699.998909 | L29: =Traffic!L30 -> 1719.239236 | M29: =Traffic!M30 -> 1738.479564 | N29: =Traffic!N30 -> 1757.719891 | O29: =Traffic!O30 -> 1776.960218 | P29: =Traffic!P30 -> 1796.200545 | Q29: =Traffic!Q30 -> 1815.440873 | R29: =Traffic!R30 -> 1834.6812 | S29: =Traffic!S30 -> 1853.921527 | T29: =Traffic!T30 -> 1873.161855 | U29: =Traffic!U30 -> 1892.402182 | V29: =Traffic!V30 -> 1911.642509 | W29: =Traffic!W30 -> 1930.882836 | X29: =Traffic!X30 -> 1950.123164 | Y29: =Traffic!Y30 -> 1969.363491 | Z29: =Traffic!Z30 -> 1988.603818 | AA29: =Traffic!AA30 -> 2007.844145 | AB29: =Traffic!AB30 -> 2027.084473 | AC29: =Traffic!AC30 -> 2046.3248 | AD29: =Traffic!AD30 -> 2065.565127 | AE29: =Traffic!AE30 -> 2084.805455 | AF29: =Traffic!AF30 -> 2104.045782 | AG29: =Traffic!AG30 -> 2123.286109 | AH29: =Traffic!AH30 -> 2142.526436 | AI29: =Traffic!AI30 -> 2161.766764 | AJ29: =Traffic!AJ30 -> 2181.007091 | AK29: =Traffic!AK30 -> 2200.247418 | AL29: =Traffic!AL30 -> 2219.487745 | AM29: =Traffic!AM30 -> 2238.728073 | AN29: =Traffic!AN30 -> 2257.9684 | AO29: =Traffic!AO30 -> 2277.208727 | AP29: =Traffic!AP30 -> 2296.449055
G32: NPV
D33: Effect of Load Limits | G33: 2018 | H33: =G33+1 -> 2019 | I33: =H33+1 -> 2020 | J33: =I33+1 -> 2021 | K33: =J33+1 -> 2022 | L33: =K33+1 -> 2023 | M33: =L33+1 -> 2024 | N33: =M33+1 -> 2025 | O33: =N33+1 -> 2026 | P33: =O33+1 -> 2027 | Q33: 2028
E34: Reduced Truck Operating Cost | G34: =-NPV('603 Snow River West'!$C$4,'607 Baseline'!H34:Q34) -> -280417.8941 | H34: 0 | I34: 0 | J34: 0 | K34: 0 | L34: 0 | M34: 0 | N34: =0.02*N26*2*1*'Vehicle Opg Cost'!$C$7*365 -> 159814.4583 | O34: =0.02*N26*2*1*'Vehicle Opg Cost'!$C$7*365 -> 159814.4583 | P34: =0.02*O26*2*1*'Vehicle Opg Cost'!$C$7*365 -> 161563.817
E35: Increased Truck Operating Cost | G35: =NPV('603 Snow River West'!$C$4,H35:Q35) -> 372955.7991 | H35: 0 | I35: 0 | J35: 0 | K35: 0 | L35: 0 | M35: 0 | N35: =0.02*N26*1.33*2*'Vehicle Opg Cost'!$C$7*365 -> 212553.2296 | O35: =0.02*N26*1.33*2*'Vehicle Opg Cost'!$C$7*365 -> 212553.2296 | P35: =0.02*O26*1.33*2*'Vehicle Opg Cost'!$C$7*365 -> 214879.8766
E36: Reduced Driver Travel Time | G36: =-NPV('603 Snow River West'!$C$4,'607 Baseline'!H36:Q36) -> -283452.8798 | H36: 0 | I36: 0 | J36: 0 | K36: 0 | L36: 0 | M36: 0 | N36: =0.02*N26*2*1*'Wage & Income'!$D$21*365 -> 160417.3588 | O36: =0.02*O26*2*1*'Wage & Income'!$D$21*365 -> 162173.3169 | P36: =0.02*P26*2*1*'Wage & Income'!$D$21*365 -> 163929.275
E37: Increased Driver Travel Time | G37: =NPV('603 Snow River West'!$C$4,H37:Q37) -> 376992.3301 | H37: 0 | I37: 0 | J37: 0 | K37: 0 | L37: 0 | M37: 0 | N37: =0.02*N26*1.33*2*'Wage & Income'!$D$21*365 -> 213355.0872 | O37: =0.02*O26*1.33*2*'Wage & Income'!$D$21*365 -> 215690.5115 | P37: =0.02*P26*1.33*2*'Wage & Income'!$D$21*365 -> 218025.9358
E38: Marine Transport Cost | G38: =NPV('603 Snow River West'!$C$4,H38:Q38) -> 3191363.975 | H38: 0 | I38: 0 | J38: 0 | K38: 0 | L38: 0 | M38: 0 | N38: =5000*365 -> 1825000 | O38: =5000*365 -> 1825000 | P38: 1825000
E39: Net Effect of Load Limits | G39: =SUM(G34:G38) -> 3377441.33
D41: Effect of Single Lane Operations
E42: Delay time (in Hours per day)
F43: Trucks | N43: =J26*$G$15/60 -> 18.58243267 | O43: 18.79515333 | P43: =L26*$G$15/60 -> 19.007874 | Q43: =M26*$G$15/60 -> 19.22059467
F44: Buses | N44: =$G$15*J27/60 -> 2.266671879 | O44: =$G$15*K27/60 -> 2.292619394 | P44: =$G$15*L27/60 -> 2.318566909 | Q44: 2.344514424
F45: Other Business | N45: 9.658303131 | O45: 9.768865657 | P45: 9.879428182 | Q45: 9.989990707
F46: Personal | N46: 112.0505721 | O46: 113.3332606 | P46: 114.6159491 | Q46: 115.8986376
E48: Cost of Daily Delay
F49: Truck Drivers | N49: =N43*'Wage & Income'!$F$21 -> 713.9509072 | O49: =O43*'Wage & Income'!$F$21 -> 722.1237937 | P49: =P43*'Wage & Income'!$F$21 -> 730.2966802 | Q49: =Q43*'Wage & Income'!$F$21 -> 738.4695667
F50: Bus Drivers | N50: =N44*'603 Snow River West'!$E$9*'Wage & Income'!$F$25 -> 71.56297148 | O50: =O44*'603 Snow River West'!$E$9*'Wage & Income'!$F$25 -> 72.38218193 | P50: =P44*'603 Snow River West'!$E$9*'Wage & Income'!$F$25 -> 73.20139238 | Q50: =Q44*'603 Snow River West'!$E$9*'Wage & Income'!$F$25 -> 74.02060282
F51: Bus (Passengers) | N51: =N44*('603 Snow River West'!$E$8-'603 Snow River West'!$E$9)*'Wage & Income'!$F$10 -> 489.4236999 | O51: =O44*('603 Snow River West'!$E$8-'603 Snow River West'!$E$9)*'Wage & Income'!$F$10 -> 495.0263321 | P51: =P44*('603 Snow River West'!$E$8-'603 Snow River West'!$E$9)*'Wage & Income'!$F$10 -> 500.6289643 | Q51: =Q44*('603 Snow River West'!$E$8-'603 Snow River West'!$E$9)*'Wage & Income'!$F$10 -> 506.2315965
F52: Other Business Travel Time | N52: =N45*'Wage & Income'!$F$14 -> 400.2777417 | O52: =O45*'Wage & Income'!$F$14 -> 404.8598839 | P52: =P45*'Wage & Income'!$F$14 -> 409.442026 | Q52: =Q45*'Wage & Income'!$F$14 -> 414.0241682
F53: Personal Travel Time | N53: =N46*'603 Snow River West'!$E$7*'Wage & Income'!$F$10 -> 4240.212331 | O53: =O46*'603 Snow River West'!$E$7*'Wage & Income'!$F$10 -> 4288.751766 | P53: =P46*'603 Snow River West'!$E$7*'Wage & Income'!$F$10 -> 4337.291202 | Q53: =Q46*'603 Snow River West'!$E$7*'Wage & Income'!$F$10 -> 4385.830638
F54: Total | N54: =SUM(N49:N53) -> 5915.427651 | O54: 5983.143958 | P54: =SUM(P49:P53) -> 6050.860265 | Q54: =SUM(Q49:Q53) -> 6118.576572
G55: NPV
E56: Annual Delay Cost | G56: =NPV('603 Snow River West'!$C$4,H56:Q56) -> 4952216.5 | H56: 0 | I56: 0 | J56: 0 | K56: 0 | L56: 0 | M56: 0 | N56: =N54*365 -> 2159131.093 | O56: 2183847.545 | P56: =P54*365 -> 2208563.997 | Q56: =Q54*365 -> 2233280.449
A58: Effect of Bridge Closure
G59: =G25 -> 2018 | H59: =H25 -> 2019 | I59: 2020 | J59: 2021 | K59: 2022 | L59: 2023 | M59: 2024 | N59: 2025 | O59: 2026 | P59: 2027 | Q59: 2028 | R59: 2029 | S59: 2030 | T59: 2031 | U59: 2032 | V59: 2033 | W59: 2034 | X59: 2035 | Y59: 2036 | Z59: 2037 | AA59: 2038 | AB59: 2039 | AC59: 2040 | AD59: 2041 | AE59: 2042 | AF59: 2043 | AG59: 2044 | AH59: 2045 | AI59: 2046 | AJ59: 2047 | AK59: 2048 | AL59: 2049
A60: ARRC Cost to Transport Trucks/Trailers to/from Seward | G60: =NPV('603 Snow River West'!$C$4,H60:AL60) -> 238078433.7 | H60: 0 | I60: 0 | J60: 0 | K60: 0 | L60: 0 | M60: 0 | N60: 0 | O60: 0 | P60: 0 | Q60: ='ARRC cost'!$E$25 -> 39570380 | R60: ='ARRC cost'!$E$25 -> 39570380 | S60: ='ARRC cost'!$E$25 -> 39570380 | T60: ='ARRC cost'!$E$25 -> 39570380 | U60: ='ARRC cost'!$E$25 -> 39570380 | V60: ='ARRC cost'!$E$25 -> 39570380 | W60: ='ARRC cost'!$E$25 -> 39570380 | X60: ='ARRC cost'!$E$25 -> 39570380 | Y60: ='ARRC cost'!$E$25 -> 39570380 | Z60: ='ARRC cost'!$E$25 -> 39570380 | AA60: ='ARRC cost'!$E$25 -> 39570380 | AB60: ='ARRC cost'!$E$25 -> 39570380 | AC60: ='ARRC cost'!$E$25 -> 39570380 | AD60: ='ARRC cost'!$E$25 -> 39570380 | AE60: ='ARRC cost'!$E$25 -> 39570380 | AF60: ='ARRC cost'!$E$25 -> 39570380 | AG60: ='ARRC cost'!$E$25 -> 39570380 | AH60: ='ARRC cost'!$E$25 -> 39570380 | AI60: ='ARRC cost'!$E$25 -> 39570380 | AJ60: ='ARRC cost'!$E$25 -> 39570380 | AK60: ='ARRC cost'!$E$25 -> 39570380 | AL60: ='ARRC cost'!$E$25 -> 39570380
A61: ARRC Cost to Transport Automobiles to/from Seward | G61: =NPV('603 Snow River West'!$C$4,H61:AL61) -> 781702194.4 | H61: 0 | I61: 0 | J61: 0 | K61: 0 | L61: 0 | M61: 0 | N61: 0 | O61: 0 | P61: 0 | Q61: ='ARRC cost'!L45 -> 121678590 | R61: ='ARRC cost'!M45 -> 121678590 | S61: ='ARRC cost'!N45 -> 122272080 | T61: ='ARRC cost'!O45 -> 123459060 | U61: ='ARRC cost'!P45 -> 124646040 | V61: ='ARRC cost'!Q45 -> 125833020 | W61: ='ARRC cost'!R45 -> 127020000 | X61: ='ARRC cost'!S45 -> 128206980 | Y61: ='ARRC cost'!T45 -> 128800470 | Z61: ='ARRC cost'!U45 -> 129987450 | AA61: ='ARRC cost'!V45 -> 131174430 | AB61: ='ARRC cost'!W45 -> 132361410 | AC61: ='ARRC cost'!X45 -> 133548390 | AD61: ='ARRC cost'!Y45 -> 134735370 | AE61: ='ARRC cost'!Z45 -> 135922350 | AF61: ='ARRC cost'!AA45 -> 144431230 | AG61: ='ARRC cost'!AB45 -> 144431230 | AH61: ='ARRC cost'!AC45 -> 144431230 | AI61: ='ARRC cost'!AD45 -> 144431230 | AJ61: ='ARRC cost'!AE45 -> 144431230 | AK61: ='ARRC cost'!AF45 -> 145024720 | AL61: ='ARRC cost'!AG45 -> 145618210
A62: ARRC Cost to Transport Passengers from mid-May to Mid-September | G62: =NPV('603 Snow River West'!$C$4,H62:AL62) -> 296860158 | H62: 0 | I62: 0 | J62: 0 | K62: 0 | L62: 0 | M62: 0 | N62: 0 | O62: 0 | P62: 0 | Q62: ='ARRC cost'!L52 -> 45530625 | R62: ='ARRC cost'!M52 -> 46016250 | S62: ='ARRC cost'!N52 -> 46501875 | T62: ='ARRC cost'!O52 -> 46987500 | U62: ='ARRC cost'!P52 -> 47460000 | V62: ='ARRC cost'!Q52 -> 47945625 | W62: ='ARRC cost'!R52 -> 48431250 | X62: ='ARRC cost'!S52 -> 48916875 | Y62: ='ARRC cost'!T52 -> 49402500 | Z62: ='ARRC cost'!U52 -> 49888125 | AA62: ='ARRC cost'!V52 -> 50373750 | AB62: ='ARRC cost'!W52 -> 50859375 | AC62: ='ARRC cost'!X52 -> 51331875 | AD62: ='ARRC cost'!Y52 -> 51817500 | AE62: ='ARRC cost'!Z52 -> 52303125 | AF62: ='ARRC cost'!AA52 -> 52788750 | AG62: ='ARRC cost'!AB52 -> 53274375 | AH62: ='ARRC cost'!AC52 -> 53760000 | AI62: ='ARRC cost'!AD52 -> 54245625 | AJ62: ='ARRC cost'!AE52 -> 54731250 | AK62: ='ARRC cost'!AF52 -> 55203750 | AL62: ='ARRC cost'!AG52 -> 55689375
A63: ARRC Travel Time Cost for Passengers | G63: =NPV('603 Snow River West'!$C$4,H63:AL63) -> 153307889.2 | H63: 0 | I63: 0 | J63: 0 | K63: 0 | L63: 0 | M63: 0 | N63: 0 | O63: 0 | P63: 0 | Q63: ='ARRC cost'!L64 -> 23513441.68 | R63: ='ARRC cost'!M64 -> 23764233.65 | S63: ='ARRC cost'!N64 -> 24015025.62 | T63: ='ARRC cost'!O64 -> 24265817.59 | U63: ='ARRC cost'!P64 -> 24509831.39 | V63: ='ARRC cost'!Q64 -> 24760623.36 | W63: ='ARRC cost'!R64 -> 25011415.33 | X63: ='ARRC cost'!S64 -> 25262207.3 | Y63: ='ARRC cost'!T64 -> 25512999.27 | Z63: ='ARRC cost'!U64 -> 25763791.24 | AA63: ='ARRC cost'!V64 -> 26014583.21 | AB63: ='ARRC cost'!W64 -> 26265375.18 | AC63: ='ARRC cost'!X64 -> 26509388.99 | AD63: ='ARRC cost'!Y64 -> 26760180.96 | AE63: ='ARRC cost'!Z64 -> 27010972.93 | AF63: ='ARRC cost'!AA64 -> 27261764.9 | AG63: ='ARRC cost'!AB64 -> 27512556.87 | AH63: ='ARRC cost'!AC64 -> 27763348.84 | AI63: ='ARRC cost'!AD64 -> 28014140.81 | AJ63: ='ARRC cost'!AE64 -> 28264932.77 | AK63: ='ARRC cost'!AF64 -> 28508946.58 | AL63: ='ARRC cost'!AG64 -> 28759738.55
A64: AMHS Cost to Transport Passengers from Mid-September to Mid-May | G64: =NPV('603 Snow River West'!$C$4,H64:AL64) -> 432793837.9 | H64: 0 | I64: 0 | J64: 0 | K64: 0 | L64: 0 | M64: 0 | N64: 0 | O64: 0 | P64: 0 | Q64: ='AMHS Cost'!P24 -> 66379315 | R64: ='AMHS Cost'!Q24 -> 67087310 | S64: ='AMHS Cost'!R24 -> 67795305 | T64: ='AMHS Cost'!S24 -> 68503300 | U64: ='AMHS Cost'!T24 -> 69192160 | V64: ='AMHS Cost'!U24 -> 69900155 | W64: ='AMHS Cost'!V24 -> 70608150 | X64: ='AMHS Cost'!W24 -> 71316145 | Y64: ='AMHS Cost'!X24 -> 72024140 | Z64: ='AMHS Cost'!Y24 -> 72732135 | AA64: ='AMHS Cost'!Z24 -> 73440130 | AB64: ='AMHS Cost'!AA24 -> 74148125 | AC64: ='AMHS Cost'!AB24 -> 74836985 | AD64: ='AMHS Cost'!AC24 -> 75544980 | AE64: ='AMHS Cost'!AD24 -> 76252975 | AF64: ='AMHS Cost'!AE24 -> 76960970 | AG64: ='AMHS Cost'!AF24 -> 77668965 | AH64: ='AMHS Cost'!AG24 -> 78376960 | AI64: ='AMHS Cost'!AH24 -> 79084955 | AJ64: ='AMHS Cost'!AI24 -> 79792950 | AK64: ='AMHS Cost'!AJ24 -> 80481810 | AL64: ='AMHS Cost'!AK24 -> 81189805
A65: Bus Service to Anchorage from mid-September to mid-May | G65: =NPV('603 Snow River West'!$C$4,H65:AL65) -> 173145042 | H65: 0 | I65: 0 | J65: 0 | K65: 0 | L65: 0 | M65: 0 | N65: 0 | O65: 0 | P65: 0 | Q65: ='AMHS Cost'!P27 -> 26555944.83 | R65: ='AMHS Cost'!Q27 -> 26839187.82 | S65: ='AMHS Cost'!R27 -> 27122430.82 | T65: ='AMHS Cost'!S27 -> 27405673.82 | U65: ='AMHS Cost'!T27 -> 27681261.6 | V65: ='AMHS Cost'!U27 -> 27964504.6 | W65: ='AMHS Cost'!V27 -> 28247747.6 | X65: ='AMHS Cost'!W27 -> 28530990.59 | Y65: ='AMHS Cost'!X27 -> 28814233.59 | Z65: ='AMHS Cost'!Y27 -> 29097476.59 | AA65: ='AMHS Cost'!Z27 -> 29380719.59 | AB65: ='AMHS Cost'!AA27 -> 29663962.58 | AC65: ='AMHS Cost'!AB27 -> 29939550.37 | AD65: ='AMHS Cost'!AC27 -> 30222793.36 | AE65: ='AMHS Cost'!AD27 -> 30506036.36 | AF65: ='AMHS Cost'!AE27 -> 30789279.36 | AG65: ='AMHS Cost'!AF27 -> 31072522.36 | AH65: ='AMHS Cost'!AG27 -> 31355765.35 | AI65: ='AMHS Cost'!AH27 -> 31639008.35 | AJ65: ='AMHS Cost'!AI27 -> 31922251.35 | AK65: ='AMHS Cost'!AJ27 -> 32197839.13 | AL65: ='AMHS Cost'!AK27 -> 32481082.13
A66: AMHS and Bus Travel Time Cost for Passengers | G66: =NPV('603 Snow River West'!$C$4,H66:AL66) -> 1335003999 | H66: 0 | I66: 0 | J66: 0 | K66: 0 | L66: 0 | M66: 0 | N66: 0 | O66: 0 | P66: 0 | Q66: ='AMHS Cost'!P37 -> 204754881.4 | R66: ='AMHS Cost'!Q37 -> 206938776.1 | S66: ='AMHS Cost'!R37 -> 209122670.7 | T66: ='AMHS Cost'!S37 -> 211306565.4 | U66: ='AMHS Cost'!T37 -> 213431435.9 | V66: ='AMHS Cost'!U37 -> 215615330.6 | W66: ='AMHS Cost'!V37 -> 217799225.3 | X66: ='AMHS Cost'!W37 -> 219983119.9 | Y66: ='AMHS Cost'!X37 -> 222167014.6 | Z66: ='AMHS Cost'!Y37 -> 224350909.3 | AA66: ='AMHS Cost'!Z37 -> 226534803.9 | AB66: ='AMHS Cost'!AA37 -> 228718698.6 | AC66: ='AMHS Cost'!AB37 -> 230843569.1 | AD66: ='AMHS Cost'!AC37 -> 233027463.8 | AE66: ='AMHS Cost'!AD37 -> 235211358.4 | AF66: ='AMHS Cost'!AE37 -> 237395253.1 | AG66: ='AMHS Cost'!AF37 -> 239579147.8 | AH66: ='AMHS Cost'!AG37 -> 241763042.4 | AI66: ='AMHS Cost'!AH37 -> 243946937.1 | AJ66: ='AMHS Cost'!AI37 -> 246130831.8 | AK66: ='AMHS Cost'!AJ37 -> 248255702.3 | AL66: ='AMHS Cost'!AK37 -> 250439596.9
A67: Air Travel Cost Seward/Anchorage | G67: =NPV('603 Snow River West'!$C$4,H67:AL67) -> 32262147.65 | H67: 0 | I67: 0 | J67: 0 | K67: 0 | L67: 0 | M67: 0 | N67: 0 | O67: 0 | P67: 0 | Q67: ='Air Travel'!O21 -> 4949269.514 | R67: ='Air Travel'!P21 -> 5001722.649 | S67: ='Air Travel'!Q21 -> 5054175.784 | T67: ='Air Travel'!R21 -> 5106628.919 | U67: ='Air Travel'!S21 -> 5159082.054 | V67: ='Air Travel'!T21 -> 5211535.189 | W67: ='Air Travel'!U21 -> 5263988.324 | X67: ='Air Travel'!V21 -> 5316441.459 | Y67: ='Air Travel'!W21 -> 5368894.594 | Z67: ='Air Travel'!X21 -> 5421347.729 | AA67: ='Air Travel'!Y21 -> 5473800.864 | AB67: ='Air Travel'!Z21 -> 5526253.999 | AC67: ='Air Travel'!AA21 -> 5578707.134 | AD67: ='Air Travel'!AB21 -> 5631160.269 | AE67: ='Air Travel'!AC21 -> 5683613.404 | AF67: ='Air Travel'!AD21 -> 5736066.539 | AG67: ='Air Travel'!AE21 -> 5788519.674 | AH67: ='Air Travel'!AF21 -> 5840972.809 | AI67: ='Air Travel'!AG21 -> 5893425.944 | AJ67: ='Air Travel'!AH21 -> 5945879.079 | AK67: ='Air Travel'!AI21 -> 5998332.214 | AL67: ='Air Travel'!AJ21 -> 6050785.349
A68: Air Travel Travel Time Cost (Benefit) for Passengers | G68: =NPV('603 Snow River West'!$C$4,H68:AL68) -> -26623.06349 | H68: 0 | I68: 0 | J68: 0 | K68: 0 | L68: 0 | M68: 0 | N68: 0 | O68: 0 | P68: 0 | Q68: ='Air Travel'!O28 -> -4084.189246 | R68: ='Air Travel'!P28 -> -4127.474124 | S68: ='Air Travel'!Q28 -> -4170.759003 | T68: ='Air Travel'!R28 -> -4214.043882 | U68: ='Air Travel'!S28 -> -4257.32876 | V68: ='Air Travel'!T28 -> -4300.613639 | W68: ='Air Travel'!U28 -> -4343.898517 | X68: ='Air Travel'!V28 -> -4387.183396 | Y68: ='Air Travel'!W28 -> -4430.468274 | Z68: ='Air Travel'!X28 -> -4473.753153 | AA68: ='Air Travel'!Y28 -> -4517.038032 | AB68: ='Air Travel'!Z28 -> -4560.32291 | AC68: ='Air Travel'!AA28 -> -4603.607789 | AD68: ='Air Travel'!AB28 -> -4646.892667 | AE68: ='Air Travel'!AC28 -> -4690.177546 | AF68: ='Air Travel'!AD28 -> -4733.462424 | AG68: ='Air Travel'!AE28 -> -4776.747303 | AH68: ='Air Travel'!AF28 -> -4820.032182 | AI68: ='Air Travel'!AG28 -> -4863.31706 | AJ68: ='Air Travel'!AH28 -> -4906.601939 | AK68: ='Air Travel'!AI28 -> -4949.886817 | AL68: ='Air Travel'!AJ28 -> -4993.171696
A69: Total NPV of Bridge Closure | G69: =SUM(G60:G68) -> 3443127079
A72: Total NPV of 607 Baseline Scenario | G72: =G69+G56+G39 -> 3451456736

Sheet Wage & Income
A4: Alaska Hourly Values of Travel Time Savings
A5: (2017 U.S. $ per person-hour) | B5: Median
A6: Category | B6: Hourly Wage | C6: Benefits | D6: Hourly Compensation | E6: Personal Travel per Person | F6: 2018 Values
A7: In-vehicle Travel
A8: Personal
A9: Ketchikan Gateway Borough | E9: =B44 -> 15.42355769 | F9: =E9*'Alaska CPI'!$P$11 -> 15.72135575 | H9: For Tongass Highway
A10: Kenai Peninsula Borough | E10: =B45 -> 21.83831731 | F10: =E10*'Alaska CPI'!$P$11 -> 22.25997155 | H10: For Seward Highway
A11: Denali Borough | E11: 27.36125 | F11: =E11*'Alaska CPI'!$P$11 -> 27.88954103
A12: Valdez-Cordova Census Area | E12: 27.768125 | F12: =E12*'Alaska CPI'!$P$11 -> 28.30427197 | H12: For Richardson/Edgerton/McCarthy Highway
A13: Wtd. Avg. of Denali & V-C CA | E13: =B48 -> 27.6891841 | F13: =E13*'Alaska CPI'!$P$11 -> 28.22380689 | H13: For Denali Highway
A14: Business | B14: =B29 -> 27.77 | C14: =C29 -> 12.88885798 | D14: =D29 -> 40.65885798 | F14: =D14*'Alaska CPI'!$P$11 -> 41.44389923 | H14: Statewide Occupational wage data for all civilian occupations
A15: All purposes
A17: Comercial Vehicle Operators | I17: Benefits for production, transportation, and material moving occupations is from https://www.bls.gov/web/ecec/ececqrtn.pdf
A18: Truck Drivers | E18: Used for Goal Seek | H18: Employment | I18: The benefit is for all civilian workers and represents the percentage for all 4 quarters in 2017
A19: Heavy and Tractor-Trailer | B19: 26.09 | C19: =D19-B19 -> 13.50028832 | D19: 39.59028832 | E19: =D19*0.659 -> 26.09 | H19: 2640 | I19: =AVERAGE(34,34,34.1,34.3) -> 34.1 | J19: benefits as a percent of total compensation in 2017
A20: Light Truck or Delivery Service | B20: 20.75 | C20: =D20-B20 -> 14.25 | D20: 35 | E20: =D20*0.659 -> 23.065 | H20: 1860
A21: Weighted Average | D21: =(D19*H19+D20*H20)/H21 -> 37.69296915 | F21: =D21*'Alaska CPI'!$P$11 -> 38.42074501 | H21: =H20+H19 -> 4500
A22: Bus Drivers
A23: Transit and Intercity | B23: 24.14 | C23: =D23-B23 -> 12.49125948 | D23: 36.63125948 | E23: =D23*0.659 -> 24.14 | H23: 390
A24: School or Special Client | B24: 19.04 | C24: 9.852261002 | D24: 28.892261 | E24: 19.04 | H24: 1060
A25: Weighted Average | D25: =(D23*H23+D24*H24)/H25 -> 30.97378473 | F25: =D25*'Alaska CPI'!$P$11 -> 31.57182658 | H25: =H23+H24 -> 1450
A26: Transit Rail Operators | B26: NA
A27: Locomotive Engineers | B27: NA
A28: All Other Transportation Workers | B28: 19.87 | C28: =D28-B28 -> 10.28174507 | D28: 30.15174507 | E28: =D28*0.659 -> 19.87
A29: All occupations | B29: 27.77 | C29: 12.88885798 | D29: 40.65885798 | E29: =D29*0.683 -> 27.77
A30: Source: | B30: Bureau of Labor Statistics
B31: May 2017 State Occupational Employment and Wage Estimates Alaska
B32: Accessed at https://www.bls.gov/oes/current/oes_ak.htm#00-0000 | J32: 2018-10-15
B34: Median Household Income (2012-2016) in 2016 dollars
A35: Ketchikan Gateway Borough | B35: 64162 | D35: https://www.census.gov/quickfacts/fact/table/ketchikangatewayboroughalaska,US/INC110216 | N35: Accessed on October 15, 2018.
A36: Kenai Peninsula Borough | B36: 64891 | D36: https://www.census.gov/quickfacts/fact/table/kenaipeninsulaboroughalaska,US/INC110216 | N36: Accessed on October 15, 2018.
A37: Denali Borough | B37: 81302 | D37: https://www.census.gov/quickfacts/fact/table/denaliboroughalaska,US/INC110216 | N37: Accessed on October 15, 2018.
A38: Valdez-Cordova Census Area | B38: 82511 | D38: https://www.census.gov/quickfacts/fact/table/valdezcordovacensusareaalaska,US/INC110216 | N38: Accessed on October 15, 2018.
A39: Wtd. Avg. of Denali & V-C CA | B39: =(B37*B51+B38*B52)/B53 -> 82276.43277
A41: Hours per year | B41: 2080 | D41: Per 2016 Revised Value of Travel Time Guidance (page 6)
A43: Personal Travel Hourly Estimate | C43: per 2016 Revised Value of Travel Time Guidance (page 11) personal local travel is 50% of annual household income divided by 2080 and inter-city travel is 70% of annual household income divided by 2080 (page 10)
A44: Ketchikan | B44: =B35/$B$41*0.5 -> 15.42355769
A45: Kenai | B45: =B36/$B$41*0.7 -> 21.83831731
A46: Denali | B46: =B37/$B$41*0.7 -> 27.36125
A47: V-C CA | B47: =B38/$B$41*0.7 -> 27.768125
A48: Wtd. Avg. of Denali & V-C CA | B48: =(B46*B51+B47*B52)/B53 -> 27.6891841
A50: Number of Households (2012-2016) | D50: Same sources as above for HH Income
A51: Denali | B51: 707
A52: V-C CA | B52: 2937
A53: Total Households | B53: =SUM(B51:B52) -> 3644 | D53: used in weighted average calculations for Denali Highway

Sheet Alaska CPI
A1: Consumer Price Index (CPI)
A3: Consumer Price Index for Urban Alaska (formerly Municipality of Anchorage) and the U.S.
A4: Not Seasonally Adjusted – All Items – Urban Consumers
A5: 1960-Present
A7: Note: the percent change is from the same period of the previous year.
B8: Urban Alaska | H8: U.S.
A9: Year | B9: 1st Half | C9: Percent Change | D9: 2nd Half | E9: Percent Change | F9: Annual | G9: Percent Change | H9: 1st Half | I9: Percent Change | J9: 2nd Half | K9: Percent Change | L9: Annual | M9: Percent Change | P9: 2018 Deflator
A10: 2018 | B10: 223.099 | C10: 2.1 | H10: 250.089 | I10: 2.5 | O10: 0 | P10: =1+O10 -> 1
A11: 2017 | B11: 218.616 | C11: 0.7 | D11: 219.131 | E11: 0.2 | F11: 218.873 | G11: 0.5 | H11: 244.076 | I11: 2.2 | J11: 246.163 | K11: 2 | L11: 245.12 | M11: 2.1 | O11: =($B$10-F11)/F11 -> 0.01930800053 | P11: =1+O11 -> 1.019308001
A12: 2016 | B12: 216.999 | C12: -0.1 | D12: 218.66 | E12: 0.9 | F12: 217.83 | G12: 0.4 | H12: 238.778 | I12: 1.1 | J12: 241.237 | K12: 1.5 | L12: 240.007 | M12: 1.3 | O12: 0.02418858743 | P12: 1.024188587
A13: 2015 | B13: 217.111 | C13: 1.1 | D13: 216.706 | E13: -0.1 | F13: 216.909 | G13: 0.5 | H13: 236.265 | I13: -0.1 | J13: 237.769 | K13: 0.3 | L13: 237.017 | M13: 0.1 | O13: 0.02853731288 | P13: 1.028537313
A14: 2014 | B14: 214.777 | C14: 1.9 | D14: 216.833 | E14: 1.4 | F14: 215.805 | G14: 1.6 | H14: 236.384 | I14: 1.7 | J14: 237.088 | K14: 1.5 | L14: 236.736 | M14: 1.6 | O14: 0.03379903153 | P14: 1.033799032
A15: 2013 | B15: 210.853 | C15: 2.7 | D15: 213.91 | E15: 3.5 | F15: 212.381 | G15: 3.1 | H15: 232.366 | I15: 1.5 | J15: 233.548 | K15: 1.4 | L15: 232.957 | M15: 1.5 | O15: 0.05046590797 | P15: 1.050465908
A16: 2012 | B16: 205.215 | C16: 2.5 | D16: 206.617 | E16: 2 | F16: 205.916 | G16: 2.2 | H16: 228.85 | I16: 2.3 | J16: 230.338 | K16: 1.8 | L16: 229.594 | M16: 2.1 | O16: 0.08344664815 | P16: 1.083446648
A17: 2011 | B17: 200.278 | C17: 2.8 | D17: 202.576 | E17: 3.6 | F17: 201.427 | G17: 3.2 | H17: 223.598 | I17: 2.8 | J17: 226.28 | K17: 3.5 | L17: 224.939 | M17: 3.2 | O17: 0.1075923287 | P17: 1.107592329
A18: 2010 | B18: 194.834 | C18: 2.5 | D18: 195.455 | E18: 1 | F18: 195.144 | G18: 1.8 | H18: 217.535 | I18: 2.1 | J18: 218.576 | K18: 1.2 | L18: 218.056 | M18: 1.6 | O18: 0.1432531874 | P18: 1.143253187
A19: 2009 | B19: 190.032 | C19: 1.3 | D19: 193.456 | E19: 1.1 | F19: 191.744 | G19: 1.2 | H19: 213.139 | I19: -0.6 | J19: 215.935 | K19: -0.1 | L19: 214.537 | M19: -0.4 | O19: 0.1635253254 | P19: 1.163525325
A20: 2008 | B20: 187.659 | C20: 4.6 | D20: 191.335 | E20: 4.5 | F20: 189.497 | G20: 4.6 | H20: 214.429 | I20: 4.2 | J20: 216.177 | K20: 3.4 | L20: 215.303 | M20: 3.8 | O20: 0.1773220684 | P20: 1.177322068
A21: 2007 | B21: 179.394 | C21: 1.5 | D21: 183.08 | E21: 2.9 | F21: 181.237 | G21: 2.2 | H21: 205.709 | I21: 2.5 | J21: 208.976 | K21: 3.1 | L21: 207.342 | M21: 2.8 | O21: 0.2309793254 | P21: 1.230979325
A22: 2006 | B22: 176.7 | C22: 4.2 | D22: 177.9 | E22: 2.2 | F22: 177.3 | G22: 3.2 | H22: 200.6 | I22: 3.8 | J22: 202.6 | K22: 2.6 | L22: 201.6 | M22: 3.2 | O22: 0.2583135928 | P22: 1.258313593
A23: 2005 | B23: 169.6 | C23: 2.4 | D23: 174.1 | E23: 3.8 | F23: 171.8 | G23: 3.1 | H23: 193.2 | I23: 3 | J23: 197.4 | K23: 3.8 | L23: 195.3 | M23: 3.4 | O23: =($B$10-F23)/F23 -> 0.2985972061 | P23: 1.298597206
A24: 2004 | B24: 165.6 | C24: 2.8 | D24: 167.8 | E24: 2.4 | F24: 166.7 | G24: 2.6 | H24: 187.6 | I24: 2.3 | J24: 190.2 | K24: 3 | L24: 188.9 | M24: 2.7
A25: 2003 | B25: 161.1 | C25: 2.3 | D25: 163.9 | E25: 3.1 | F25: 162.5 | G25: 2.7 | H25: 183.3 | I25: 2.5 | J25: 184.6 | K25: 2 | L25: 184 | M25: 2.3 | R25: 1 | S25: 1.019308001 | T25: 1.024188587 | U25: 1.028537313 | V25: 1.033799032 | W25: 1.050465908 | X25: 1.083446648 | Y25: 1.107592329 | Z25: 1.143253187 | AA25: 1.163525325 | AB25: 1.177322068 | AC25: 1.230979325 | AD25: 1.258313593 | AE25: 1.298597206
A26: 2002 | B26: 157.5 | C26: 2 | D26: 159 | E26: 1.9 | F26: 158.2 | G26: 1.9 | H26: 178.9 | I26: 1.3 | J26: 180.9 | K26: 1.9 | L26: 179.9 | M26: 1.6
A27: 2001 | B27: 154.4 | C27: 2.9 | D27: 156 | E27: 2.7 | F27: 155.2 | G27: 2.8 | H27: 176.6 | I27: 3.4 | J27: 177.5 | K27: 2.2 | L27: 177.1 | M27: 2.8
A28: 2000 | B28: 150 | C28: 0.9 | D28: 151.9 | E28: 2.4 | F28: 150.9 | G28: 1.7 | H28: 170.8 | I28: 3.3 | J28: 173.6 | K28: 3.5 | L28: 172.2 | M28: 3.4
A29: 1999 | B29: 148.6 | C29: 1.3 | D29: 148.3 | E29: 0.9 | F29: 148.4 | G29: 1 | H29: 165.4 | I29: 1.9 | J29: 167.8 | K29: 2.5 | L29: 166.6 | M29: 2.2
A30: 1998 | B30: 146.7 | C30: 1.8 | D30: 147 | E30: 1.1 | F30: 146.9 | G30: 1.5 | H30: 162.3 | I30: 1.5 | J30: 163.7 | K30: 1.6 | L30: 163 | M30: 1.6
A31: 1997 | B31: 144.1 | C31: 1.6 | D31: 145.4 | E31: 1.2 | F31: 144.8 | G31: 1.5 | H31: 159.9 | I31: 2.6 | J31: 161.2 | K31: 2.1 | L31: 160.5 | M31: 2.3
A32: 1996 | B32: 141.8 | C32: 2.6 | D32: 143.7 | E32: 3 | F32: 142.7 | G32: 2.7 | H32: 155.8 | I32: 2.8 | J32: 157.9 | K32: 3.1 | L32: 156.9 | M32: 3
A33: 1995 | B33: 138.2 | C33: 2.9 | D33: 139.5 | E33: 2.7 | F33: 138.9 | G33: 2.9 | H33: 151.5 | I33: 2.9 | J33: 153.2 | K33: 2.6 | L33: 152.4 | M33: 2.8
A34: 1994 | B34: 134.3 | C34: 2.1 | D34: 135.8 | E34: 2.3 | F34: 135 | G34: 2.1 | H34: 147.2 | I34: 2.4 | J34: 149.3 | K34: 2.8 | L34: 148.2 | M34: 2.6
A35: 1993 | B35: 131.5 | C35: 3.3 | D35: 132.8 | E35: 2.9 | F35: 132.2 | G35: 3.1 | H35: 143.7 | I35: 3.2 | J35: 145.3 | K35: 2.8 | L35: 144.5 | M35: 3
A36: 1992 | B36: 127.3 | C36: 3.2 | D36: 129.1 | E36: 3.5 | F36: 128.2 | G36: 3.4 | H36: 139.2 | I36: 3 | J36: 141.4 | K36: 3.1 | L36: 140.3 | M36: 3
A37: 1991 | B37: 123.3 | C37: 5.5 | D37: 124.7 | E37: 3.6 | F37: 124 | G37: 4.6 | H37: 135.2 | I37: 5.1 | J37: 137.2 | K37: 3.5 | L37: 136.2 | M37: 4.2
A38: 1990 | B38: 116.9 | C38: 5.4 | D38: 120.4 | E38: 7 | F38: 118.6 | G38: 6.2 | H38: 128.7 | I38: 4.9 | J38: 132.6 | K38: 5.8 | L38: 130.7 | M38: 5.4
A39: 1989 | B39: 110.9 | C39: 2.3 | D39: 112.5 | E39: 3.3 | F39: 111.7 | G39: 2.9 | H39: 122.7 | I39: 5.1 | J39: 125.3 | K39: 4.7 | L39: 124 | M39: 4.8
A40: 1988 | B40: 108.4 | C40: 0.1 | D40: 108.9 | E40: 0.7 | F40: 108.6 | G40: 0.4 | H40: 116.8 | I40: 3.9 | J40: 119.7 | K40: 4.2 | L40: 118.3 | M40: 4.1
A41: 1987 | B41: 108.3 | C41: 0 | D41: 108.1 | E41: 0.7 | F41: 108.2 | G41: 0.4 | H41: 112.4 | I41: 3 | J41: 114.9 | K41: 4.4 | L41: 113.6 | M41: 3.6
A42: 1986 | B42: 108.3 | C42: 3.4 | D42: 107.4 | E42: 0.5 | F42: 107.8 | G42: 1.9 | H42: 109.1 | I42: 2.3 | J42: 110.1 | K42: 1.5 | L42: 109.6 | M42: 1.9
A43: 1985 | B43: 104.7 | C43: 1.9 | D43: 106.9 | E43: 2.9 | F43: 105.8 | G43: 2.4 | H43: 106.6 | I43: 3.6 | J43: 108.5 | K43: 3.4 | L43: 107.6 | M43: 3.6
A44: 1984 | B44: 102.7 | D44: 103.9 | F44: 103.3 | G44: 4.1 | H44: 102.9 | J44: 104.9 | L44: 103.9 | M44: 4.3
A45: 1983 | F45: 99.2 | G45: 1.8 | L45: 99.6 | M45: 3.2
A46: 1982 | F46: 97.4 | G46: 5.4 | L46: 96.5 | M46: 6.2
A47: 1981 | F47: 92.4 | G47: 8.1 | L47: 90.9 | M47: 10.3
A48: 1980 | F48: 85.5 | G48: 10.2 | L48: 82.4 | M48: 13.5
A49: 1979 | F49: 77.6 | G49: 10.5 | L49: 72.6 | M49: 11.3
A50: 1978 | F50: 70.2 | G50: 7 | L50: 65.2 | M50: 7.6
A51: 1977 | F51: 65.6 | G51: 6.7 | L51: 60.6 | M51: 6.5
A52: 1976 | F52: 61.5 | G52: 7.7 | L52: 56.9 | M52: 5.8
A53: 1975 | F53: 57.1 | G53: 13.7 | L53: 53.8 | M53: 9.1
A54: 1974 | F54: 50.2 | G54: 10.8 | L54: 49.3 | M54: 11
A55: 1973 | F55: 45.3 | G55: 4.4 | L55: 44.4 | M55: 6.2
A56: 1972 | F56: 43.4 | G56: 2.6 | L56: 41.8 | M56: 3.2
A57: 1971 | F57: 42.3 | G57: 2.9 | L57: 40.5 | M57: 4.4
A58: 1970 | F58: 41.1 | G58: 3.8 | L58: 38.8 | M58: 5.7
A59: 1969 | F59: 39.6 | G59: 3.9 | L59: 36.7 | M59: 5.5
A60: 1968 | F60: 38.1 | G60: 2.4 | L60: 34.8 | M60: 4.2
A61: 1967 | F61: 37.2 | G61: 2.5 | L61: 33.4 | M61: 3.1
A62: 1966 | F62: 36.3 | G62: 2.8 | L62: 32.4 | M62: 2.9
A63: 1965 | F63: 35.3 | G63: 0.9 | L63: 31.5 | M63: 1.6
A64: 1964 | F64: 35 | G64: 0.6 | L64: 31 | M64: 1.3
A65: 1963 | F65: 34.8 | G65: 0.3 | L65: 30.6 | M65: 1.3
A66: 1962 | F66: 34.7 | G66: 0.6 | L66: 30.2 | M66: 1
A67: 1961 | F67: 34.5 | G67: 1.5 | L67: 29.9 | M67: 1
A68: 1960 | F68: 34 | L68: 29.6
A70: Source: | B70: http://live.laborstats.alaska.gov/cpi/index.cfm
B71: Accessed on October 16, 2018

Sheet Hist Maintenance
A1: DWR_DATE | B1: ACTY_ID | C1: ACTY_DESCR | D1: ASSET_ID | E1: ASSET_DESCR | F1: LABOR_COST | G1: EQUIPMENT_COST | H1: MATERIAL_COST | J1: Total | L1: Annual | M1: 2018 $ | N1: Alaska Deflator to 2018$ | Q1: Snow River W (603) | U1: Alaska Deflator
A2: 2005-10-13 | B2: 57457 | C2: FED BRIDGE REPAIRS | D2: 0603 | E2: SNOW RIVER W CHANNEL BR0603 | F2: 1732 | G2: 539 | H2: 0 | J2: =SUM(F2:H2) -> 2271 | L2: =J2 -> 2271 | M2: =L2*O2 -> 2949.114255 | N2: =U15 -> 129.8597206 | O2: =N2/100 -> 1.298597206 | T2: 2018 | U2: =V2*100 -> 100 | V2: ='Alaska CPI'!P10 -> 1 | W2: 2018
A3: 2007-09-19 | B3: 57457 | C3: FED BRIDGE REPAIRS | D3: 0603 | E3: SNOW RIVER W CHANNEL BR0603 | F3: 3260 | G3: 791 | H3: 1172 | J3: =SUM(F3:H3) -> 5223 | M3: =L3*O3 -> 0 | N3: =U13 -> 123.0979325 | O3: =N3/100 -> 1.230979325 | Q3: Year | R3: 2018$ | T3: 2017 | U3: =V3*100 -> 101.9308001 | V3: ='Alaska CPI'!P11 -> 1.019308001 | W3: =W2-1 -> 2017
A4: 2007-10-04 | B4: 57457 | C4: FED BRIDGE REPAIRS | D4: 0603 | E4: SNOW RIVER W CHANNEL BR0603 | F4: 1281 | G4: 57 | H4: 0 | J4: 1338 | M4: 0 | N4: =N3 -> 123.0979325 | O4: 1.230979325 | Q4: 2005 | R4: =M2 -> 2949.114255 | T4: 2016 | U4: 102.4188587 | V4: ='Alaska CPI'!P12 -> 1.024188587 | W4: =W3-1 -> 2016
A5: 2007-10-12 | B5: 57457 | C5: FED BRIDGE REPAIRS | D5: 0603 | E5: SNOW RIVER W CHANNEL BR0603 | F5: 412 | G5: 54 | H5: 0 | J5: 466 | M5: 0 | N5: =N4 -> 123.0979325 | O5: 1.230979325 | Q5: =Q4+1 -> 2006 | R5: 0 | T5: 2015 | U5: 102.8537313 | V5: ='Alaska CPI'!P13 -> 1.028537313 | W5: 2015
A6: 2007-10-08 | B6: 57457 | C6: FED BRIDGE REPAIRS | D6: 0603 | E6: SNOW RIVER W CHANNEL BR0603 | F6: 3068 | G6: 616 | H6: 588 | J6: 4272 | M6: 0 | N6: 123.0979325 | O6: 1.230979325 | Q6: 2007 | R6: =M17 -> 26502.98488 | T6: 2014 | U6: 103.3799032 | V6: ='Alaska CPI'!P14 -> 1.033799032 | W6: 2014
A7: 2007-10-10 | B7: 57457 | C7: FED BRIDGE REPAIRS | D7: 0603 | E7: SNOW RIVER W CHANNEL BR0603 | F7: 1183 | G7: 213 | H7: 0 | J7: 1396 | M7: 0 | N7: 123.0979325 | O7: 1.230979325 | Q7: 2008 | R7: =M22 -> 29284.70913 | T7: 2013 | U7: 105.0465908 | V7: ='Alaska CPI'!P15 -> 1.050465908 | W7: 2013
A8: 2007-10-11 | B8: 57457 | C8: FED BRIDGE REPAIRS | D8: 0603 | E8: SNOW RIVER W CHANNEL BR0603 | F8: 2403 | G8: 663 | H8: 392 | J8: 3458 | M8: 0 | N8: 123.0979325 | O8: 1.230979325 | Q8: 2009 | R8: 0 | T8: 2012 | U8: 108.3446648 | V8: ='Alaska CPI'!P16 -> 1.083446648 | W8: 2012
A9: 2007-10-29 | B9: 57457 | C9: FED BRIDGE REPAIRS | D9: 0603 | E9: SNOW RIVER W CHANNEL BR0603 | F9: 559 | G9: 54 | H9: 0 | J9: 613 | M9: 0 | N9: 123.0979325 | O9: 1.230979325 | Q9: 2010 | R9: 0 | T9: 2011 | U9: 110.7592329 | V9: ='Alaska CPI'!P17 -> 1.107592329 | W9: 2011
A10: 2007-10-30 | B10: 57457 | C10: FED BRIDGE REPAIRS | D10: 0603 | E10: SNOW RIVER W CHANNEL BR0603 | F10: 559 | G10: 54 | H10: 0 | J10: 613 | M10: 0 | N10: 123.0979325 | O10: 1.230979325 | Q10: 2011 | R10: 0 | T10: 2010 | U10: 114.3253187 | V10: ='Alaska CPI'!P18 -> 1.143253187 | W10: 2010
A11: 2007-11-05 | B11: 57457 | C11: FED BRIDGE REPAIRS | D11: 0603 | E11: SNOW RIVER W CHANNEL BR0603 | F11: 559 | G11: 54 | H11: 0 | J11: 613 | M11: 0 | N11: 123.0979325 | O11: 1.230979325 | Q11: 2012 | R11: 0 | T11: 2009 | U11: 116.3525325 | V11: ='Alaska CPI'!P19 -> 1.163525325 | W11: 2009
A12: 2007-11-06 | B12: 57457 | C12: FED BRIDGE REPAIRS | D12: 0603 | E12: SNOW RIVER W CHANNEL BR0603 | F12: 559 | G12: 54 | H12: 0 | J12: 613 | M12: 0 | N12: 123.0979325 | O12: 1.230979325 | Q12: 2013 | R12: 0 | T12: 2008 | U12: 117.7322068 | V12: ='Alaska CPI'!P20 -> 1.177322068 | W12: 2008
A13: 2007-11-07 | B13: 57457 | C13: FED BRIDGE REPAIRS | D13: 0603 | E13: SNOW RIVER W CHANNEL BR0603 | F13: 559 | G13: 54 | H13: 0 | J13: 613 | M13: 0 | N13: 123.0979325 | O13: 1.230979325 | Q13: 2014 | R13: 0 | T13: 2007 | U13: 123.0979325 | V13: ='Alaska CPI'!P21 -> 1.230979325 | W13: 2007
A14: 2007-11-08 | B14: 57457 | C14: FED BRIDGE REPAIRS | D14: 0603 | E14: SNOW RIVER W CHANNEL BR0603 | F14: 419 | G14: 54 | H14: 0 | J14: 473 | M14: 0 | N14: 123.0979325 | O14: 1.230979325 | Q14: 2015 | R14: =M23 -> 1054.250746 | T14: 2006 | U14: 125.8313593 | V14: ='Alaska CPI'!P22 -> 1.258313593 | W14: 2006
A15: 2007-11-13 | B15: 57457 | C15: FED BRIDGE REPAIRS | D15: 0603 | E15: SNOW RIVER W CHANNEL BR0603 | F15: 559 | G15: 54 | H15: 0 | J15: 613 | M15: 0 | N15: 123.0979325 | O15: 1.230979325 | Q15: 2016 | R15: =M24 -> 148.5073452 | T15: 2005 | U15: 129.8597206 | V15: ='Alaska CPI'!P23 -> 1.298597206 | W15: 2005
A16: 2007-11-14 | B16: 57457 | C16: FED BRIDGE REPAIRS | D16: 0603 | E16: SNOW RIVER W CHANNEL BR0603 | F16: 559 | G16: 54 | H16: 0 | J16: 613 | M16: 0 | N16: 123.0979325 | O16: 1.230979325 | Q16: 2017 | R16: 0
A17: 2007-11-15 | B17: 57457 | C17: FED BRIDGE REPAIRS | D17: 0603 | E17: SNOW RIVER W CHANNEL BR0603 | F17: 559 | G17: 54 | H17: 0 | J17: 613 | L17: =SUM(J3:J17) -> 21530 | M17: 26502.98488 | N17: 123.0979325 | O17: 1.230979325 | Q17: 2018 | R17: =J25 -> 7453
A18: 2008-04-14 | B18: 57457 | C18: FED BRIDGE REPAIRS | D18: 0603 | E18: SNOW RIVER W CHANNEL BR0603 | F18: 2496 | G18: 1012 | H18: 439 | J18: 3947 | M18: 0 | N18: =U12 -> 117.7322068 | O18: 1.177322068
A19: 2008-04-15 | B19: 57457 | C19: FED BRIDGE REPAIRS | D19: 0603 | E19: SNOW RIVER W CHANNEL BR0603 | F19: 2638 | G19: 363 | H19: 2348 | J19: 5349 | M19: 0 | N19: =N18 -> 117.7322068 | O19: 1.177322068 | Q19: Average | R19: =AVERAGE(R4:R17) -> 4813.754739
A20: 2008-04-16 | B20: 57457 | C20: FED BRIDGE REPAIRS | D20: 0603 | E20: SNOW RIVER W CHANNEL BR0603 | F20: 3512 | G20: 333 | H20: 3056 | J20: 6901 | M20: 0 | N20: =N19 -> 117.7322068 | O20: 1.177322068 | Q20: Per sq. ft. | R20: =R19/5658.8 -> 0.8506670565
A21: 2008-04-18 | B21: 57457 | C21: FED BRIDGE REPAIRS | D21: 0603 | E21: SNOW RIVER W CHANNEL BR0603 | F21: 1329 | G21: 848 | H21: 456 | J21: 2633 | M21: 0 | N21: =N20 -> 117.7322068 | O21: 1.177322068
A22: 2008-04-17 | B22: 57457 | C22: FED BRIDGE REPAIRS | D22: 0603 | E22: SNOW RIVER W CHANNEL BR0603 | F22: 2638 | G22: 355 | H22: 3051 | J22: 6044 | L22: =SUM(J18:J22) -> 24874 | M22: 29284.70913 | N22: =N21 -> 117.7322068 | O22: 1.177322068
A23: 2015-06-02 | B23: 58624 | C23: SWEEPING | D23: 0603 | E23: SNOW RIVER W CHANNEL BR0603 | F23: 322 | G23: 703 | H23: 0 | J23: 1025 | L23: =J23 -> 1025 | M23: 1054.250746 | N23: =U5 -> 102.8537313 | O23: 1.028537313
A24: 2016-01-28 | B24: 57240 | C24: FED BRIDGE INSPECTION | D24: 0603 | E24: SNOW RIVER W CHANNEL BR0603 | F24: 100 | G24: 45 | H24: 0 | J24: 145 | L24: =J24 -> 145 | M24: 148.5073452 | N24: =U4 -> 102.4188587 | O24: 1.024188587 | Q24: Snow River C (605)
A25: 2018-07-01 | B25: 57457 | C25: FED BRIDGE REPAIRS | D25: 0603 | E25: SNOW RIVER W CHANNEL BR0603 | F25: 5359 | G25: 2094 | H25: 0 | J25: 7453 | L25: =J25 -> 7453 | M25: 7453 | N25: 100 | O25: 1 | Q25: Year | R25: 2018$
A26: 2005-10-10 | B26: 57457 | C26: FED BRIDGE REPAIRS | D26: 0605 | E26: SNOW RIVER CNTR CHANNEL BR0605 | F26: 2321 | G26: 129 | H26: 0 | J26: 2450 | M26: 0 | N26: =N2 -> 129.8597206 | O26: 1.298597206 | Q26: 2005 | R26: =M28 -> 11348.44098
A27: 2005-10-11 | B27: 57457 | C27: FED BRIDGE REPAIRS | D27: 0605 | E27: SNOW RIVER CNTR CHANNEL BR0605 | F27: 2212 | G27: 30 | H27: 0 | J27: 2242 | M27: 0 | N27: =N26 -> 129.8597206 | O27: 1.298597206 | Q27: =Q26+1 -> 2006 | R27: =M39 -> 7218.87
A28: 2005-10-12 | B28: 57457 | C28: FED BRIDGE REPAIRS | D28: 0605 | E28: SNOW RIVER CNTR CHANNEL BR0605 | F28: 3617 | G28: 430 | H28: 0 | J28: 4047 | L28: =SUM(J26:J28) -> 8739 | M28: 11348.44098 | N28: =N27 -> 129.8597206 | O28: 1.298597206 | Q28: =Q27+1 -> 2007 | R28: =M79 -> 117178.153
A29: 2006-02-08 | B29: 58622 | C29: BRIDGE MAINTENANCE | D29: 0605 | E29: SNOW RIVER CNTR CHANNEL BR0605 | F29: 308 | G29: 1 | H29: 0 | J29: 309 | M29: 0 | N29: =123 -> 123 | O29: 1.23 | Q29: 2008 | R29: =M90 -> 7609.032528
A30: 2006-10-19 | B30: 57457 | C30: FED BRIDGE REPAIRS | D30: 0605 | E30: SNOW RIVER CNTR CHANNEL BR0605 | F30: 541 | G30: 42 | H30: 0 | J30: 583 | M30: 0 | N30: =N29 -> 123 | O30: 1.23 | Q30: 2009 | R30: 0
A31: 2006-10-26 | B31: 57457 | C31: FED BRIDGE REPAIRS | D31: 0605 | E31: SNOW RIVER CNTR CHANNEL BR0605 | F31: 406 | G31: 42 | H31: 0 | J31: 448 | M31: 0 | N31: =N30 -> 123 | O31: 1.23 | Q31: 2010 | R31: 0
A32: 2006-10-23 | B32: 57457 | C32: FED BRIDGE REPAIRS | D32: 0605 | E32: SNOW RIVER CNTR CHANNEL BR0605 | F32: 541 | G32: 42 | H32: 0 | J32: 583 | M32: 0 | N32: 123 | O32: 1.23 | Q32: 2011 | R32: =M91 -> 1066.02
A33: 2006-10-24 | B33: 57457 | C33: FED BRIDGE REPAIRS | D33: 0605 | E33: SNOW RIVER CNTR CHANNEL BR0605 | F33: 541 | G33: 42 | H33: 0 | J33: 583 | M33: 0 | N33: 123 | O33: 1.23 | Q33: 2012 | R33: 0
A34: 2006-10-25 | B34: 57457 | C34: FED BRIDGE REPAIRS | D34: 0605 | E34: SNOW RIVER CNTR CHANNEL BR0605 | F34: 541 | G34: 42 | H34: 0 | J34: 583 | M34: 0 | N34: 123 | O34: 1.23 | Q34: 2013 | R34: 0
A35: 2006-11-01 | B35: 57457 | C35: FED BRIDGE REPAIRS | D35: 0605 | E35: SNOW RIVER CNTR CHANNEL BR0605 | F35: 541 | G35: 42 | H35: 0 | J35: 583 | M35: 0 | N35: 123 | O35: 1.23 | Q35: 2014 | R35: 0
A36: 2006-11-06 | B36: 57457 | C36: FED BRIDGE REPAIRS | D36: 0605 | E36: SNOW RIVER CNTR CHANNEL BR0605 | F36: 541 | G36: 42 | H36: 0 | J36: 583 | M36: 0 | N36: 123 | O36: 1.23 | Q36: 2015 | R36: =M94 -> 2327.579939
A37: 2006-11-07 | B37: 57457 | C37: FED BRIDGE REPAIRS | D37: 0605 | E37: SNOW RIVER CNTR CHANNEL BR0605 | F37: 541 | G37: 42 | H37: 0 | J37: 583 | M37: 0 | N37: 123 | O37: 1.23 | Q37: 2016 | R37: 0
A38: 2006-11-08 | B38: 57457 | C38: FED BRIDGE REPAIRS | D38: 0605 | E38: SNOW RIVER CNTR CHANNEL BR0605 | F38: 541 | G38: 42 | H38: 0 | J38: 583 | M38: 0 | N38: 123 | O38: 1.23 | Q38: 2017 | R38: 0
A39: 2006-11-02 | B39: 57457 | C39: FED BRIDGE REPAIRS | D39: 0605 | E39: SNOW RIVER CNTR CHANNEL BR0605 | F39: 406 | G39: 42 | H39: 0 | J39: 448 | L39: =SUM(J29:J39) -> 5869 | M39: 7218.87 | N39: 123 | O39: 1.23 | Q39: 2018 | R39: =M100 -> 28274
A40: 2007-03-28 | B40: 57457 | C40: FED BRIDGE REPAIRS | D40: 0605 | E40: SNOW RIVER CNTR CHANNEL BR0605 | F40: 1148 | G40: 82 | H40: 0 | J40: 1230 | M40: 0 | N40: =N17 -> 123.0979325 | O40: 1.230979325
A41: 2007-03-29 | B41: 57457 | C41: FED BRIDGE REPAIRS | D41: 0605 | E41: SNOW RIVER CNTR CHANNEL BR0605 | F41: 1078 | G41: 69 | H41: 0 | J41: 1147 | M41: 0 | N41: =N40 -> 123.0979325 | O41: 1.230979325 | Q41: Average | R41: =AVERAGE(R26:R39) -> 12501.57832
A42: 2007-03-30 | B42: 57457 | C42: FED BRIDGE REPAIRS | D42: 0605 | E42: SNOW RIVER CNTR CHANNEL BR0605 | F42: 1128 | G42: 76 | H42: 0 | J42: 1204 | M42: 0 | N42: =N41 -> 123.0979325 | O42: 1.230979325 | Q42: Per sq. ft. | R42: =R41/19534.9 -> 0.6399612138
A43: 2007-04-04 | B43: 57457 | C43: FED BRIDGE REPAIRS | D43: 0605 | E43: SNOW RIVER CNTR CHANNEL BR0605 | F43: 1807 | G43: 83 | H43: 0 | J43: 1890 | M43: 0 | N43: 123.0979325 | O43: 1.230979325
A44: 2007-04-02 | B44: 57457 | C44: FED BRIDGE REPAIRS | D44: 0605 | E44: SNOW RIVER CNTR CHANNEL BR0605 | F44: 2425 | G44: 1724 | H44: 0 | J44: 4149 | M44: 0 | N44: 123.0979325 | O44: 1.230979325
A45: 2007-04-03 | B45: 57457 | C45: FED BRIDGE REPAIRS | D45: 0605 | E45: SNOW RIVER CNTR CHANNEL BR0605 | F45: 1807 | G45: 1724 | H45: 0 | J45: 3531 | M45: 0 | N45: 123.0979325 | O45: 1.230979325
A46: 2007-08-27 | B46: 57457 | C46: FED BRIDGE REPAIRS | D46: 0605 | E46: SNOW RIVER CNTR CHANNEL BR0605 | F46: 3506 | G46: 666 | H46: 1515 | J46: 5687 | M46: 0 | N46: 123.0979325 | O46: 1.230979325
A47: 2007-09-04 | B47: 57457 | C47: FED BRIDGE REPAIRS | D47: 0605 | E47: SNOW RIVER CNTR CHANNEL BR0605 | F47: 3856 | G47: 682 | H47: 2061 | J47: 6599 | M47: 0 | N47: 123.0979325 | O47: 1.230979325
A48: 2007-09-05 | B48: 57457 | C48: FED BRIDGE REPAIRS | D48: 0605 | E48: SNOW RIVER CNTR CHANNEL BR0605 | F48: 3025 | G48: 238 | H48: 2785 | J48: 6048 | M48: 0 | N48: 123.0979325 | O48: 1.230979325
A49: 2007-09-06 | B49: 57457 | C49: FED BRIDGE REPAIRS | D49: 0605 | E49: SNOW RIVER CNTR CHANNEL BR0605 | F49: 2598 | G49: 540 | H49: 3678 | J49: 6816 | M49: 0 | N49: 123.0979325 | O49: 1.230979325
A50: 2007-08-28 | B50: 57457 | C50: FED BRIDGE REPAIRS | D50: 0605 | E50: SNOW RIVER CNTR CHANNEL BR0605 | F50: 3320 | G50: 261 | H50: 2763 | J50: 6344 | M50: 0 | N50: 123.0979325 | O50: 1.230979325
A51: 2007-08-29 | B51: 57457 | C51: FED BRIDGE REPAIRS | D51: 0605 | E51: SNOW RIVER CNTR CHANNEL BR0605 | F51: 3753 | G51: 261 | H51: 2518 | J51: 6532 | M51: 0 | N51: 123.0979325 | O51: 1.230979325
A52: 2007-08-30 | B52: 57457 | C52: FED BRIDGE REPAIRS | D52: 0605 | E52: SNOW RIVER CNTR CHANNEL BR0605 | F52: 1941 | G52: 317 | H52: 0 | J52: 2258 | M52: 0 | N52: 123.0979325 | O52: 1.230979325
A53: 2007-09-13 | B53: 57457 | C53: FED BRIDGE REPAIRS | D53: 0605 | E53: SNOW RIVER CNTR CHANNEL BR0605 | F53: 2575 | G53: 486 | H53: 1801 | J53: 4862 | M53: 0 | N53: 123.0979325 | O53: 1.230979325
A54: 2007-09-10 | B54: 57457 | C54: FED BRIDGE REPAIRS | D54: 0605 | E54: SNOW RIVER CNTR CHANNEL BR0605 | F54: 3020 | G54: 556 | H54: 611 | J54: 4187 | M54: 0 | N54: 123.0979325 | O54: 1.230979325
A55: 2007-09-11 | B55: 57457 | C55: FED BRIDGE REPAIRS | D55: 0605 | E55: SNOW RIVER CNTR CHANNEL BR0605 | F55: 2466 | G55: 301 | H55: 1319 | J55: 4086 | M55: 0 | N55: 123.0979325 | O55: 1.230979325
A56: 2007-09-12 | B56: 57457 | C56: FED BRIDGE REPAIRS | D56: 0605 | E56: SNOW RIVER CNTR CHANNEL BR0605 | F56: 3025 | G56: 332 | H56: 2028 | J56: 5385 | M56: 0 | N56: 123.0979325 | O56: 1.230979325
A57: 2007-09-14 | B57: 57457 | C57: FED BRIDGE REPAIRS | D57: 0605 | E57: SNOW RIVER CNTR CHANNEL BR0605 | F57: 317 | G57: 54 | H57: 0 | J57: 371 | M57: 0 | N57: 123.0979325 | O57: 1.230979325
A58: 2007-09-17 | B58: 57457 | C58: FED BRIDGE REPAIRS | D58: 0605 | E58: SNOW RIVER CNTR CHANNEL BR0605 | F58: 3097 | G58: 509 | H58: 1797 | J58: 5403 | M58: 0 | N58: 123.0979325 | O58: 1.230979325
A59: 2007-09-18 | B59: 57457 | C59: FED BRIDGE REPAIRS | D59: 0605 | E59: SNOW RIVER CNTR CHANNEL BR0605 | F59: 3524 | G59: 364 | H59: 1930 | J59: 5818 | M59: 0 | N59: 123.0979325 | O59: 1.230979325
A60: 2007-11-20 | B60: 57457 | C60: FED BRIDGE REPAIRS | D60: 0605 | E60: SNOW RIVER CNTR CHANNEL BR0605 | F60: 559 | G60: 54 | H60: 0 | J60: 613 | M60: 0 | N60: 123.0979325 | O60: 1.230979325
A61: 2007-11-21 | B61: 57457 | C61: FED BRIDGE REPAIRS | D61: 0605 | E61: SNOW RIVER CNTR CHANNEL BR0605 | F61: 559 | G61: 54 | H61: 0 | J61: 613 | M61: 0 | N61: 123.0979325 | O61: 1.230979325
A62: 2007-11-19 | B62: 57457 | C62: FED BRIDGE REPAIRS | D62: 0605 | E62: SNOW RIVER CNTR CHANNEL BR0605 | F62: 559 | G62: 54 | H62: 0 | J62: 613 | M62: 0 | N62: 123.0979325 | O62: 1.230979325
A63: 2007-11-27 | B63: 57457 | C63: FED BRIDGE REPAIRS | D63: 0605 | E63: SNOW RIVER CNTR CHANNEL BR0605 | F63: 559 | G63: 54 | H63: 0 | J63: 613 | M63: 0 | N63: 123.0979325 | O63: 1.230979325
A64: 2007-11-28 | B64: 57457 | C64: FED BRIDGE REPAIRS | D64: 0605 | E64: SNOW RIVER CNTR CHANNEL BR0605 | F64: 559 | G64: 54 | H64: 0 | J64: 613 | M64: 0 | N64: 123.0979325 | O64: 1.230979325
A65: 2007-11-26 | B65: 57457 | C65: FED BRIDGE REPAIRS | D65: 0605 | E65: SNOW RIVER CNTR CHANNEL BR0605 | F65: 559 | G65: 54 | H65: 0 | J65: 613 | M65: 0 | N65: 123.0979325 | O65: 1.230979325
A66: 2007-12-03 | B66: 57457 | C66: FED BRIDGE REPAIRS | D66: 0605 | E66: SNOW RIVER CNTR CHANNEL BR0605 | F66: 559 | G66: 54 | H66: 0 | J66: 613 | M66: 0 | N66: 123.0979325 | O66: 1.230979325
A67: 2007-11-29 | B67: 57457 | C67: FED BRIDGE REPAIRS | D67: 0605 | E67: SNOW RIVER CNTR CHANNEL BR0605 | F67: 419 | G67: 54 | H67: 0 | J67: =SUM(F67:H67) -> 473 | M67: =L67*O67 -> 0 | N67: 123.0979325 | O67: =N67/100 -> 1.230979325
A68: 2007-12-04 | B68: 57457 | C68: FED BRIDGE REPAIRS | D68: 0605 | E68: SNOW RIVER CNTR CHANNEL BR0605 | F68: 559 | G68: 54 | H68: 0 | J68: 613 | M68: 0 | N68: 123.0979325 | O68: 1.230979325
A69: 2007-12-05 | B69: 57457 | C69: FED BRIDGE REPAIRS | D69: 0605 | E69: SNOW RIVER CNTR CHANNEL BR0605 | F69: 559 | G69: 54 | H69: 0 | J69: 613 | M69: 0 | N69: 123.0979325 | O69: 1.230979325
A70: 2007-12-06 | B70: 57457 | C70: FED BRIDGE REPAIRS | D70: 0605 | E70: SNOW RIVER CNTR CHANNEL BR0605 | F70: 419 | G70: 54 | H70: 0 | J70: 473 | M70: 0 | N70: 123.0979325 | O70: 1.230979325
A71: 2007-12-10 | B71: 57457 | C71: FED BRIDGE REPAIRS | D71: 0605 | E71: SNOW RIVER CNTR CHANNEL BR0605 | F71: 503 | G71: 54 | H71: 0 | J71: 557 | M71: 0 | N71: 123.0979325 | O71: 1.230979325
A72: 2007-12-11 | B72: 57457 | C72: FED BRIDGE REPAIRS | D72: 0605 | E72: SNOW RIVER CNTR CHANNEL BR0605 | F72: 559 | G72: 54 | H72: 0 | J72: 613 | M72: 0 | N72: 123.0979325 | O72: 1.230979325
A73: 2007-12-12 | B73: 57457 | C73: FED BRIDGE REPAIRS | D73: 0605 | E73: SNOW RIVER CNTR CHANNEL BR0605 | F73: 559 | G73: 54 | H73: 0 | J73: 613 | M73: 0 | N73: 123.0979325 | O73: 1.230979325
A74: 2007-12-13 | B74: 57457 | C74: FED BRIDGE REPAIRS | D74: 0605 | E74: SNOW RIVER CNTR CHANNEL BR0605 | F74: 419 | G74: 54 | H74: 0 | J74: 473 | M74: 0 | N74: 123.0979325 | O74: 1.230979325
A75: 2007-12-19 | B75: 57457 | C75: FED BRIDGE REPAIRS | D75: 0605 | E75: SNOW RIVER CNTR CHANNEL BR0605 | F75: 559 | G75: 54 | H75: 0 | J75: 613 | M75: 0 | N75: 123.0979325 | O75: 1.230979325
A76: 2007-12-18 | B76: 57457 | C76: FED BRIDGE REPAIRS | D76: 0605 | E76: SNOW RIVER CNTR CHANNEL BR0605 | F76: 559 | G76: 54 | H76: 0 | J76: 613 | M76: 0 | N76: 123.0979325 | O76: 1.230979325
A77: 2007-12-17 | B77: 57457 | C77: FED BRIDGE REPAIRS | D77: 0605 | E77: SNOW RIVER CNTR CHANNEL BR0605 | F77: 559 | G77: 54 | H77: 0 | J77: 613 | M77: 0 | N77: 123.0979325 | O77: 1.230979325
A78: 2007-12-31 | B78: 57457 | C78: FED BRIDGE REPAIRS | D78: 0605 | E78: SNOW RIVER CNTR CHANNEL BR0605 | F78: 559 | G78: 54 | H78: 0 | J78: 613 | M78: 0 | N78: 123.0979325 | O78: 1.230979325
A79: 2007-12-20 | B79: 57457 | C79: FED BRIDGE REPAIRS | D79: 0605 | E79: SNOW RIVER CNTR CHANNEL BR0605 | F79: 419 | G79: 54 | H79: 0 | J79: 473 | L79: =SUM(J40:J79) -> 95191 | M79: 117178.153 | N79: 123.0979325 | O79: 1.230979325
A80: 2008-01-07 | B80: 57457 | C80: FED BRIDGE REPAIRS | D80: 0605 | E80: SNOW RIVER CNTR CHANNEL BR0605 | F80: 559 | G80: 54 | H80: 0 | J80: 613 | M80: 0 | N80: =N18 -> 117.7322068 | O80: 1.177322068
A81: 2008-01-08 | B81: 57457 | C81: FED BRIDGE REPAIRS | D81: 0605 | E81: SNOW RIVER CNTR CHANNEL BR0605 | F81: 559 | G81: 54 | H81: 0 | J81: 613 | M81: 0 | N81: =N80 -> 117.7322068 | O81: 1.177322068
A82: 2008-01-09 | B82: 57457 | C82: FED BRIDGE REPAIRS | D82: 0605 | E82: SNOW RIVER CNTR CHANNEL BR0605 | F82: 559 | G82: 54 | H82: 0 | J82: 613 | M82: 0 | N82: =N81 -> 117.7322068 | O82: 1.177322068
A83: 2008-01-10 | B83: 57457 | C83: FED BRIDGE REPAIRS | D83: 0605 | E83: SNOW RIVER CNTR CHANNEL BR0605 | F83: 419 | G83: 54 | H83: 0 | J83: 473 | M83: 0 | N83: 117.7322068 | O83: 1.177322068
A84: 2008-01-14 | B84: 57457 | C84: FED BRIDGE REPAIRS | D84: 0605 | E84: SNOW RIVER CNTR CHANNEL BR0605 | F84: 559 | G84: 54 | H84: 0 | J84: 613 | M84: 0 | N84: 117.7322068 | O84: 1.177322068
A85: 2008-01-15 | B85: 57457 | C85: FED BRIDGE REPAIRS | D85: 0605 | E85: SNOW RIVER CNTR CHANNEL BR0605 | F85: 559 | G85: 54 | H85: 0 | J85: 613 | M85: 0 | N85: 117.7322068 | O85: 1.177322068
A86: 2008-01-16 | B86: 57457 | C86: FED BRIDGE REPAIRS | D86: 0605 | E86: SNOW RIVER CNTR CHANNEL BR0605 | F86: 559 | G86: 54 | H86: 0 | J86: 613 | M86: 0 | N86: 117.7322068 | O86: 1.177322068
A87: 2008-01-17 | B87: 57457 | C87: FED BRIDGE REPAIRS | D87: 0605 | E87: SNOW RIVER CNTR CHANNEL BR0605 | F87: 419 | G87: 54 | H87: 0 | J87: 473 | M87: 0 | N87: 117.7322068 | O87: 1.177322068
A88: 2008-01-22 | B88: 57457 | C88: FED BRIDGE REPAIRS | D88: 0605 | E88: SNOW RIVER CNTR CHANNEL BR0605 | F88: 559 | G88: 54 | H88: 0 | J88: 613 | M88: 0 | N88: 117.7322068 | O88: 1.177322068
A89: 2008-01-23 | B89: 57457 | C89: FED BRIDGE REPAIRS | D89: 0605 | E89: SNOW RIVER CNTR CHANNEL BR0605 | F89: 559 | G89: 54 | H89: 0 | J89: 613 | M89: 0 | N89: 117.7322068 | O89: 1.177322068
A90: 2008-01-24 | B90: 57457 | C90: FED BRIDGE REPAIRS | D90: 0605 | E90: SNOW RIVER CNTR CHANNEL BR0605 | F90: 559 | G90: 54 | H90: 0 | J90: 613 | L90: =SUM(J80:J90) -> 6463 | M90: 7609.032528 | N90: 117.7322068 | O90: 1.177322068
A91: 2011-09-06 | B91: 58622 | C91: BRIDGE MAINTENANCE | D91: 0605 | E91: SNOW RIVER CNTR CHANNEL BR0605 | F91: 792 | G91: 186 | H91: 0 | J91: 978 | L91: =J91 -> 978 | M91: 1066.02 | N91: 109 | O91: 1.09
A92: 2015-05-15 | B92: 58622 | C92: BRIDGE MAINTENANCE | D92: 0605 | E92: SNOW RIVER CNTR CHANNEL BR0605 | F92: 0 | G92: 0 | H92: 0 | J92: 0 | M92: 0 | N92: =N23 -> 102.8537313 | O92: 1.028537313
A93: 2015-05-01 | B93: 58622 | C93: BRIDGE MAINTENANCE | D93: 0605 | E93: SNOW RIVER CNTR CHANNEL BR0605 | F93: 1433 | G93: 24 | H93: 0 | J93: 1457 | M93: 0 | N93: =N92 -> 102.8537313 | O93: 1.028537313
A94: 2015-05-02 | B94: 58622 | C94: BRIDGE MAINTENANCE | D94: 0605 | E94: SNOW RIVER CNTR CHANNEL BR0605 | F94: 782 | G94: 24 | H94: 0 | J94: 806 | L94: =SUM(J92:J94) -> 2263 | M94: 2327.579939 | N94: =N93 -> 102.8537313 | O94: 1.028537313
A95: 2018-07-02 | B95: 57457 | C95: FED BRIDGE REPAIRS | D95: 0605 | E95: SNOW RIVER CNTR CHANNEL BR0605 | F95: 4385 | G95: 1645 | H95: 0 | J95: 6030 | M95: 0 | N95: 100 | O95: 1
A96: 2018-07-30 | B96: 57457 | C96: FED BRIDGE REPAIRS | D96: 0605 | E96: SNOW RIVER CNTR CHANNEL BR0605 | F96: 4946 | G96: 941 | H96: 0 | J96: 5887 | M96: 0 | N96: 100 | O96: 1
A97: 2018-07-31 | B97: 57457 | C97: FED BRIDGE REPAIRS | D97: 0605 | E97: SNOW RIVER CNTR CHANNEL BR0605 | F97: 4440 | G97: 1190 | H97: 0 | J97: 5630 | M97: 0 | N97: 100 | O97: 1
A98: 2018-08-01 | B98: 57457 | C98: FED BRIDGE REPAIRS | D98: 0605 | E98: SNOW RIVER CNTR CHANNEL BR0605 | F98: 4131 | G98: 953 | H98: 0 | J98: 5084 | M98: 0 | N98: 100 | O98: 1
A99: 2018-08-02 | B99: 57457 | C99: FED BRIDGE REPAIRS | D99: 0605 | E99: SNOW RIVER CNTR CHANNEL BR0605 | F99: 597 | G99: 346 | H99: 0 | J99: 943 | M99: 0 | N99: 100 | O99: 1 | Q99: Victor Creek
A100: 2018-08-09 | B100: 57457 | C100: FED BRIDGE REPAIRS | D100: 0605 | E100: SNOW RIVER CNTR CHANNEL BR0605 | F100: 4587 | G100: 113 | H100: 0 | J100: 4700 | L100: =SUM(J95:J100) -> 28274 | M100: 28274 | N100: 100 | O100: 1 | Q100: Year | R100: 2018$
A101: 2005-06-15 | B101: 58632 | C101: CHIP SEAL | D101: 0607 | E101: VICTOR CREEK BR0607 | F101: 463 | G101: 0 | H101: 0 | J101: 463 | L101: =J101 -> 463 | M101: =L101*O101 -> 601.2505064 | N101: =N2 -> 129.8597206 | O101: 1.298597206 | Q101: 2005 | R101: =M101 -> 601.2505064
A102: 2012-03-11 | B102: 58622 | C102: BRIDGE MAINTENANCE | D102: 0607 | E102: VICTOR CREEK BR0607 | F102: 615 | G102: 157 | H102: 0 | J102: 772 | L102: =J102 -> 772 | M102: =L102*O102 -> 818.32 | N102: 106 | O102: 1.06 | Q102: =Q101+1 -> 2006 | R102: 0
A103: 2018-10-10 | B103: 57457 | C103: FED BRIDGE REPAIRS | D103: 0607 | E103: VICTOR CREEK BR0607 | F103: 3538 | G103: 201 | H103: 0 | J103: 3739 | L103: =J103 -> 3739 | M103: =L103*O103 -> 3739 | N103: 100 | O103: 1 | Q103: =Q102+1 -> 2007 | R103: 0
A104: 2018-10-15 | B104: 58636 | C104: POTHOLE PATCHING | D104: 0607 | E104: VICTOR CREEK BR0607 | F104: 62 | G104: 9 | H104: 0 | J104: 71 | L104: =J104 -> 71 | M104: =L104*O104 -> 71 | N104: 100 | O104: 1 | Q104: 2008 | R104: 0
Q105: 2009 | R105: 0
Q106: 2010 | R106: 0
Q107: 2011 | R107: 0
Q108: 2012 | R108: =M102 -> 818.32
Q109: 2013 | R109: 0
Q110: 2014 | R110: 0
Q111: 2015 | R111: 0
Q112: 2016 | R112: 0
Q113: 2017 | R113: 0
Q114: 2018 | R114: =M103+M104 -> 3810
Q116: Average | R116: =AVERAGE(R101:R114) -> 373.5407505
Q117: Per sq. ft. | R117: =R116/4791.6 -> 0.07795741516

Sheet M&O
F1: Existing | G1: New/Rehab
A2: Number | B2: Name | C2: Length (ft) | D2: Lane miles | E2: Width | F2: Square Feet
A3: 603 | B3: Snow River West | C3: 188 | D3: =C5*2/5280 -> 0.075 | E3: 30.1 | F3: =E3*C3 -> 5658.8 | G3: ='List of Bridges'!N15 -> 5658.8
A4: 605 | B4: Snow River Center | C4: 649 | D4: =C4*2/5280 -> 0.2458333333 | E4: 30.1 | F4: =E4*C4 -> 19534.9 | G4: ='List of Bridges'!N16 -> 19534.9
A5: 607 | B5: Victor Creek | C5: 198 | D5: ='List of Bridges'!$I$17*2/5280 -> 0.08333333333 | E5: 24.2 | F5: 4791.6 | G5: ='List of Bridges'!N17 -> 8140
A7: Baseline M&O Costs
C8: Year | D8: 2018 NPV | E8: 2019 | F8: 2020 | G8: 2021 | H8: 2022 | I8: 2023 | J8: 2024 | K8: 2025 | L8: 2026 | M8: 2027 | N8: 2028 | O8: 2029 | P8: 2030 | Q8: 2031 | R8: 2032 | S8: 2033 | T8: 2034 | U8: 2035 | V8: 2036 | W8: 2037 | X8: 2038 | Y8: 2039 | Z8: 2040 | AA8: 2041 | AB8: 2042 | AC8: 2043 | AD8: 2044 | AE8: 2045 | AF8: 2046 | AG8: 2047 | AH8: 2048 | AI8: 2049
C9: Index Year | E9: =F9-1 -> 14 | F9: 15 | G9: 16 | H9: 17 | I9: 18 | J9: =K9-1 -> 19 | K9: 20 | L9: =1 -> 1 | M9: =L9+1 -> 2 | N9: 3 | O9: 4 | P9: 5 | Q9: 6 | R9: 7 | S9: 8 | T9: 9 | U9: 10 | V9: 11 | W9: 12 | X9: 13 | Y9: 14 | Z9: 15 | AA9: 16 | AB9: 17 | AC9: 18 | AD9: 19 | AE9: 20 | AF9: =1 -> 1 | AG9: 2 | AH9: 3 | AI9: 4
A10: 603 | B10: Snow River West | C10: Pavement | D10: =NPV('603 Snow River West'!$C$4,E10:H10) -> 68.12822081 | E10: 0 | F10: =1040*D3 -> 78 | G10: 0 | H10: 0
C11: Bridge | D11: =NPV('603 Snow River West'!$C$4,E11:H11) -> 11806.36803 | E11: 0 | F11: ='Hist Maintenance'!$R$19 -> 4813.754739 | G11: ='Hist Maintenance'!$R$19 -> 4813.754739 | H11: ='Hist Maintenance'!$R$19 -> 4813.754739
C12: Total | D12: =D11+D10 -> 11874.49625 | E12: 0 | F12: =F11+F10 -> 4891.754739 | G12: =G11+G10 -> 4813.754739 | H12: 4813.754739
A14: 605 | B14: Snow River Center | C14: Pavement | D14: =NPV('605 Snow River Center'!$C$4,E14:H14) -> 223.3091682 | E14: 0 | F14: =1040*D4 -> 255.6666667 | G14: 0 | H14: 0
C15: Bridge | D15: =NPV('605 Snow River Center'!$C$4,E15:H15) -> 30661.76874 | E15: 0 | F15: ='Hist Maintenance'!$R$41 -> 12501.57832 | G15: ='Hist Maintenance'!$R$41 -> 12501.57832 | H15: ='Hist Maintenance'!$R$41 -> 12501.57832
C16: Total | D16: =D15+D14 -> 30885.07791 | E16: 0 | F16: =F15+F14 -> 12757.24498 | G16: 12501.57832 | H16: 12501.57832
C18: Index Year | F18: =G18-1 -> 1 | G18: 2 | H18: 3 | I18: 4 | J18: 5 | K18: 6 | L18: 7 | M18: 8 | N18: 9 | O18: 10 | P18: 11 | Q18: 12 | R18: 13 | S18: 14 | T18: 15 | U18: 16 | V18: 17 | W18: 18 | X18: =Y18-1 -> 19 | Y18: 20 | Z18: =1 -> 1 | AA18: =Z18+1 -> 2 | AB18: =AA18+1 -> 3 | AC18: 4 | AD18: 5 | AE18: 6 | AF18: 7 | AG18: 8 | AH18: 9 | AI18: 10
A19: 607 | B19: Victor Creek | C19: Pavement | D19: =NPV('607 Victor Creek'!$C$4,E19:M19) -> 425.839815 | E19: 0 | F19: 0 | G19: 0 | H19: =3380*$D$5 -> 281.6666667 | I19: 0 | J19: =1040*$D$5 -> 86.66666667 | K19: 0 | L19: 0 | M19: =3380*$D$5 -> 281.6666667
C20: Bridge | D20: =NPV('607 Victor Creek'!$C$4,E20:M20) -> 2084.601239 | E20: 0 | F20: ='Hist Maintenance'!$R$116 -> 373.5407505 | G20: ='Hist Maintenance'!$R$116 -> 373.5407505 | H20: ='Hist Maintenance'!$R$116 -> 373.5407505 | I20: ='Hist Maintenance'!$R$116 -> 373.5407505 | J20: ='Hist Maintenance'!$R$116 -> 373.5407505 | K20: ='Hist Maintenance'!$R$116 -> 373.5407505 | L20: ='Hist Maintenance'!$R$116 -> 373.5407505 | M20: ='Hist Maintenance'!$R$116 -> 373.5407505
C21: Total | D21: =D20+D19 -> 2510.441053 | F21: =F20+F19 -> 373.5407505 | G21: 373.5407505 | H21: 655.2074171 | I21: 373.5407505 | J21: 460.2074171 | K21: 373.5407505 | L21: 373.5407505 | M21: 655.2074171
D23: 2018 NPV | E23: 2019 | F23: 2020 | G23: 2021 | H23: 2022 | I23: 2023 | J23: 2024 | K23: 2025 | L23: 2026 | M23: 2027 | N23: 2028 | O23: 2029 | P23: 2030 | Q23: 2031 | R23: 2032 | S23: 2033 | T23: 2034 | U23: 2035 | V23: 2036 | W23: 2037 | X23: 2038 | Y23: 2039 | Z23: 2040 | AA23: 2041 | AB23: 2042 | AC23: 2043 | AD23: 2044 | AE23: 2045 | AF23: 2046 | AG23: 2047 | AH23: 2048 | AI23: 2049
A24: With Grant M&O Costs | E24: Construction | F24: 1 | G24: =F24+1 -> 2 | H24: =G24+1 -> 3 | I24: 4 | J24: 5 | K24: 6 | L24: 7 | M24: 8 | N24: 9 | O24: 10 | P24: 11 | Q24: 12 | R24: 13 | S24: 14 | T24: 15 | U24: 16 | V24: 17 | W24: 18 | X24: 19 | Y24: 20 | Z24: 21 | AA24: 22 | AB24: 23 | AC24: 24 | AD24: 25 | AE24: 26 | AF24: 27 | AG24: 28 | AH24: 29 | AI24: 30
A25: 603 | B25: Snow River West | C25: Pavement | D25: =NPV('603 Snow River West'!$C$4,E25:AM25) -> 85503.05059 | E25: 0 | F25: =IF(F24='603 Snow River West'!$E$10,'Construction Cost Estimate'!$G$37+40*$G$3,0) -> 0 | G25: =IF(G24='603 Snow River West'!$E$10,470080+40*$G$3,0) -> 0 | H25: =IF(H24='603 Snow River West'!$E$10,470080+40*$G$3,0) -> 0 | I25: =IF(I24='603 Snow River West'!$E$10,470080+40*$G$3,0) -> 0 | J25: =IF(J24='603 Snow River West'!$E$10,470080+40*$G$3,0) -> 0 | K25: =IF(K24='603 Snow River West'!$E$10,470080+40*$G$3,0) -> 0 | L25: =IF(L24='603 Snow River West'!$E$10,470080+40*$G$3,0) -> 0 | M25: =IF(M24='603 Snow River West'!$E$10,470080+40*$G$3,0) -> 0 | N25: =IF(N24='603 Snow River West'!$E$10,470080+40*$G$3,0) -> 0 | O25: =IF(O24='603 Snow River West'!$E$10,470080+40*$G$3,0) -> 0 | P25: =IF(P24='603 Snow River West'!$E$10,470080+40*$G$3,0) -> 0 | Q25: =IF(Q24='603 Snow River West'!$E$10,470080+40*$G$3,0) -> 0 | R25: =IF(R24='603 Snow River West'!$E$10,470080+40*$G$3,0) -> 0 | S25: =IF(S24='603 Snow River West'!$E$10,470080+40*$G$3,0) -> 0 | T25: =IF(T24='603 Snow River West'!$E$10,470080+40*$G$3,0) -> 0 | U25: =IF(U24='603 Snow River West'!$E$10,470080+40*$G$3,0) -> 0 | V25: =IF(V24='603 Snow River West'!$E$10,470080+40*$G$3,0) -> 0 | W25: =IF(W24='603 Snow River West'!$E$10,470080+40*$G$3,0) -> 0 | X25: =IF(X24='603 Snow River West'!$E$10,470080+40*$G$3,0) -> 0 | Y25: =IF(Y24='603 Snow River West'!$E$10,470080+40*$G$3,0) -> 0 | Z25: =IF(Z24='603 Snow River West'!$E$10,470080+40*$G$3,0) -> 0 | AA25: =IF(AA24='603 Snow River West'!$E$10,470080+40*$G$3,0) -> 0 | AB25: =IF(AB24='603 Snow River West'!$E$10,470080+40*$G$3,0) -> 0 | AC25: =IF(AC24='603 Snow River West'!$E$10,470080+40*$G$3,0) -> 0 | AD25: =IF(AD24='603 Snow River West'!$E$10,470080+40*$G$3,0) -> 0 | AE25: =IF(AE24='603 Snow River West'!$E$10,470080+40*$G$3,0) -> 0 | AF25: =IF(AF24='603 Snow River West'!$E$10,470080+40*$G$3,0) -> 0 | AG25: =IF(AG24='603 Snow River West'!$E$10,470080+40*$G$3,0) -> 0 | AH25: =IF(AH24='603 Snow River West'!$E$10,470080+40*$G$3,0) -> 0 | AI25: =IF(AI24='603 Snow River West'!$E$10,470080+40*$G$3,0) -> 696432
C26: Bridge | D26: =NPV('603 Snow River West'!$C$4,E26:AM26) -> 6562.643201 | E26: 0 | F26: =$G$3*0.1 -> 565.88 | G26: =$G$3*0.1 -> 565.88 | H26: =$G$3*0.1 -> 565.88 | I26: 565.88 | J26: 565.88 | K26: 565.88 | L26: 565.88 | M26: 565.88 | N26: 565.88 | O26: 565.88 | P26: 565.88 | Q26: 565.88 | R26: 565.88 | S26: 565.88 | T26: 565.88 | U26: 565.88 | V26: 565.88 | W26: 565.88 | X26: 565.88 | Y26: 565.88 | Z26: 565.88 | AA26: 565.88 | AB26: 565.88 | AC26: 565.88 | AD26: 565.88 | AE26: 565.88 | AF26: 565.88 | AG26: 565.88 | AH26: 565.88 | AI26: 565.88
C27: Total | D27: =D26+D25 -> 92065.69379 | E27: 0 | F27: =F26+F25 -> 565.88 | G27: 565.88 | H27: 565.88 | I27: 565.88 | J27: 565.88 | K27: 565.88 | L27: 565.88 | M27: 565.88 | N27: 565.88 | O27: 565.88 | P27: 565.88 | Q27: 565.88 | R27: 565.88 | S27: 565.88 | T27: 565.88 | U27: 565.88 | V27: 565.88 | W27: 565.88 | X27: 565.88 | Y27: 565.88 | Z27: 565.88 | AA27: 565.88 | AB27: 565.88 | AC27: 565.88 | AD27: 565.88 | AE27: 565.88 | AF27: 565.88 | AG27: 565.88 | AH27: 565.88 | AI27: 696997.88
A29: 605 | B29: Snow River Center | C29: Pavement | D29: =NPV('605 Snow River Center'!$C$4,E29:AI29) -> 294045.7708 | E29: 0 | F29: =IF(F24='605 Snow River Center'!$E$10,'Construction Cost Estimate'!$I$37+40*$G$4,0) -> 0 | G29: =IF(G24='605 Snow River Center'!$E$10,'Construction Cost Estimate'!$I$37+40*$G$4,0) -> 0 | H29: =IF(H24='605 Snow River Center'!$E$10,'Construction Cost Estimate'!$I$37+40*$G$4,0) -> 0 | I29: =IF(I24='605 Snow River Center'!$E$10,'Construction Cost Estimate'!$I$37+40*$G$4,0) -> 0 | J29: =IF(J24='605 Snow River Center'!$E$10,'Construction Cost Estimate'!$I$37+40*$G$4,0) -> 0 | K29: =IF(K24='605 Snow River Center'!$E$10,'Construction Cost Estimate'!$I$37+40*$G$4,0) -> 0 | L29: =IF(L24='605 Snow River Center'!$E$10,'Construction Cost Estimate'!$I$37+40*$G$4,0) -> 0 | M29: =IF(M24='605 Snow River Center'!$E$10,'Construction Cost Estimate'!$I$37+40*$G$4,0) -> 0 | N29: =IF(N24='605 Snow River Center'!$E$10,'Construction Cost Estimate'!$I$37+40*$G$4,0) -> 0 | O29: =IF(O24='605 Snow River Center'!$E$10,'Construction Cost Estimate'!$I$37+40*$G$4,0) -> 0 | P29: =IF(P24='605 Snow River Center'!$E$10,'Construction Cost Estimate'!$I$37+40*$G$4,0) -> 0 | Q29: =IF(Q24='605 Snow River Center'!$E$10,'Construction Cost Estimate'!$I$37+40*$G$4,0) -> 0 | R29: =IF(R24='605 Snow River Center'!$E$10,'Construction Cost Estimate'!$I$37+40*$G$4,0) -> 0 | S29: =IF(S24='605 Snow River Center'!$E$10,'Construction Cost Estimate'!$I$37+40*$G$4,0) -> 0 | T29: =IF(T24='605 Snow River Center'!$E$10,'Construction Cost Estimate'!$I$37+40*$G$4,0) -> 0 | U29: =IF(U24='605 Snow River Center'!$E$10,'Construction Cost Estimate'!$I$37+40*$G$4,0) -> 0 | V29: =IF(V24='605 Snow River Center'!$E$10,'Construction Cost Estimate'!$I$37+40*$G$4,0) -> 0 | W29: =IF(W24='605 Snow River Center'!$E$10,'Construction Cost Estimate'!$I$37+40*$G$4,0) -> 0 | X29: =IF(X24='605 Snow River Center'!$E$10,'Construction Cost Estimate'!$I$37+40*$G$4,0) -> 0 | Y29: =IF(Y24='605 Snow River Center'!$E$10,'Construction Cost Estimate'!$I$37+40*$G$4,0) -> 0 | Z29: =IF(Z24='605 Snow River Center'!$E$10,'Construction Cost Estimate'!$I$37+40*$G$4,0) -> 0 | AA29: =IF(AA24='605 Snow River Center'!$E$10,'Construction Cost Estimate'!$I$37+40*$G$4,0) -> 0 | AB29: =IF(AB24='605 Snow River Center'!$E$10,'Construction Cost Estimate'!$I$37+40*$G$4,0) -> 0 | AC29: =IF(AC24='605 Snow River Center'!$E$10,'Construction Cost Estimate'!$I$37+40*$G$4,0) -> 0 | AD29: =IF(AD24='605 Snow River Center'!$E$10,'Construction Cost Estimate'!$I$37+40*$G$4,0) -> 0 | AE29: =IF(AE24='605 Snow River Center'!$E$10,'Construction Cost Estimate'!$I$37+40*$G$4,0) -> 0 | AF29: =IF(AF24='605 Snow River Center'!$E$10,'Construction Cost Estimate'!$I$37+40*$G$4,0) -> 0 | AG29: =IF(AG24='605 Snow River Center'!$E$10,'Construction Cost Estimate'!$I$37+40*$G$4,0) -> 0 | AH29: =IF(AH24='605 Snow River Center'!$E$10,'Construction Cost Estimate'!$I$37+40*$G$4,0) -> 0 | AI29: =IF(AI24='605 Snow River Center'!$E$10,'Construction Cost Estimate'!$I$37+40*$G$4,0) -> 2395036
C30: Bridge | D30: =NPV('605 Snow River Center'!$C$4,E30:AI30) -> 22655.08211 | E30: 0 | F30: =$G$4*0.1 -> 1953.49 | G30: =$G$4*0.1 -> 1953.49 | H30: 1953.49 | I30: 1953.49 | J30: 1953.49 | K30: 1953.49 | L30: 1953.49 | M30: 1953.49 | N30: 1953.49 | O30: 1953.49 | P30: 1953.49 | Q30: 1953.49 | R30: 1953.49 | S30: 1953.49 | T30: 1953.49 | U30: 1953.49 | V30: 1953.49 | W30: 1953.49 | X30: 1953.49 | Y30: 1953.49 | Z30: 1953.49 | AA30: 1953.49 | AB30: 1953.49 | AC30: 1953.49 | AD30: 1953.49 | AE30: 1953.49 | AF30: 1953.49 | AG30: 1953.49 | AH30: 1953.49 | AI30: 1953.49
C31: Total | D31: =D30+D29 -> 316700.853 | E31: 0 | F31: =F30+F29 -> 1953.49 | G31: =G30+G29 -> 1953.49 | H31: 1953.49 | I31: 1953.49 | J31: 1953.49 | K31: 1953.49 | L31: 1953.49 | M31: 1953.49 | N31: 1953.49 | O31: 1953.49 | P31: 1953.49 | Q31: 1953.49 | R31: 1953.49 | S31: 1953.49 | T31: 1953.49 | U31: 1953.49 | V31: 1953.49 | W31: 1953.49 | X31: 1953.49 | Y31: 1953.49 | Z31: 1953.49 | AA31: 1953.49 | AB31: 1953.49 | AC31: 1953.49 | AD31: 1953.49 | AE31: 1953.49 | AF31: 1953.49 | AG31: 1953.49 | AH31: 1953.49 | AI31: 2396989.49
C32: Index Year
A34: 607 | B34: Victor Creek | C34: Pavement | D34: =NPV('607 Victor Creek'!$C$4,E34:AI34) -> 30026.51798 | E34: 0 | F34: 0 | G34: 0 | H34: =$B$37*3380 -> 281.6666667 | I34: 0 | J34: =$B$37*1040 -> 86.66666667 | K34: 0 | L34: 0 | M34: =$B$37*3380 -> 281.6666667 | N34: 0 | O34: =$B$37*325000 -> 27083.33333 | P34: 0 | Q34: 0 | R34: =$B$37*3380 -> 281.6666667 | S34: 0 | T34: =B37*1040 -> 86.66666667 | U34: 0 | V34: 0 | W34: =B37*3380 -> 281.6666667 | X34: 0 | Y34: =B37*650000 -> 54166.66667 | Z34: 0 | AA34: 0 | AB34: =$B$37*3380 -> 281.6666667 | AC34: 0 | AD34: =$B$37*1040 -> 86.66666667 | AE34: 0 | AF34: 0 | AG34: =$B$37*3380 -> 281.6666667 | AH34: 0 | AI34: =$B$37*325000 -> 27083.33333
C35: Bridge | D35: =NPV('607 Victor Creek'!$C$4,E35:AI35) -> 9440.149087 | E35: 0 | F35: =$G$5*0.1 -> 814 | G35: =$G$5*0.1 -> 814 | H35: 814 | I35: 814 | J35: 814 | K35: 814 | L35: 814 | M35: 814 | N35: 814 | O35: 814 | P35: 814 | Q35: 814 | R35: 814 | S35: 814 | T35: 814 | U35: 814 | V35: 814 | W35: 814 | X35: 814 | Y35: 814 | Z35: 814 | AA35: 814 | AB35: 814 | AC35: 814 | AD35: 814 | AE35: 814 | AF35: 814 | AG35: 814 | AH35: 814 | AI35: 814
C36: Total | D36: =D35+D34 -> 39466.66707 | F36: =F35+F34 -> 814 | G36: =G35+G34 -> 814 | H36: 1095.666667 | I36: 814 | J36: 900.6666667 | K36: 814 | L36: 814 | M36: 1095.666667 | N36: 814 | O36: 27897.33333 | P36: 814 | Q36: 814 | R36: 1095.666667 | S36: 814 | T36: 900.6666667 | U36: 814 | V36: 814 | W36: 1095.666667 | X36: 814 | Y36: 54980.66667 | Z36: 814 | AA36: 814 | AB36: 1095.666667 | AC36: 814 | AD36: 900.6666667 | AE36: 814 | AF36: 814 | AG36: 1095.666667 | AH36: 814 | AI36: 27897.33333
B37: =220*2/5280 -> 0.08333333333 | C37: Percent of a lane mile represented by the two lanes on Victor Creek
A38: Source: | B38: Transportation Asset Management Plan. Alaska Department of Transportation & Public Facilities, April 2018. Page c-19. Available at: http://dot.alaska.gov/stwddes/asset_mgmt/assets/tamp_april_2018.pdf | T38: Accessed on October 22, 2018.

Sheet Vehicle Opg Cost
B4: 2017 | C4: 2018 | D4: Source: | Q4: Truck Marginal | U4: Truck Marginal
A5: Light duty vehicle per mile | B5: =Q23 -> 0.4118666667 | C5: =B5*'Alaska CPI'!$P$11 -> 0.4198189885 | D5: https://exchange.aaa.com/wp-content/uploads/2018/09/18-0090_2018-Your-Driving-Costs-Brochure_FNL-Lo-5-2.pdf | Q5: Cost per Mile | U5: Cost per Hour
A6: Trucks per mile | B6: =Q14 -> 0.935 | C6: =B6*'Alaska CPI'!$P$11 -> 0.9530529805 | D6: http://atri-online.org/wp-content/uploads/2018/10/ATRI-Operational-Costs-of-Trucking-2018.pdf | Q6: ATRI
A7: Truck per hour | B7: =U14 -> 36.84 | C7: =B7*'Alaska CPI'!$P$11 -> 37.55130674 | D7: http://atri-online.org/wp-content/uploads/2018/10/ATRI-Operational-Costs-of-Trucking-2018.pdf | N7: Table 9 | Q7: =0.368 -> 0.368 | R7: Fuel | U7: 14.5
Q8: 0.264 | R8: Lease/Purchase | U8: 10.39
A9: *Truck costs exclude driver compensation | Q9: 0.167 | R9: Repair & Maintenance | U9: 6.58
Q10: 0.075 | R10: Truck Insurance | U10: 2.95
A11: Buses | B11: 2016 | C11: 2018 | Q11: 0.023 | R11: Permits/Licenses | U11: 0.92
A12: Operating Cost per Mile | Q12: 0.038 | R12: Tires | U12: 1.5
A13: Operating Cost per Revenue Hour
A14: Note: we are unable to find marginal operating cost per hour for buses so we substituted truck cost per hour. | Q14: =SUM(Q7:Q13) -> 0.935 | R14: Total | U14: =SUM(U7:U13) -> 36.84
Q15: =Q14*6 -> 5.61 | U15: =U14*0.1 -> 3.684
Q18: Light Duty Vehicle
Q19: 0.1105 | R19: Fuel
Q20: 0.0821 | R20: Maintenance, repairs, tires
Q21: =3289/15000 -> 0.2192666667 | R21: Depreciation
Q23: =SUM(Q19:Q21) -> 0.4118666667 | R23: Total

Sheet Construction Cost Estimate
F1: Snow River West Channel (No. 0603) | H1: Snow River Center Channel (No. 0605) | J1: Victor Creek (No. 0607) | L1: All Bridges (No.'s 0603, 0605, & 0607)
A2: Category | B2: Item No. | C2: Pay Item | D2: Pay Unit | E2: Unit Price | F2: Quantity | G2: Amount | H2: Quantity | I2: Amount | J2: Quantity | K2: Amount | L2: Comb Unit Price | M2: Quantity | N2: Amount
A3: ========== BASIC BID ==========
A4: 7 | B4: 201.0003.0000 | C4: Clearing and Grubbing | D4: ACRE | E4: 8200 | F4: 0.5 | G4: =IF(F4="All Req'd",E4,F4*E4) -> 4100 | H4: 0 | I4: =IF(H4="All Req'd",E4,H4*E4) -> 0 | J4: 0 | K4: =IF(J4="All Req'd",E4,J4*E4) -> 0 | L4: 8200 | M4: =SUM(F4,H4,J4) -> 0.5 | N4: =IF(M4="All Req'd",L4,M4*L4) -> 4100
A5: 8 | B5: 202.0002.0000 | C5: Removal of Pavement | D5: SY | E5: 3 | F5: 415 | G5: =IF(F5="All Req'd",E5,F5*E5) -> 1245 | H5: 415 | I5: =IF(H5="All Req'd",E5,H5*E5) -> 1245 | J5: 5400 | K5: =IF(J5="All Req'd",E5,J5*E5) -> 16200 | L5: 2.5 | M5: =SUM(F5,H5,J5) -> 6230 | N5: =IF(M5="All Req'd",L5,M5*L5) -> 15575
A6: 8 | B6: 202.0023.0000 | C6: Removal of Exisiting Bridge No. 607 | D6: LS | E6: 182980 | F6: 0 | G6: =IF(F6="All Req'd",E6,F6*E6) -> 0 | H6: 0 | I6: 0 | J6: All Req'd | K6: 182980 | L6: 182980 | M6: All Req'd | N6: =IF(M6="All Req'd",L6,M6*L6) -> 182980
A7: 7 | B7: 203.0003.0000 | C7: Unclassifed Excavation | D7: CY | E7: 16 | F7: 195 | G7: 3120 | H7: 195 | I7: 3120 | J7: 1950 | K7: 31200 | L7: 14 | M7: =SUM(F7,H7,J7) -> 2340 | N7: 32760
A8: 9 | B8: 203.0006.0000 | C8: Borrow | D8: TON | E8: 9.25 | F8: 270 | G8: 2497.5 | H8: 270 | I8: 2497.5 | J8: 22000 | K8: 203500 | L8: 8 | M8: 22540 | N8: 180320
A9: 7 | B9: 203.2020.0000 | C9: Debris Removal/Excavation | D9: LS | E9: 120000 | F9: All Req'd | G9: =IF(F9="All Req'd",E9,F9*E9) -> 120000 | H9: 0 | I9: =IF(H9="All Req'd",E9,H9*E9) -> 0 | J9: 0 | K9: 0 | L9: 120000 | M9: All Req'd | N9: 120000
A10: 9 | B10: 205.0006.0000 | C10: Structural Fill | D10: CY | E10: 35 | F10: 0 | G10: =IF(F10="All Req'd",E10,F10*E10) -> 0 | H10: 0 | I10: 0 | J10: 1112 | K10: 38920 | L10: 35 | M10: 1112 | N10: 38920
A11: 9 | B11: 301.0001.00D1 | C11: Aggregate Base Course, Grading D-1 | D11: TON | E11: 22 | F11: 46 | G11: 1012 | H11: 46 | I11: 1012 | J11: 840 | K11: 18480 | L11: 22 | M11: 932 | N11: 20504
A12: 9 | B12: 306.0001.0000 | C12: ATB | D12: TON | E12: 75 | F12: 70 | G12: 5250 | H12: 70 | I12: 5250 | J12: 910 | K12: 68250 | L12: 75 | M12: 1050 | N12: 78750
A13: 9 | B13: 306.0002.5228 | C13: Asphalt Binder, Grade 52-28 | D13: TON | E13: 400 | F13: 4 | G13: 1600 | H13: 4 | I13: 1600 | J13: 50 | K13: 20000 | L13: 400 | M13: 58 | N13: 23200
A14: 9 | B14: 401.0001.002A | C14: HMA, Type II; Class A | D14: TON | E14: 80 | F14: 48 | G14: 3840 | H14: 48 | I14: 3840 | J14: 620 | K14: 49600 | L14: 80 | M14: 716 | N14: 57280
A15: 9 | B15: 401.0004.5228 | C15: Asphalt Binder, Grade 52-28 | D15: TON | E15: 400 | F15: 3 | G15: 1200 | H15: 3 | I15: 1200 | J15: 34 | K15: 13600 | L15: 400 | M15: 40 | N15: 16000
A16: 9 | B16: 401.0008.002A | C16: HMA Price Adjustment, Type II, Class A | D16: CS | E16: 86680 | F16: All Req'd | G16: =0.055*(G14+G15) -> 277.2 | H16: All Req'd | I16: =0.055*(I14+I15) -> 277.2 | J16: All Req'd | K16: =0.055*(K14+K15) -> 3476 | L16: 86680 | M16: All Req'd | N16: 86680
A17: 9 | B17: 401.0014.0000 | C17: Joint Adhesive | D17: LF | E17: 0.5 | F17: 250 | G17: 125 | H17: 250 | I17: 125 | J17: 1650 | K17: 825 | L17: 0.5 | M17: 2150 | N17: 1075
A18: 9 | B18: 402.0001.STE1 | C18: STE-1 Asphalt for Tack Coat | D18: TON | E18: 1000 | F18: 0.2 | G18: 200 | H18: 0.2 | I18: 200 | J18: 2 | K18: 2000 | L18: 1000 | M18: 2.4 | N18: 2400
A19: 9 | B19: 501.0001.0000 | C19: Class A Concrete | D19: CY | E19: 1750 | F19: 71.1 | G19: 124425 | H19: 117.6 | I19: 205800 | J19: 470.4 | K19: 823200 | L19: 1750 | M19: 659.1 | N19: 1153425
A20: 9 | B20: 501.0007.0000 | C20: Precast Concrete Member (110'-0" Bulb-Tee Girder) | D20: EA | E20: 80000 | F20: 0 | G20: 0 | H20: 0 | I20: 0 | J20: 12 | K20: 960000 | L20: 80000 | M20: 12 | N20: 960000
A21: 9 | B21: 503.0001.0000 | C21: Reinforcing Steel | D21: LB | E21: 2.3 | F21: 12100 | G21: 27830 | H21: 37000 | I21: 85100 | J21: 62310 | K21: 143313 | L21: 2.3 | M21: 111410 | N21: 256243
A22: 9 | B22: 503.0002.0000 | C22: Epoxy-Coated Reinforcing Steel | D22: LB | E22: 2.75 | F22: 25000 | G22: 68750 | H22: 25280 | I22: 69520 | J22: 22885 | K22: 62933.75 | L22: 2.75 | M22: 73165 | N22: 201203.75
A23: 9 | B23: 503.0003.0000 | C23: Drill and Bond Dowls | D23: EA | E23: 150 | F23: 256 | G23: 38400 | H23: 774 | I23: 116100 | J23: 0 | K23: 0 | L23: 150 | M23: 1030 | N23: 154500
A24: 9 | B24: 505.0005.0000 | C24: Furnish Structural Steel Piles (2'-0" Pipe) | D24: LF | E24: 150 | F24: 0 | G24: 0 | H24: 0 | I24: 0 | J24: 1121 | K24: 168150 | L24: 150 | M24: 1121 | N24: 168150
A25: 9 | B25: 505.0005.0000 | C25: Furnish Structural Steel Piles (4'-0" Pipe) | D25: LF | E25: 500 | F25: 0 | G25: 0 | H25: 0 | I25: 0 | J25: 645.4 | K25: 322700 | L25: 500 | M25: 645.4 | N25: 322700
A26: 9 | B26: 505.0006.0000 | C26: Drive Structual Steel Piles (2'-0" Pipe) | D26: EA | E26: 20000 | F26: 0 | G26: 0 | H26: 0 | I26: 0 | J26: 12 | K26: 240000 | L26: 20000 | M26: 12 | N26: 240000
A27: 9 | B27: 505.0006.0000 | C27: Drive Structual Steel Piles (4'-0" Pipe) | D27: EA | E27: 35000 | F27: 0 | G27: 0 | H27: 0 | I27: 0 | J27: 4 | K27: 140000 | L27: 35000 | M27: 4 | N27: 140000
A28: 7 | B28: 505.0014.0000 | C28: Special Pile Excavation | D28: CS | E28: 20000 | F28: 0 | G28: 0 | H28: 0 | I28: 0 | J28: All Req'd | K28: 20000 | L28: 20000 | M28: All Req'd | N28: 20000
A29: 9 | B29: 507.0001.0000 | C29: Steel Bridge Railing | D29: LF | E29: 250 | F29: 0 | G29: 0 | H29: 0 | I29: 0 | J29: 528 | K29: 132000 | L29: 250 | M29: 528 | N29: 132000
A30: 9 | B30: 507.2000.0000 | C30: Steel Bridge Railing Replacement | D30: LF | E30: 300 | F30: 417 | G30: 125100 | H30: 1333 | I30: 399900 | J30: 0 | K30: 0 | L30: 300 | M30: 1750 | N30: 525000
A31: 9 | B31: 508.2000.0000 | C31: Waterproofing Membrane, Spray-On | D31: LS | E31: 147000 | F31: 0 | G31: 0 | H31: 0 | I31: 0 | J31: All Req'd | K31: 147000 | L31: 147000 | M31: All Req'd | N31: 147000
A32: 9 | B32: 510.2000.0000 | C32: Bridge Deck Repair | D32: SF | E32: 150 | F32: 1625 | G32: 243750 | H32: 3500 | I32: 525000 | J32: 0 | K32: 0 | L32: 150 | M32: 5125 | N32: 768750
A33: 9 | B33: 510.2001.0000 | C33: Bridge Deck Repair, Reinforcing Steel | D33: CS | E33: 2.3 | F33: 3000 | G33: 6900 | H33: 16000 | I33: 36800 | J33: 0 | K33: 0 | L33: 2.3 | M33: 19000 | N33: 43700
A34: 9 | B34: 513.0001.0000 | C34: Field Painting of Steel Structures | D34: LS | E34: 10000 | F34: All Req'd | G34: 10000 | H34: 0 | I34: 0 | J34: 0 | K34: 0 | L34: 10000 | M34: All Req'd | N34: 10000
A35: 9 | B35: 516.0001.0000 | C35: Expansion Joint (Compression Seal) | D35: LF | E35: 250 | F35: 103 | G35: 25750 | H35: 273 | I35: 68250 | J35: 0 | K35: 0 | L35: 250 | M35: 376 | N35: 94000
A36: 9 | B36: 520.0001.0000 | C36: Temporary Crossings | D36: LS | E36: 680000 | F36: 0 | G36: 0 | H36: 0 | I36: 0 | J36: All Req'd | K36: 680000 | L36: 680000 | M36: All Req'd | N36: 680000
A37: 9 | B37: 525.2001.0000 | C37: Polyester Concrete Overlay | D37: CF | E37: 904 | F37: 520 | G37: 470080 | H37: 1785 | I37: 1613640 | J37: 0 | K37: 0 | L37: 904 | M37: 2305 | N37: 2083720
A38: 9 | B38: 606.0001.0000 | C38: W-Beam Guardrail | D38: LF | E38: 24 | F38: 350 | G38: 8400 | H38: 300 | I38: 7200 | J38: 525 | K38: 12600 | L38: 22 | M38: 1175 | N38: 25850
A39: 8 | B39: 606.0006.0000 | C39: Removing and Disposing of Guardrail | D39: LF | E39: 3.25 | F39: 540 | G39: 1755 | H39: 560 | I39: 1820 | J39: 200 | K39: 650 | L39: 3.25 | M39: 1300 | N39: 4225
A40: 9 | B40: 606.0009.0000 | C40: Short Radius Guardrail | D40: EA | E40: 3750 | F40: 1 | G40: 3750 | H40: 0 | I40: 0 | J40: 1 | K40: 3750 | L40: 3750 | M40: 2 | N40: 7500
A41: 9 | B41: 606.0013.0000 | C41: Parallel Guardrail Terminal | D41: EA | E41: 3300 | F41: 2 | G41: 6600 | H41: 2 | I41: 6600 | J41: 3 | K41: 9900 | L41: 3300 | M41: 7 | N41: 23100
A42: 9 | B42: 606.0016.0000 | C42: Transition Rail | D42: EA | E42: 2750 | F42: 4 | G42: 11000 | H42: 4 | I42: 11000 | J42: 4 | K42: 11000 | L42: 2750 | M42: 12 | N42: 33000
A43: 9 | B43: 610.0002.0000 | C43: Ditch Lining | D43: CY | E43: 110 | F43: 0 | G43: 0 | H43: 1600 | I43: 176000 | J43: 0 | K43: 0 | L43: 110 | M43: 1600 | N43: 176000
A44: 9 | B44: 611.0002.0001 | C44: RipRap, Class I | D44: CY | E44: 117 | F44: 0 | G44: 0 | H44: 0 | I44: 0 | J44: 470 | K44: 54990 | L44: 117 | M44: 470 | N44: 54990
A45: 9 | B45: 611.0002.0003 | C45: RipRap, Class III | D45: CY | E45: 132 | F45: 0 | G45: 0 | H45: 6600 | I45: 871200 | J45: 2140 | K45: 282480 | L45: 132 | M45: 8740 | N45: 1153680
A46: 9 | B46: 615.0001.0000 | C46: Standard Sign | D46: SF | E46: 95 | F46: 12 | G46: 1140 | H46: 18 | I46: 1710 | J46: 6 | K46: 570 | L46: 95 | M46: 36 | N46: 3420
A47: 8 | B47: 615.0006.0000 | C47: Salvage Sign | D47: EA | E47: 110 | F47: 4 | G47: 440 | H47: 4 | I47: 440 | J47: 4 | K47: 440 | L47: 110 | M47: 12 | N47: 1320
A48: 7 | B48: 618.0002.0000 | C48: Seeding | D48: LB | E48: 55 | F48: 11 | G48: 605 | H48: 12 | I48: 660 | J48: 130 | K48: 7150 | L48: 55 | M48: 153 | N48: 8415
A49: 7 | B49: 618.0003.0000 | C49: Water for Seeding | D49: M-GAL | E49: 40 | F49: 6 | G49: 240 | H49: 6 | I49: 240 | J49: 65 | K49: 2600 | L49: 40 | M49: 77 | N49: 3080
A50: 7 | B50: 620.0001.0000 | C50: Topsoil | D50: SY | E50: 1 | F50: 590 | G50: 590 | H50: 620 | I50: 620 | J50: 7200 | K50: 7200 | L50: 1 | M50: 8410 | N50: 8410 | O50: Cost By % | P50: Cost By % | Q50: Cost By % | R50: Target Cost By %
A51: 10 | B51: 640.0001.0000 | C51: Mobilization and Demobilization | D51: LS | E51: 1100000 | F51: All Req'd | G51: 75000 | H51: All Req'd | I51: 225000 | J51: All Req'd | K51: 275000 | L51: 300000 | M51: All Req'd | N51: 300000 | O51: =G51/SUM($G$4:$G$72) -> 0.04108852149 | P51: =I51/SUM($I$4:$I$72) -> 0.04280982699 | Q51: =K51/SUM($K$7:$K$75) -> 0.02029935406 | R51: 0.04
A52: 11 | B52: 640.0004.0000 | C52: Worker Meals and Lodging, or Per Diem | D52: LS | E52: 400000 | F52: All Req'd | G52: 15000 | H52: All Req'd | I52: 45000 | J52: All Req'd | K52: 55000 | L52: 60000 | M52: All Req'd | N52: 60000 | O52: =G52/SUM($G$4:$G$72) -> 0.008217704299 | P52: =I52/SUM($I$4:$I$72) -> 0.008561965398 | Q52: =K52/SUM($K$7:$K$75) -> 0.004059870812 | R52: 0.008
A53: 11 | B53: 641.0001.0000 | C53: Erosion, Sediment, and Pollution Control Administration | D53: LS | E53: 25000 | F53: All Req'd | G53: 10000 | H53: All Req'd | I53: 10000 | J53: All Req'd | K53: 10000 | L53: 10000 | M53: All Req'd | N53: 10000 | O53: 0.005478469533 | P53: 0.001902658977 | Q53: 0.0007381583294 | R53: 0.0004
A54: 7 | B54: 641.0002.0000 | C54: Temporary Erosion, Sediment, and Pollution Control | D54: CS | E54: 800000 | F54: All Req'd | G54: 30000 | H54: All Req'd | I54: 85000 | J54: All Req'd | K54: 110000 | L54: 200000 | M54: All Req'd | N54: 200000 | O54: 0.0164354086 | P54: 0.01617260131 | Q54: 0.008119741623 | R54: 0.016
A55: 11 | B55: 641.0007.0000 | C55: SWPPP Manager | D55: LS | E55: 50000 | F55: All Req'd | G55: 10000 | H55: All Req'd | I55: 10000 | J55: All Req'd | K55: 10000 | L55: 10000 | M55: All Req'd | N55: 10000 | O55: 0.005478469533 | P55: 0.001902658977 | Q55: 0.0007381583294 | R55: 0.001
A56: 11 | B56: 642.0001.0000 | C56: Construction Surveying | D56: LS | E56: 275000 | F56: All Req'd | G56: 10000 | H56: All Req'd | I56: 30000 | J56: All Req'd | K56: 40000 | L56: 60000 | M56: All Req'd | N56: 60000 | O56: 0.005478469533 | P56: 0.005707976932 | Q56: 0.002952633317 | R56: 0.0055
A57: 11 | B57: 642.0003.0000 | C57: Three Person Survey Party | D57: HR | E57: 325 | F57: 10 | G57: 3250 | H57: 32.5 | I57: 10562.5 | J57: 40 | K57: 13000 | L57: 325 | M57: 82.5 | N57: 26812.5
A58: 9 | B58: 643.0002.0000 | C58: Traffic Maintenance | D58: LS | E58: 625000 | F58: All Req'd | G58: 25000 | H58: All Req'd | I58: 70000 | J58: All Req'd | K58: 90000 | L58: 100000 | M58: All Req'd | N58: 100000 | O58: 0.01369617383 | P58: 0.01331861284 | Q58: 0.006643424964 | R58: 0.0125
A59: 9 | B59: 643.0003.0000 | C59: Permanent Construction Signs | D59: LS | E59: 100000 | F59: All Req'd | G59: 5000 | H59: All Req'd | I59: 12000 | J59: All Req'd | K59: 15000 | L59: 15000 | M59: All Req'd | N59: 15000 | O59: 0.002739234766 | P59: 0.002283190773 | Q59: 0.001107237494 | R59: 0.002
A60: 9 | B60: 643.0025.0000 | C60: Traffic Control | D60: CS | E60: 1500000 | F60: All Req'd | G60: 55000 | H60: All Req'd | I60: 160000 | J60: All Req'd | K60: 200000 | L60: 250000 | M60: All Req'd | N60: 250000 | O60: 0.03013158243 | P60: 0.03044254364 | Q60: 0.01476316659 | R60: 0.03
A61: 9 | B61: 643.0032.0000 | C61: Flagging | D61: CS | E61: 1600000 | F61: All Req'd | G61: 60000 | H61: All Req'd | I61: 170000 | J61: All Req'd | K61: 215000 | L61: 250000 | M61: All Req'd | N61: 250000 | O61: 0.0328708172 | P61: 0.03234520261 | Q61: 0.01587040408 | R61: 0.032
A62: 11 | B62: 644.0001.0000 | C62: Field Office | D62: LS | E62: 100000 | F62: All Req'd | G62: 100000 | H62: All Req'd | I62: 100000 | J62: All Req'd | K62: 100000 | L62: 100000 | M62: All Req'd | N62: 100000
A63: 10 | B63: 644.0002.0000 | C63: Field Laboratory | D63: LS | E63: 40000 | F63: All Req'd | G63: 40000 | H63: All Req'd | I63: 40000 | J63: All Req'd | K63: 40000 | L63: 40000 | M63: All Req'd | N63: 40000
A64: 10 | B64: 644.0015.0000 | C64: Nuclear Testing Equipment Storage Shed | D64: LS | E64: 7000 | F64: All Req'd | G64: 7000 | H64: All Req'd | I64: 7000 | J64: All Req'd | K64: 7000 | L64: 7000 | M64: All Req'd | N64: 7000
A65: 10 | B65: 644.0016.0000 | C65: Storage Container | D65: LS | E65: 6000 | F65: All Req'd | G65: 6000 | H65: All Req'd | I65: 6000 | J65: All Req'd | K65: 6000 | L65: 6000 | M65: All Req'd | N65: 6000
A66: 11 | B66: 644.2004.0000 | C66: Engineering Communications | D66: CS | E66: 25000 | F66: All Req'd | G66: 5000 | H66: All Req'd | I66: 5000 | J66: All Req'd | K66: 5000 | L66: 5000 | M66: All Req'd | N66: 5000 | O66: =G66/SUM($G$4:$G$72) -> 0.002739234766 | P66: =I66/SUM($I$4:$I$72) -> 0.0009513294887 | Q66: =K66/SUM($K$7:$K$75) -> 0.0003690791647 | R66: 0.0004
A67: 11 | B67: 645.0001.0000 | C67: Training Program, 1 Trainee/Apprentice | D67: HR | E67: 10 | F67: 200 | G67: 2000 | H67: 200 | I67: 2000 | J67: 500 | K67: 5000 | L67: 10 | M67: 900 | N67: 9000
A68: 11 | B68: 646.0001.0000 | C68: CPM Scheduling | D68: LS | E68: 6500 | F68: All Req'd | G68: 6500 | H68: All Req'd | I68: 6500 | J68: All Req'd | K68: 6500 | L68: 6500 | M68: All Req'd | N68: 6500
A69: 10 | B69: 647.2002.0000 | C69: Backhoe, 4WD, 1CY Bucket, 75 HP Min., 15 Ft Depth | D69: CS | E69: 150000 | F69: All Req'd | G69: 10000 | H69: All Req'd | I69: 10000 | J69: All Req'd | K69: 30000 | L69: 40000 | M69: All Req'd | N69: 40000
A70: 11 | B70: 648.2002.0000 | C70: Eagle Monitoring | D70: CS | E70: 8500 | F70: All Req'd | G70: =IF(F70="All Req'd",E70,F70*E70) -> 8500 | H70: All Req'd | I70: =IF(H70="All Req'd",E70,H70*E70) -> 8500 | J70: All Req'd | K70: =IF(J70="All Req'd",E70,J70*E70) -> 8500 | L70: 8500 | M70: All Req'd | N70: =IF(M70="All Req'd",L70,M70*L70) -> 8500
A71: 9 | B71: 670.2000.0000 | C71: MMA Pavement Markings | D71: GAL | E71: 94 | F71: 22.4 | G71: 2105.6 | H71: 56.1 | I71: 5273.4 | J71: 112.2 | K71: 10546.8 | L71: 94 | M71: =SUM(F71,H71,J71) -> 190.7 | N71: 17925.8
A72: 10 | B72: 682.2000.0000 | C72: Vac-Truck Pothole | D72: CS | E72: 20000 | F72: All Req'd | G72: 20000 | H72: All Req'd | I72: 20000 | J72: All Req'd | K72: 20000 | L72: 20000 | M72: All Req'd | N72: 20000
A73: 13 | B73: N/A | C73: Contingencies | D73: LS | E73: 1200000 | F73: All Req'd | G73: =IF(F73="All Req'd",E73,F73*E73)*0.2 -> 240000 | H73: All Req'd | I73: =IF(H73="All Req'd",E73,H73*E73)*0.2 -> 240000 | J73: All Req'd | K73: =IF(J73="All Req'd",E73,J73*E73)*0.6 -> 720000 | L73: 1200000 | M73: All Req'd | N73: 1200000
G75: =SUM(G4:G73) -> 2065327.3 | I75: =SUM(I4:I73) -> 5495802.6 | K75: =SUM(K4:K73) -> 6873204.55 | N75: =SUM(N4:N73) -> 13205664.05
J77: Total | K77: =SUM(G75:K75) -> 14434334.45

Sheet Budget 603
B3: Snow River West Channel Bridge (No. 0603) Rehabilitation
B4: Cost Classification | C4: Total Cost ($)
B5: 1. Administrative and legal expenses | C5: 50000
B6: 2. land, structures, rights-of-way, appraisals, ect. | C6: 25000
B7: 3. Relocation expenses and payments | C7: 0
B8: 4. Architectural and engineering fees | C8: 400000
B9: 5. Other architectural and engineering fees | C9: 150000
B10: 6. Project inspection fees | C10: 365065.46
B11: 7. Site work | C11: 158655
B12: 8. Demolition and removal | C12: 3440
B13: 9. Construction | C13: 1334982.3
B14: 10. Equipment | C14: 158000
B15: 11. Miscellaneous | C15: 170250
B16: 12. SUBTOTAL (sum of lines 1-11) | C16: 2815392.76
B17: 13. Contingencies | C17: 240000
B18: 14. SUBTOTAL | C18: 3055392.76
B19: 15. Project (program) income | C19: 0
B20: 16. TOTAL PROJECT COSTS (subtract #15 from #14) | C20: 3055392.76

Sheet Budget 605
B3: Snow River Center Channel Bridge (No. 0605) Rehabilitation
B4: Cost Classification | C4: Total Cost ($)
B5: 1. Administrative and legal expenses | C5: 100000
B6: 2. land, structures, rights-of-way, appraisals, ect. | C6: 25000
B7: 3. Relocation expenses and payments | C7: 0
B8: 4. Architectural and engineering fees | C8: 600000
B9: 5. Other architectural and engineering fees | C9: 350000
B10: 6. Project inspection fees | C10: 1051160.52
B11: 7. Site work | C11: 89640
B12: 8. Demolition and removal | C12: 3505
B13: 9. Construction | C13: 4627095.1
B14: 10. Equipment | C14: 308000
B15: 11. Miscellaneous | C15: 227562.5
B16: 12. SUBTOTAL (sum of lines 1-11) | C16: 7381963.12
B17: 13. Contingencies | C17: 240000
B18: 14. SUBTOTAL | C18: 7621963.12
B19: 15. Project (program) income | C19: 0
B20: 16. TOTAL PROJECT COSTS (subtract #15 from #14) | C20: 7621963.12

Sheet Budget 607
B3: Victor Creek Bridge (No. 0607) Replacement
B4: Cost Classification | C4: Total Cost ($)
B5: 1. Administrative and legal expenses | C5: 200000
B6: 2. land, structures, rights-of-way, appraisals, ect. | C6: 500000
B7: 3. Relocation expenses and payments | C7: 100000
B8: 4. Architectural and engineering fees | C8: 900000
B9: 5. Other architectural and engineering fees | C9: 600000
B10: 6. Project inspection fees | C10: 1230640.91
B11: 7. Site work | C11: 178150
B12: 8. Demolition and removal | C12: 200270
B13: 9. Construction | C13: 5143784.55
B14: 10. Equipment | C14: 378000
B15: 11. Miscellaneous | C15: 253000
B16: 12. SUBTOTAL (sum of lines 1-11) | C16: 9683845.46
B17: 13. Contingencies | C17: 720000
B18: 14. SUBTOTAL | C18: 10403845.46
B19: 15. Project (program) income | C19: 0
B20: 16. TOTAL PROJECT COSTS (subtract #15 from #14) | C20: 10403845.46

Sheet Budget Combined
A1: Budget
B2: All Bridges (No.'s 0603, 0605, & 0607)
B3: Cost Classification | C3: Total Cost ($)
B4: 1. Administrative and legal expenses | C4: 100000
B5: 2. land, structures, rights-of-way, appraisals, ect. | C5: 500000
B6: 3. Relocation expenses and payments | C6: 100000
B7: 4. Architectural and engineering fees | C7: 1150000
B8: 5. Other architectural and engineering fees | C8: 600000
B9: 6. Project inspection fees | C9: 1800849.608
B10: 7. Site work | C10: 396765
B11: 8. Demolition and removal | C11: 204100
B12: 9. Construction | C12: 10695986.55
B13: 10. Equipment | C13: 413000
B14: 11. Miscellaneous | C14: 295812.5
B15: 12. SUBTOTAL (sum of lines 1-11) | C15: 16256513.66
B16: 13. Contingencies | C16: 1200000
B17: 14. SUBTOTAL | C17: 17456513.66
B18: 15. Project (program) income | C18: 0
B19: 16. TOTAL PROJECT COSTS (subtract #15 from #14) | C19: 17456513.66
B21: Project | C21: Total Cost ($)
B22: Snow River West Bridge | C22: 3055392.76
B23: Snow River Main Bridge | C23: 7621963.12
B24: Victor Creek Bridge | C24: 10403845.46
B25: All Bridges (Snow West, Snow Main, Victor Creek) | C25: 17456513.66
B27: Project | C27: Total Cost ($)
B28: All Bridges As Separate Projects | C28: 21081201.34
B29: All Bridges As Combined Project | C29: 17456513.66
B30: Total Savings | C30: 3624687.683

Sheet AMHS Cost
A2: Note: The Alaska Railroad does not provide passenger service to/from Seward from mid-September to mid-May due to avalanche threats
A3: Assume ARRC service is 150 days; AMHS passenger service would be : | H3: 215 | I3: days
A4: Bus Service would be required for travel between Homer and Anchorage
A6: AMHS Fares (one-way) | E6: https://www.dot.state.ak.us/amhs/ | I6: Accessed on October 24, 2018.
A7: Homer to Kodiak | C7: 126 | D7: nautical miles
A8: Driver w/ standard vehicle | D8: 289
A9: Passenger | D9: 89
A11: Homer to Seward | C11: 158 | D11: nautical miles
A12: Driver w/ standard vehicle | D12: =(1+($C$11-$C$7)/$C$7)*D8 -> 362.3968254
A13: Passenger | D13: =(1+($C$11-$C$7)/$C$7)*D9 -> 111.6031746
A15: Homer to Anchorage by bus | D15: Cost per Trip
A16: Bus Operating Cost | D16: =D42*'Vehicle Opg Cost'!C6 -> 210.6247087
A17: Driver Compensation | D17: =D41*'Wage & Income'!D25 -> 170.355816
A18: Cost per Bus Passenger | D18: =SUM(D16:D17)/'603 Snow River West'!$E$8 -> 35.60565652
A20: Passenger Cost | E20: Year | F20: 2018 | G20: =F20+1 -> 2019 | H20: =G20+1 -> 2020 | I20: 2021 | J20: 2022 | K20: 2023 | L20: 2024 | M20: 2025 | N20: 2026 | O20: 2027 | P20: 2028 | Q20: 2029 | R20: 2030 | S20: 2031 | T20: 2032 | U20: 2033 | V20: 2034 | W20: 2035 | X20: 2036 | Y20: 2037 | Z20: 2038 | AA20: 2039 | AB20: 2040 | AC20: 2041 | AD20: 2042 | AE20: 2043 | AF20: 2044 | AG20: 2045 | AH20: 2046 | AI20: 2047 | AJ20: 2048 | AK20: 2049 | AL20: 2050 | AM20: 2051 | AN20: 2052 | AO20: 2053
A21: Total Number of Passenger Trips | K21: ='ARRC cost'!G49 -> 3285 | L21: ='ARRC cost'!H49 -> 3322 | M21: ='ARRC cost'!I49 -> 3358 | N21: ='ARRC cost'!J49 -> 3395 | O21: ='ARRC cost'!K49 -> 3432 | P21: ='ARRC cost'!L49 -> 3469 | Q21: ='ARRC cost'!M49 -> 3506 | R21: ='ARRC cost'!N49 -> 3543 | S21: ='ARRC cost'!O49 -> 3580 | T21: ='ARRC cost'!P49 -> 3616 | U21: ='ARRC cost'!Q49 -> 3653 | V21: ='ARRC cost'!R49 -> 3690 | W21: ='ARRC cost'!S49 -> 3727 | X21: ='ARRC cost'!T49 -> 3764 | Y21: ='ARRC cost'!U49 -> 3801 | Z21: ='ARRC cost'!V49 -> 3838 | AA21: ='ARRC cost'!W49 -> 3875 | AB21: ='ARRC cost'!X49 -> 3911 | AC21: ='ARRC cost'!Y49 -> 3948 | AD21: ='ARRC cost'!Z49 -> 3985 | AE21: ='ARRC cost'!AA49 -> 4022 | AF21: ='ARRC cost'!AB49 -> 4059 | AG21: ='ARRC cost'!AC49 -> 4096 | AH21: ='ARRC cost'!AD49 -> 4133 | AI21: ='ARRC cost'!AE49 -> 4170 | AJ21: ='ARRC cost'!AF49 -> 4206 | AK21: ='ARRC cost'!AG49 -> 4243 | AL21: ='ARRC cost'!AH49 -> 4280 | AM21: ='ARRC cost'!AI49 -> 4317 | AN21: ='ARRC cost'!AJ49 -> 4354 | AO21: ='ARRC cost'!AK49 -> 4391
A22: AMHS Cost per Passenger Trip | D22: =D9 -> 89
A23: Total Daily Cost for Passengers | K23: =K21*$D$22 -> 292365 | L23: 295658 | M23: =M21*$D$22 -> 298862 | N23: =N21*$D$22 -> 302155 | O23: 305448 | P23: 308741 | Q23: 312034 | R23: 315327 | S23: 318620 | T23: 321824 | U23: 325117 | V23: 328410 | W23: 331703 | X23: 334996 | Y23: 338289 | Z23: 341582 | AA23: 344875 | AB23: 348079 | AC23: 351372 | AD23: 354665 | AE23: 357958 | AF23: 361251 | AG23: 364544 | AH23: 367837 | AI23: 371130 | AJ23: 374334 | AK23: 377627 | AL23: 380920 | AM23: 384213 | AN23: 387506 | AO23: 390799
A24: Annual Cost for Passengers for mid-May to mid-September | K24: =K23*$H$3 -> 62858475 | L24: 63566470 | M24: =M23*$H$3 -> 64255330 | N24: =N23*$H$3 -> 64963325 | O24: 65671320 | P24: 66379315 | Q24: 67087310 | R24: 67795305 | S24: 68503300 | T24: 69192160 | U24: 69900155 | V24: 70608150 | W24: 71316145 | X24: 72024140 | Y24: 72732135 | Z24: 73440130 | AA24: 74148125 | AB24: 74836985 | AC24: 75544980 | AD24: 76252975 | AE24: 76960970 | AF24: 77668965 | AG24: 78376960 | AH24: 79084955 | AI24: 79792950 | AJ24: 80481810 | AK24: 81189805 | AL24: 81897800 | AM24: 82605795 | AN24: 83313790 | AO24: 84021785
A26: Total Daily Cost for Bus Passengers | K26: =$D$18*K21 -> 116964.5817 | L26: 118281.9909 | M26: =$D$18*M21 -> 119563.7946 | N26: =$D$18*N21 -> 120881.2039 | O26: 122198.6132 | P26: 123516.0225 | Q26: 124833.4317 | R26: 126150.841 | S26: 127468.2503 | T26: 128750.054 | U26: 130067.4632 | V26: 131384.8725 | W26: 132702.2818 | X26: 134019.6911 | Y26: 135337.1004 | Z26: 136654.5097 | AA26: 137971.919 | AB26: 139253.7226 | AC26: 140571.1319 | AD26: 141888.5412 | AE26: 143205.9505 | AF26: 144523.3598 | AG26: 145840.7691 | AH26: 147158.1784 | AI26: 148475.5877 | AJ26: 149757.3913 | AK26: 151074.8006 | AL26: 152392.2099 | AM26: 153709.6192 | AN26: 155027.0285 | AO26: 156344.4378
A27: Annual Cost for Passengers for mid-May to mid-September | K27: =K26*$H$3 -> 25147385.06 | L27: 25430628.05 | M27: =M26*$H$3 -> 25706215.83 | N27: =N26*$H$3 -> 25989458.83 | O27: 26272701.83 | P27: 26555944.83 | Q27: 26839187.82 | R27: 27122430.82 | S27: 27405673.82 | T27: 27681261.6 | U27: 27964504.6 | V27: 28247747.6 | W27: 28530990.59 | X27: 28814233.59 | Y27: 29097476.59 | Z27: 29380719.59 | AA27: 29663962.58 | AB27: 29939550.37 | AC27: 30222793.36 | AD27: 30506036.36 | AE27: 30789279.36 | AF27: 31072522.36 | AG27: 31355765.35 | AH27: 31639008.35 | AI27: 31922251.35 | AJ27: 32197839.13 | AK27: 32481082.13 | AL27: 32764325.13 | AM27: 33047568.12 | AN27: 33330811.12 | AO27: 33614054.12
A29: Travel Time Delay
A30: AMHS Travel Time Homer/Seward (hours) | H30: =C11/D40 -> 9.132947977
A31: Bus Travel Time Homer/Anchorage (hours) | H31: 5.5
A32: Total AMHS/Bus Travel Time Seward/Homer/Anchorage (hours) | H32: =H31+H30 -> 14.63294798
A33: Travel Time via Automobile to/from Anchorage/Seward via Highway (one-way): | H33: ='ARRC cost'!E58 -> 2.3
A34: Increase in Travel Time Seward/Anchorage (hours) | H34: =H32-H33 -> 12.33294798
A35: Total Daily Travel Time Delay (hours) | K35: =K21*$H$34 -> 40513.7341 | L35: 40970.05318 | M35: =M21*$H$34 -> 41414.03931 | N35: =N21*$H$34 -> 41870.35838 | O35: 42326.67746 | P35: 42782.99653 | Q35: 43239.31561 | R35: 43695.63468 | S35: 44151.95376 | T35: 44595.93988 | U35: 45052.25896 | V35: 45508.57803 | W35: 45964.89711 | X35: 46421.21618 | Y35: 46877.53526 | Z35: 47333.85434 | AA35: 47790.17341 | AB35: 48234.15954 | AC35: 48690.47861 | AD35: 49146.79769 | AE35: 49603.11676 | AF35: 50059.43584 | AG35: 50515.75491 | AH35: 50972.07399 | AI35: 51428.39306 | AJ35: 51872.37919 | AK35: 52328.69827 | AL35: 52785.01734 | AM35: 53241.33642 | AN35: 53697.65549 | AO35: 54153.97457
A36: Total Daily Travel Time Cost | K36: =K35*'Wage & Income'!$F$10 -> 901834.5685 | L36: =L35*'Wage & Income'!$F$10 -> 911992.2182 | M36: =M35*'Wage & Income'!$F$10 -> 921875.3367 | N36: =N35*'Wage & Income'!$F$10 -> 932032.9864 | O36: =O35*'Wage & Income'!$F$10 -> 942190.636 | P36: =P35*'Wage & Income'!$F$10 -> 952348.2856 | Q36: =Q35*'Wage & Income'!$F$10 -> 962505.9352 | R36: =R35*'Wage & Income'!$F$10 -> 972663.5849 | S36: =S35*'Wage & Income'!$F$10 -> 982821.2345 | T36: =T35*'Wage & Income'!$F$10 -> 992704.3531 | U36: =U35*'Wage & Income'!$F$10 -> 1002862.003 | V36: =V35*'Wage & Income'!$F$10 -> 1013019.652 | W36: =W35*'Wage & Income'!$F$10 -> 1023177.302 | X36: =X35*'Wage & Income'!$F$10 -> 1033334.952 | Y36: =Y35*'Wage & Income'!$F$10 -> 1043492.601 | Z36: =Z35*'Wage & Income'!$F$10 -> 1053650.251 | AA36: =AA35*'Wage & Income'!$F$10 -> 1063807.9 | AB36: =AB35*'Wage & Income'!$F$10 -> 1073691.019 | AC36: =AC35*'Wage & Income'!$F$10 -> 1083848.669 | AD36: =AD35*'Wage & Income'!$F$10 -> 1094006.318 | AE36: =AE35*'Wage & Income'!$F$10 -> 1104163.968 | AF36: =AF35*'Wage & Income'!$F$10 -> 1114321.618 | AG36: =AG35*'Wage & Income'!$F$10 -> 1124479.267 | AH36: =AH35*'Wage & Income'!$F$10 -> 1134636.917 | AI36: =AI35*'Wage & Income'!$F$10 -> 1144794.566 | AJ36: =AJ35*'Wage & Income'!$F$10 -> 1154677.685 | AK36: =AK35*'Wage & Income'!$F$10 -> 1164835.335 | AL36: =AL35*'Wage & Income'!$F$10 -> 1174992.984 | AM36: =AM35*'Wage & Income'!$F$10 -> 1185150.634 | AN36: =AN35*'Wage & Income'!$F$10 -> 1195308.284 | AO36: =AO35*'Wage & Income'!$F$10 -> 1205465.933
A37: Annual Travel Time Cost for mid-May to mid-September | K37: =$H$3*K36 -> 193894432.2 | L37: 196078326.9 | M37: =$H$3*M36 -> 198203197.4 | N37: =$H$3*N36 -> 200387092.1 | O37: 202570986.7 | P37: 204754881.4 | Q37: 206938776.1 | R37: 209122670.7 | S37: 211306565.4 | T37: 213431435.9 | U37: 215615330.6 | V37: 217799225.3 | W37: 219983119.9 | X37: 222167014.6 | Y37: 224350909.3 | Z37: 226534803.9 | AA37: 228718698.6 | AB37: 230843569.1 | AC37: 233027463.8 | AD37: 235211358.4 | AE37: 237395253.1 | AF37: 239579147.8 | AG37: 241763042.4 | AH37: 243946937.1 | AI37: 246130831.8 | AJ37: 248255702.3 | AK37: 250439596.9 | AL37: 252623491.6 | AM37: 254807386.3 | AN37: 256991281 | AO37: 259175175.6
A40: Columbia service speed: | D40: 17.3 | E40: knots | F40: http://www.dot.state.ak.us/amhs/fleet/tustumena.shtml
A41: Bus schedule Homer/Anchorage | D41: 5.5 | E41: hours | F41: http://www.stagelineinhomer.com/stage_line_current_schedule
A42: Distance between Homer/Anchorage | D42: 221 | E42: miles | F42: https://www.google.com/maps/dir/Anchorage,+AK/Homer,+AK/@60.4266461,-151.5287869,8z/data=!3m1!4b1!4m14!4m13!1m5!1m1!1s0x56c8917604b33f41:0x257dba5aa78468e3!2m2!1d-149.9002778!2d61.2180556!1m5!1m1!1s0x56c12deea7865acf:0x1f2e94ed71e773bb!2m2!1d-151.5483333!2d59.6425!3e0?hl=en

Sheet ARRC cost
A2: Year | B2: 2018 | C2: =B2+1 -> 2019 | D2: =C2+1 -> 2020 | E2: 2021 | F2: 2022 | G2: 2023 | H2: 2024 | I2: 2025 | J2: 2026 | K2: 2027 | L2: 2028 | M2: 2029 | N2: 2030 | O2: 2031 | P2: 2032 | Q2: 2033 | R2: 2034 | S2: 2035 | T2: 2036 | U2: 2037 | V2: 2038 | W2: 2039 | X2: 2040 | Y2: 2041 | Z2: 2042 | AA2: 2043 | AB2: 2044 | AC2: 2045 | AD2: 2046 | AE2: 2047 | AF2: 2048 | AG2: 2049 | AH2: 2050 | AI2: 2051 | AJ2: 2052 | AK2: 2053
A3: Truck AADT | C3: =Traffic!H27 -> 272.35487 | D3: =Traffic!I27 -> 275.54568 | E3: =Traffic!J27 -> 278.73649 | F3: =Traffic!K27 -> 281.9273 | G3: =Traffic!L27 -> 285.11811 | H3: =Traffic!M27 -> 288.30892 | I3: =Traffic!N27 -> 291.49973 | J3: =Traffic!O27 -> 294.69054 | K3: =Traffic!P27 -> 297.88135 | L3: =Traffic!Q27 -> 301.07216 | M3: =Traffic!R27 -> 304.26297 | N3: =Traffic!S27 -> 307.45378 | O3: =Traffic!T27 -> 310.64459 | P3: =Traffic!U27 -> 313.8354 | Q3: =Traffic!V27 -> 317.02621 | R3: =Traffic!W27 -> 320.21702 | S3: =Traffic!X27 -> 323.40783 | T3: =Traffic!Y27 -> 326.59864 | U3: =Traffic!Z27 -> 329.78945 | V3: =Traffic!AA27 -> 332.98026 | W3: =Traffic!AB27 -> 336.17107 | X3: =Traffic!AC27 -> 339.36188 | Y3: =Traffic!AD27 -> 342.55269 | Z3: =Traffic!AE27 -> 345.7435 | AA3: =Traffic!AF27 -> 348.93431 | AB3: =Traffic!AG27 -> 352.12512 | AC3: =Traffic!AH27 -> 355.31593 | AD3: =Traffic!AI27 -> 358.50674 | AE3: =Traffic!AJ27 -> 361.69755 | AF3: =Traffic!AK27 -> 364.88836 | AG3: =Traffic!AL27 -> 368.07917 | AH3: =Traffic!AM27 -> 371.26998 | AI3: =Traffic!AN27 -> 374.46079 | AJ3: =Traffic!AO27 -> 377.6516 | AK3: =Traffic!AP27 -> 380.84241
A4: Average Truck Length | C4: =A75 -> 31.58019954
A5: Total ARRC length required:
C6: =$C$4*C3 -> 8601.02114 | D6: 8701.787557 | E6: 8802.553973 | F6: 8903.32039 | G6: 9004.086806 | H6: 9104.853223 | I6: 9205.619639 | J6: 9306.386056 | K6: 9407.152472 | L6: 9507.918889 | M6: 9608.685305 | N6: 9709.451722 | O6: 9810.218138 | P6: 9910.984555 | Q6: 10011.75097 | R6: 10112.51739 | S6: 10213.2838 | T6: 10314.05022 | U6: 10414.81664 | V6: 10515.58305 | W6: 10616.34947 | X6: 10717.11589 | Y6: 10817.8823 | Z6: 10918.64872 | AA6: 11019.41514 | AB6: 11120.18155 | AC6: 11220.94797 | AD6: 11321.71439 | AE6: 11422.4808 | AF6: 11523.24722 | AG6: 11624.01363 | AH6: 11724.78005 | AI6: 11825.54647 | AJ6: 11926.31288 | AK6: 12027.0793
A7: Average Flatcar length: | C7: 85 | D7: feet
A8: Railcars required: | C8: =C6/$C$7 -> 101.188484 | D8: =C8/2 -> 50.594242 | E8: Railcars required in each direction | G8: =G6/$C$7/2 -> 52.96521651 | H8: =H6/$C$7/2 -> 53.55796013 | I8: =I6/$C$7/2 -> 54.15070376 | J8: =J6/$C$7/2 -> 54.74344739 | K8: 55.33619101 | L8: 55.92893464 | M8: 56.52167827 | N8: 57.11442189 | O8: 57.70716552 | P8: 58.29990914 | Q8: 58.89265277 | R8: 59.4853964 | S8: 60.07814002 | T8: 60.67088365 | U8: 61.26362728 | V8: 61.8563709 | W8: 62.44911453 | X8: 63.04185816 | Y8: 63.63460178 | Z8: 64.22734541 | AA8: 64.82008904 | AB8: 65.41283266 | AC8: 66.00557629 | AD8: 66.59831991 | AE8: 67.19106354 | AF8: 67.78380717 | AG8: 68.37655079 | AH8: 68.96929442 | AI8: 69.56203805 | AJ8: 70.15478167 | AK8: 70.7475253
A9: Maximum railcars per train: | D9: 35
A10: Assume 10% length lost due to different size trucks
A11: Railcars required: | C11: =D8*1.1 -> 55.6536662 | G11: =G8*1.1 -> 58.26173816 | H11: =H8*1.1 -> 58.91375615 | I11: =I8*1.1 -> 59.56577414 | J11: =J8*1.1 -> 60.21779212 | K11: 60.86981011 | L11: 61.5218281 | M11: 62.17384609 | N11: 62.82586408 | O11: 63.47788207 | P11: 64.12990006 | Q11: 64.78191805 | R11: 65.43393604 | S11: 66.08595403 | T11: 66.73797202 | U11: 67.38999 | V11: 68.04200799 | W11: 68.69402598 | X11: 69.34604397 | Y11: 69.99806196 | Z11: 70.65007995 | AA11: 71.30209794 | AB11: 71.95411593 | AC11: 72.60613392 | AD11: 73.25815191 | AE11: 73.9101699 | AF11: 74.56218788 | AG11: 75.21420587 | AH11: 75.86622386 | AI11: 76.51824185 | AJ11: 77.17025984 | AK11: 77.82227783
A12: Trains required per day: | G12: =G11/$D$9 -> 1.66462109 | H12: =H11/$D$9 -> 1.683250176 | I12: =I11/$D$9 -> 1.701879261 | J12: =J11/$D$9 -> 1.720508346 | K12: 1.739137432 | L12: 1.757766517 | M12: 1.776395603 | N12: 1.795024688 | O12: 1.813653773 | P12: 1.832282859 | Q12: 1.850911944 | R12: 1.86954103 | S12: 1.888170115 | T12: 1.9067992 | U12: 1.925428286 | V12: 1.944057371 | W12: 1.962686457 | X12: 1.981315542 | Y12: 1.999944627 | Z12: 2.018573713 | AA12: 2.037202798 | AB12: 2.055831884 | AC12: 2.074460969 | AD12: 2.093090054 | AE12: 2.11171914 | AF12: 2.130348225 | AG12: 2.148977311 | AH12: 2.167606396 | AI12: 2.186235481 | AJ12: 2.204864567 | AK12: 2.223493652
A14: Cost per train:
A15: Base cost: 2 locomotives and 10 cars | E15: 21686
A16: Cost for each additional rail car | E16: 1626
A17: Cost for 35 car train and 2 locomotives | E17: =E15+25*E16 -> 62336
A18: Second Train
A19: Base cost: 2 locomotives and 10 cars | E19: 21686
A20: Additional flatcars required | E20: =ROUNDUP(I11-35,0)-10 -> 15
A21: Cost for additional flatcars | E21: =E20*E16 -> 24390
A22: Cost for second train | E22: =E21+E19 -> 46076
A23: Total Train Cost per day | E23: =E22+E17 -> 108412
A25: Annual cost per year | E25: =E23*365 -> 39570380
A27: Cost per truck trip | E27: =E25/(E3*365) -> 388.9408236
A29: Note: Cost does not include putting trucks/trailers on railroad flatcars or securing them to the flatcars; or of maintaining track in winter and keeping clear of snow
A31: Automobiles and Pickups
A32: Class 1-3 AADT | G32: =Traffic!L30 -> 1719.239236 | H32: =Traffic!M30 -> 1738.479564 | I32: =Traffic!N30 -> 1757.719891 | J32: =Traffic!O30 -> 1776.960218 | K32: =Traffic!P30 -> 1796.200545 | L32: =Traffic!Q30 -> 1815.440873 | M32: =Traffic!R30 -> 1834.6812 | N32: =Traffic!S30 -> 1853.921527 | O32: =Traffic!T30 -> 1873.161855 | P32: =Traffic!U30 -> 1892.402182 | Q32: =Traffic!V30 -> 1911.642509 | R32: =Traffic!W30 -> 1930.882836 | S32: =Traffic!X30 -> 1950.123164 | T32: =Traffic!Y30 -> 1969.363491 | U32: =Traffic!Z30 -> 1988.603818 | V32: =Traffic!AA30 -> 2007.844145 | W32: =Traffic!AB30 -> 2027.084473 | X32: =Traffic!AC30 -> 2046.3248 | Y32: =Traffic!AD30 -> 2065.565127 | Z32: =Traffic!AE30 -> 2084.805455 | AA32: =Traffic!AF30 -> 2104.045782 | AB32: =Traffic!AG30 -> 2123.286109 | AC32: =Traffic!AH30 -> 2142.526436 | AD32: =Traffic!AI30 -> 2161.766764 | AE32: =Traffic!AJ30 -> 2181.007091 | AF32: =Traffic!AK30 -> 2200.247418 | AG32: =Traffic!AL30 -> 2219.487745 | AH32: =Traffic!AM30 -> 2238.728073 | AI32: =Traffic!AN30 -> 2257.9684 | AJ32: =Traffic!AO30 -> 2277.208727 | AK32: =Traffic!AP30 -> 2296.449055
A33: Average vehicle length | C33: 17 | D33: feet
A34: Average flatcar length | C34: =C7 -> 85 | D34: feet
A35: Flatcars required | C35: =C34/C33 -> 5 | D35: vehicles per flatcar | G35: =G32/2/5 -> 171.9239236 | H35: 173.8479564 | I35: =I32/2/5 -> 175.7719891 | J35: =J32/2/5 -> 177.6960218 | K35: =K32/2/5 -> 179.6200545 | L35: 181.5440873 | M35: 183.46812 | N35: 185.3921527 | O35: 187.3161855 | P35: 189.2402182 | Q35: 191.1642509 | R35: 193.0882836 | S35: 195.0123164 | T35: 196.9363491 | U35: 198.8603818 | V35: 200.7844145 | W35: 202.7084473 | X35: 204.63248 | Y35: 206.5565127 | Z35: 208.4805455 | AA35: 210.4045782 | AB35: 212.3286109 | AC35: 214.2526436 | AD35: 216.1766764 | AE35: 218.1007091 | AF35: 220.0247418 | AG35: 221.9487745 | AH35: 223.8728073 | AI35: 225.79684 | AJ35: 227.7208727 | AK35: 229.6449055
A36: Trains required | G36: =G35/35 -> 4.912112104 | H36: 4.967084468 | I36: =I35/35 -> 5.022056831 | J36: =J35/35 -> 5.077029195 | K36: 5.132001558 | L36: 5.186973922 | M36: 5.241946286 | N36: 5.296918649 | O36: 5.351891013 | P36: 5.406863377 | Q36: 5.46183574 | R36: 5.516808104 | S36: 5.571780468 | T36: 5.626752831 | U36: 5.681725195 | V36: 5.736697558 | W36: 5.791669922 | X36: 5.846642286 | Y36: 5.901614649 | Z36: 5.956587013 | AA36: 6.011559377 | AB36: 6.06653174 | AC36: 6.121504104 | AD36: 6.176476468 | AE36: 6.231448831 | AF36: 6.286421195 | AG36: 6.341393558 | AH36: 6.396365922 | AI36: 6.451338286 | AJ36: 6.506310649 | AK36: 6.561283013
A37: Full trains required | G37: =ROUNDDOWN(G36,0) -> 4 | H37: 4 | I37: =ROUNDDOWN(I36,0) -> 5 | J37: =ROUNDDOWN(J36,0) -> 5 | K37: 5 | L37: 5 | M37: 5 | N37: 5 | O37: 5 | P37: 5 | Q37: 5 | R37: 5 | S37: 5 | T37: 5 | U37: 5 | V37: 5 | W37: 5 | X37: 5 | Y37: 5 | Z37: 5 | AA37: 6 | AB37: 6 | AC37: 6 | AD37: 6 | AE37: 6 | AF37: 6 | AG37: 6 | AH37: 6 | AI37: 6 | AJ37: 6 | AK37: 6
A38: Cost for full trains | G38: =G37*$E$17 -> 249344 | H38: 249344 | I38: =I37*$E$17 -> 311680 | J38: =J37*$E$17 -> 311680 | K38: 311680 | L38: 311680 | M38: 311680 | N38: 311680 | O38: 311680 | P38: 311680 | Q38: 311680 | R38: 311680 | S38: 311680 | T38: 311680 | U38: 311680 | V38: 311680 | W38: 311680 | X38: 311680 | Y38: 311680 | Z38: 311680 | AA38: 374016 | AB38: 374016 | AC38: 374016 | AD38: 374016 | AE38: 374016 | AF38: 374016 | AG38: 374016 | AH38: 374016 | AI38: 374016 | AJ38: 374016 | AK38: 374016
A39: Partial Train
A40: Base cost: 2 locomotives and 10 cars | G40: 21686 | H40: 21686 | I40: 21686 | J40: 21686 | K40: 21686 | L40: 21686 | M40: 21686 | N40: 21686 | O40: 21686 | P40: 21686 | Q40: 21686 | R40: 21686 | S40: 21686 | T40: 21686 | U40: 21686 | V40: 21686 | W40: 21686 | X40: 21686 | Y40: 21686 | Z40: 21686 | AA40: 21686 | AB40: 21686 | AC40: 21686 | AD40: 21686 | AE40: 21686 | AF40: 21686 | AG40: 21686 | AH40: 21686 | AI40: 21686 | AJ40: 21686 | AK40: 21686
A41: Additional flatcars required | G41: =IF(ROUNDUP(G35-(G37*35),0)-10<0,0,ROUNDUP(G35-(G37*35),0)-10) -> 22 | H41: 24 | I41: =IF(ROUNDUP(I35-(I37*35),0)-10<0,0,ROUNDUP(I35-(I37*35),0)-10) -> 0 | J41: =IF(ROUNDUP(J35-(J37*35),0)-10<0,0,ROUNDUP(J35-(J37*35),0)-10) -> 0 | K41: 0 | L41: 0 | M41: 0 | N41: 1 | O41: 3 | P41: 5 | Q41: 7 | R41: 9 | S41: 11 | T41: 12 | U41: 14 | V41: 16 | W41: 18 | X41: 20 | Y41: 22 | Z41: 24 | AA41: 0 | AB41: 0 | AC41: 0 | AD41: 0 | AE41: 0 | AF41: 1 | AG41: 2 | AH41: 4 | AI41: 6 | AJ41: 8 | AK41: 10
A42: Cost for additional flatcars | G42: =G41*$E$16 -> 35772 | H42: 39024 | I42: =I41*$E$16 -> 0 | J42: =J41*$E$16 -> 0 | K42: 0 | L42: 0 | M42: 0 | N42: 1626 | O42: 4878 | P42: 8130 | Q42: 11382 | R42: 14634 | S42: 17886 | T42: 19512 | U42: 22764 | V42: 26016 | W42: 29268 | X42: 32520 | Y42: 35772 | Z42: 39024 | AA42: 0 | AB42: 0 | AC42: 0 | AD42: 0 | AE42: 0 | AF42: 1626 | AG42: 3252 | AH42: 6504 | AI42: 9756 | AJ42: 13008 | AK42: 16260
A43: Cost for second train | G43: =G42+G40 -> 57458 | H43: 60710 | I43: =I42+I40 -> 21686 | J43: =J42+J40 -> 21686 | K43: 21686 | L43: 21686 | M43: 21686 | N43: 23312 | O43: 26564 | P43: 29816 | Q43: 33068 | R43: 36320 | S43: 39572 | T43: 41198 | U43: 44450 | V43: 47702 | W43: 50954 | X43: 54206 | Y43: 57458 | Z43: 60710 | AA43: 21686 | AB43: 21686 | AC43: 21686 | AD43: 21686 | AE43: 21686 | AF43: 23312 | AG43: 24938 | AH43: 28190 | AI43: 31442 | AJ43: 34694 | AK43: 37946
A44: Total Train Cost per day | G44: =G43+G38 -> 306802 | H44: =H43+H38 -> 310054 | I44: =I43+I38 -> 333366 | J44: =J43+J38 -> 333366 | K44: =K43+K38 -> 333366 | L44: 333366 | M44: 333366 | N44: 334992 | O44: 338244 | P44: 341496 | Q44: 344748 | R44: 348000 | S44: 351252 | T44: 352878 | U44: 356130 | V44: 359382 | W44: 362634 | X44: 365886 | Y44: 369138 | Z44: 372390 | AA44: 395702 | AB44: 395702 | AC44: 395702 | AD44: 395702 | AE44: 395702 | AF44: 397328 | AG44: 398954 | AH44: 402206 | AI44: 405458 | AJ44: 408710 | AK44: 411962
A45: Total Train Cost per Year | G45: =G44*365 -> 111982730 | H45: 113169710 | I45: =I44*365 -> 121678590 | J45: =J44*365 -> 121678590 | K45: 121678590 | L45: 121678590 | M45: 121678590 | N45: 122272080 | O45: 123459060 | P45: 124646040 | Q45: 125833020 | R45: 127020000 | S45: 128206980 | T45: 128800470 | U45: 129987450 | V45: 131174430 | W45: 132361410 | X45: 133548390 | Y45: 134735370 | Z45: 135922350 | AA45: 144431230 | AB45: 144431230 | AC45: 144431230 | AD45: 144431230 | AE45: 144431230 | AF45: 145024720 | AG45: 145618210 | AH45: 146805190 | AI45: 147992170 | AJ45: 149179150 | AK45: 150366130
A46: Cost per automobile trip | G46: =G45/(G32*365) -> 178.452186 | H46: 178.3477968 | I46: =I45/(I32*365) -> 189.6582053
A48: Passenger Cost | G48: 2023 | H48: 2024 | I48: 2025 | J48: =I48+1 -> 2026 | K48: =J48+1 -> 2027 | L48: 2028 | M48: 2029 | N48: 2030 | O48: 2031 | P48: 2032 | Q48: 2033 | R48: 2034 | S48: 2035 | T48: 2036 | U48: 2037 | V48: 2038 | W48: 2039 | X48: 2040 | Y48: 2041 | Z48: 2042 | AA48: 2043 | AB48: 2044 | AC48: 2045 | AD48: 2046 | AE48: 2047 | AF48: 2048 | AG48: 2049 | AH48: 2050 | AI48: 2051 | AJ48: 2052 | AK48: 2053
A49: Total Number of Passenger Trips | G49: =ROUNDUP(Traffic!L30*'603 Snow River West'!$E$7+'603 Snow River West'!$E$8*(Traffic!L28-'603 Snow River West'!$E$9),0) -> 3285 | H49: =ROUNDUP(Traffic!M30*'603 Snow River West'!$E$7+'603 Snow River West'!$E$8*(Traffic!M28-'603 Snow River West'!$E$9),0) -> 3322 | I49: =ROUNDUP(Traffic!N30*'603 Snow River West'!$E$7+'603 Snow River West'!$E$8*(Traffic!N28-'603 Snow River West'!$E$9),0) -> 3358 | J49: =ROUNDUP(Traffic!O30*'603 Snow River West'!$E$7+'603 Snow River West'!$E$8*(Traffic!O28-'603 Snow River West'!$E$9),0) -> 3395 | K49: =ROUNDUP(Traffic!P30*'603 Snow River West'!$E$7+'603 Snow River West'!$E$8*(Traffic!P28-'603 Snow River West'!$E$9),0) -> 3432 | L49: =ROUNDUP(Traffic!Q30*'603 Snow River West'!$E$7+'603 Snow River West'!$E$8*(Traffic!Q28-'603 Snow River West'!$E$9),0) -> 3469 | M49: =ROUNDUP(Traffic!R30*'603 Snow River West'!$E$7+'603 Snow River West'!$E$8*(Traffic!R28-'603 Snow River West'!$E$9),0) -> 3506 | N49: =ROUNDUP(Traffic!S30*'603 Snow River West'!$E$7+'603 Snow River West'!$E$8*(Traffic!S28-'603 Snow River West'!$E$9),0) -> 3543 | O49: =ROUNDUP(Traffic!T30*'603 Snow River West'!$E$7+'603 Snow River West'!$E$8*(Traffic!T28-'603 Snow River West'!$E$9),0) -> 3580 | P49: =ROUNDUP(Traffic!U30*'603 Snow River West'!$E$7+'603 Snow River West'!$E$8*(Traffic!U28-'603 Snow River West'!$E$9),0) -> 3616 | Q49: =ROUNDUP(Traffic!V30*'603 Snow River West'!$E$7+'603 Snow River West'!$E$8*(Traffic!V28-'603 Snow River West'!$E$9),0) -> 3653 | R49: =ROUNDUP(Traffic!W30*'603 Snow River West'!$E$7+'603 Snow River West'!$E$8*(Traffic!W28-'603 Snow River West'!$E$9),0) -> 3690 | S49: =ROUNDUP(Traffic!X30*'603 Snow River West'!$E$7+'603 Snow River West'!$E$8*(Traffic!X28-'603 Snow River West'!$E$9),0) -> 3727 | T49: =ROUNDUP(Traffic!Y30*'603 Snow River West'!$E$7+'603 Snow River West'!$E$8*(Traffic!Y28-'603 Snow River West'!$E$9),0) -> 3764 | U49: =ROUNDUP(Traffic!Z30*'603 Snow River West'!$E$7+'603 Snow River West'!$E$8*(Traffic!Z28-'603 Snow River West'!$E$9),0) -> 3801 | V49: =ROUNDUP(Traffic!AA30*'603 Snow River West'!$E$7+'603 Snow River West'!$E$8*(Traffic!AA28-'603 Snow River West'!$E$9),0) -> 3838 | W49: =ROUNDUP(Traffic!AB30*'603 Snow River West'!$E$7+'603 Snow River West'!$E$8*(Traffic!AB28-'603 Snow River West'!$E$9),0) -> 3875 | X49: =ROUNDUP(Traffic!AC30*'603 Snow River West'!$E$7+'603 Snow River West'!$E$8*(Traffic!AC28-'603 Snow River West'!$E$9),0) -> 3911 | Y49: =ROUNDUP(Traffic!AD30*'603 Snow River West'!$E$7+'603 Snow River West'!$E$8*(Traffic!AD28-'603 Snow River West'!$E$9),0) -> 3948 | Z49: =ROUNDUP(Traffic!AE30*'603 Snow River West'!$E$7+'603 Snow River West'!$E$8*(Traffic!AE28-'603 Snow River West'!$E$9),0) -> 3985 | AA49: =ROUNDUP(Traffic!AF30*'603 Snow River West'!$E$7+'603 Snow River West'!$E$8*(Traffic!AF28-'603 Snow River West'!$E$9),0) -> 4022 | AB49: =ROUNDUP(Traffic!AG30*'603 Snow River West'!$E$7+'603 Snow River West'!$E$8*(Traffic!AG28-'603 Snow River West'!$E$9),0) -> 4059 | AC49: =ROUNDUP(Traffic!AH30*'603 Snow River West'!$E$7+'603 Snow River West'!$E$8*(Traffic!AH28-'603 Snow River West'!$E$9),0) -> 4096 | AD49: =ROUNDUP(Traffic!AI30*'603 Snow River West'!$E$7+'603 Snow River West'!$E$8*(Traffic!AI28-'603 Snow River West'!$E$9),0) -> 4133 | AE49: =ROUNDUP(Traffic!AJ30*'603 Snow River West'!$E$7+'603 Snow River West'!$E$8*(Traffic!AJ28-'603 Snow River West'!$E$9),0) -> 4170 | AF49: =ROUNDUP(Traffic!AK30*'603 Snow River West'!$E$7+'603 Snow River West'!$E$8*(Traffic!AK28-'603 Snow River West'!$E$9),0) -> 4206 | AG49: =ROUNDUP(Traffic!AL30*'603 Snow River West'!$E$7+'603 Snow River West'!$E$8*(Traffic!AL28-'603 Snow River West'!$E$9),0) -> 4243 | AH49: =ROUNDUP(Traffic!AM30*'603 Snow River West'!$E$7+'603 Snow River West'!$E$8*(Traffic!AM28-'603 Snow River West'!$E$9),0) -> 4280 | AI49: =ROUNDUP(Traffic!AN30*'603 Snow River West'!$E$7+'603 Snow River West'!$E$8*(Traffic!AN28-'603 Snow River West'!$E$9),0) -> 4317 | AJ49: =ROUNDUP(Traffic!AO30*'603 Snow River West'!$E$7+'603 Snow River West'!$E$8*(Traffic!AO28-'603 Snow River West'!$E$9),0) -> 4354 | AK49: =ROUNDUP(Traffic!AP30*'603 Snow River West'!$E$7+'603 Snow River West'!$E$8*(Traffic!AP28-'603 Snow River West'!$E$9),0) -> 4391
A50: Train Cost per Round Trip: | D50: 175 | E50: or each-way: | F50: =D50/2 -> 87.5
A51: Total Daily Cost for Passengers | G51: =G49*$F$50 -> 287437.5 | H51: 290675 | I51: =I49*$F$50 -> 293825 | J51: =J49*$F$50 -> 297062.5 | K51: 300300 | L51: 303537.5 | M51: 306775 | N51: 310012.5 | O51: 313250 | P51: 316400 | Q51: 319637.5 | R51: 322875 | S51: 326112.5 | T51: 329350 | U51: 332587.5 | V51: 335825 | W51: 339062.5 | X51: 342212.5 | Y51: 345450 | Z51: 348687.5 | AA51: 351925 | AB51: 355162.5 | AC51: 358400 | AD51: 361637.5 | AE51: 364875 | AF51: 368025 | AG51: 371262.5 | AH51: 374500 | AI51: 377737.5 | AJ51: 380975 | AK51: 384212.5
A52: Annual Cost for Passengers for mid-May to mid-September | F52: (say 150 days) | G52: =G51*150 -> 43115625 | H52: 43601250 | I52: =I51*150 -> 44073750 | J52: =J51*150 -> 44559375 | K52: 45045000 | L52: 45530625 | M52: 46016250 | N52: 46501875 | O52: 46987500 | P52: 47460000 | Q52: 47945625 | R52: 48431250 | S52: 48916875 | T52: 49402500 | U52: 49888125 | V52: 50373750 | W52: 50859375 | X52: 51331875 | Y52: 51817500 | Z52: 52303125 | AA52: 52788750 | AB52: 53274375 | AC52: 53760000 | AD52: 54245625 | AE52: 54731250 | AF52: 55203750 | AG52: 55689375 | AH52: 56175000 | AI52: 56660625 | AJ52: 57146250 | AK52: 57631875
A54: Travel Time Cost for Passengers
A55: Note: Only personal and bus travelers are assumed to ride on ARRC; no drivers accompany trucks or buses and Other Business travel by air
A56: Total Number of Passenger Trips
A57: Travel Time to/from Seward via ARRC (one-way): | E57: 4.33 | F57: hours | G57: https://www.alaskarailroad.com/ride-a-train/schedules | L57: for passenger trains
A58: Travel Time to/from Seward via Highway (one-way): | E58: 2.3 | F58: hours | G58: https://www.google.com/maps/dir/Anchorage,+AK/Seward,+AK/@60.9958482,-149.5722413,10z/data=!3m1!4b1!4m14!4m13!1m5!1m1!1s0x56c8917604b33f41:0x257dba5aa78468e3!2m2!1d-149.9002778!2d61.2180556!1m5!1m1!1s0x56c79b6ef22affc5:0x5be160c236d211bf!2m2!1d-149.4422222!2d60.1041667!3e0?hl=en
A59: Additional Travel Time via ARRC (one-way): | E59: =E57-E58 -> 2.03 | F59: hours
G60: =G48 -> 2023 | H60: 2024 | I60: =I48 -> 2025 | J60: =J48 -> 2026 | K60: 2027 | L60: 2028 | M60: 2029 | N60: 2030 | O60: 2031 | P60: 2032 | Q60: 2033 | R60: 2034 | S60: 2035 | T60: 2036 | U60: 2037 | V60: 2038 | W60: 2039 | X60: 2040 | Y60: 2041 | Z60: 2042 | AA60: 2043 | AB60: 2044 | AC60: 2045 | AD60: 2046 | AE60: 2047 | AF60: 2048 | AG60: 2049 | AH60: 2050 | AI60: 2051 | AJ60: 2052 | AK60: 2053
A61: Total Number of Passenger Trips per Day | G61: =G49 -> 3285 | H61: 3322 | I61: =I49 -> 3358 | J61: =J49 -> 3395 | K61: 3432 | L61: 3469 | M61: 3506 | N61: 3543 | O61: 3580 | P61: 3616 | Q61: 3653 | R61: 3690 | S61: 3727 | T61: 3764 | U61: 3801 | V61: 3838 | W61: 3875 | X61: 3911 | Y61: 3948 | Z61: 3985 | AA61: 4022 | AB61: 4059 | AC61: 4096 | AD61: 4133 | AE61: 4170 | AF61: 4206 | AG61: 4243 | AH61: 4280 | AI61: 4317 | AJ61: 4354 | AK61: 4391
A62: Total Daily Travel Time Delay (Hours) | G62: =G61*$E$59 -> 6668.55 | H62: 6743.66 | I62: =I61*$E$59 -> 6816.74 | J62: =J61*$E$59 -> 6891.85 | K62: 6966.96 | L62: 7042.07 | M62: 7117.18 | N62: 7192.29 | O62: 7267.4 | P62: 7340.48 | Q62: 7415.59 | R62: 7490.7 | S62: 7565.81 | T62: 7640.92 | U62: 7716.03 | V62: 7791.14 | W62: 7866.25 | X62: 7939.33 | Y62: 8014.44 | Z62: 8089.55 | AA62: 8164.66 | AB62: 8239.77 | AC62: 8314.88 | AD62: 8389.99 | AE62: 8465.1 | AF62: 8538.18 | AG62: 8613.29 | AH62: 8688.4 | AI62: 8763.51 | AJ62: 8838.62 | AK62: 8913.73
A63: Total Cost of Daily Travel Time Delay | G63: =G62*'Wage & Income'!$F$10 -> 148441.7333 | H63: =H62*'Wage & Income'!$F$10 -> 150113.6797 | I63: =I62*'Wage & Income'!$F$10 -> 151740.4385 | J63: =J62*'Wage & Income'!$F$10 -> 153412.3849 | K63: =K62*'Wage & Income'!$F$10 -> 155084.3314 | L63: =L62*'Wage & Income'!$F$10 -> 156756.2779 | M63: =M62*'Wage & Income'!$F$10 -> 158428.2243 | N63: =N62*'Wage & Income'!$F$10 -> 160100.1708 | O63: =O62*'Wage & Income'!$F$10 -> 161772.1172 | P63: =P62*'Wage & Income'!$F$10 -> 163398.876 | Q63: =Q62*'Wage & Income'!$F$10 -> 165070.8224 | R63: =R62*'Wage & Income'!$F$10 -> 166742.7689 | S63: =S62*'Wage & Income'!$F$10 -> 168414.7154 | T63: =T62*'Wage & Income'!$F$10 -> 170086.6618 | U63: =U62*'Wage & Income'!$F$10 -> 171758.6083 | V63: =V62*'Wage & Income'!$F$10 -> 173430.5547 | W63: =W62*'Wage & Income'!$F$10 -> 175102.5012 | X63: =X62*'Wage & Income'!$F$10 -> 176729.2599 | Y63: =Y62*'Wage & Income'!$F$10 -> 178401.2064 | Z63: =Z62*'Wage & Income'!$F$10 -> 180073.1529 | AA63: =AA62*'Wage & Income'!$F$10 -> 181745.0993 | AB63: =AB62*'Wage & Income'!$F$10 -> 183417.0458 | AC63: =AC62*'Wage & Income'!$F$10 -> 185088.9922 | AD63: =AD62*'Wage & Income'!$F$10 -> 186760.9387 | AE63: =AE62*'Wage & Income'!$F$10 -> 188432.8852 | AF63: =AF62*'Wage & Income'!$F$10 -> 190059.6439 | AG63: =AG62*'Wage & Income'!$F$10 -> 191731.5904 | AH63: =AH62*'Wage & Income'!$F$10 -> 193403.5368 | AI63: =AI62*'Wage & Income'!$F$10 -> 195075.4833 | AJ63: =AJ62*'Wage & Income'!$F$10 -> 196747.4297 | AK63: =AK62*'Wage & Income'!$F$10 -> 198419.3762
A64: Annual Cost of Travel Time Delay (say 150 days) | G64: =G63*150 -> 22266259.99 | H64: 22517051.96 | I64: =I63*150 -> 22761065.77 | J64: =J63*150 -> 23011857.74 | K64: 23262649.71 | L64: 23513441.68 | M64: 23764233.65 | N64: 24015025.62 | O64: 24265817.59 | P64: 24509831.39 | Q64: 24760623.36 | R64: 25011415.33 | S64: 25262207.3 | T64: 25512999.27 | U64: 25763791.24 | V64: 26014583.21 | W64: 26265375.18 | X64: 26509388.99 | Y64: 26760180.96 | Z64: 27010972.93 | AA64: 27261764.9 | AB64: 27512556.87 | AC64: 27763348.84 | AD64: 28014140.81 | AE64: 28264932.77 | AF64: 28508946.58 | AG64: 28759738.55 | AH64: 29010530.52 | AI64: 29261322.49 | AJ64: 29512114.46 | AK64: 29762906.43
A67: Truck classification
A68: % by Vehicle Class | C68: South of Timber Lane Drive Milepost 11.932, 2013 | H68: From AVTR, 2013 for Central Region
A69: 5 | B69: 6 | C69: 7 | D69: 8 | E69: 9 | F69: =E69+1 -> 10 | G69: =F69+1 -> 11 | H69: 12 | I69: 13 | J69: Total
A70: =AVERAGE(9.72,7.52)/100 -> 0.0862 | B70: =AVERAGE(1.32,1.67)/100 -> 0.01495 | C70: =AVERAGE(0.02,0.01)/100 -> 0.00015 | D70: =AVERAGE(1.66,1.61)/100 -> 0.01635 | E70: =AVERAGE(0.5,0.66)/100 -> 0.0058 | F70: =AVERAGE(0.33,0.31)/100 -> 0.0032 | G70: 0 | H70: 0 | I70: =AVERAGE(0.29,0.44)/100 -> 0.00365 | J70: =SUM(A70:I70) -> 0.1303 | K70: From ATVR
A71: =A70/$J$70 -> 0.6615502686 | B71: =B70/$J$70 -> 0.1147352264 | C71: 0.001151189563 | D71: 0.1254796623 | E71: 0.04451266309 | F71: 0.02455871067 | G71: 0 | H71: 0 | I71: 0.02801227936 | J71: =SUM(A71:I71) -> 1 | K71: Adjusted for trucks only
A72: Peak Length by Class (as derived by looking at peak lengths for each class in figure below); data were not found in the source document.
A73: 22 | B73: 27 | C73: 28 | D73: 55 | E73: 74 | F73: 64 | G73: 75 | H73: 83 | I73: 76
A74: Weighted Average Length (feet)
A75: =SUMPRODUCT(A71:I71,A73:I73) -> 31.58019954
A106: Source: | B106: https://www.lrrb.org/pdf/201233.pdf
A107: Loop- and Length-Based Vehicle Classification, Federal Highway Administration – Pooled Fund Program [TPF-5(192)]

Sheet Air Travel
A1: Note: Due to short airstrip at Seward and limited capacity of aircraft that can take off from Seward the number of air travelers is limited to the Other Business trips
A2: There is no scheduled air service currently; assumes that with bridge closure scheduled air service would resume. Cost estimate is based on Copper Valley Air which offers scheduled passenger service to other areas and also carries mail so it is assumed that passenger service is subsidized to some extent by U.S. Postal Service.
H4: Cost per Mile
A5: Company | E5: Flight miles | F5: One-way | G5: Round Trip | H5: One-Way | I5: Round Trip
A6: Copper Valley Air | C6: Anchorage | D6: McCarthy | E6: 233 | F6: 310 | G6: 620 | H6: =F6/E6 -> 1.330472103 | I6: =G6/(E6*2) -> 1.330472103 | L6: 97 | M6: 1.13 | O6: =TREND(M6:M8,L6:L8,L9,) -> 1.096862745 | P6: Trend Function
A7: Copper Valley Air | C7: Gulkana | D7: McCarthy | E7: 97 | F7: 110 | G7: 220 | H7: =F7/E7 -> 1.134020619 | I7: =G7/(E7*2) -> 1.134020619 | L7: 165 | M7: 1.21
A8: Copper Valley Air | C8: Anchorage | D8: Glennallen | E8: 165 | F8: 200 | G8: 400 | H8: =F8/E8 -> 1.212121212 | I8: =G8/(E8*2) -> 1.212121212 | L8: 233 | M8: 1.33
C9: Anchorage | D9: Seward | E9: 79 | F9: =E9*M9 -> 86.65215686 | G9: =F9*2 -> 173.3043137 | L9: 79 | M9: =O6 -> 1.096862745
A12: https://www.coppervalleyairservice.com/flights/scheduled-flights-anchorage-gulkana-mccarthy | J12: Accessed October 25, 2018
E16: 2018 | F16: =E16+1 -> 2019 | G16: =F16+1 -> 2020 | H16: 2021 | I16: 2022 | J16: 2023 | K16: 2024 | L16: 2025 | M16: 2026 | N16: 2027 | O16: 2028 | P16: 2029 | Q16: 2030 | R16: 2031 | S16: 2032 | T16: 2033 | U16: 2034 | V16: 2035 | W16: 2036 | X16: 2037 | Y16: 2038 | Z16: 2039 | AA16: 2040 | AB16: 2041 | AC16: 2042 | AD16: 2043 | AE16: 2044 | AF16: 2045 | AG16: 2046 | AH16: 2047 | AI16: 2048 | AJ16: 2049 | AK16: 2050 | AL16: 2051 | AM16: 2052 | AN16: 2053
B17: Other Business AADT | F17: =Traffic!H29 -> 141.5576712 | G17: =Traffic!I29 -> 143.2161091 | H17: =Traffic!J29 -> 144.874547 | I17: =Traffic!K29 -> 146.5329848 | J17: =Traffic!L29 -> 148.1914227 | K17: =Traffic!M29 -> 149.8498606 | L17: =Traffic!N29 -> 151.5082985 | M17: =Traffic!O29 -> 153.1667364 | N17: =Traffic!P29 -> 154.8251742 | O17: =Traffic!Q29 -> 156.4836121 | P17: =Traffic!R29 -> 158.14205 | Q17: =Traffic!S29 -> 159.8004879 | R17: =Traffic!T29 -> 161.4589258 | S17: =Traffic!U29 -> 163.1173636 | T17: =Traffic!V29 -> 164.7758015 | U17: =Traffic!W29 -> 166.4342394 | V17: =Traffic!X29 -> 168.0926773 | W17: =Traffic!Y29 -> 169.7511152 | X17: =Traffic!Z29 -> 171.409553 | Y17: =Traffic!AA29 -> 173.0679909 | Z17: =Traffic!AB29 -> 174.7264288 | AA17: =Traffic!AC29 -> 176.3848667 | AB17: =Traffic!AD29 -> 178.0433045 | AC17: =Traffic!AE29 -> 179.7017424 | AD17: =Traffic!AF29 -> 181.3601803 | AE17: =Traffic!AG29 -> 183.0186182 | AF17: =Traffic!AH29 -> 184.6770561 | AG17: =Traffic!AI29 -> 186.3354939 | AH17: =Traffic!AJ29 -> 187.9939318 | AI17: =Traffic!AK29 -> 189.6523697 | AJ17: =Traffic!AL29 -> 191.3108076 | AK17: =Traffic!AM29 -> 192.9692455 | AL17: =Traffic!AN29 -> 194.6276833 | AM17: =Traffic!AO29 -> 196.2861212 | AN17: =Traffic!AP29 -> 197.9445591
B19: Cost for air travel per AADT | E19: =F9 -> 86.65215686
B20: Total Daily Cost | E20: NPV | J20: =J17*$E$19 -> 12841.10641 | K20: 12984.81363 | L20: =L17*$E$19 -> 13128.52085 | M20: 13272.22807 | N20: 13415.93528 | O20: 13559.6425 | P20: 13703.34972 | Q20: 13847.05694 | R20: 13990.76416 | S20: 14134.47138 | T20: 14278.1786 | U20: 14421.88582 | V20: 14565.59304 | W20: 14709.30026 | X20: 14853.00748 | Y20: 14996.7147 | Z20: 15140.42192 | AA20: 15284.12913 | AB20: 15427.83635 | AC20: 15571.54357 | AD20: 15715.25079 | AE20: 15858.95801 | AF20: 16002.66523 | AG20: 16146.37245 | AH20: 16290.07967 | AI20: 16433.78689 | AJ20: 16577.49411 | AK20: 16721.20133 | AL20: 16864.90855 | AM20: 17008.61577 | AN20: 17152.32298
B21: Total Annual Cost | E21: =NPV('603 Snow River West'!C4,'Air Travel'!H21:AN21) -> 57013894.23 | F21: 0 | G21: 0 | H21: 0 | I21: 0 | J21: =J20*365 -> 4687003.839 | K21: 4739456.974 | L21: =L20*365 -> 4791910.109 | M21: 4844363.244 | N21: 4896816.379 | O21: 4949269.514 | P21: 5001722.649 | Q21: 5054175.784 | R21: 5106628.919 | S21: 5159082.054 | T21: 5211535.189 | U21: 5263988.324 | V21: 5316441.459 | W21: 5368894.594 | X21: 5421347.729 | Y21: 5473800.864 | Z21: 5526253.999 | AA21: 5578707.134 | AB21: 5631160.269 | AC21: 5683613.404 | AD21: 5736066.539 | AE21: 5788519.674 | AF21: 5840972.809 | AG21: 5893425.944 | AH21: 5945879.079 | AI21: 5998332.214 | AJ21: 6050785.349 | AK21: 6103238.484 | AL21: 6155691.619 | AM21: 6208144.754 | AN21: 6260597.889
A23: Air Travel Cost for Passengers
A24: Highway Travel Time Seward/Anchorage (hours) | E24: ='ARRC cost'!E58 -> 2.3 | F24: hours
A25: Air Travel Time Seward/Anchorage (hours) | E25: =E9/168+0.5+0.5+0.1+0.1 -> 1.670238095 | F25: hours
A26: Travel Time Delay per AADT | E26: =E25-E24 -> -0.6297619048
A27: Total Daily Travel Time Delay (hours) | J27: =J17*$E$26 -> -93.32531265 | K27: -94.36973364 | L27: =L17*$E$26 -> -95.41415464 | M27: =M17*$E$26 -> -96.45857564 | N27: -97.50299664 | O27: -98.54741763 | P27: -99.59183863 | Q27: -100.6362596 | R27: -101.6806806 | S27: -102.7251016 | T27: -103.7695226 | U27: -104.8139436 | V27: -105.8583646 | W27: -106.9027856 | X27: -107.9472066 | Y27: -108.9916276 | Z27: -110.0360486 | AA27: -111.0804696 | AB27: -112.1248906 | AC27: -113.1693116 | AD27: -114.2137326 | AE27: -115.2581536 | AF27: -116.3025746 | AG27: -117.3469956 | AH27: -118.3914166 | AI27: -119.4358376 | AJ27: -120.4802586 | AK27: -121.5246796 | AL27: -122.5691006 | AM27: -123.6135216 | AN27: -124.6579426
A28: Total Travel Time Cost (Benefit) | J28: =J27*'Wage & Income'!$F$14 -> -3867.764853 | K28: =K27*'Wage & Income'!$F$14 -> -3911.049732 | L28: =L27*'Wage & Income'!$F$14 -> -3954.33461 | M28: =M27*'Wage & Income'!$F$14 -> -3997.619489 | N28: =N27*'Wage & Income'!$F$14 -> -4040.904367 | O28: =O27*'Wage & Income'!$F$14 -> -4084.189246 | P28: =P27*'Wage & Income'!$F$14 -> -4127.474124 | Q28: =Q27*'Wage & Income'!$F$14 -> -4170.759003 | R28: =R27*'Wage & Income'!$F$14 -> -4214.043882 | S28: =S27*'Wage & Income'!$F$14 -> -4257.32876 | T28: =T27*'Wage & Income'!$F$14 -> -4300.613639 | U28: =U27*'Wage & Income'!$F$14 -> -4343.898517 | V28: =V27*'Wage & Income'!$F$14 -> -4387.183396 | W28: =W27*'Wage & Income'!$F$14 -> -4430.468274 | X28: =X27*'Wage & Income'!$F$14 -> -4473.753153 | Y28: =Y27*'Wage & Income'!$F$14 -> -4517.038032 | Z28: =Z27*'Wage & Income'!$F$14 -> -4560.32291 | AA28: =AA27*'Wage & Income'!$F$14 -> -4603.607789 | AB28: =AB27*'Wage & Income'!$F$14 -> -4646.892667 | AC28: =AC27*'Wage & Income'!$F$14 -> -4690.177546 | AD28: =AD27*'Wage & Income'!$F$14 -> -4733.462424 | AE28: =AE27*'Wage & Income'!$F$14 -> -4776.747303 | AF28: =AF27*'Wage & Income'!$F$14 -> -4820.032182 | AG28: =AG27*'Wage & Income'!$F$14 -> -4863.31706 | AH28: =AH27*'Wage & Income'!$F$14 -> -4906.601939 | AI28: =AI27*'Wage & Income'!$F$14 -> -4949.886817 | AJ28: =AJ27*'Wage & Income'!$F$14 -> -4993.171696 | AK28: =AK27*'Wage & Income'!$F$14 -> -5036.456574 | AL28: =AL27*'Wage & Income'!$F$14 -> -5079.741453 | AM28: =AM27*'Wage & Income'!$F$14 -> -5123.026332 | AN28: =AN27*'Wage & Income'!$F$14 -> -5166.31121
A30: Cruiising speed of Piper Cherokee 6: | E30: 168 | F30: https://www.aircraftdealer.com/aircraft_for_sale/Piper_Cherokee_Six/123/page-1.htm

Sheet List of Bridges
A9: Br. No. | B9: Br. Name | C9: Locality | D9: Route | E9: Historic MP | F9: Br. Width | G9: New Br. Width | H9: Br. Length | I9: New Br. Length | J9: Deck Area | K9: Condition | L9: Replace / Rehab. | N9: New Deck Area | P9: Construction Year(s)
A10: 574 | B10: Gulkana River | D10: Richardson Hwy. | E10: 126.9 | F10: 34 | H10: 405 | J10: =F10*H10 -> 13770 | K10: Poor | L10: Rehab. | N10: =I10*G10 -> 0 | P10: 2021
A11: 684 | B11: Rock Creek | D11: Denali Highway | E11: 24.9 | F11: 20 | G11: 33 | H11: 60.5 | I11: 124 | J11: =F11*H11 -> 1210 | K11: Poor | L11: Replace | N11: =I11*G11 -> 4092 | P11: 2021
A12: 1193 | B12: Chokosna River | D12: Edgerton/McCarthy | E12: 60.6 | F12: 20 | G12: 27 | H12: 103 | I12: 120 | J12: 2060 | K12: Poor | L12: Replace | N12: 3240 | P12: 2021 | Q12: 2022
A15: 603 | B15: Snow River West | D15: Seward Hwy. | E15: 17.1 | F15: 30.1 | G15: =F15 -> 30.1 | H15: 188 | I15: =H15 -> 188 | J15: =F15*H15 -> 5658.8 | K15: Poor | L15: Rehab. | N15: 5658.8 | P15: 2019
A16: 605 | B16: Snow River Center | D16: Seward Hwy. | E16: 17.7 | F16: 30.1 | G16: =F16 -> 30.1 | H16: 649 | I16: =H16 -> 649 | J16: =F16*H16 -> 19534.9 | K16: Poor | L16: Rehab. | N16: 19534.9 | P16: 2019
A17: 607 | B17: Victor Creek | D17: Seward Hwy. | E17: 19.7 | F17: 24.2 | G17: 37 | H17: 198 | I17: 220 | J17: =F17*H17 -> 4791.6 | K17: Fair | L17: Replace | N17: 8140 | P17: 2019
E19: CDS Mile Point
A20: 253 | B20: Herring Cove | C20: Ketchikan | D20: So. Tongass Hwy. | E20: 10.7 | F20: 26.8 | H20: 116 | J20: =F20*H20 -> 3108.8 | K20: Poor | L20: Replace | N20: 0 | P20: 2019
A21: 725 | B21: Hoadley Creek | C21: Ketchikan | D21: Tongass Ave. (So. Tongass Hwy.) | E21: 0.2 | F21: 49.1 | H21: 45 | J21: =F21*H21 -> 2209.5 | K21: Poor | L21: Replace | N21: 0 | P21: 2021
A22: 747 | B22: Ward Creek | C22: Ketchikan | D22: No. Tongass Hwy. | E22: 4.6 | F22: 34.8 | H22: 195 | J22: =F22*H22 -> 6786 | K22: Serious | L22: Rehab. | N22: 0 | P22: 2019
K24: 1

Sheet CR NBI
A1: Historic NBI Values
B2: Bridge #603 | E2: Bridge #605 | H2: Bridge #607
A3: Year | B3: Deck | C3: Super | D3: Sub | E3: Deck | F3: Super | G3: Sub | H3: Deck | I3: Super | J3: Sub
A4: 1995 | B4: 6 | C4: 8 | D4: 8 | E4: 5 | F4: 8 | G4: 8 | H4: 6 | I4: 6 | J4: 6
A5: 1997 | B5: 5 | C5: 5 | D5: 5 | E5: 5 | F5: 5 | G5: 5 | H5: 5 | I5: 5 | J5: 5
A6: 1999 | B6: 5 | C6: 5 | D6: 5 | E6: 5 | F6: 5 | G6: 5 | H6: 5 | I6: 5 | J6: 5
A7: 2001 | B7: 5 | C7: 5 | D7: 5 | E7: 5 | F7: 5 | G7: 5 | H7: 5 | I7: 5 | J7: 5
A8: 2003 | B8: 5 | C8: 6 | D8: 5 | E8: 5 | F8: 7 | G8: 7 | H8: 5 | I8: 5 | J8: 5
A9: 2005 | B9: 5 | C9: 6 | D9: 5 | E9: 5 | F9: 7 | G9: 7 | H9: 5 | I9: 5 | J9: 5
A10: 2007 | B10: 4 | C10: 6 | D10: 5 | E10: 4 | F10: 7 | G10: 7 | H10: 5 | I10: 5 | J10: 5
A11: 2009 | B11: 4 | C11: 6 | D11: 5 | E11: 4 | F11: 7 | G11: 7 | H11: 5 | I11: 5 | J11: 5
A12: 2011 | B12: 4 | C12: 6 | D12: 6 | E12: 4 | F12: 7 | G12: 7 | H12: 5 | I12: 5 | J12: 5
A13: 2013 | B13: 4 | C13: 6 | D13: 6 | E13: 4 | F13: 7 | G13: 7 | H13: 5 | I13: 5 | J13: 5
A14: 2015 | B14: 4 | C14: 6 | D14: 6 | E14: 4 | F14: 7 | G14: 7 | H14: 5 | I14: 5 | J14: 5
A15: 2017 | B15: 4 | C15: 6 | D15: 6 | E15: 4 | F15: 7 | G15: 7 | H15: 5 | I15: 5 | J15: 5
B16: =(B26+B27)-(A15-A10) -> -2.4 | C16: =(C24+C25+C26+C27)-(A15-A8) -> 23 | D16: =(D24+D25+D26+D27)-(A15-A12) -> 35 | E16: =(B26+B27)-(A15-A10) -> -2.4 | F16: =(C23+C24+C25+C26+C27)-(A15-A8) -> 41 | G16: =(D23+D24+D25+D26+D27)-(A15-A8) -> 46 | H16: =(B25+B26+B27)-(A15-A5) -> 1.6 | I16: =(C25+C26+C27)-(A15-A5) -> 3 | J16: =(D25+D26+D27)-(A15-A5) -> 2.5 | K16: Remaining Years until NBI = 2
A18: Deterioration Model
B19: NBI Transition Time in Years
A20: NBI Rating | B20: Deck | C20: Super | D20: Sub
A21: 9 | B21: 2 | C21: 2 | D21: 2
A22: 8 | B22: 18.65 | C22: 12.5 | D22: 15.5
A23: 7 | B23: 13.75 | C23: 18 | D23: 19
A24: 6 | B24: 14.5 | C24: 14 | D24: 18.5
A25: 5 | B25: 14 | C25: 12 | D25: 10.5
A26: 4 | B26: 5 | C26: 7 | D26: 8
A27: 3 | B27: 2.6 | C27: 4 | D27: 4
A28: 2 | B28: 0 | C28: 0.5 | D28: 0.5
A29: 1 | B29: 0 | C29: 0 | D29: 0
A30: Sum | B30: 70.5 | C30: 70 | D30: 78
A33: Rating | B33: Total Years
A34: 8 | B34: =COUNTIF(B$4:B$15,$A34) -> 0 | C34: =COUNTIF(C$4:C$15,$A34) -> 1 | D34: 1 | E34: 0 | F34: 1 | G34: 1 | H34: 0 | I34: 0 | J34: 0
A35: 7 | B35: =COUNTIF(B$4:B$15,$A35) -> 0 | C35: 0 | D35: 0 | E35: 0 | F35: 8 | G35: 8 | H35: 0 | I35: 0 | J35: 0
A36: 6 | B36: 1 | C36: 8 | D36: 4 | E36: 0 | F36: 0 | G36: 0 | H36: 1 | I36: 1 | J36: 1
A37: 5 | B37: 5 | C37: 3 | D37: 7 | E37: 6 | F37: 3 | G37: 3 | H37: 11 | I37: 11 | J37: 11
A38: 4 | B38: 6 | C38: 0 | D38: 0 | E38: 6 | F38: 0 | G38: 0 | H38: 0 | I38: 0 | J38: 0
A39: 3 | B39: 0 | C39: 0 | D39: 0 | E39: 0 | F39: 0 | G39: 0 | H39: 0 | I39: 0 | J39: 0
A40: Sum | B40: =SUM(B34:B39) -> 12 | C40: =SUM(C34:C39) -> 12 | D40: 12 | E40: 12 | F40: 12 | G40: 12 | H40: 12 | I40: 12 | J40: 12

Sheet Emissions
A2: Bridge 603 amd 605 Baseline | D2: Load Limits | E2: Load Limits | F2: Load Limits Single Lane | G2: Bridge Closure
A3: Snow River Bridges | B3: =Traffic!G5 -> 2018 | C3: =Traffic!H5 -> 2019 | D3: =Traffic!I5 -> 2020 | E3: =Traffic!J5 -> 2021 | F3: =Traffic!K5 -> 2022 | G3: =Traffic!L5 -> 2023 | H3: =Traffic!M5 -> 2024 | I3: =Traffic!N5 -> 2025 | J3: =Traffic!O5 -> 2026 | K3: =Traffic!P5 -> 2027 | L3: =Traffic!Q5 -> 2028 | M3: =Traffic!R5 -> 2029 | N3: =Traffic!S5 -> 2030 | O3: =Traffic!T5 -> 2031 | P3: =Traffic!U5 -> 2032 | Q3: =Traffic!V5 -> 2033 | R3: =Traffic!W5 -> 2034 | S3: =Traffic!X5 -> 2035 | T3: =Traffic!Y5 -> 2036 | U3: =Traffic!Z5 -> 2037 | V3: =Traffic!AA5 -> 2038 | W3: =Traffic!AB5 -> 2039 | X3: =Traffic!AC5 -> 2040 | Y3: =Traffic!AD5 -> 2041 | Z3: =Traffic!AE5 -> 2042 | AA3: =Traffic!AF5 -> 2043 | AB3: =Traffic!AG5 -> 2044 | AC3: =Traffic!AH5 -> 2045 | AD3: =Traffic!AI5 -> 2046 | AE3: =Traffic!AJ5 -> 2047 | AF3: =Traffic!AK5 -> 2048 | AG3: =Traffic!AL5 -> 2049
A4: Annual Average Daily Traffic
A5: =Traffic!F27 -> Trucks AADT | B5: =Traffic!G27 -> 269.16406 | C5: =Traffic!H27 -> 272.35487 | D5: =Traffic!I27 -> 275.54568 | E5: =Traffic!J27 -> 278.73649 | F5: =Traffic!K27 -> 281.9273 | G5: =Traffic!L27 -> 285.11811 | H5: =Traffic!M27 -> 288.30892 | I5: =Traffic!N27 -> 291.49973 | J5: =Traffic!O27 -> 294.69054 | K5: =Traffic!P27 -> 297.88135 | L5: =Traffic!Q27 -> 301.07216 | M5: =Traffic!R27 -> 304.26297 | N5: =Traffic!S27 -> 307.45378 | O5: =Traffic!T27 -> 310.64459 | P5: =Traffic!U27 -> 313.8354 | Q5: =Traffic!V27 -> 317.02621 | R5: =Traffic!W27 -> 320.21702 | S5: =Traffic!X27 -> 323.40783 | T5: =Traffic!Y27 -> 326.59864 | U5: =Traffic!Z27 -> 329.78945 | V5: =Traffic!AA27 -> 332.98026 | W5: =Traffic!AB27 -> 336.17107 | X5: =Traffic!AC27 -> 339.36188 | Y5: =Traffic!AD27 -> 342.55269 | Z5: =Traffic!AE27 -> 345.7435 | AA5: =Traffic!AF27 -> 348.93431 | AB5: =Traffic!AG27 -> 352.12512 | AC5: =Traffic!AH27 -> 355.31593 | AD5: =Traffic!AI27 -> 358.50674 | AE5: =Traffic!AJ27 -> 361.69755 | AF5: =Traffic!AK27 -> 364.88836 | AG5: =Traffic!AL27 -> 368.07917
A6: # of rail cars | G6: ='ARRC cost'!G8 -> 52.96521651 | H6: ='ARRC cost'!H8 -> 53.55796013 | I6: ='ARRC cost'!I8 -> 54.15070376 | J6: ='ARRC cost'!J8 -> 54.74344739 | K6: ='ARRC cost'!K8 -> 55.33619101 | L6: ='ARRC cost'!L8 -> 55.92893464 | M6: ='ARRC cost'!M8 -> 56.52167827 | N6: ='ARRC cost'!N8 -> 57.11442189 | O6: ='ARRC cost'!O8 -> 57.70716552 | P6: ='ARRC cost'!P8 -> 58.29990914 | Q6: ='ARRC cost'!Q8 -> 58.89265277 | R6: ='ARRC cost'!R8 -> 59.4853964 | S6: ='ARRC cost'!S8 -> 60.07814002 | T6: ='ARRC cost'!T8 -> 60.67088365 | U6: ='ARRC cost'!U8 -> 61.26362728 | V6: ='ARRC cost'!V8 -> 61.8563709 | W6: ='ARRC cost'!W8 -> 62.44911453 | X6: ='ARRC cost'!X8 -> 63.04185816 | Y6: ='ARRC cost'!Y8 -> 63.63460178 | Z6: ='ARRC cost'!Z8 -> 64.22734541 | AA6: ='ARRC cost'!AA8 -> 64.82008904 | AB6: ='ARRC cost'!AB8 -> 65.41283266 | AC6: ='ARRC cost'!AC8 -> 66.00557629 | AD6: ='ARRC cost'!AD8 -> 66.59831991 | AE6: ='ARRC cost'!AE8 -> 67.19106354 | AF6: ='ARRC cost'!AF8 -> 67.78380717 | AG6: ='ARRC cost'!AG8 -> 68.37655079
A7: =Traffic!F28 -> Buses AADT | B7: =Traffic!G28 -> 32.83244 | C7: =Traffic!H28 -> 33.22165273 | D7: =Traffic!I28 -> 33.61086545 | E7: =Traffic!J28 -> 34.00007818 | F7: =Traffic!K28 -> 34.38929091 | G7: =Traffic!L28 -> 34.77850364 | H7: =Traffic!M28 -> 35.16771636 | I7: =Traffic!N28 -> 35.55692909 | J7: =Traffic!O28 -> 35.94614182 | K7: =Traffic!P28 -> 36.33535455 | L7: =Traffic!Q28 -> 36.72456727 | M7: =Traffic!R28 -> 37.11378 | N7: =Traffic!S28 -> 37.50299273 | O7: =Traffic!T28 -> 37.89220545 | P7: =Traffic!U28 -> 38.28141818 | Q7: =Traffic!V28 -> 38.67063091 | R7: =Traffic!W28 -> 39.05984364 | S7: =Traffic!X28 -> 39.44905636 | T7: =Traffic!Y28 -> 39.83826909 | U7: =Traffic!Z28 -> 40.22748182 | V7: =Traffic!AA28 -> 40.61669455 | W7: =Traffic!AB28 -> 41.00590727 | X7: =Traffic!AC28 -> 41.39512 | Y7: =Traffic!AD28 -> 41.78433273 | Z7: =Traffic!AE28 -> 42.17354545 | AA7: =Traffic!AF28 -> 42.56275818 | AB7: =Traffic!AG28 -> 42.95197091 | AC7: =Traffic!AH28 -> 43.34118364 | AD7: =Traffic!AI28 -> 43.73039636 | AE7: =Traffic!AJ28 -> 44.11960909 | AF7: =Traffic!AK28 -> 44.50882182 | AG7: =Traffic!AL28 -> 44.89803455
A8: # of passengers | G8: =G7*$B$94 -> 372.1299889 | H8: 376.2945651 | I8: 380.4591413 | J8: 384.6237175 | K8: 388.7882936 | L8: 392.9528698 | M8: 397.117446 | N8: 401.2820222 | O8: 405.4465984 | P8: 409.6111745 | Q8: 413.7757507 | R8: 417.9403269 | S8: 422.1049031 | T8: 426.2694793 | U8: 430.4340555 | V8: 434.5986316 | W8: 438.7632078 | X8: 442.927784 | Y8: 447.0923602 | Z8: 451.2569364 | AA8: 455.4215125 | AB8: 459.5860887 | AC8: 463.7506649 | AD8: 467.9152411 | AE8: 472.0798173 | AF8: 476.2443935 | AG8: 480.4089696
A9: # of rail cars | G9: =ROUNDUP(G8/$B$103,1) -> 1.9 | H9: 1.9 | I9: 2 | J9: 2 | K9: 2 | L9: 2 | M9: 2 | N9: 2.1 | O9: 2.1 | P9: 2.1 | Q9: 2.1 | R9: 2.1 | S9: 2.2 | T9: 2.2 | U9: 2.2 | V9: 2.2 | W9: 2.2 | X9: 2.3 | Y9: 2.3 | Z9: 2.3 | AA9: 2.3 | AB9: 2.3 | AC9: 2.4 | AD9: 2.4 | AE9: 2.4 | AF9: 2.4 | AG9: 2.5
A10: =Traffic!F29 -> Other Business AADT | B10: =Traffic!G29 -> 139.8992333 | C10: =Traffic!H29 -> 141.5576712 | D10: =Traffic!I29 -> 143.2161091 | E10: =Traffic!J29 -> 144.874547 | F10: =Traffic!K29 -> 146.5329848 | G10: =Traffic!L29 -> 148.1914227 | H10: =Traffic!M29 -> 149.8498606 | I10: =Traffic!N29 -> 151.5082985 | J10: =Traffic!O29 -> 153.1667364 | K10: =Traffic!P29 -> 154.8251742 | L10: =Traffic!Q29 -> 156.4836121 | M10: =Traffic!R29 -> 158.14205 | N10: =Traffic!S29 -> 159.8004879 | O10: =Traffic!T29 -> 161.4589258 | P10: =Traffic!U29 -> 163.1173636 | Q10: =Traffic!V29 -> 164.7758015 | R10: =Traffic!W29 -> 166.4342394 | S10: =Traffic!X29 -> 168.0926773 | T10: =Traffic!Y29 -> 169.7511152 | U10: =Traffic!Z29 -> 171.409553 | V10: =Traffic!AA29 -> 173.0679909 | W10: =Traffic!AB29 -> 174.7264288 | X10: =Traffic!AC29 -> 176.3848667 | Y10: =Traffic!AD29 -> 178.0433045 | Z10: =Traffic!AE29 -> 179.7017424 | AA10: =Traffic!AF29 -> 181.3601803 | AB10: =Traffic!AG29 -> 183.0186182 | AC10: =Traffic!AH29 -> 184.6770561 | AD10: =Traffic!AI29 -> 186.3354939 | AE10: =Traffic!AJ29 -> 187.9939318 | AF10: =Traffic!AK29 -> 189.6523697 | AG10: =Traffic!AL29 -> 191.3108076
A11: =Traffic!F30 -> Personal AADT | B11: =Traffic!G30 -> 1623.0376 | C11: =Traffic!H30 -> 1642.277927 | D11: =Traffic!I30 -> 1661.518255 | E11: =Traffic!J30 -> 1680.758582 | F11: =Traffic!K30 -> 1699.998909 | G11: =Traffic!L30 -> 1719.239236 | H11: =Traffic!M30 -> 1738.479564 | I11: =Traffic!N30 -> 1757.719891 | J11: =Traffic!O30 -> 1776.960218 | K11: =Traffic!P30 -> 1796.200545 | L11: =Traffic!Q30 -> 1815.440873 | M11: =Traffic!R30 -> 1834.6812 | N11: =Traffic!S30 -> 1853.921527 | O11: =Traffic!T30 -> 1873.161855 | P11: =Traffic!U30 -> 1892.402182 | Q11: =Traffic!V30 -> 1911.642509 | R11: =Traffic!W30 -> 1930.882836 | S11: =Traffic!X30 -> 1950.123164 | T11: =Traffic!Y30 -> 1969.363491 | U11: =Traffic!Z30 -> 1988.603818 | V11: =Traffic!AA30 -> 2007.844145 | W11: =Traffic!AB30 -> 2027.084473 | X11: =Traffic!AC30 -> 2046.3248 | Y11: =Traffic!AD30 -> 2065.565127 | Z11: =Traffic!AE30 -> 2084.805455 | AA11: =Traffic!AF30 -> 2104.045782 | AB11: =Traffic!AG30 -> 2123.286109 | AC11: =Traffic!AH30 -> 2142.526436 | AD11: =Traffic!AI30 -> 2161.766764 | AE11: =Traffic!AJ30 -> 2181.007091 | AF11: =Traffic!AK30 -> 2200.247418 | AG11: =Traffic!AL30 -> 2219.487745
A12: # of passengers | G12: =G11*$B$93 -> 2922.706702 | H12: 2955.415258 | I12: 2988.123815 | J12: 3020.832371 | K12: 3053.540927 | L12: 3086.249484 | M12: 3118.95804 | N12: 3151.666596 | O12: 3184.375153 | P12: 3217.083709 | Q12: 3249.792265 | R12: 3282.500822 | S12: 3315.209378 | T12: 3347.917935 | U12: 3380.626491 | V12: 3413.335047 | W12: 3446.043604 | X12: 3478.75216 | Y12: 3511.460716 | Z12: 3544.169273 | AA12: 3576.877829 | AB12: 3609.586385 | AC12: 3642.294942 | AD12: 3675.003498 | AE12: 3707.712055 | AF12: 3740.420611 | AG12: 3773.129167
A13: # of bus trips | G13: =G12/$B$102 -> 58.45413404 | H13: 59.10830516 | I13: 59.76247629 | J13: 60.41664742 | K13: 61.07081855 | L13: 61.72498967 | M13: 62.3791608 | N13: 63.03333193 | O13: 63.68750305 | P13: 64.34167418 | Q13: 64.99584531 | R13: 65.65001644 | S13: 66.30418756 | T13: 66.95835869 | U13: 67.61252982 | V13: 68.26670095 | W13: 68.92087207 | X13: 69.5750432 | Y13: 70.22921433 | Z13: 70.88338545 | AA13: 71.53755658 | AB13: 72.19172771 | AC13: 72.84589884 | AD13: 73.50006996 | AE13: 74.15424109 | AF13: 74.80841222 | AG13: 75.46258335
A14: # of rail cars | G14: =G12/$B$103 -> 14.61353351 | H14: 14.77707629 | I14: 14.94061907 | J14: 15.10416185 | K14: 15.26770464 | L14: 15.43124742 | M14: 15.5947902 | N14: 15.75833298 | O14: 15.92187576 | P14: 16.08541855 | Q14: 16.24896133 | R14: 16.41250411 | S14: 16.57604689 | T14: 16.73958967 | U14: 16.90313245 | V14: 17.06667524 | W14: 17.23021802 | X14: 17.3937608 | Y14: 17.55730358 | Z14: 17.72084636 | AA14: 17.88438915 | AB14: 18.04793193 | AC14: 18.21147471 | AD14: 18.37501749 | AE14: 18.53856027 | AF14: 18.70210305 | AG14: 18.86564584
A15: Bus & Personal Passengers
A16: # of passengers | G16: =G12+G8 -> 3294.836691 | H16: =H12+H8 -> 3331.709823 | I16: 3368.582956 | J16: 3405.456088 | K16: 3442.329221 | L16: 3479.202353 | M16: 3516.075486 | N16: 3552.948619 | O16: 3589.821751 | P16: 3626.694884 | Q16: 3663.568016 | R16: 3700.441149 | S16: 3737.314281 | T16: 3774.187414 | U16: 3811.060546 | V16: 3847.933679 | W16: 3884.806811 | X16: 3921.679944 | Y16: 3958.553077 | Z16: 3995.426209 | AA16: 4032.299342 | AB16: 4069.172474 | AC16: 4106.045607 | AD16: 4142.918739 | AE16: 4179.791872 | AF16: 4216.665004 | AG16: 4253.538137
A17: # of ferry trips | G17: =G16/$B$98 -> 5.491394485 | H17: 5.552849705 | I17: 5.614304926 | J17: 5.675760147 | K17: 5.737215368 | L17: 5.798670589 | M17: 5.86012581 | N17: 5.921581031 | O17: 5.983036252 | P17: 6.044491473 | Q17: 6.105946694 | R17: 6.167401915 | S17: 6.228857135 | T17: 6.290312356 | U17: 6.351767577 | V17: 6.413222798 | W17: 6.474678019 | X17: 6.53613324 | Y17: 6.597588461 | Z17: 6.659043682 | AA17: 6.720498903 | AB17: 6.781954124 | AC17: 6.843409345 | AD17: 6.904864565 | AE17: 6.966319786 | AF17: 7.027775007 | AG17: 7.089230228
A20: Emissions Reduction (grams)
A21: Trucks and Buses (VOC) | G21: =(G5+G7)*$B$82*365*$K$74 -> 6576284.232 | H21: 6649880.656 | I21: 6723477.081 | J21: 6797073.506 | K21: 6870669.93 | L21: 6944266.355 | M21: 7017862.779 | N21: 7091459.204 | O21: 7165055.629 | P21: 7238652.053 | Q21: 7312248.478 | R21: 7385844.903 | S21: 7459441.327 | T21: 7533037.752 | U21: 7606634.176 | V21: 7680230.601 | W21: 7753827.026 | X21: 7827423.45 | Y21: 7901019.875 | Z21: 7974616.299 | AA21: 8048212.724 | AB21: 8121809.149 | AC21: 8195405.573 | AD21: 8269001.998 | AE21: 8342598.423 | AF21: 8416194.847 | AG21: 8489791.272
A22: Trucks and Buses (NOx) | G22: =(G5+G7)*$B$82*365*$K$75 -> 126714845.8 | H22: 128132935.3 | I22: 129551024.8 | J22: 130969114.3 | K22: 132387203.8 | L22: 133805293.3 | M22: 135223382.8 | N22: 136641472.3 | O22: 138059561.8 | P22: 139477651.3 | Q22: 140895740.8 | R22: 142313830.3 | S22: 143731919.8 | T22: 145150009.3 | U22: 146568098.8 | V22: 147986188.3 | W22: 149404277.8 | X22: 150822367.3 | Y22: 152240456.8 | Z22: 153658546.3 | AA22: 155076635.8 | AB22: 156494725.3 | AC22: 157912814.8 | AD22: 159330904.3 | AE22: 160748993.8 | AF22: 162167083.3 | AG22: 163585172.8
A23: Trucks and Buses (PM) | G23: =(G5+G7)*$B$82*365*$K$77 -> 2971833.143 | H23: 3005091.482 | I23: 3038349.822 | J23: 3071608.161 | K23: 3104866.501 | L23: 3138124.84 | M23: 3171383.18 | N23: 3204641.52 | O23: 3237899.859 | P23: 3271158.199 | Q23: 3304416.538 | R23: 3337674.878 | S23: 3370933.217 | T23: 3404191.557 | U23: 3437449.896 | V23: 3470708.236 | W23: 3503966.575 | X23: 3537224.915 | Y23: 3570483.254 | Z23: 3603741.594 | AA23: 3636999.933 | AB23: 3670258.273 | AC23: 3703516.613 | AD23: 3736774.952 | AE23: 3770033.292 | AF23: 3803291.631 | AG23: 3836549.971
A24: Passenger Cars (VOC) | G24: =(G10+G11)*$B$82*365*$H$74 -> 88803162.64 | H24: 89796975.41 | I24: 90790788.18 | J24: 91784600.95 | K24: 92778413.73 | L24: 93772226.5 | M24: 94766039.27 | N24: 95759852.04 | O24: 96753664.82 | P24: 97747477.59 | Q24: 98741290.36 | R24: 99735103.13 | S24: 100728915.9 | T24: 101722728.7 | U24: 102716541.5 | V24: 103710354.2 | W24: 104704167 | X24: 105697979.8 | Y24: 106691792.5 | Z24: 107685605.3 | AA24: 108679418.1 | AB24: 109673230.9 | AC24: 110667043.6 | AD24: 111660856.4 | AE24: 112654669.2 | AF24: 113648481.9 | AG24: 114642294.7
A25: Passenger Cars (NOx) | G25: =(G10+G11)*$B$82*365*$H$75 -> 59517013.26 | H25: 60183079.26 | I25: 60849145.27 | J25: 61515211.28 | K25: 62181277.28 | L25: 62847343.29 | M25: 63513409.3 | N25: 64179475.31 | O25: 64845541.31 | P25: 65511607.32 | Q25: 66177673.33 | R25: 66843739.33 | S25: 67509805.34 | T25: 68175871.35 | U25: 68841937.35 | V25: 69508003.36 | W25: 70174069.37 | X25: 70840135.38 | Y25: 71506201.38 | Z25: 72172267.39 | AA25: 72838333.4 | AB25: 73504399.4 | AC25: 74170465.41 | AD25: 74836531.42 | AE25: 75502597.43 | AF25: 76168663.43 | AG25: 76834729.44
A26: Passenger Cars (PM) | G26: =(G10+G11)*$B$82*365*$H$77 -> 352120.8576 | H26: 356061.5079 | I26: 360002.1582 | J26: 363942.8084 | K26: 367883.4587 | L26: 371824.1089 | M26: 375764.7592 | N26: 379705.4095 | O26: 383646.0597 | P26: 387586.71 | Q26: 391527.3602 | R26: 395468.0105 | S26: 399408.6607 | T26: 403349.311 | U26: 407289.9613 | V26: 411230.6115 | W26: 415171.2618 | X26: 419111.912 | Y26: 423052.5623 | Z26: 426993.2126 | AA26: 430933.8628 | AB26: 434874.5131 | AC26: 438815.1633 | AD26: 442755.8136 | AE26: 446696.4638 | AF26: 450637.1141 | AG26: 454577.7644
A27: Emissions Reduction (short tons)
A28: Trucks and Buses (VOC) | G28: =G21*$F$93 -> 7.233912655 | H28: 7.314868722 | I28: 7.395824789 | J28: 7.476780856 | K28: 7.557736923 | L28: 7.63869299 | M28: 7.719649057 | N28: 7.800605124 | O28: 7.881561192 | P28: 7.962517259 | Q28: 8.043473326 | R28: 8.124429393 | S28: 8.20538546 | T28: 8.286341527 | U28: 8.367297594 | V28: 8.448253661 | W28: 8.529209728 | X28: 8.610165795 | Y28: 8.691121862 | Z28: 8.772077929 | AA28: 8.853033996 | AB28: 8.933990064 | AC28: 9.014946131 | AD28: 9.095902198 | AE28: 9.176858265 | AF28: 9.257814332 | AG28: 9.338770399
A29: Trucks and Buses (NOx) | G29: =G22*$F$93 -> 139.3863304 | H29: 140.9462289 | I29: 142.5061273 | J29: 144.0660258 | K29: 145.6259242 | L29: 147.1858227 | M29: 148.7457211 | N29: 150.3056195 | O29: 151.865518 | P29: 153.4254164 | Q29: 154.9853149 | R29: 156.5452133 | S29: 158.1051118 | T29: 159.6650102 | U29: 161.2249087 | V29: 162.7848071 | W29: 164.3447056 | X29: 165.904604 | Y29: 167.4645025 | Z29: 169.0244009 | AA29: 170.5842994 | AB29: 172.1441978 | AC29: 173.7040962 | AD29: 175.2639947 | AE29: 176.8238931 | AF29: 178.3837916 | AG29: 179.94369
A30: Trucks and Buses (PM) | G30: =G23*$F$93 -> 3.269016457 | H30: 3.305600631 | I30: 3.342184804 | J30: 3.378768977 | K30: 3.415353151 | L30: 3.451937324 | M30: 3.488521498 | N30: 3.525105671 | O30: 3.561689845 | P30: 3.598274018 | Q30: 3.634858192 | R30: 3.671442365 | S30: 3.708026539 | T30: 3.744610712 | U30: 3.781194886 | V30: 3.817779059 | W30: 3.854363233 | X30: 3.890947406 | Y30: 3.92753158 | Z30: 3.964115753 | AA30: 4.000699927 | AB30: 4.0372841 | AC30: 4.073868274 | AD30: 4.110452447 | AE30: 4.147036621 | AF30: 4.183620794 | AG30: 4.220204968
A31: Passenger Cars (VOC) | G31: =G24*$F$93 -> 97.6834789 | H31: 98.77667295 | I31: 99.869867 | J31: 100.963061 | K31: 102.0562551 | L31: 103.1494491 | M31: 104.2426432 | N31: 105.3358372 | O31: 106.4290313 | P31: 107.5222253 | Q31: 108.6154194 | R31: 109.7086134 | S31: 110.8018075 | T31: 111.8950015 | U31: 112.9881956 | V31: 114.0813896 | W31: 115.1745837 | X31: 116.2677777 | Y31: 117.3609718 | Z31: 118.4541658 | AA31: 119.5473599 | AB31: 120.6405539 | AC31: 121.733748 | AD31: 122.826942 | AE31: 123.9201361 | AF31: 125.0133301 | AG31: 126.1065242
A32: Passenger Cars (NOx) | G32: =G25*$F$93 -> 65.46871458 | H32: 66.20138719 | I32: 66.9340598 | J32: 67.6667324 | K32: 68.39940501 | L32: 69.13207762 | M32: 69.86475023 | N32: 70.59742284 | O32: 71.33009544 | P32: 72.06276805 | Q32: 72.79544066 | R32: 73.52811327 | S32: 74.26078587 | T32: 74.99345848 | U32: 75.72613109 | V32: 76.4588037 | W32: 77.19147631 | X32: 77.92414891 | Y32: 78.65682152 | Z32: 79.38949413 | AA32: 80.12216674 | AB32: 80.85483934 | AC32: 81.58751195 | AD32: 82.32018456 | AE32: 83.05285717 | AF32: 83.78552978 | AG32: 84.51820238
A33: Passenger Cars (PM) | G33: =G26*$F$93 -> 0.3873329434 | H33: 0.3916676587 | I33: 0.396002374 | J33: 0.4003370893 | K33: 0.4046718045 | L33: 0.4090065198 | M33: 0.4133412351 | N33: 0.4176759504 | O33: 0.4220106657 | P33: 0.426345381 | Q33: 0.4306800963 | R33: 0.4350148115 | S33: 0.4393495268 | T33: 0.4436842421 | U33: 0.4480189574 | V33: 0.4523536727 | W33: 0.456688388 | X33: 0.4610231032 | Y33: 0.4653578185 | Z33: 0.4696925338 | AA33: 0.4740272491 | AB33: 0.4783619644 | AC33: 0.4826966797 | AD33: 0.4870313949 | AE33: 0.4913661102 | AF33: 0.4957008255 | AG33: 0.5000355408
B35: NPV
A36: Emissions Reductions Cost | B36: =SUM(B37:B39) -> 30748470.74
A37: VOC | B37: =NPV(7%,C37:AG37) -> 2052877.518 | C37: 0 | D37: 0 | E37: 0 | F37: 0 | G37: =(G28+G31)*$G$84 -> 203726.6752 | H37: 206006.6185 | I37: 208286.5618 | J37: 210566.505 | K37: 212846.4483 | L37: 215126.3915 | M37: 217406.3348 | N37: 219686.278 | O37: 221966.2213 | P37: 224246.1646 | Q37: 226526.1078 | R37: 228806.0511 | S37: 231085.9943 | T37: 233365.9376 | U37: 235645.8808 | V37: 237925.8241 | W37: 240205.7674 | X37: 242485.7106 | Y37: 244765.6539 | Z37: 247045.5971 | AA37: 249325.5404 | AB37: 251605.4837 | AC37: 253885.4269 | AD37: 256165.3702 | AE37: 258445.3134 | AF37: 260725.2567 | AG37: 263005.1999
A38: NOx | B38: =NPV(7%,C38:AG38) -> 15797614.13 | C38: 0 | D38: 0 | E38: 0 | F38: 0 | G38: =(G29+G32)*$G$85 -> 1567748.38 | H38: 1585293.345 | I38: 1602838.31 | J38: 1620383.275 | K38: 1637928.24 | L38: 1655473.205 | M38: 1673018.169 | N38: 1690563.134 | O38: 1708108.099 | P38: 1725653.064 | Q38: 1743198.029 | R38: 1760742.993 | S38: 1778287.958 | T38: 1795832.923 | U38: 1813377.888 | V38: 1830922.853 | W38: 1848467.818 | X38: 1866012.782 | Y38: 1883557.747 | Z38: 1901102.712 | AA38: 1918647.677 | AB38: 1936192.642 | AC38: 1953737.607 | AD38: 1971282.571 | AE38: 1988827.536 | AF38: 2006372.501 | AG38: 2023917.466
A39: PM | B39: =NPV(7%,C39:AG39) -> 12897979.09 | C39: 0 | D39: 0 | E39: 0 | F39: 0 | G39: =(G30+G33)*$G$86 -> 1279989.856 | H39: 1294314.461 | I39: 1308639.067 | J39: 1322963.672 | K39: 1337288.277 | L39: 1351612.883 | M39: 1365937.488 | N39: 1380262.094 | O39: 1394586.699 | P39: 1408911.305 | Q39: 1423235.91 | R39: 1437560.516 | S39: 1451885.121 | T39: 1466209.726 | U39: 1480534.332 | V39: 1494858.937 | W39: 1509183.543 | X39: 1523508.148 | Y39: 1537832.754 | Z39: 1552157.359 | AA39: 1566481.965 | AB39: 1580806.57 | AC39: 1595131.175 | AD39: 1609455.781 | AE39: 1623780.386 | AF39: 1638104.992 | AG39: 1652429.597
A41: Increase in Emissions (Bridge Closures)
A42: Train Fuel Consumption | B42: (gallons) | G42: =('Fuel Increase'!G22+'Fuel Increase'!G23) -> 251830.8254 | H42: =('Fuel Increase'!H22+'Fuel Increase'!H23) -> 254612.2823 | I42: =('Fuel Increase'!I22+'Fuel Increase'!I23) -> 257566.9433 | J42: =('Fuel Increase'!J22+'Fuel Increase'!J23) -> 260348.4003 | K42: =('Fuel Increase'!K22+'Fuel Increase'!K23) -> 263129.8572 | L42: =('Fuel Increase'!L22+'Fuel Increase'!L23) -> 265911.3142 | M42: =('Fuel Increase'!M22+'Fuel Increase'!M23) -> 268692.7712 | N42: =('Fuel Increase'!N22+'Fuel Increase'!N23) -> 271647.4321 | O42: =('Fuel Increase'!O22+'Fuel Increase'!O23) -> 274428.8891 | P42: =('Fuel Increase'!P22+'Fuel Increase'!P23) -> 277210.3461 | Q42: =('Fuel Increase'!Q22+'Fuel Increase'!Q23) -> 279991.8031 | R42: =('Fuel Increase'!R22+'Fuel Increase'!R23) -> 282773.2601 | S42: =('Fuel Increase'!S22+'Fuel Increase'!S23) -> 285727.921 | T42: =('Fuel Increase'!T22+'Fuel Increase'!T23) -> 288509.378 | U42: =('Fuel Increase'!U22+'Fuel Increase'!U23) -> 291290.835 | V42: =('Fuel Increase'!V22+'Fuel Increase'!V23) -> 294072.292 | W42: =('Fuel Increase'!W22+'Fuel Increase'!W23) -> 296853.749 | X42: =('Fuel Increase'!X22+'Fuel Increase'!X23) -> 299808.4099 | Y42: =('Fuel Increase'!Y22+'Fuel Increase'!Y23) -> 302589.8669 | Z42: =('Fuel Increase'!Z22+'Fuel Increase'!Z23) -> 305371.3239 | AA42: =('Fuel Increase'!AA22+'Fuel Increase'!AA23) -> 308152.7809 | AB42: =('Fuel Increase'!AB22+'Fuel Increase'!AB23) -> 310934.2379 | AC42: =('Fuel Increase'!AC22+'Fuel Increase'!AC23) -> 313888.8988 | AD42: =('Fuel Increase'!AD22+'Fuel Increase'!AD23) -> 316670.3558 | AE42: =('Fuel Increase'!AE22+'Fuel Increase'!AE23) -> 319451.8128 | AF42: =('Fuel Increase'!AF22+'Fuel Increase'!AF23) -> 322233.2698 | AG42: =('Fuel Increase'!AG22+'Fuel Increase'!AG23) -> 325187.9307
A43: Rail (Nox) | G43: =G42*$J$75*$F$93 -> 49.55224784 | H43: 50.09954957 | I43: 50.68093229 | J43: 51.22823402 | K43: 51.77553575 | L43: 52.32283748 | M43: 52.87013921 | N43: 53.45152193 | O43: 53.99882366 | P43: 54.54612539 | Q43: 55.09342711 | R43: 55.64072884 | S43: 56.22211156 | T43: 56.76941329 | U43: 57.31671502 | V43: 57.86401675 | W43: 58.41131848 | X43: 58.9927012 | Y43: 59.54000293 | Z43: 60.08730466 | AA43: 60.63460639 | AB43: 61.18190812 | AC43: 61.76329084 | AD43: 62.31059256 | AE43: 62.85789429 | AF43: 63.40519602 | AG43: 63.98657874
A44: Rail (PM) | G44: =G42*$J$77*$F$93 -> 1.843804571 | H44: 1.864169286 | I44: 1.885802132 | J44: 1.906166847 | K44: 1.926531563 | L44: 1.946896278 | M44: 1.967260994 | N44: 1.988893839 | O44: 2.009258555 | P44: 2.02962327 | Q44: 2.049987986 | R44: 2.070352701 | S44: 2.091985547 | T44: 2.112350262 | U44: 2.132714978 | V44: 2.153079693 | W44: 2.173444409 | X44: 2.195077254 | Y44: 2.215441969 | Z44: 2.235806685 | AA44: 2.2561714 | AB44: 2.276536116 | AC44: 2.298168961 | AD44: 2.318533677 | AE44: 2.338898392 | AF44: 2.359263108 | AG44: 2.380895953
A46: Bus (VOC) | B46: short-tons | G46: =G13*$B$83*$B$101*$K$74*$F$93 -> 1.365671269 | H46: 1.380954752 | I46: 1.396238234 | J46: 1.411521716 | K46: 1.426805198 | L46: 1.44208868 | M46: 1.457372162 | N46: 1.472655645 | O46: 1.487939127 | P46: 1.503222609 | Q46: 1.518506091 | R46: 1.533789573 | S46: 1.549073055 | T46: 1.564356537 | U46: 1.57964002 | V46: 1.594923502 | W46: 1.610206984 | X46: 1.625490466 | Y46: 1.640773948 | Z46: 1.65605743 | AA46: 1.671340912 | AB46: 1.686624395 | AC46: 1.701907877 | AD46: 1.717191359 | AE46: 1.732474841 | AF46: 1.747758323 | AG46: 1.763041805
A47: Bus (Nox) | G47: =G13*$B$83*$B$101*$K$75*$F$93 -> 26.31437728 | H47: 26.60886639 | I47: 26.9033555 | J47: 27.19784461 | K47: 27.49233372 | L47: 27.78682282 | M47: 28.08131193 | N47: 28.37580104 | O47: 28.67029015 | P47: 28.96477926 | Q47: 29.25926837 | R47: 29.55375748 | S47: 29.84824659 | T47: 30.1427357 | U47: 30.43722481 | V47: 30.73171391 | W47: 31.02620302 | X47: 31.32069213 | Y47: 31.61518124 | Z47: 31.90967035 | AA47: 32.20415946 | AB47: 32.49864857 | AC47: 32.79313768 | AD47: 33.08762679 | AE47: 33.3821159 | AF47: 33.676605 | AG47: 33.97109411
A48: Bus (PM) | G48: =G13*$B$83*$B$101*$K$77*$F$93 -> 0.6171489853 | H48: 0.6240556148 | I48: 0.6309622443 | J48: 0.6378688739 | K48: 0.6447755034 | L48: 0.6516821329 | M48: 0.6585887624 | N48: 0.6654953919 | O48: 0.6724020214 | P48: 0.679308651 | Q48: 0.6862152805 | R48: 0.69312191 | S48: 0.7000285395 | T48: 0.706935169 | U48: 0.7138417985 | V48: 0.720748428 | W48: 0.7276550576 | X48: 0.7345616871 | Y48: 0.7414683166 | Z48: 0.7483749461 | AA48: 0.7552815756 | AB48: 0.7621882051 | AC48: 0.7690948346 | AD48: 0.7760014642 | AE48: 0.7829080937 | AF48: 0.7898147232 | AG48: 0.7967213527
A50: Ferry Fuel Consumption | G50: ='Fuel Increase'!G20 -> 4280776.893 | H50: ='Fuel Increase'!H20 -> 4328683.866 | I50: ='Fuel Increase'!I20 -> 4376590.84 | J50: ='Fuel Increase'!J20 -> 4424497.813 | K50: ='Fuel Increase'!K20 -> 4472404.786 | L50: ='Fuel Increase'!L20 -> 4520311.76 | M50: ='Fuel Increase'!M20 -> 4568218.733 | N50: ='Fuel Increase'!N20 -> 4616125.707 | O50: ='Fuel Increase'!O20 -> 4664032.68 | P50: ='Fuel Increase'!P20 -> 4711939.653 | Q50: ='Fuel Increase'!Q20 -> 4759846.627 | R50: ='Fuel Increase'!R20 -> 4807753.6 | S50: ='Fuel Increase'!S20 -> 4855660.574 | T50: ='Fuel Increase'!T20 -> 4903567.547 | U50: ='Fuel Increase'!U20 -> 4951474.521 | V50: ='Fuel Increase'!V20 -> 4999381.494 | W50: ='Fuel Increase'!W20 -> 5047288.467 | X50: ='Fuel Increase'!X20 -> 5095195.441 | Y50: ='Fuel Increase'!Y20 -> 5143102.414 | Z50: ='Fuel Increase'!Z20 -> 5191009.388 | AA50: ='Fuel Increase'!AA20 -> 5238916.361 | AB50: ='Fuel Increase'!AB20 -> 5286823.335 | AC50: ='Fuel Increase'!AC20 -> 5334730.308 | AD50: ='Fuel Increase'!AD20 -> 5382637.281 | AE50: ='Fuel Increase'!AE20 -> 5430544.255 | AF50: ='Fuel Increase'!AF20 -> 5478451.228 | AG50: ='Fuel Increase'!AG20 -> 5526358.202
A51: Ferry (VOC) | G51: =G50*$L$74*$F$93 -> 0.03123810165 | H51: 0.03158769308 | I51: 0.0319372845 | J51: 0.03228687593 | K51: 0.03263646736 | L51: 0.03298605879 | M51: 0.03333565022 | N51: 0.03368524164 | O51: 0.03403483307 | P51: 0.0343844245 | Q51: 0.03473401593 | R51: 0.03508360735 | S51: 0.03543319878 | T51: 0.03578279021 | U51: 0.03613238164 | V51: 0.03648197306 | W51: 0.03683156449 | X51: 0.03718115592 | Y51: 0.03753074735 | Z51: 0.03788033877 | AA51: 0.0382299302 | AB51: 0.03857952163 | AC51: 0.03892911306 | AD51: 0.03927870449 | AE51: 0.03962829591 | AF51: 0.03997788734 | AG51: 0.04032747877
A52: Ferry(Nox) | G52: =G50*$L$75*$F$93 -> 0.7867373749 | H52: 0.7955418997 | I52: 0.8043464246 | J52: 0.8131509494 | K52: 0.8219554743 | L52: 0.8307599991 | M52: 0.8395645239 | N52: 0.8483690488 | O52: 0.8571735736 | P52: 0.8659780985 | Q52: 0.8747826233 | R52: 0.8835871482 | S52: 0.892391673 | T52: 0.9011961979 | U52: 0.9100007227 | V52: 0.9188052475 | W52: 0.9276097724 | X52: 0.9364142972 | Y52: 0.9452188221 | Z52: 0.9540233469 | AA52: 0.9628278718 | AB52: 0.9716323966 | AC52: 0.9804369215 | AD52: 0.9892414463 | AE52: 0.9980459711 | AF52: 1.006850496 | AG52: 1.015655021
A53: Ferry (PM) | G53: =G50*$L$77*$F$93 -> 0.004627866911 | H53: =H50*$L$77*$F$93 -> 0.004679658234 | I53: 0.004731449556 | J53: 0.004783240879 | K53: 0.004835032202 | L53: 0.004886823524 | M53: 0.004938614847 | N53: 0.004990406169 | O53: 0.005042197492 | P53: 0.005093988815 | Q53: 0.005145780137 | R53: 0.00519757146 | S53: 0.005249362782 | T53: 0.005301154105 | U53: 0.005352945428 | V53: 0.00540473675 | W53: 0.005456528073 | X53: 0.005508319396 | Y53: 0.005560110718 | Z53: 0.005611902041 | AA53: 0.005663693363 | AB53: 0.005715484686 | AC53: 0.005767276009 | AD53: 0.005819067331 | AE53: 0.005870858654 | AF53: 0.005922649976 | AG53: 0.005974441299
A54: Total Increase in Emissions by Type
A55: VOC | G55: =G46+G51 -> 1.396909371 | H55: =H46+H51 -> 1.412542445 | I55: 1.428175518 | J55: 1.443808592 | K55: 1.459441665 | L55: 1.475074739 | M55: 1.490707813 | N55: 1.506340886 | O55: 1.52197396 | P55: 1.537607033 | Q55: 1.553240107 | R55: 1.56887318 | S55: 1.584506254 | T55: 1.600139328 | U55: 1.615772401 | V55: 1.631405475 | W55: 1.647038548 | X55: 1.662671622 | Y55: 1.678304695 | Z55: 1.693937769 | AA55: 1.709570843 | AB55: 1.725203916 | AC55: 1.74083699 | AD55: 1.756470063 | AE55: 1.772103137 | AF55: 1.78773621 | AG55: 1.803369284
A56: Nox | G56: =G43+G47+G52 -> 76.6533625 | H56: =H43+H47+H52 -> 77.50395786 | I56: 78.38863421 | J56: 79.23922958 | K56: 80.08982494 | L56: 80.9404203 | M56: 81.79101567 | N56: 82.67569202 | O56: 83.52628738 | P56: 84.37688274 | Q56: 85.22747811 | R56: 86.07807347 | S56: 86.96274982 | T56: 87.81334519 | U56: 88.66394055 | V56: 89.51453591 | W56: 90.36513128 | X56: 91.24980763 | Y56: 92.10040299 | Z56: 92.95099835 | AA56: 93.80159372 | AB56: 94.65218908 | AC56: 95.53686543 | AD56: 96.3874608 | AE56: 97.23805616 | AF56: 98.08865152 | AG56: 98.97332788
A57: PM | G57: =G44+G48+G53 -> 2.465581423 | H57: =H44+H48+H53 -> 2.492904559 | I57: 2.521495826 | J57: 2.548818962 | K57: 2.576142098 | L57: 2.603465235 | M57: 2.630788371 | N57: 2.659379637 | O57: 2.686702774 | P57: 2.71402591 | Q57: 2.741349046 | R57: 2.768672183 | S57: 2.797263449 | T57: 2.824586585 | U57: 2.851909721 | V57: 2.879232858 | W57: 2.906555994 | X57: 2.93514726 | Y57: 2.962470397 | Z57: 2.989793533 | AA57: 3.017116669 | AB57: 3.044439806 | AC57: 3.073031072 | AD57: 3.100354208 | AE57: 3.127677345 | AF57: 3.155000481 | AG57: 3.183591747
B58: NPV
A59: Emissions Increase: Cost | B59: =SUM(B60:B62) -> 14636509.42
A60: VOC | B60: =NPV(7%,C60:AG60) -> 27332.77867 | C60: 0 | D60: 0 | E60: 0 | F60: 0 | G60: =G55*$G$84 -> 2712.493111 | H60: 2742.849128 | I60: 2773.205144 | J60: 2803.561161 | K60: 2833.917178 | L60: 2864.273195 | M60: 2894.629212 | N60: 2924.985228 | O60: 2955.341245 | P60: 2985.697262 | Q60: 3016.053279 | R60: 3046.409296 | S60: 3076.765313 | T60: 3107.121329 | U60: 3137.477346 | V60: 3167.833363 | W60: 3198.18938 | X60: 3228.545397 | Y60: 3258.901413 | Z60: 3289.25743 | AA60: 3319.613447 | AB60: 3349.969464 | AC60: 3380.325481 | AD60: 3410.681498 | AE60: 3441.037514 | AF60: 3471.393531 | AG60: 3501.749548
A61: NOx | B61: =NPV(7%,C61:AG61) -> 5911388.009 | C61: 0 | D61: 0 | E61: 0 | F61: 0 | G61: =G56*$G$85 -> 586625.4595 | H61: 593135.0356 | I61: 599905.4323 | J61: 606415.0084 | K61: 612924.5845 | L61: 619434.1606 | M61: 625943.7367 | N61: 632714.1334 | O61: 639223.7095 | P61: 645733.2856 | Q61: 652242.8617 | R61: 658752.4377 | S61: 665522.8344 | T61: 672032.4105 | U61: 678541.9866 | V61: 685051.5627 | W61: 691561.1388 | X61: 698331.5355 | Y61: 704841.1116 | Z61: 711350.6877 | AA61: 717860.2638 | AB61: 724369.8398 | AC61: 731140.2366 | AD61: 737649.8126 | AE61: 744159.3887 | AF61: 750668.9648 | AG61: 757439.3615
A62: PM | B62: =NPV(7%,C62:AG62) -> 8697788.636 | C62: 0 | D62: 0 | E62: 0 | F62: 0 | G62: =G57*$G$86 -> 863133.9252 | H62: 872699.0224 | I62: 882708.0578 | J62: 892273.155 | K62: 901838.2522 | L62: 911403.3493 | M62: 920968.4465 | N62: 930977.482 | O62: 940542.5791 | P62: 950107.6763 | Q62: 959672.7735 | R62: 969237.8707 | S62: 979246.9061 | T62: 988812.0033 | U62: 998377.1005 | V62: 1007942.198 | W62: 1017507.295 | X62: 1027516.33 | Y62: 1037081.427 | Z62: 1046646.525 | AA62: 1056211.622 | AB62: 1065776.719 | AC62: 1075785.754 | AD62: 1085350.852 | AE62: 1094915.949 | AF62: 1104481.046 | AG62: 1114490.081
A64: Net (Dis)Benefits | B64: NPV
A65: 603 and 605 Bridges | B65: =SUM(B66:B68) -> -16111961.32 | C65: 0 | D65: 0 | E65: 0 | F65: 0 | G65: =SUM(G66:G68) -> 1598993.034 | H65: =SUM(H66:H68) -> 1617037.518 | I65: 1634377.243 | J65: 1652421.727 | K65: 1670466.212 | L65: 1688510.696 | M65: 1706555.18 | N65: 1723894.905 | O65: 1741939.39 | P65: 1759983.874 | Q65: 1778028.358 | R65: 1796072.842 | S65: 1813412.568 | T65: 1831457.052 | U65: 1849501.536 | V65: 1867546.021 | W65: 1885590.505 | X65: 1902930.23 | Y65: 1920974.714 | Z65: 1939019.199 | AA65: 1957063.683 | AB65: 1975108.167 | AC65: 1992447.892 | AD65: 2010492.377 | AE65: 2028536.861 | AF65: 2046581.345 | AG65: 2063921.071
A66: VOC | B66: =-NPV(7%,C66:AG66) -> -2025544.739 | C66: 0 | D66: 0 | E66: 0 | F66: 0 | G66: =G37-G60 -> 201014.1821 | H66: =H37-H60 -> 203263.7694 | I66: 205513.3566 | J66: 207762.9438 | K66: 210012.5311 | L66: 212262.1183 | M66: 214511.7056 | N66: 216761.2928 | O66: 219010.8801 | P66: 221260.4673 | Q66: 223510.0545 | R66: 225759.6418 | S66: 228009.229 | T66: 230258.8163 | U66: 232508.4035 | V66: 234757.9907 | W66: 237007.578 | X66: 239257.1652 | Y66: 241506.7525 | Z66: 243756.3397 | AA66: 246005.9269 | AB66: 248255.5142 | AC66: 250505.1014 | AD66: 252754.6887 | AE66: 255004.2759 | AF66: 257253.8632 | AG66: 259503.4504
A67: NOx | B67: =-NPV(7%,C67:AG67) -> -9886226.123 | C67: 0 | D67: 0 | E67: 0 | F67: 0 | G67: =G38-G61 -> 981122.9209 | H67: 992158.3097 | I67: 1002932.878 | J67: 1013968.267 | K67: 1025003.655 | L67: 1036039.044 | M67: 1047074.433 | N67: 1057849.001 | O67: 1068884.39 | P67: 1079919.778 | Q67: 1090955.167 | R67: 1101990.556 | S67: 1112765.124 | T67: 1123800.513 | U67: 1134835.901 | V67: 1145871.29 | W67: 1156906.679 | X67: 1167681.247 | Y67: 1178716.636 | Z67: 1189752.024 | AA67: 1200787.413 | AB67: 1211822.802 | AC67: 1222597.37 | AD67: 1233632.759 | AE67: 1244668.147 | AF67: 1255703.536 | AG67: 1266478.104
A68: PM | B68: =-NPV(7%,C68:AG68) -> -4200190.456 | C68: 0 | D68: 0 | E68: 0 | F68: 0 | G68: 416855.9305 | H68: 421615.4387 | I68: 425931.0087 | J68: 430690.517 | K68: 435450.0253 | L68: 440209.5335 | M68: 444969.0418 | N68: 449284.6118 | O68: 454044.1201 | P68: 458803.6283 | Q68: 463563.1366 | R68: 468322.6449 | S68: 472638.2149 | T68: 477397.7231 | U68: 482157.2314 | V68: 486916.7397 | W68: 491676.248 | X68: 495991.818 | Y68: 500751.3262 | Z68: 505510.8345 | AA68: 510270.3428 | AB68: 515029.851 | AC68: 519345.421 | AD68: 524104.9293 | AE68: 528864.4376 | AF68: 533623.9458 | AG68: 537939.5158
A69: 607 Bridge | B69: =-NPV(7%,C69:AG69) -> -11006245.57 | C69: 0 | D69: 0 | E69: 0 | F69: 0 | G69: 0 | H69: 0 | I69: 0 | J69: 0 | K69: 0 | L69: =L65 -> 1688510.696 | M69: =M65 -> 1706555.18 | N69: 1723894.905 | O69: 1741939.39 | P69: 1759983.874 | Q69: 1778028.358 | R69: 1796072.842 | S69: 1813412.568 | T69: 1831457.052 | U69: 1849501.536 | V69: 1867546.021 | W69: 1885590.505 | X69: 1902930.23 | Y69: 1920974.714 | Z69: 1939019.199 | AA69: 1957063.683 | AB69: 1975108.167 | AC69: 1992447.892 | AD69: 2010492.377 | AE69: 2028536.861 | AF69: 2046581.345 | AG69: 2063921.071
A71: Fuel Consumption | B71: Miles per Gallon | C71: Gal/Hr | E71: Emissions Factors | L71: converted from g/kWh to g/gallon
A72: Trucks | B72: ='4-14'!AD7 -> 5.849502576 | G72: Ferry | H72: Passenger Car | I72: Light Truck | J72: Train | K72: Heavy Duty Vehicles | L72: Ferry
A73: Buses | B73: ='4-23'!AD5 -> 17.39756049 | F73: Type | G73: g/kWh | H73: g/mi | I73: g/mi | J73: g/gal | K73: g/mi | L73: g/gal
A74: Buses (Motorcoach) | B74: 9 | F74: VOC | G74: 0.27 | H74: 1.034 | I74: 1.224 | K74: 0.447 | L74: =G74/40.7 -> 0.006633906634
A75: Light Duty Vehicles | B75: ='4-23'!AD3 -> 22.03846502 | F75: NOx | G75: 6.8 | H75: 0.693 | I75: 0.95 | J75: 178.88 | K75: 8.613 | L75: =G75/40.7 -> 0.1670761671
A76: Air Piper Cherokee | C76: 15 | F76: CO2 | G76: 690 | H76: 368.4 | I76: 513.5 | J76: 8887 | L76: 16.95331695
A77: Ferry (AMHS Columbia) | C77: 397 | F77: PM2.5 | G77: 0.04 | H77: 0.0041 | I77: 0.0045 | J77: 6.656 | K77: 0.202 | L77: 0.0009828009828
A78: ='4-17'!A11 -> Freight trains | B78: ='4-17'!AH11 -> 0.1337709818 | F78: CO | H78: 9.4 | I78: 11.84 | J78: 26.624 | K78: 2.311
A79: ='4-17'!A12 -> Freight cars | B79: ='4-17'!$AJ$12 -> 9.8987361
A81: Distance/Speed | B81: Miles (1-way) | E81: US DOT BCA Guidance for Discretionary Grant Programs Table A-6: Damage Costs for Pollutant Emissions
A82: Anchorage to Seward | B82: 126 | E82: Emission Type | F82: $/short ton (2017$) | G82: $/short ton (2018$)
A83: Homer to Anchorage | B83: ='AMHS Cost'!D42 -> 221 | E83: CO2 | F83: ** | G83: **
A84: Anchorage to Seward (Air) | B84: ='Air Travel'!E9 -> 79 | E84: VOC | F84: 1905 | G84: =F84*'Alaska CPI'!$P$11 -> 1941.781741
A85: Air cruising speed | B85: 168 | E85: Nox | F85: 7508 | G85: =F85*'Alaska CPI'!$P$11 -> 7652.964468
A86: Rail (Anchorage to Seward) | B86: 114.3 | E86: PM | F86: 343442 | G86: =F86*'Alaska CPI'!$P$11 -> 350073.1783
E87: SO2 | F87: 44373 | G87: =F87*'Alaska CPI'!$P$11 -> 45229.75391
A88: Air Parameters | E88: Note: 1 metric ton is equal to 1.1015 short tons
A89: Hours traveled | B89: =(B84/B85) -> 0.4702380952 | E89: ** US DOT does not currently have a recommended value for the damage costs of CO2 emissions.
A90: # of passengers per flight | B90: 4
A91: Fuel Consumption per flight | B91: =C76*B89 -> 7.053571429
E92: Conversion
A93: ='603 Snow River West'!A7 -> Occupancy rate for personal vehicles: | B93: ='603 Snow River West'!E7 -> 1.7 | E93: grams to short-tons | F93: 1.1e-06
A94: ='603 Snow River West'!A8 -> Occupancy rate for buses: | B94: ='603 Snow River West'!E8 -> 10.7 | E94: 240.7 kWh in 1 gallon [U.S.] of diesel oil
A95: ='603 Snow River West'!A9 -> Occupancy rate for commercial vehicles: | B95: ='603 Snow River West'!E9 -> 1
A97: Ferry/Bus/Rail Parameters
A98: # of passengers on Columbia | B98: 600
A99: # of trips required for personal travel | B99: 2
A100: # of hours Homer to Seward | B100: ='AMHS Cost'!H30 -> 9.132947977
A101: # of days per year (ferry) | B101: ='AMHS Cost'!H3 -> 215
A102: # of passengers (Motorcoach) | B102: 50
A103: # of passengers per rail car | B103: 200
A104: Cars per train | B104: 35
A105: # of days per year (rail) | B105: =365-B101 -> 150

Sheet Fuel Increase
A2: Bridge 603 amd 605 Baseline | D2: Load Limits | E2: Load Limits | F2: Load Limits Single Lane | G2: Bridge Closure
A3: Snow River Bridges | B3: =Traffic!G5 -> 2018 | C3: =Traffic!H5 -> 2019 | D3: =Traffic!I5 -> 2020 | E3: =Traffic!J5 -> 2021 | F3: =Traffic!K5 -> 2022 | G3: =Traffic!L5 -> 2023 | H3: =Traffic!M5 -> 2024 | I3: =Traffic!N5 -> 2025 | J3: =Traffic!O5 -> 2026 | K3: =Traffic!P5 -> 2027 | L3: =Traffic!Q5 -> 2028 | M3: =Traffic!R5 -> 2029 | N3: =Traffic!S5 -> 2030 | O3: =Traffic!T5 -> 2031 | P3: =Traffic!U5 -> 2032 | Q3: =Traffic!V5 -> 2033 | R3: =Traffic!W5 -> 2034 | S3: =Traffic!X5 -> 2035 | T3: =Traffic!Y5 -> 2036 | U3: =Traffic!Z5 -> 2037 | V3: =Traffic!AA5 -> 2038 | W3: =Traffic!AB5 -> 2039 | X3: =Traffic!AC5 -> 2040 | Y3: =Traffic!AD5 -> 2041 | Z3: =Traffic!AE5 -> 2042 | AA3: =Traffic!AF5 -> 2043 | AB3: =Traffic!AG5 -> 2044 | AC3: =Traffic!AH5 -> 2045 | AD3: =Traffic!AI5 -> 2046 | AE3: =Traffic!AJ5 -> 2047 | AF3: =Traffic!AK5 -> 2048 | AG3: =Traffic!AL5 -> 2049
A4: Annual Average Daily Traffic
A5: =Traffic!F27 -> Trucks AADT | B5: =Traffic!G27 -> 269.16406 | C5: =Traffic!H27 -> 272.35487 | D5: =Traffic!I27 -> 275.54568 | E5: =Traffic!J27 -> 278.73649 | F5: =Traffic!K27 -> 281.9273 | G5: =Traffic!L27 -> 285.11811 | H5: =Traffic!M27 -> 288.30892 | I5: =Traffic!N27 -> 291.49973 | J5: =Traffic!O27 -> 294.69054 | K5: =Traffic!P27 -> 297.88135 | L5: =Traffic!Q27 -> 301.07216 | M5: =Traffic!R27 -> 304.26297 | N5: =Traffic!S27 -> 307.45378 | O5: =Traffic!T27 -> 310.64459 | P5: =Traffic!U27 -> 313.8354 | Q5: =Traffic!V27 -> 317.02621 | R5: =Traffic!W27 -> 320.21702 | S5: =Traffic!X27 -> 323.40783 | T5: =Traffic!Y27 -> 326.59864 | U5: =Traffic!Z27 -> 329.78945 | V5: =Traffic!AA27 -> 332.98026 | W5: =Traffic!AB27 -> 336.17107 | X5: =Traffic!AC27 -> 339.36188 | Y5: =Traffic!AD27 -> 342.55269 | Z5: =Traffic!AE27 -> 345.7435 | AA5: =Traffic!AF27 -> 348.93431 | AB5: =Traffic!AG27 -> 352.12512 | AC5: =Traffic!AH27 -> 355.31593 | AD5: =Traffic!AI27 -> 358.50674 | AE5: =Traffic!AJ27 -> 361.69755 | AF5: =Traffic!AK27 -> 364.88836 | AG5: =Traffic!AL27 -> 368.07917
A6: # of rail cars | G6: ='ARRC cost'!G8 -> 52.96521651 | H6: ='ARRC cost'!H8 -> 53.55796013 | I6: ='ARRC cost'!I8 -> 54.15070376 | J6: ='ARRC cost'!J8 -> 54.74344739 | K6: ='ARRC cost'!K8 -> 55.33619101 | L6: ='ARRC cost'!L8 -> 55.92893464 | M6: ='ARRC cost'!M8 -> 56.52167827 | N6: ='ARRC cost'!N8 -> 57.11442189 | O6: ='ARRC cost'!O8 -> 57.70716552 | P6: ='ARRC cost'!P8 -> 58.29990914 | Q6: ='ARRC cost'!Q8 -> 58.89265277 | R6: ='ARRC cost'!R8 -> 59.4853964 | S6: ='ARRC cost'!S8 -> 60.07814002 | T6: ='ARRC cost'!T8 -> 60.67088365 | U6: ='ARRC cost'!U8 -> 61.26362728 | V6: ='ARRC cost'!V8 -> 61.8563709 | W6: ='ARRC cost'!W8 -> 62.44911453 | X6: ='ARRC cost'!X8 -> 63.04185816 | Y6: ='ARRC cost'!Y8 -> 63.63460178 | Z6: ='ARRC cost'!Z8 -> 64.22734541 | AA6: ='ARRC cost'!AA8 -> 64.82008904 | AB6: ='ARRC cost'!AB8 -> 65.41283266 | AC6: ='ARRC cost'!AC8 -> 66.00557629 | AD6: ='ARRC cost'!AD8 -> 66.59831991 | AE6: ='ARRC cost'!AE8 -> 67.19106354 | AF6: ='ARRC cost'!AF8 -> 67.78380717 | AG6: ='ARRC cost'!AG8 -> 68.37655079
A7: =Traffic!F28 -> Buses AADT | B7: =Traffic!G28 -> 32.83244 | C7: =Traffic!H28 -> 33.22165273 | D7: =Traffic!I28 -> 33.61086545 | E7: =Traffic!J28 -> 34.00007818 | F7: =Traffic!K28 -> 34.38929091 | G7: =Traffic!L28 -> 34.77850364 | H7: =Traffic!M28 -> 35.16771636 | I7: =Traffic!N28 -> 35.55692909 | J7: =Traffic!O28 -> 35.94614182 | K7: =Traffic!P28 -> 36.33535455 | L7: =Traffic!Q28 -> 36.72456727 | M7: =Traffic!R28 -> 37.11378 | N7: =Traffic!S28 -> 37.50299273 | O7: =Traffic!T28 -> 37.89220545 | P7: =Traffic!U28 -> 38.28141818 | Q7: =Traffic!V28 -> 38.67063091 | R7: =Traffic!W28 -> 39.05984364 | S7: =Traffic!X28 -> 39.44905636 | T7: =Traffic!Y28 -> 39.83826909 | U7: =Traffic!Z28 -> 40.22748182 | V7: =Traffic!AA28 -> 40.61669455 | W7: =Traffic!AB28 -> 41.00590727 | X7: =Traffic!AC28 -> 41.39512 | Y7: =Traffic!AD28 -> 41.78433273 | Z7: =Traffic!AE28 -> 42.17354545 | AA7: =Traffic!AF28 -> 42.56275818 | AB7: =Traffic!AG28 -> 42.95197091 | AC7: =Traffic!AH28 -> 43.34118364 | AD7: =Traffic!AI28 -> 43.73039636 | AE7: =Traffic!AJ28 -> 44.11960909 | AF7: =Traffic!AK28 -> 44.50882182 | AG7: =Traffic!AL28 -> 44.89803455
A8: # of passengers | G8: =G7*$B$49 -> 372.1299889 | H8: 376.2945651 | I8: 380.4591413 | J8: 384.6237175 | K8: 388.7882936 | L8: 392.9528698 | M8: 397.117446 | N8: 401.2820222 | O8: 405.4465984 | P8: 409.6111745 | Q8: 413.7757507 | R8: 417.9403269 | S8: 422.1049031 | T8: 426.2694793 | U8: 430.4340555 | V8: 434.5986316 | W8: 438.7632078 | X8: 442.927784 | Y8: 447.0923602 | Z8: 451.2569364 | AA8: 455.4215125 | AB8: 459.5860887 | AC8: 463.7506649 | AD8: 467.9152411 | AE8: 472.0798173 | AF8: 476.2443935 | AG8: 480.4089696
A9: # of rail cars | G9: =ROUNDUP(G8/$B$58,1) -> 1.9 | H9: 1.9 | I9: 2 | J9: 2 | K9: 2 | L9: 2 | M9: 2 | N9: 2.1 | O9: 2.1 | P9: 2.1 | Q9: 2.1 | R9: 2.1 | S9: 2.2 | T9: 2.2 | U9: 2.2 | V9: 2.2 | W9: 2.2 | X9: 2.3 | Y9: 2.3 | Z9: 2.3 | AA9: 2.3 | AB9: 2.3 | AC9: 2.4 | AD9: 2.4 | AE9: 2.4 | AF9: 2.4 | AG9: 2.5
A10: =Traffic!F29 -> Other Business AADT | B10: =Traffic!G29 -> 139.8992333 | C10: =Traffic!H29 -> 141.5576712 | D10: =Traffic!I29 -> 143.2161091 | E10: =Traffic!J29 -> 144.874547 | F10: =Traffic!K29 -> 146.5329848 | G10: =Traffic!L29 -> 148.1914227 | H10: =Traffic!M29 -> 149.8498606 | I10: =Traffic!N29 -> 151.5082985 | J10: =Traffic!O29 -> 153.1667364 | K10: =Traffic!P29 -> 154.8251742 | L10: =Traffic!Q29 -> 156.4836121 | M10: =Traffic!R29 -> 158.14205 | N10: =Traffic!S29 -> 159.8004879 | O10: =Traffic!T29 -> 161.4589258 | P10: =Traffic!U29 -> 163.1173636 | Q10: =Traffic!V29 -> 164.7758015 | R10: =Traffic!W29 -> 166.4342394 | S10: =Traffic!X29 -> 168.0926773 | T10: =Traffic!Y29 -> 169.7511152 | U10: =Traffic!Z29 -> 171.409553 | V10: =Traffic!AA29 -> 173.0679909 | W10: =Traffic!AB29 -> 174.7264288 | X10: =Traffic!AC29 -> 176.3848667 | Y10: =Traffic!AD29 -> 178.0433045 | Z10: =Traffic!AE29 -> 179.7017424 | AA10: =Traffic!AF29 -> 181.3601803 | AB10: =Traffic!AG29 -> 183.0186182 | AC10: =Traffic!AH29 -> 184.6770561 | AD10: =Traffic!AI29 -> 186.3354939 | AE10: =Traffic!AJ29 -> 187.9939318 | AF10: =Traffic!AK29 -> 189.6523697 | AG10: =Traffic!AL29 -> 191.3108076
A11: =Traffic!F30 -> Personal AADT | B11: =Traffic!G30 -> 1623.0376 | C11: =Traffic!H30 -> 1642.277927 | D11: =Traffic!I30 -> 1661.518255 | E11: =Traffic!J30 -> 1680.758582 | F11: =Traffic!K30 -> 1699.998909 | G11: =Traffic!L30 -> 1719.239236 | H11: =Traffic!M30 -> 1738.479564 | I11: =Traffic!N30 -> 1757.719891 | J11: =Traffic!O30 -> 1776.960218 | K11: =Traffic!P30 -> 1796.200545 | L11: =Traffic!Q30 -> 1815.440873 | M11: =Traffic!R30 -> 1834.6812 | N11: =Traffic!S30 -> 1853.921527 | O11: =Traffic!T30 -> 1873.161855 | P11: =Traffic!U30 -> 1892.402182 | Q11: =Traffic!V30 -> 1911.642509 | R11: =Traffic!W30 -> 1930.882836 | S11: =Traffic!X30 -> 1950.123164 | T11: =Traffic!Y30 -> 1969.363491 | U11: =Traffic!Z30 -> 1988.603818 | V11: =Traffic!AA30 -> 2007.844145 | W11: =Traffic!AB30 -> 2027.084473 | X11: =Traffic!AC30 -> 2046.3248 | Y11: =Traffic!AD30 -> 2065.565127 | Z11: =Traffic!AE30 -> 2084.805455 | AA11: =Traffic!AF30 -> 2104.045782 | AB11: =Traffic!AG30 -> 2123.286109 | AC11: =Traffic!AH30 -> 2142.526436 | AD11: =Traffic!AI30 -> 2161.766764 | AE11: =Traffic!AJ30 -> 2181.007091 | AF11: =Traffic!AK30 -> 2200.247418 | AG11: =Traffic!AL30 -> 2219.487745
A12: # of passengers | G12: =G11*$B$48 -> 2922.706702 | H12: 2955.415258 | I12: 2988.123815 | J12: 3020.832371 | K12: 3053.540927 | L12: 3086.249484 | M12: 3118.95804 | N12: 3151.666596 | O12: 3184.375153 | P12: 3217.083709 | Q12: 3249.792265 | R12: 3282.500822 | S12: 3315.209378 | T12: 3347.917935 | U12: 3380.626491 | V12: 3413.335047 | W12: 3446.043604 | X12: 3478.75216 | Y12: 3511.460716 | Z12: 3544.169273 | AA12: 3576.877829 | AB12: 3609.586385 | AC12: 3642.294942 | AD12: 3675.003498 | AE12: 3707.712055 | AF12: 3740.420611 | AG12: 3773.129167
A13: # of bus trips | G13: =G12/$B$57 -> 58.45413404 | H13: 59.10830516 | I13: 59.76247629 | J13: 60.41664742 | K13: 61.07081855 | L13: 61.72498967 | M13: 62.3791608 | N13: 63.03333193 | O13: 63.68750305 | P13: 64.34167418 | Q13: 64.99584531 | R13: 65.65001644 | S13: 66.30418756 | T13: 66.95835869 | U13: 67.61252982 | V13: 68.26670095 | W13: 68.92087207 | X13: 69.5750432 | Y13: 70.22921433 | Z13: 70.88338545 | AA13: 71.53755658 | AB13: 72.19172771 | AC13: 72.84589884 | AD13: 73.50006996 | AE13: 74.15424109 | AF13: 74.80841222 | AG13: 75.46258335
A14: # of rail cars | G14: =G12/$B$58 -> 14.61353351 | H14: 14.77707629 | I14: 14.94061907 | J14: 15.10416185 | K14: 15.26770464 | L14: 15.43124742 | M14: 15.5947902 | N14: 15.75833298 | O14: 15.92187576 | P14: 16.08541855 | Q14: 16.24896133 | R14: 16.41250411 | S14: 16.57604689 | T14: 16.73958967 | U14: 16.90313245 | V14: 17.06667524 | W14: 17.23021802 | X14: 17.3937608 | Y14: 17.55730358 | Z14: 17.72084636 | AA14: 17.88438915 | AB14: 18.04793193 | AC14: 18.21147471 | AD14: 18.37501749 | AE14: 18.53856027 | AF14: 18.70210305 | AG14: 18.86564584
A15: Bus & Personal Passengers
A16: # of passengers | G16: =G12+G8 -> 3294.836691 | H16: =H12+H8 -> 3331.709823 | I16: 3368.582956 | J16: 3405.456088 | K16: 3442.329221 | L16: 3479.202353 | M16: 3516.075486 | N16: 3552.948619 | O16: 3589.821751 | P16: 3626.694884 | Q16: 3663.568016 | R16: 3700.441149 | S16: 3737.314281 | T16: 3774.187414 | U16: 3811.060546 | V16: 3847.933679 | W16: 3884.806811 | X16: 3921.679944 | Y16: 3958.553077 | Z16: 3995.426209 | AA16: 4032.299342 | AB16: 4069.172474 | AC16: 4106.045607 | AD16: 4142.918739 | AE16: 4179.791872 | AF16: 4216.665004 | AG16: 4253.538137
A17: # of ferry trips | G17: =G16/$B$53 -> 5.491394485 | H17: 5.552849705 | I17: 5.614304926 | J17: 5.675760147 | K17: 5.737215368 | L17: 5.798670589 | M17: 5.86012581 | N17: 5.921581031 | O17: 5.983036252 | P17: 6.044491473 | Q17: 6.105946694 | R17: 6.167401915 | S17: 6.228857135 | T17: 6.290312356 | U17: 6.351767577 | V17: 6.413222798 | W17: 6.474678019 | X17: 6.53613324 | Y17: 6.597588461 | Z17: 6.659043682 | AA17: 6.720498903 | AB17: 6.781954124 | AC17: 6.843409345 | AD17: 6.904864565 | AE17: 6.966319786 | AF17: 7.027775007 | AG17: 7.089230228
A18: Increase in Fuel Consumption | G18: =SUM(G19:G23) -> 4936594.76 | H18: =SUM(H19:H23) -> 4991804.285 | I18: 5047187.014 | J18: 5102396.539 | K18: 5157606.064 | L18: 5212815.588 | M18: 5268025.113 | N18: 5323407.842 | O18: 5378617.367 | P18: 5433826.892 | Q18: 5489036.417 | R18: 5544245.941 | S18: 5599628.67 | T18: 5654838.195 | U18: 5710047.72 | V18: 5765257.245 | W18: 5820466.769 | X18: 5875849.498 | Y18: 5931059.023 | Z18: 5986268.548 | AA18: 6041478.073 | AB18: 6096687.597 | AC18: 6152070.326 | AD18: 6207279.851 | AE18: 6262489.376 | AF18: 6317698.901 | AG18: 6373081.629
A19: Air (Other Business Travel) | G19: =(G10/$B$45)*$B$46*365 -> 95381.68916 | H19: 96449.12345 | I19: 97516.55774 | J19: 98583.99203 | K19: 99651.42632 | L19: 100718.8606 | M19: 101786.2949 | N19: 102853.7292 | O19: 103921.1635 | P19: 104988.5978 | Q19: 106056.0321 | R19: 107123.4664 | S19: 108190.9007 | T19: 109258.3349 | U19: 110325.7692 | V19: 111393.2035 | W19: 112460.6378 | X19: 113528.0721 | Y19: 114595.5064 | Z19: 115662.9407 | AA19: 116730.375 | AB19: 117797.8093 | AC19: 118865.2436 | AD19: 119932.6779 | AE19: 121000.1121 | AF19: 122067.5464 | AG19: 123134.9807
A20: Ferry (Personal Travel) | G20: =(G17*$B$55*$C$32)*$B$56 -> 4280776.893 | H20: 4328683.866 | I20: 4376590.84 | J20: 4424497.813 | K20: 4472404.786 | L20: 4520311.76 | M20: 4568218.733 | N20: 4616125.707 | O20: 4664032.68 | P20: 4711939.653 | Q20: 4759846.627 | R20: 4807753.6 | S20: 4855660.574 | T20: 4903567.547 | U20: 4951474.521 | V20: 4999381.494 | W20: 5047288.467 | X20: 5095195.441 | Y20: 5143102.414 | Z20: 5191009.388 | AA20: 5238916.361 | AB20: 5286823.335 | AC20: 5334730.308 | AD20: 5382637.281 | AE20: 5430544.255 | AF20: 5478451.228 | AG20: 5526358.202
A21: Bus (Homer to Anchorage) (personal Travel) | G21: =G13*($B$38/$B$29)*$B$56 -> 308605.3532 | H21: 312059.0133 | I21: 315512.6734 | J21: 318966.3336 | K21: 322419.9937 | L21: 325873.6538 | M21: 329327.3139 | N21: 332780.9741 | O21: 336234.6342 | P21: 339688.2943 | Q21: 343141.9544 | R21: 346595.6146 | S21: 350049.2747 | T21: 353502.9348 | U21: 356956.5949 | V21: 360410.255 | W21: 363863.9152 | X21: 367317.5753 | Y21: 370771.2354 | Z21: 374224.8955 | AA21: 377678.5557 | AB21: 381132.2158 | AC21: 384585.8759 | AD21: 388039.536 | AE21: 391493.1962 | AF21: 394946.8563 | AG21: 398400.5164
A22: Rail (Bus+ Personal) | G22: =(G9+G14)*($B$41/$B$34)*$B$60 -> 28602.08911 | H22: 28885.35164 | I22: 29341.81809 | J22: 29625.08062 | K22: 29908.34315 | L22: 30191.60567 | M22: 30474.8682 | N22: 30931.33465 | O22: 31214.59718 | P22: 31497.85971 | Q22: 31781.12223 | R22: 32064.38476 | S22: 32520.85122 | T22: 32804.11374 | U22: 33087.37627 | V22: 33370.63879 | W22: 33653.90132 | X22: 34110.36778 | Y22: 34393.6303 | Z22: 34676.89283 | AA22: 34960.15536 | AB22: 35243.41788 | AC22: 35699.88434 | AD22: 35983.14687 | AE22: 36266.40939 | AF22: 36549.67192 | AG22: 37006.13838
A23: Rail (truck) | G23: =G6*($B$41/$B$34)*365 -> 223228.7362 | H23: 225726.9307 | I23: 228225.1252 | J23: 230723.3196 | K23: 233221.5141 | L23: 235719.7086 | M23: 238217.903 | N23: 240716.0975 | O23: 243214.292 | P23: 245712.4864 | Q23: 248210.6809 | R23: 250708.8753 | S23: 253207.0698 | T23: 255705.2643 | U23: 258203.4587 | V23: 260701.6532 | W23: 263199.8477 | X23: 265698.0421 | Y23: 268196.2366 | Z23: 270694.4311 | AA23: 273192.6255 | AB23: 275690.82 | AC23: 278189.0144 | AD23: 280687.2089 | AE23: 283185.4034 | AF23: 285683.5978 | AG23: 288181.7923
A26: Fuel Consumption | B26: Miles per Gallon | C26: Gal/Hr
A27: Trucks | B27: ='4-14'!AD7 -> 5.849502576
A28: Buses | B28: ='4-23'!AD5 -> 17.39756049
A29: Buses (Motorcoach) | B29: 9
A30: Light Duty Vehicles | B30: ='4-23'!AD3 -> 22.03846502
A31: Air Piper Cherokee | C31: 15
A32: Ferry (AMHS Columbia) | C32: 397
A33: ='4-17'!A11 -> Freight trains | B33: ='4-17'!AH11 -> 0.1337709818
A34: ='4-17'!A12 -> Freight cars | B34: ='4-17'!$AJ$12 -> 9.8987361
A36: Distance/Speed | B36: Miles (1-way)
A37: Anchorage to Seward | B37: 126
A38: Homer to Anchorage | B38: ='AMHS Cost'!D42 -> 221
A39: Anchorage to Seward (Air) | B39: ='Air Travel'!E9 -> 79
A40: Air cruising speed | B40: 168
A41: Rail (Anchorage to Seward) | B41: 114.3
A43: Air Parameters
A44: Hours traveled | B44: =(B39/B40) -> 0.4702380952
A45: # of passengers per flight | B45: 4
A46: Fuel Consumption per flight | B46: =C31*B44 -> 7.053571429
A48: ='603 Snow River West'!A7 -> Occupancy rate for personal vehicles: | B48: ='603 Snow River West'!E7 -> 1.7
A49: ='603 Snow River West'!A8 -> Occupancy rate for buses: | B49: ='603 Snow River West'!E8 -> 10.7
A50: ='603 Snow River West'!A9 -> Occupancy rate for commercial vehicles: | B50: ='603 Snow River West'!E9 -> 1
A52: Ferry/Bus/Rail Parameters
A53: # of passengers on Columbia | B53: 600
A54: # of trips required for personal travel | B54: 2
A55: # of hours Homer to Seward | B55: ='AMHS Cost'!H30 -> 9.132947977
A56: # of days per year (ferry) | B56: ='AMHS Cost'!H3 -> 215
A57: # of passengers (Motorcoach) | B57: 50
A58: # of passengers per rail car | B58: 200
A59: Cars per train | B59: 35
A60: # of days per year (rail) | B60: =365-B56 -> 150

Sheet 4-23
A1: Table 4-23: Average Fuel Efficiency of U.S. Light Duty Vehicles
B2: 1980 | C2: 1985 | D2: 1990 | E2: 1991 | F2: 1992 | G2: 1993 | H2: 1994 | I2: 1995 | J2: 1996 | K2: 1997 | L2: 1998 | M2: 1999 | N2: 2000 | O2: 2001 | P2: 2002 | Q2: 2003 | R2: 2004 | S2: 2005 | T2: 2006 | U2: 2007 | V2: 2008 | W2: 2009 | X2: 2010 | Y2: 2011 | Z2: 2012 | AA2: 2013 | AB2: 2014 | AC2: 2015 | AD2: 2016
A3: Average U.S. light duty vehicle fuel efficiency (mpg) (calendar year) | B3: 14.9 | C3: 16.5 | D3: 18.8 | E3: 19.5 | F3: 19.5 | G3: 19.2 | H3: 19.39191279 | I3: 19.6 | J3: 19.61306463 | K3: 19.7 | L3: 19.6 | M3: 19.61697993 | N3: 20.02591775 | O3: 20.23550083 | P3: 20.08172445 | Q3: 19.50019167 | R3: 19.64466846 | S3: 20.17405223 | T3: 20.43583869 | U3: 21.27515007 | V3: 21.82486152 | W3: 21.69637762 | X3: 21.52525405 | Y3: 21.42766247 | Z3: 21.53392251 | AA3: 21.63477728 | AB3: 21.40299051 | AC3: 21.97931347 | AD3: 22.03846502
A4: Light duty vehicle, short wheel basea,b | B4: 15.98348521 | C4: 17.5158656 | D4: 20.32446612 | E4: 21.19905164 | F4: 21.04512576 | G4: 20.5904406 | H4: 20.80430976 | I4: 21.12887535 | J4: 21.23421423 | K4: 21.5 | L4: 21.4 | M4: 21.4115356 | N4: 21.90217538 | O4: 22.13647071 | P4: 21.97490865 | Q4: 22.16005647 | R4: 22.54439852 | S4: 22.06735509 | T4: 22.5377681 | U4: 22.86563941 | V4: 23.65481769 | W4: 23.53224243 | X4: 23.34115865 | Y4: 23.15882032 | Z4: 23.28242465 | AA4: 23.41044353 | AB4: 23.20328172 | AC4: 23.8566064 | AD4: 23.956898
A5: Light duty vehicle, long wheel basea | B5: 12.22611371 | C5: 14.28784002 | D5: 16.13462095 | E5: 16.99232272 | F5: 17.27028455 | G5: 17.40324096 | H5: 17.33375803 | I5: 17.3234862 | J5: 17.24330574 | K5: 17.20000026 | L5: 17.1 | M5: 17.07612696 | N5: 17.43633994 | O5: 17.62286274 | P5: 17.49424322 | Q5: 16.19693961 | R5: 16.19693961 | S5: 17.68417853 | T5: 17.83778526 | U5: 17.07313786 | V5: 17.33644679 | W5: 17.29275675 | X5: 17.17779376 | Y5: 17.09868415 | Z5: 17.12211685 | AA5: 17.15953695 | AB5: 17.09783337 | AC5: 17.34079967 | AD5: 17.39756049
A6: New vehicle fuel efficiency (mpg)c (model year)
A7: Light-duty vehicle
A8: Passenger car | B8: 24.3 | C8: 27.6 | D8: 28 | E8: 28.4 | F8: 27.9 | G8: 28.4 | H8: 28.3 | I8: 28.6 | J8: 28.5 | K8: 28.7 | L8: 28.8 | M8: 28.3 | N8: 28.5 | O8: 28.8 | P8: 29 | Q8: 29.5 | R8: 29.49162205 | S8: 30.32107744 | T8: 30.08772348 | U8: 31.24234652 | V8: 31.469402 | W8: 32.9004564 | X8: 33.93804656 | Y8: 33.12655128 | Z8: 35.27090481 | AA8: 36.39991 | AB8: 36.53735498 | AC8: 37.2432029 | AD8: 37.68475461
A9: Domestic | B9: 22.6 | C9: 26.3 | D9: 26.9 | E9: 27.3 | F9: 27 | G9: 27.8 | H9: 27.5 | I9: 27.7 | J9: 28.1 | K9: 27.8 | L9: 28.6 | M9: 28 | N9: 28.7 | O9: 28.7 | P9: 29.1 | Q9: 29.1 | R9: 29.9 | S9: 30.5 | T9: 30.3 | U9: 30.6 | V9: 31.2 | W9: 32.1 | X9: 33.1 | Y9: 32.7 | Z9: 34.8 | AA9: 36.1 | AB9: 36.3 | AC9: 37.2 | AD9: 37.3
A10: Imported | B10: 29.6 | C10: 31.5 | D10: 29.9 | E10: 30.1 | F10: 29.2 | G10: 29.6 | H10: 29.7 | I10: 30.3 | J10: 29.6 | K10: 30.1 | L10: 29.2 | M10: 29 | N10: 28.3 | O10: 29 | P10: 28.8 | Q10: 29.9 | R10: 28.7 | S10: 29.9 | T10: 29.7 | U10: 32.2 | V10: 31.8 | W10: 33.8 | X10: 35.2 | Y10: 33.7 | Z10: 36 | AA10: 36.8 | AB10: 36.9 | AC10: 37.3 | AD10: 38.2
A11: Light truck (<8,500 lbs GVWR)d | B11: 18.5 | C11: 20.7 | D11: 20.8 | E11: 21.3 | F11: 20.8 | G11: 21 | H11: 20.8 | I11: 20.5 | J11: 20.8 | K11: 20.6 | L11: 21 | M11: 20.9 | N11: 21.3 | O11: 20.9 | P11: 21.4 | Q11: 21.8 | R11: 21.5 | S11: 22.1 | T11: 22.5 | U11: 23.1 | V11: 23.6 | W11: 24.8 | X11: 25.2 | Y11: 24.7 | Z11: 25 | AA11: 25.7 | AB11: 26.5 | AC11: 27.3 | AD11: 27.4
A12: CAFE standards (mpg)c (model year)
A13: Passenger car | B13: 20 | C13: 27.5 | D13: 27.5 | E13: 27.5 | F13: 27.5 | G13: 27.5 | H13: 27.5 | I13: 27.5 | J13: 27.5 | K13: 27.5 | L13: 27.5 | M13: 27.5 | N13: 27.5 | O13: 27.5 | P13: 27.5 | Q13: 27.5 | R13: 27.5 | S13: 27.5 | T13: 27.5 | U13: 27.5 | V13: 27.5 | W13: 27.5 | X13: 27.5 | Y13: 30.17062051 | Z13: 32.97469447 | AA13: 33.49991 | AB13: 34.23735498 | AC13: 35.45921738 | AD13: 36.88475461
A14: Light trucke | B14: U | C14: 19.5 | D14: 20 | E14: 20.2 | F14: 20.2 | G14: 20.4 | H14: 20.5 | I14: 20.6 | J14: 20.7 | K14: 20.7 | L14: 20.7 | M14: 20.7 | N14: 20.7 | O14: 20.7 | P14: 20.7 | Q14: 20.7 | R14: 20.7 | S14: 21 | T14: 21.6 | U14: 22.2 | V14: 22.4 | W14: 23 | X14: 23.4 | Y14: 24.3 | Z14: 25.3 | AA14: 25.9 | AB14: 26.3 | AC14: 27.6 | AD14: 28.8
A15: KEY: CAFE = Corporate Average Fuel Economy; GVWR = gross vehicle weight rating; mpg = miles per gallon; U = data are not available.
A17: a 1960-2006 data are for Passenger car and Other 2-axle, 4-tire vehicles, respectively. The data from 1960-2006 are not comparable to the data from 2007-14.
A18: b From 1980 to 1994, Light duty vehicle, short wheel base (previously Passenger car) fuel efficiency includes motorcycles.
A19: c Assumes 55% city and 45% highway-miles. The source calculated average miles per gallon for light-duty vehicles by taking the reciprocal of the sales-weighted average of gallons per mile. This is called the harmonic average.
A20: d Beginning with FY 1999, the total Light truck fleet ceased to be categorized by either domestic or import fleets.
A21: e No combined figure is available for 1980. In 1980, CAFE standard for 2 wheel drive, and 4 wheel drive light trucks were 16.0, and 14.0 mpg respectively.
A23: NOTES
A24: Data for 2007-14 were calculated using a new methodology developed by FHWA. Data for these years are based on new categories and are not comparable to previous years. The new category Light duty vehicle, short wheel base includes passenger cars, light trucks, vans and sport utility vehicles with a wheelbase (WB) equal to or less than 121 inches. The new category Light duty vehicle, long wheel base includes large passenger cars, vans, pickup trucks, and sport/utility vehicles with wheelbases (WB) larger than 121 inches.
A25: The fuel efficiency figures for Light duty vehicles represent the sales-weighted harmonic average of the combined Passenger car and Light truck fuel economies.
A27: SOURCES
A28: Average U.S. light duty vehicle fuel efficiency:
A29: Passenger car:
A30: 1980-94: U.S. Department of Transportation, Federal Highway Administration, Highway Statistics Summary to 1995, table VM-201A, available at http://www.fhwa.dot.gov/policyinformation/statistics.cfm as of Oct. 6, 2011.
A31: 1995-2016: Ibid., Highway Statistics (Washington, DC: Annual Issues), table VM-1, available at http://www.fhwa.dot.gov/policyinformation/statistics.cfm as of May 16, 2018.
A32: Light duty vehicle, short wheel base:
A33: 2007-16: U.S. Department of Transportation, Federal Highway Administration, Highway Statistics (Washington, DC: Annual Issues), table VM-1, available at http://www.fhwa.dot.gov/policyinformation/statistics.cfm as of May 16, 2018.
A34: Other 2-axle 4-tire vehicle:
A35: 1980-94: U.S. Department of Transportation, Federal Highway Administration, Highway Statistics Summary to 1995, table VM-201A, available at http://www.fhwa.dot.gov/policyinformation/statistics.cfm as of Oct. 6, 2011.
A36: 1995-2006: Ibid., Highway Statistics (Washington, DC: Annual Issues), table VM-1, available at http://www.fhwa.dot.gov/policyinformation/statistics.cfm as of Oct. 6, 2011.
A37: Light duty vehicle, long wheel base:
A38: 2007-16: U.S. Department of Transportation, Federal Highway Administration, Highway Statistics (Washington, DC: Annual Issues), table VM-1, available at http://www.fhwa.dot.gov/policyinformation/statistics.cfm as of May 16, 2018.
A39: New vehicle fuel efficiency (based on model year production) and CAFE standards:
A40: 1960-2014: U.S. Department of Transportation, National Highway Traffic Safety Administration, Summary of Fuel Economy Performance (Washington, DC: Annual Issues), available at http://www.nhtsa.gov/fuel-economy as of Mar. 3, 2016.
A41: 2015-16: U.S. Department of Transportation, National Highway Traffic Safety Administration, Fleet Fuel Economy Performance Report, available at https://one.nhtsa.gov/cafe_pic/CAFE_PIC_fleet_LIVE.html as of May 16, 2018.

Sheet 4-14
A1: Table 4-14: Combination Truck Fuel Consumption and Travel
B2: 1965 | C2: 1970 | D2: 1975 | E2: 1980 | F2: 1985 | G2: 1990 | H2: 1991 | I2: 1992 | J2: 1993 | K2: 1994 | L2: 1995 | M2: 1996 | N2: 1997 | O2: 1998 | P2: 1999 | Q2: 2000 | R2: 2001 | S2: 2002 | T2: 2003 | U2: 2004 | V2: 2005 | W2: 2006 | X2: 2007 | Y2: 2008 | Z2: 2009 | AA2: 2010 | AB2: 2011 | AC2: 2012 | AD2: 2013
A3: Number registered (thousands) | B3: 786.51 | C3: 905.082 | D3: 1130.747 | E3: 1416.869 | F3: 1403.266 | G3: 1708.895 | H3: 1691.331 | I3: 1675.363 | J3: 1680.305 | K3: 1681.5 | L3: 1695.751 | M3: 1746.586 | N3: 1789.968 | O3: 1997.345 | P3: 2028.562 | Q3: 2096.619 | R3: 2154.174 | S3: 2276.661 | T3: 1908.365 | U3: 2010.335 | V3: 2086.759 | W3: 2169.670018 | X3: 2635.347201 | Y3: 2585.22947 | Z3: 2617.117712 | AA3: 2552.865009 | AB3: 2451.638193 | AC3: 2469.093851 | AD3: 2471.348703
A4: Vehicle-miles traveled (millions) | B4: 31700 | C4: 35100 | D4: 46700 | E4: 68700 | F4: 78100 | G4: 94300 | H4: 96600 | I4: 99500 | J4: 103100 | K4: 108900 | L4: 115500 | M4: 118899 | N4: 124584 | O4: 128359 | P4: 132384 | Q4: 135020 | R4: 136584 | S4: 138737 | T4: 140160 | U4: 142370 | V4: 144028 | W4: 142169.2273 | X4: 184199.0914 | Y4: 183825.7242 | Z4: 168099.5343 | AA4: 175788.9717 | AB4: 163791.2931 | AC4: 163601.7311 | AD4: 168435.8724
A5: Fuel consumed (million gallons) | B5: 6658 | C5: 7348 | D5: 9177 | E5: 13037 | F5: 14005 | G5: 16133 | H5: 16809 | I5: 17216 | J5: 17748 | K5: 18653 | L5: 19777 | M5: 20192.513 | N5: 20301.693 | O5: 25157.972 | P5: 24537.32 | Q5: 25665.693 | R5: 25511.844 | S5: 26479.63 | T5: 23815.422 | U5: 24190.904 | V5: 27689 | W5: 28106.5436 | X5: 30904.3954 | Y5: 30560.8816 | Z5: 28049.98729 | AA5: 29926.66358 | AB5: 28181.03899 | AC5: 27975.33135 | AD5: 28794.90525
A6: Average miles traveled per vehicle (thousands) | B6: =B4/B3 -> 40.30463694 | C6: =C4/C3 -> 38.78101653 | D6: 41.30013168 | E6: 48.48719254 | F6: 55.65587708 | G6: 55.18185728 | H6: 57.1147812 | I6: 59.39011426 | J6: 61.35790824 | K6: 64.76360393 | L6: 68.11141494 | M6: 68.07509049 | N6: 69.60124427 | O6: 64.26481154 | P6: 65.26002163 | Q6: 64.39892036 | R6: 63.40434895 | S6: 60.93880468 | T6: 73.44506947 | U6: 70.8190426 | V6: 69.01994912 | W6: 65.52573715 | X6: 69.89556873 | Y6: 71.10615375 | Z6: 64.23078853 | AA6: 68.85948575 | AB6: 66.80891723 | AC6: 66.25982688 | AD6: 68.15544572
A7: Average miles traveled per gallon | B7: =B4/B5 -> 4.761189546 | C7: =C4/C5 -> 4.776810016 | D7: 5.088808979 | E7: 5.269617243 | F7: 5.576579793 | G7: 5.84516209 | H7: 5.746921292 | I7: 5.779507435 | J7: 5.809105251 | K7: 5.83820297 | L7: 5.840117308 | M7: 5.888271559 | N7: 6.136631068 | O7: 5.102120314 | P7: 5.395210235 | Q7: 5.260719046 | R7: 5.353748635 | S7: 5.239385898 | T7: 5.885262079 | U7: 5.885269935 | V7: 5.201632417 | W7: 5.058225206 | X7: 5.960287816 | Y7: 6.015066143 | Z7: 5.99285599 | AA7: 5.873991642 | AB7: 5.812109809 | AC7: 5.848071255 | AD7: 5.849502576
A8: Average fuel consumed per vehicle (gallons) | B8: =B5/B3*1000 -> 8465.245197 | C8: =C5/C3*1000 -> 8118.601408 | D8: 8115.873843 | E8: 9201.274077 | F8: 9980.28884 | G8: 9440.603431 | H8: 9938.326679 | I8: 10275.98198 | J8: 10562.36814 | K8: 11093.07166 | L8: 11662.67925 | M8: 11561.13298 | N8: 11341.93069 | O8: 12595.7068 | P8: 12095.91819 | Q8: 12241.46733 | R8: 11842.98204 | S8: 11630.90596 | T8: 12479.49003 | U8: 12033.27008 | V8: 13268.90168 | W8: 12954.29414 | X8: 11726.87811 | Y8: 11821.34195 | Z8: 10717.89288 | AA8: 11722.77558 | AB8: 11494.77891 | AC8: 11330.2017 | AD8: 11651.49427
A9: KEY: R = revised.
A11: NOTES
A12: Data for 2007-13 were calculated using new sources and a new methodology developed by FHWA. Data for these years are not comparable to previous years. The FHWA estimates national trends by using State reported Highway Performance and Monitoring System (HPMS) data, fuel consumption data (MF-21 and MF-27), vehicle registration data (MV-1, MV-9, and MV-10), other data such as the R. L. Polk vehicle data, and a host of modeling techniques. Starting with the 2007 VM-1, an enhanced methodology is used to provide timely indictors on both travel and travel behavior changes.
A13: From 1998-2006, the Federal Highway Administration (FHWA) used the Census Bureau's Vehicle Inventory and Use Survey (VIUS) for its baseline estimate of combination trucks. Prior to 1998, the FHWA used the Census Bureau's 1992 Transportation Inventory and Use Survey (TIUS) for its baseline estimates. Therefore, post-1997 data may not be comparable to 1997 and earlier years.
A14: In 1995, the U.S. Department of Transportation, Federal Highway Administration revised its vehicle categories beginning with 1993 data to include passenger cars, other 2-axle 4-tire vehicles, single-unit 2-axle 6-tire or more trucks, and combination trucks. Pre-1993 data have been reassigned to the most appropriate category.
A16: SOURCES
A17: 1965-94: U.S. Department of Transportation, Federal Highway Administration, Highway Statistics Summary to 1995, FHWA-PL-97-009 (Washington, DC: July 1997), table VM-201A, available at http://www.fhwa.dot.gov/policyinformation/statistics.cfm as of Mar. 23, 2009.
A18: 1995-2013: Ibid., Highway Statistics (Washington, DC: Annual issues), table VM-1, available at http://www.fhwa.dot.gov/policyinformation/statistics.cfm as of Feb. 12, 2015.

Sheet 4-17
A1: Table 4-17: Class I Rail Freight Fuel Consumption and Travel
B2: 1960 | C2: 1965 | D2: 1970 | E2: 1975 | F2: 1980 | G2: 1985 | H2: 1990 | I2: 1991 | J2: 1992 | K2: 1993 | L2: 1994 | M2: 1995 | N2: 1996 | O2: 1997 | P2: 1998 | Q2: 1999 | R2: 2000 | S2: 2001 | T2: 2002 | U2: 2003 | V2: 2004 | W2: 2005 | X2: 2006 | Y2: 2007 | Z2: 2008 | AA2: 2009 | AB2: 2010 | AC2: 2011 | AD2: 2012 | AE2: 2013 | AF2: 2014 | AG2: 2015 | AH2: 2016 | AI2: 2017 | AJ2: 2018
A3: Number in use
A4: Locomotivesa | B4: 29031 | C4: 27780 | D4: 27077 | E4: 27846 | F4: 28094 | G4: 22548 | H4: 18835 | I4: 18344 | J4: 18004 | K4: 18161 | L4: 18505 | M4: 18812 | N4: 19269 | O4: 19684 | P4: 20261 | Q4: 20256 | R4: 20028 | S4: 19745 | T4: 20506 | U4: 20774 | V4: 22015 | W4: 22779 | X4: 23732 | Y4: 24143 | Z4: 24003 | AA4: 24045 | AB4: 23893 | AC4: 24250 | AD4: 24707 | AE4: 25033 | AF4: 25916 | AG4: 26574 | AH4: 26716
A5: Freight carsb | B5: 1965486 | C5: 1800662 | D5: 1784181 | E5: 1723605 | F5: 1710827 | G5: 1421686 | H5: 1212261 | I5: 1189660 | J5: 1173136 | K5: 1173132 | L5: 1192412 | M5: 1218927 | N5: 1240573 | O5: 1270419 | P5: 1315667 | Q5: 1368836 | R5: 1380796 | S5: 1314136 | T5: 1299670 | U5: 1278980 | V5: 1287920 | W5: 1316522 | X5: 1361250 | Y5: 1385709 | Z5: 1604691 | AA5: 1565218 | AB5: 1504082 | AC5: 1486202 | AD5: 1502965 | AE5: 1516593 | AF5: 1556391 | AG5: 1609052 | AH5: 1632448
A6: Miles traveled (millions)
A7: Freight train-milesc | B7: 404.464 | C7: 420.962 | D7: 427.065 | E7: 402.557 | F7: 428.498 | G7: 347.292 | H7: 379.582 | I7: 374.974 | J7: 390.241 | K7: 405.446 | L7: 440.896 | M7: 458.271 | N7: 468.792 | O7: 474.954 | P7: 474.947 | Q7: 490.442 | R7: 504.001 | S7: 499.546 | T7: 499.668 | U7: 515.999 | V7: 534.696 | W7: 547.566 | X7: 562.607 | Y7: 543.475 | Z7: 524.22277 | AA7: 436.234725 | AB7: 475.905599 | AC7: 493.310865 | AD7: 500.148205 | AE7: 503.983931 | AF7: 518.166822 | AG7: 494.58969 | AH7: 452.846232
A8: Locomotive unit-miles | B8: N | C8: N | D8: N | E8: 1479 | F8: 1531 | G8: 1228 | H8: 1280 | I8: 1238 | J8: 1278 | K8: 1320 | L8: 1405 | M8: 1445 | N8: 1465 | O8: 1423 | P8: 1440 | Q8: 1504 | R8: 1502.819077 | S8: 1477.54569 | T8: 1443.531298 | U8: 1484.074447 | V8: 1538.384876 | W8: 1587.650038 | X8: 1659.847529 | Y8: 1608.755 | Z8: 1558.85548 | AA8: 1309.150794 | AB8: 1414.887938 | AC8: 1468.225001 | AD8: 1485.650823 | AE8: 1496.774973 | AF8: 1523.42294 | AG8: 1509.567152 | AH8: 1430.966138
A9: Freight car-miles | B9: 28170 | C9: 29336 | D9: 29890 | E9: 27656 | F9: 29277 | G9: 24920 | H9: 26159 | I9: 25628 | J9: 26128 | K9: 26883 | L9: 28485 | M9: 30383 | N9: 31715 | O9: 31660 | P9: 32657 | Q9: 33851 | R9: 34590 | S9: 34243 | T9: 34680 | U9: 35555 | V9: 37071 | W9: 37712 | X9: 38955 | Y9: 38186 | Z9: 37226.181 | AA9: 32114.637 | AB9: 35540.874 | AC9: 36648.921 | AD9: 36524.763 | AE9: 35252.915 | AF9: 37193.233 | AG9: 35852.846 | AH9: 32571.599 | AI9: 34146.74155 | AJ9: 33836.85045
A10: Average miles traveled per gallon
A11: Freight trains | B11: =B7/B13 -> 0.1167958418 | C11: 0.1171943207 | D11: 0.1204696756 | E11: 0.1100784796 | F11: 0.109758709 | G11: 0.1116694534 | H11: 0.1218561798 | I11: 0.1290344116 | J11: 0.1298638935 | K11: 0.1312972798 | L11: 0.1322407986 | M11: 0.131687069 | N11: 0.1309840738 | O11: 0.1328542657 | P11: 0.1325556796 | Q11: 0.1320166891 | R11: 0.1362164865 | S11: 0.1346485175 | T11: 0.1339592493 | U11: 0.1348664401 | V11: 0.1317309682 | W11: 0.1336178624 | X11: 0.1342096851 | Y11: 0.1337949286 | Z11: 0.1348939722 | AA11: 0.1366498076 | AB11: 0.1362098335 | AC11: 0.1338724932 | AD11: 0.1389206442 | AE11: 0.1368635662 | AF11: 0.1339815582 | AG11: 0.1339514736 | AH11: 0.1337709818
A12: Freight cars | B12: =B9/B13 -> 8.134565406 | C12: 8.167037862 | D12: 8.431593794 | E12: 7.562482909 | F12: 7.499231557 | G12: 8.012861736 | H12: 8.397752809 | I12: 8.818995182 | J12: 8.69484193 | K12: 8.705634715 | L12: 8.543690911 | M12: 8.730747126 | N12: 8.861413803 | O12: 8.855944056 | P12: 9.114429249 | Q12: 9.111978466 | R12: 9.348648649 | S12: 9.229919137 | T12: 9.297587131 | U12: 9.292995295 | V12: 9.133037694 | W12: 9.202537823 | X12: 9.292700382 | Y12: 9.400787789 | Z12: 9.579109709 | AA12: 10.05985704 | AB12: 10.17222016 | AC12: 9.945620042 | AD12: 10.14508011 | AE12: 9.573399806 | AF12: 9.616994184 | AG12: 9.710152988 | AH12: 9.621665082 | AI12: =AI9/AI13 -> 9.871712541 | AJ12: =AJ9/AJ13 -> 9.8987361
A13: Fuel consumed (million gallons)d | B13: 3463 | C13: 3592 | D13: 3545 | E13: 3657 | F13: 3904 | G13: 3110 | H13: 3115 | I13: 2906 | J13: 3005 | K13: 3088 | L13: =3081.657204+252.381948 -> 3334.039152 | M13: 3480 | N13: 3579 | O13: 3575 | P13: 3583 | Q13: 3715 | R13: 3700 | S13: 3710 | T13: 3730 | U13: 3826 | V13: 4059 | W13: 4098 | X13: 4192 | Y13: 4062 | Z13: 3886.183803 | AA13: 3192.355208 | AB13: 3493.915136 | AC13: 3684.930738 | AD13: 3600.243922 | AE13: 3682.381987 | AF13: 3867.44884 | AG13: 3692.304956 | AH13: 3385.235167 | AI13: 3459.04942 | AJ13: 3418.300085
A14: Revenue ton-miles per gallon of fuel consumed | B14: 165.263933 | C14: 194.2867483 | D14: 215.7430183 | E14: 206.2488378 | F14: 235.388832 | G14: 281.9884244 | H14: 331.9322632 | I14: 357.4931177 | J14: 355.0019967 | K14: 359.2321891 | L14: 360.1382723 | M14: 375.1977011 | N14: 378.869796 | O14: 377.321958 | P14: 384.259559 | Q14: 385.8576043 | R14: 396.2054054 | S14: 403.0921833 | T14: 404.0243968 | U14: 405.4986932 | V14: 409.6077852 | W14: 413.9641288 | X14: 422.6853531 | Y14: 435.8801083 | Z14: 457.3217022 | AA14: 479.9633682 | AB14: 483.9853051 | AC14: 469.2778755 | AD14: 475.6807281 | AE14: 472.7067494 | AF14: 478.669286 | AG14: 470.7854104 | AH14: 468.3396502
A15: Average miles traveled per locomotive (thousands) | B15: N | C15: N | D15: N | E15: =E8/E4*1000 -> 53.11355311 | F15: 54.49562184 | G15: 54.46159305 | H15: 67.95858774 | I15: 67.48800698 | J15: 70.98422573 | K15: 72.68322229 | L15: =L8/L4*1000 -> 75.92542556 | M15: 76.81267276 | N15: 76.02885464 | O15: 72.29221703 | P15: 71.07250383 | Q15: 74.24960506 | R15: 75.03590358 | S15: 74.83138465 | T15: 70.3955573 | U15: 71.43903182 | V15: =(V8/V4)*1000 -> 69.87894054 | W15: =(W8/W4)*1000 -> 69.69796909 | X15: =(X8/X4)*1000 -> 69.94132517 | Y15: =(Y8/Y4)*1000 -> 66.6344282 | Z15: 64.94419364 | AA15: 54.44586376 | AB15: 59.21767622 | AC15: 60.54536087 | AD15: 60.13076549 | AE15: 59.79207338 | AF15: 58.78310465 | AG15: 56.80616964 | AH15: 53.56214022
A16: Average fuel consumed per locomotivea (thousand gallons) | B16: =(B13/B4)*1000 -> 119.2862802 | C16: 129.3016559 | D16: 130.9229235 | E16: 131.3294549 | F16: 138.962056 | G16: 137.9279759 | H16: 165.3835944 | I16: 158.4169211 | J16: 166.9073539 | K16: 170.0346897 | L16: 180.169638 | M16: 184.9883053 | N16: 185.7387514 | O16: 181.6195895 | P16: 176.8422092 | Q16: 183.4024487 | R16: 184.7413621 | S16: 187.8956698 | T16: 181.8979811 | U16: 184.1725233 | V16: 184.3742903 | W16: 179.9025418 | X16: 176.639137 | Y16: 168.2475252 | Z16: 161.9040871 | AA16: 132.7658643 | AB16: 146.2317472 | AC16: 151.9559067 | AD16: 145.7175668 | AE16: 147.101106 | AF16: 149.2301605 | AG16: 138.9442672 | AH16: 126.7119017
A17: KEY: N = data do not exist; P = preliminary.
A19: a For 1960-80, the total includes a small number of steam and electric units, which are not included in the per locomotive fuel consumption figure.
A20: b For 1960-2007 United States owners only. Includes cars owned by Class I railroads, other railroads, car companies, and shippers. The AAR's Policy & Economics Department no longer collects freight car data by US, Canada, or Mexico -- Total North America is used instead.
A21: c Based on the distance run between terminals and/or stations; does not include yard or passenger train-miles.
A22: d Excludes passenger and work trains.
A24: SOURCES
A25: All data except for locomotive unit-miles:
A26: 1960-2007: Association of American Railroads, Railroad Facts (Washington, DC: Annual Issues), pp. 33, 34, 40, 49, and 51, and similar pages in earlier editions.
A27: 2008-16: Association of American Railroads, personal communication, May 20, 2013 and Feb. 6, 2018.
A28: Locomotive unit-miles:
A29: 1975-92, 2002: Ibid., Railroad Ten-Year Trends (Washington, DC: Annual Issues).
A30: 1993-2001, 2003-04: Ibid., Analysis of Class I Railroads (Washington, DC: Annual Issues).
A31: 2005-16: Association of American Railroads, personal communications, Jun. 13, 2007, Apr. 24, 2008, Apr. 28, 2010, Aug. 12, 2011, May 04, 2012, May 20, 2013, and Feb. 6, 2018.
A35: Average miles traveled per gallon
A36: Car | B36: 8.13 | C36: 8.43 | D36: 7.5 | E36: 8.4 | F36: 8.54 | G36: 8.73 | H36: 8.86 | I36: 8.86 | J36: 9.11 | K36: 9.11 | L36: 9.35 | M36: 9.23 | N36: 9.3 | O36: 9.29 | P36: 9.13 | Q36: 9.2 | R36: 9.29 | S36: 9.4 | T36: 9.58 | U36: 10.06
